Workbook

Sheet Tablas (hidden)
B3: sino | K3: Aire | AC3: Protecciones Solares | AK3: L/H | AU3: R/W | AY3: 1 | AZ3: 2 | BA3: 3 | BD3: 1 | BE3: 2 | BF3: 3 | BG3: 4 | BH3: 5 | BI3: 6 | BJ3: 7 | BO3: 1 | BP3: 2 | BQ3: 3 | CB3: Salubridad del aire | CI3: Inercia térmica
B4: si | K4: r [kg/m3] | L4: 1.2 | P4: s [W/m2K] | Q4: =5.6704/100000000 -> 5.6704e-08 | X4: CONDUCTIVITY | Y4: DENSITY | Z4: SPECIFIC-HEAT | AI4: 1 | AJ4: 2 | AK4: 3 | AL4: 4 | AS4: 1 | AT4: 2 | AU4: 3 | AV4: 4 | AX4: Tabla 3 | AZ4: angulo | BC4: Tabla 4 | BG4: Angulo | BL4: Tabla 5 | BM4: Datos | BP4: angulo | BS4: Tabla 6 | BT4: Datos | BW4: angulo
B5: no | K5: Cp [J/kg*K] | L5: 1015 | P5: h [W/m2K] | Q5: =1/0.05 -> 20 | W5: Lana de celulosa | X5: 0.041 | Y5: 25.8 | Z5: 840 | AI5: 0.2 | AJ5: 0.5 | AK5: 1 | AL5: 2 | AS5: 0.05 | AT5: 0.1 | AU5: 0.2 | AV5: 0.5 | AX5: Orientacion | AY5: 30 | AZ5: 45 | BA5: 60 | BC5: Orientacion | BD5: 60 | BE5: 45 | BF5: 30 | BG5: 0 | BH5: -30 | BI5: -45 | BJ5: -60 | BL5: Tipo | BM5: Orientacion | BO5: 30 | BP5: 45 | BQ5: 60 | BS5: Tipo | BT5: Orientacion | BV5: 30 | BW5: 45 | BX5: 60 | CC5: Densidad CO2 | CD5: 1.87 | CE5: g/l | CJ5: Aislación | CK5: muros | CM5: Muros | CP5: Piso | CS5: Techo
K6: Cp [Wh/kg*K] | L6: =+L5/3600 -> 0.2819444444 | P6: a | Q6: 0.4 | W6: Lana de roca colchoneta | X6: 0.042 | Y6: 40 | Z6: 840 | AD6: Tabla 1 | AH6: D/H | AI6: 0.5 | AJ6: 1 | AK6: 2 | AN6: Tabla 2 | AR6: R/H | AS6: 0.1 | AT6: 0.2 | AU6: 0.5 | AX6: Norte | AY6: 0.49 | AZ6: 0.42 | BA6: 0.26 | BC6: Norte | BD6: 0.37 | BE6: 0.44 | BF6: 0.49 | BG6: 0.53 | BH6: 0.47 | BI6: 0.41 | BJ6: 0.32 | BL6: Tejido opaco | BM6: Norte | BN6: =+CONCATENATE(BM6,BL6) -> NorteTejido opaco | BO6: 0.02 | BP6: 0.05 | BQ6: 0.22 | BS6: Tejido opaco | BT6: Norte | BU6: =+CONCATENATE(BT6,BS6) -> NorteTejido opaco | BV6: 0.43 | BW6: 0.2 | BX6: 0.14 | CC6: Densidad aire | CD6: =+L4 -> 1.2 | CE6: g/l | CJ6: Dentro | CK6: 0.075 | CL6: 0.1 | CM6: e [m] | CN6: =+'Ingreso Datos Energía'!$D$20/100 -> 0.15 | CP6: e [m] | CQ6: =+'Ingreso Datos Energía'!$L$20/100 -> 0.15 | CS6: e [m] | CT6: =+'Ingreso Datos Energía'!$H$20/100 -> 0.15
L7: =+'Ingreso Datos Ventilación'!U37 -> 0 | P7: l [W/mK] | Q7: 1.63 | W7: Lana de roca granulada | X7: 0.059 | Y7: 40 | Z7: 840 | AD7: Norte | AE7: 1 | AF7: =+CONCATENATE(AD7,AE7) -> Norte1 | AG7: 0 | AH7: 0.2 | AI7: 0.82 | AJ7: 0.5 | AK7: 0.28 | AL7: 0.16 | AN7: Norte | AO7: 1 | AP7: =+CONCATENATE(AN7,AO7) -> Norte1 | AQ7: 0.05 | AR7: 0.1 | AS7: 0.82 | AT7: 0.74 | AU7: 0.62 | AV7: 0.39 | AX7: NorOeste | AY7: 0.54 | AZ7: 0.44 | BA7: 0.26 | BC7: NorOeste | BD7: 0.46 | BE7: 0.53 | BF7: 0.56 | BG7: 0.56 | BH7: 0.47 | BI7: 0.4 | BJ7: 0.3 | BL7: Tejido opaco | BM7: NorOeste | BN7: =+CONCATENATE(BM7,BL7) -> NorOesteTejido opaco | BO7: 0.02 | BP7: 0.05 | BQ7: 0.22 | BS7: Tejido opaco | BT7: NorOeste | BU7: =+CONCATENATE(BT7,BS7) -> NorOesteTejido opaco | BV7: 0.61 | BW7: 0.3 | BX7: 0.39 | CJ7: Fuera | CK7: 0.125 | CL7: =+CK7*$CL$6/$CK$6 -> 0.1666666667 | CM7: Sup [m2] | CN7: =+SUM('Ingreso Datos Energía'!$G$28:$G$35) -> 84 | CP7: Sup [m2] | CQ7: =+'Ingreso Datos Energía'!$D$15 -> 100 | CS7: Sup [m2] | CT7: =+'Ingreso Datos Energía'!$D$15 -> 100
W8: Lana de vidrio colchonetas | X8: 0.044 | Y8: 13 | Z8: 1050 | AD8: Norte | AE8: 2 | AF8: =+CONCATENATE(AD8,AE8) -> Norte2 | AG8: 0.2 | AH8: 0.5 | AI8: 0.87 | AJ8: 0.64 | AK8: 0.39 | AL8: 0.22 | AN8: Norte | AO8: 2 | AP8: =+CONCATENATE(AN8,AO8) -> Norte2 | AQ8: 0.1 | AR8: 0.2 | AS8: 0.76 | AT8: 0.67 | AU8: 0.56 | AV8: 0.35 | AX8: NorEste | AY8: 0.54 | AZ8: 0.44 | BA8: 0.26 | BC8: NorEste | BD8: 0.38 | BE8: 0.44 | BF8: 0.5 | BG8: 0.56 | BH8: 0.53 | BI8: 0.48 | BJ8: 0.38 | BL8: Tejido opaco | BM8: NorEste | BN8: NorEsteTejido opaco | BO8: 0.02 | BP8: 0.05 | BQ8: 0.22 | BS8: Tejido opaco | BT8: NorEste | BU8: NorEsteTejido opaco | BV8: 0.61 | BW8: 0.3 | BX8: 0.39 | CC8: Actividad | CD8: CO2 | CJ8: Ambas | CK8: 0.075 | CL8: =+CK8*$CL$6/$CK$6 -> 0.1 | CM8: Material | CN8: =+'Ingreso Datos Energía'!$D$19 -> Hormigón | CP8: Material | CQ8: =+'Ingreso Datos Energía'!$L$19 -> Hormigón | CS8: Material | CT8: =+'Ingreso Datos Energía'!$H$19 -> Hormigón
G9: Ene | H9: 31 | W9: Lana de vidrio granulada | X9: 0.063 | Y9: 12 | Z9: 1050 | AD9: Norte | AE9: 3 | AF9: Norte3 | AG9: 0.5 | AI9: 0.93 | AJ9: 0.82 | AK9: 0.6 | AL9: 0.39 | AN9: Norte | AO9: 3 | AP9: Norte3 | AQ9: 0.2 | AR9: 0.5 | AS9: 0.56 | AT9: 0.51 | AU9: 0.39 | AV9: 0.27 | AX9: Oeste | AY9: 0.57 | AZ9: 0.45 | BA9: 0.27 | BC9: Oeste | BD9: 0.39 | BE9: 0.47 | BF9: 0.54 | BG9: 0.63 | BH9: 0.55 | BI9: 0.45 | BJ9: 0.32 | BL9: Tejido opaco | BM9: Oeste | BN9: OesteTejido opaco | BO9: 0.04 | BP9: 0.08 | BQ9: 0.28 | BS9: Tejido opaco | BT9: Oeste | BU9: OesteTejido opaco | BV9: 0.67 | BW9: 0.4 | BX9: 0.28 | CC9: Actividad reducida | CD9: 19 | CE9: [l/(h x pers)] | CJ9: N/A | CK9: 0.075 | CL9: =+CK9*$CL$6/$CK$6 -> 0.1 | CM9: Aislación | CN9: =+'Ingreso Datos Energía'!$D$21 -> Fuera | CP9: Tipo | CQ9: =+IF('Ingreso Datos Energía'!$G$37=0,"No Ventilado","Ventilado") -> No Ventilado | CS9: Aislación | CT9: =+'Ingreso Datos Energía'!$H$21 -> Fuera
G10: Feb | H10: 28 | W10: Lana de vidrio paneles | X10: 0.046 | Y10: 10 | Z10: 1050 | AD10: NorEste | AE10: 1 | AF10: NorEste1 | AG10: 0 | AH10: 0.2 | AI10: 0.9 | AJ10: 0.71 | AK10: 0.43 | AL10: 0.16 | AN10: Norte | AO10: 4 | AP10: Norte4 | AQ10: 0.5 | AS10: 0.35 | AT10: 0.32 | AU10: 0.27 | AV10: 0.17 | AX10: Este | AY10: 0.57 | AZ10: 0.45 | BA10: 0.27 | BC10: Este | BD10: 0.44 | BE10: 0.52 | BF10: 0.58 | BG10: 0.63 | BH10: 0.5 | BI10: 0.41 | BJ10: 0.29 | BL10: Tejido opaco | BM10: Este | BN10: EsteTejido opaco | BO10: 0.04 | BP10: 0.08 | BQ10: 0.28 | BS10: Tejido opaco | BT10: Este | BU10: EsteTejido opaco | BV10: 0.67 | BW10: 0.4 | BX10: 0.28 | CC10: Ejercicio físico Bajo | CD10: 50 | CE10: [l/(h x pers)] | CP10: % ventilado | CQ10: =+'Ingreso Datos Energía'!$G$37/'Ingreso Datos Energía'!$D$15 -> 0
G11: Mar | H11: 31 | W11: Lana de vidrio paneles | X11: 0.043 | Y11: 12 | Z11: 1050 | AD11: NorEste | AE11: 2 | AF11: NorEste2 | AG11: 0.2 | AH11: 0.5 | AI11: 0.94 | AJ11: 0.82 | AK11: 0.6 | AL11: 0.27 | AN11: NorEste | AO11: 1 | AP11: NorEste1 | AQ11: 0.05 | AR11: 0.1 | AS11: 0.86 | AT11: 0.81 | AU11: 0.72 | AV11: 0.51 | BL11: Tejido translucido | BM11: Norte | BN11: NorteTejido translucido | BO11: 0.22 | BP11: 0.25 | BQ11: 0.42 | BS11: Tejido translucido | BT11: Norte | BU11: NorteTejido translucido | BV11: 0.63 | BW11: 0.4 | BX11: 0.34 | CC11: Ejercicio físico Medio | CD11: 100 | CE11: [l/(h x pers)] | CJ11: Revestimiento | CK11: Pisos absorbe | CL11: Aporta | CP11: Aislación | CQ11: =+'Ingreso Datos Energía'!$L$21 -> Fuera
G12: Abr | H12: 30 | W12: Lana de vidrio paneles | X12: 0.042 | Y12: 12.5 | Z12: 1050 | AD12: NorEste | AE12: 3 | AF12: NorEste3 | AG12: 0.5 | AI12: 0.98 | AJ12: 0.93 | AK12: 0.84 | AL12: 0.65 | AN12: NorEste | AO12: 2 | AP12: NorEste2 | AQ12: 0.1 | AR12: 0.2 | AS12: 0.79 | AT12: 0.74 | AU12: 0.66 | AV12: 0.47 | BL12: Tejido translucido | BM12: NorOeste | BN12: NorOesteTejido translucido | BO12: 0.22 | BP12: 0.25 | BQ12: 0.42 | BS12: Tejido translucido | BT12: NorOeste | BU12: NorOesteTejido translucido | BV12: 0.81 | BW12: 0.5 | BX12: 0.42 | CC12: Ejercicio físico Alto | CD12: 170 | CE12: [l/(h x pers)] | CJ12: Liviano | CK12: 0.3 | CL12: =1-CK12 -> 0.7 | CP12: Revestimiento | CQ12: =+'Ingreso Datos Energía'!$L$22 -> Liviano
G13: May | H13: 31 | W13: Lana de vidrio paneles | X13: 0.042 | Y13: 13 | Z13: 1050 | AD13: NorOeste | AE13: 1 | AF13: NorOeste1 | AG13: 0 | AH13: 0.2 | AI13: 0.9 | AJ13: 0.71 | AK13: 0.43 | AL13: 0.16 | AN13: NorEste | AO13: 3 | AP13: NorEste3 | AQ13: 0.2 | AR13: 0.5 | AS13: 0.59 | AT13: 0.56 | AU13: 0.47 | AV13: 0.36 | BL13: Tejido translucido | BM13: NorEste | BN13: NorEsteTejido translucido | BO13: 0.22 | BP13: 0.25 | BQ13: 0.42 | BS13: Tejido translucido | BT13: NorEste | BU13: NorEsteTejido translucido | BV13: 0.81 | BW13: 0.5 | BX13: 0.42 | CC13: Educación < 6 años | CD13: 18 | CE13: [l/(h x pers)] | CJ13: Solido | CK13: 0.5 | CL13: =1-CK13 -> 0.5
G14: Jun | H14: 30 | K14: Hospitales | L14: IDA 1 | W14: Lana de vidrio paneles | X14: 0.042 | Y14: 13.5 | Z14: 1050 | AD14: NorOeste | AE14: 2 | AF14: NorOeste2 | AG14: 0.2 | AH14: 0.5 | AI14: 0.94 | AJ14: 0.82 | AK14: 0.6 | AL14: 0.27 | AN14: NorEste | AO14: 4 | AP14: NorEste4 | AQ14: 0.5 | AS14: 0.38 | AT14: 0.36 | AU14: 0.32 | AV14: 0.23 | BL14: Tejido translucido | BM14: Oeste | BN14: OesteTejido translucido | BO14: 0.24 | BP14: 0.28 | BQ14: 0.48 | BS14: Tejido translucido | BT14: Oeste | BU14: OesteTejido translucido | BV14: 0.87 | BW14: 0.6 | BX14: 0.48 | CC14: Educación > 6 años | CD14: 19 | CE14: [l/(h x pers)] | CP14: % aporte | CQ14: m3*ro*cp
G15: Jul | H15: 31 | K15: Clínicas | L15: IDA 1 | W15: Lana de vidrio paneles | X15: 0.041 | Y15: 14 | Z15: 1050 | AD15: NorOeste | AE15: 3 | AF15: NorOeste3 | AG15: 0.5 | AI15: 0.98 | AJ15: 0.93 | AK15: 0.84 | AL15: 0.65 | AN15: NorOeste | AO15: 1 | AP15: NorOeste1 | AQ15: 0.05 | AR15: 0.1 | AS15: 0.86 | AT15: 0.81 | AU15: 0.72 | AV15: 0.51 | BL15: Tejido translucido | BM15: Este | BN15: EsteTejido translucido | BO15: 0.24 | BP15: 0.28 | BQ15: 0.48 | BS15: Tejido translucido | BT15: Este | BU15: EsteTejido translucido | BV15: 0.87 | BW15: 0.6 | BX15: 0.48 | CJ15: Materiales | CK15: r [kg/m3] | CL15: Cp [J/kg*K] | CM15: Cp [Wh/kg*K] | CO15: Muros | CP15: 0.12 | CQ15: =+CN7*CN6*VLOOKUP(CN8,$CJ$16:$CM$19,2,0)*VLOOKUP(CN8,$CJ$16:$CM$19,4,0)*VLOOKUP(CN9,CJ6:CK9,2,0)*CP15 -> 110.88 | CR15: [Wh/K] | CS15: 12
G16: Ago | H16: 31 | K16: Laboratorios | L16: IDA 1 | W16: Lana de vidrio paneles | X16: 0.039 | Y16: 16 | Z16: 1050 | AD16: Este | AE16: 1 | AF16: Este1 | AG16: 0 | AH16: 0.2 | AI16: 0.92 | AJ16: 0.77 | AK16: 0.55 | AL16: 0.22 | AN16: NorOeste | AO16: 2 | AP16: NorOeste2 | AQ16: 0.1 | AR16: 0.2 | AS16: 0.79 | AT16: 0.74 | AU16: 0.66 | AV16: 0.47 | CC16: Edificio | CD16: Pers/m2 | CJ16: Hormigón | CK16: 2400 | CL16: 880 | CM16: =+CL16/3600 -> 0.2444444444 | CO16: Piso | CP16: 0.11 | CQ16: =+CQ7*CQ6*VLOOKUP(CQ8,$CJ$16:$CM$19,2,0)*VLOOKUP(CQ8,$CJ$16:$CM$19,4,0)*VLOOKUP(CQ11,CJ6:CK9,2,0)*CP16 -> 121 | CR16: [Wh/K] | CS16: 11
G17: Sep | H17: 30 | K17: Guarderias | L17: IDA 1 | W17: Lana de vidrio paneles | X17: 0.038 | Y17: 18 | Z17: 1050 | AD17: Este | AE17: 2 | AF17: Este2 | AG17: 0.2 | AH17: 0.5 | AI17: 0.96 | AJ17: 0.86 | AK17: 0.7 | AL17: 0.43 | AN17: NorOeste | AO17: 3 | AP17: NorOeste3 | AQ17: 0.2 | AR17: 0.5 | AS17: 0.59 | AT17: 0.56 | AU17: 0.47 | AV17: 0.36 | CC17: Oficinas | CD17: 0.07 | CJ17: Albañilería | CK17: 1900 | CL17: 840 | CM17: =+CL17/3600 -> 0.2333333333 | CO17: Techo | CP17: 0.1 | CQ17: =+CT7*CT6*VLOOKUP(CT8,$CJ$16:$CM$19,2,0)*VLOOKUP(CT8,$CJ$16:$CM$19,4,0)*VLOOKUP(CT9,$CJ$6:$CK$9,2,0)*CP17 -> 110 | CR17: [Wh/K] | CS17: 10
G18: Oct | H18: 31 | K18: Oficinas | L18: IDA 2 | W18: Lana de vidrio paneles | X18: 0.037 | Y18: 20 | Z18: 1050 | AD18: Este | AE18: 3 | AF18: Este3 | AG18: 0.5 | AI18: 0.99 | AJ18: 0.96 | AK18: 0.89 | AL18: 0.75 | AN18: NorOeste | AO18: 4 | AP18: NorOeste4 | AQ18: 0.5 | AS18: 0.38 | AT18: 0.36 | AU18: 0.32 | AV18: 0.23 | CC18: Salas de conferencias | CD18: 0.5 | CJ18: Adobe | CK18: 2200 | CL18: 850 | CM18: =+CL18/3600 -> 0.2361111111 | CO18: Total | CQ18: =+SUM(CQ15:CQ17) -> 341.88 | CR18: [Wh/K]
G19: Nov | H19: 30 | K19: Residencias | L19: IDA 2 | W19: Lana de vidrio paneles | X19: 0.034 | Y19: 30 | Z19: 1050 | AD19: Oeste | AE19: 1 | AF19: Oeste1 | AG19: 0 | AH19: 0.2 | AI19: 0.92 | AJ19: 0.77 | AK19: 0.55 | AL19: 0.22 | AN19: Este | AO19: 1 | AP19: Este1 | AQ19: 0.05 | AR19: 0.1 | AS19: 0.91 | AT19: 0.87 | AU19: 0.81 | AV19: 0.65 | CC19: Teatros | CD19: 1.5 | CJ19: Liviano | CK19: 400 | CL19: 1090 | CM19: =+CL19/3600 -> 0.3027777778
G20: Dic | H20: 31 | K20: Sala de Lecturas | L20: IDA 2 | W20: Lana de vidrio paneles | X20: 0.033 | Y20: 40 | Z20: 1050 | AD20: Oeste | AE20: 2 | AF20: Oeste2 | AG20: 0.2 | AH20: 0.5 | AI20: 0.96 | AJ20: 0.86 | AK20: 0.7 | AL20: 0.43 | AN20: Este | AO20: 2 | AP20: Este2 | AQ20: 0.1 | AR20: 0.2 | AS20: 0.86 | AT20: 0.82 | AU20: 0.76 | AV20: 0.61 | CC20: Colegios | CD20: 0.5 | CO20: Reducción solar | CQ20: =+VLOOKUP(CQ12,CJ12:CL13,3,0) -> 0.7
K21: Aulas | L21: IDA 2 | W21: Lana de vidrio paneles | X21: 0.032 | Y21: 50 | Z21: 1050 | AD21: Oeste | AE21: 3 | AF21: Oeste3 | AG21: 0.5 | AI21: 0.99 | AJ21: 0.96 | AK21: 0.89 | AL21: 0.75 | AN21: Este | AO21: 3 | AP21: Este3 | AQ21: 0.2 | AR21: 0.5 | AS21: 0.71 | AT21: 0.68 | AU21: 0.61 | AV21: 0.51 | CC21: Centros de atención infantil | CD21: 0.5
K22: Museos | L22: IDA 2 | W22: Poliestireno expandido | X22: 0.043 | Y22: 10 | Z22: 1200 | AN22: Este | AO22: 4 | AP22: Este4 | AQ22: 0.5 | AS22: 0.53 | AT22: 0.51 | AU22: 0.48 | AV22: 0.39 | CC22: Viviendas | CD22: 0.05
K23: Salas de Tribunales | L23: IDA 2 | W23: Poliestireno expandido | X23: 0.041 | Y23: 15 | Z23: 1200 | AN23: Oeste | AO23: 1 | AP23: Oeste1 | AQ23: 0.05 | AR23: 0.1 | AS23: 0.91 | AT23: 0.87 | AU23: 0.81 | AV23: 0.65 | CJ23: Recintos | CK23: Carga en [W/persona] | CL23: [Lux] NCh.4Of2003 | CM23: Potencia iluminación [W/m2] | CN23: L/s pers | CO23: L/s m2 | CP23: Pers/100m2 | CQ23: m2/pers | CR23: Acustica
D24: Valores Edificio Referencia | K24: Piscinas | L24: IDA 2 | W24: Poliestireno expandido | X24: 0.0384 | Y24: 20 | Z24: 1200 | AN24: Oeste | AO24: 2 | AP24: Oeste2 | AQ24: 0.1 | AR24: 0.2 | AS24: 0.86 | AT24: 0.82 | AU24: 0.76 | AV24: 0.61 | CC24: Aire Exterior | CD24: 400 | CE24: ppm | CJ24: ------- General: -------
D25: U muros | E25: =+HLOOKUP(VLOOKUP(Zona_Climatica,Tablas!$F$50:$G$58,2,FALSE),Tablas!$E$44:$M$47,3,FALSE) -> 2.9 | K25: Edificios Comerciales | L25: IDA 3 | W25: Poliestireno expandido | X25: 0.037 | Y25: 25 | Z25: 1200 | AN25: Oeste | AO25: 3 | AP25: Oeste3 | AQ25: 0.2 | AR25: 0.5 | AS25: 0.71 | AT25: 0.68 | AU25: 0.61 | AV25: 0.51 | CC25: Vol aire | CD25: =+'Ingreso Datos Ventilación'!U37*1000 -> 0 | CE25: l | CJ25: Oficinas | CK25: 82 | CL25: 400 | CM25: 12 | CN25: 2.5 | CO25: 0.3 | CP25: 10 | CQ25: =IFERROR(100/CP25,"") -> 10 | CR25: Oficinas
D26: U ventanas | E26: =+HLOOKUP(VLOOKUP(Zona_Climatica,Tablas!$F$50:$G$58,2,FALSE),Tablas!$E$44:$M$47,4,FALSE) -> 3.6 | K26: Cines | L26: IDA 3 | W26: Poliestireno expandido | X26: 0.0361 | Y26: 30 | Z26: 1200 | AN26: Oeste | AO26: 4 | AP26: Oeste4 | AQ26: 0.5 | AS26: 0.53 | AT26: 0.51 | AU26: 0.48 | AV26: 0.39 | CC26: masa aire | CD26: =+CD25*CD6 -> 0 | CE26: g | CJ26: Salones de reuniones | CK26: 82 | CL26: 500 | CM26: 14 | CN26: 2.5 | CO26: 0.3 | CP26: 125 | CQ26: =IFERROR(100/CP26,"") -> 0.8 | CR26: Oficinas
D27: U cubiertas | E27: =+HLOOKUP(VLOOKUP(Zona_Climatica,Tablas!$F$50:$G$58,2,FALSE),Tablas!$E$44:$M$47,2,) -> 0.8 | K27: Teatros | L27: IDA 3 | W27: Poliuretano expandido | X27: 0.0272 | Y27: 25 | Z27: 1260 | CC27: l CO2 | CD27: =+'Ingreso Datos Ventilación'!$U$38*'Ingreso Datos Ventilación'!$U$39*'Ingreso Datos Ventilación'!$D$15 ->  | CE27: l/h | CJ27: Estacionamientos | CK27: 164 | CL27: 75 | CM27: 2 | CN27: 0 | CP27: 0 | CQ27: =IFERROR(100/CP27,"") ->  | CR27: Áreas comunes
D28: U pisos en contacto con el suelo | E28: 3.85 | K28: Habitaciones de hoteles | L28: IDA 3 | W28: Poliuretano expandido | X28: 0.0262 | Y28: 30 | Z28: 1260 | AF28: D/H | AG28: L/H | AP28: R/H | AQ28: R/W | CC28: masa CO2 | CD28: =+CD27*CD5 ->  | CE28: g | CJ28: Bodegas, Archivos | CK28: 98.4 | CL28: 150 | CM28: 6 | CN28: 0 | CO28: 0.6 | CP28: 2.5 | CQ28: =IFERROR(100/CP28,"") -> 40 | CR28: Áreas comunes
D29: U pisos ventilados | E29: =+HLOOKUP(VLOOKUP(Zona_Climatica,Tablas!$F$50:$G$58,2,FALSE),Tablas!$E$44:$M$47,2,FALSE) -> 0.8 | K29: Restaurantes | L29: IDA 3 | P29: =+DEC2HEX(1001) -> 3E9 | W29: Poliuretano expandido | X29: 0.025 | Y29: 35 | Z29: 1260 | AD29: Norte | AE29: =+'Ingreso Datos Iluminación'!T38*'Ingreso Datos Iluminación'!U38 -> 0 | AF29: =+IF('Ingreso Datos Iluminación'!T38<=Tablas!$AH$7,1,IF('Ingreso Datos Iluminación'!T38<=Tablas!$AH$8,2,3)) -> 1 | AG29: =+IF('Ingreso Datos Iluminación'!U38<=$AI$6,1,IF('Ingreso Datos Iluminación'!U38<=$AJ$6,2,IF('Ingreso Datos Iluminación'!U38<=$AK$6,3,4))) -> 1 | AH29: =+CONCATENATE(AD29,AF29) -> Norte1 | AI29: =+IF(AE29=0,1,VLOOKUP(AH29,$AF$7:$AL$21,3+AG29,0)) -> 1 | AN29: Norte | AO29: =+'Ingreso Datos Iluminación'!V38*'Ingreso Datos Iluminación'!W38 -> 0.0007142857143 | AP29: =+IF('Ingreso Datos Iluminación'!V38<=Tablas!$AR$7,1,IF('Ingreso Datos Iluminación'!V38<=Tablas!$AR$8,2,IF('Ingreso Datos Iluminación'!V38<=Tablas!$AR$9,3,4))) -> 1 | AQ29: =+IF('Ingreso Datos Iluminación'!W38<=$AS$6,1,IF('Ingreso Datos Iluminación'!W38<=$AT$6,2,IF('Ingreso Datos Iluminación'!W38<=$AU$6,3,4))) -> 1 | AR29: =+CONCATENATE(AN29,AP29) -> Norte1 | AS29: =+IF(AO29=0,1,VLOOKUP(AR29,$AP$7:$AV$26,3+AQ29,0)) -> 0.82 | AX29: Norte | AY29: =+IF('Ingreso Datos Iluminación'!J39<=Tablas!$AY$5,1,IF('Ingreso Datos Iluminación'!J39<=Tablas!$AZ$5,2,3)) -> 1 | AZ29: =+IF('Ingreso Datos Iluminación'!J39=0,1,VLOOKUP(AX29,$AX$6:$BA$10,1+AY29)) -> 1 | BC29: Norte | BD29: =+IF('Ingreso Datos Iluminación'!K39<=Tablas!$BJ$5,7,IF('Ingreso Datos Iluminación'!K39<=Tablas!$BI$5,6,IF('Ingreso Datos Iluminación'!K39<=Tablas!$BH$5,5,IF('Ingreso Datos Iluminación'!K39<=Tablas!$BG$5,4,0)))) -> 4 | BE29: =+IF('Ingreso Datos Iluminación'!K39>=$BD$5,1,IF('Ingreso Datos Iluminación'!K39>=$BE$5,2,IF('Ingreso Datos Iluminación'!K39>=$BF$5,3,IF('Ingreso Datos Iluminación'!K39>=$BG$5,4,0)))) -> 4 | BF29: =+MAX(BD29:BE29) -> 4 | BG29: =+IF('Ingreso Datos Iluminación'!K39="",1,VLOOKUP(BC29,$BC$6:$BJ$10,1+BF29,0)) -> 1 | BL29: Norte | BM29: =+'Ingreso Datos Iluminación'!L39 -> 0 | BN29: =+CONCATENATE(BL29,BM29) -> Norte0 | BO29: =+IF('Ingreso Datos Iluminación'!M39<=Tablas!$BO$5,1,IF('Ingreso Datos Iluminación'!M39<=Tablas!$BP$5,2,3)) -> 1 | BP29: =+IF('Ingreso Datos Iluminación'!M39=0,1,VLOOKUP(BN29,$BN$6:$BQ$15,1+BO29,0)) -> 1 | BS29: Norte | BT29: =+'Ingreso Datos Iluminación'!N39 -> 0 | BU29: =+CONCATENATE(BS29,BT29) -> Norte0 | BV29: =+IF('Ingreso Datos Iluminación'!O39<=Tablas!$BO$5,1,IF('Ingreso Datos Iluminación'!O39<=Tablas!$BP$5,2,3)) -> 1 | BW29: =+IF('Ingreso Datos Iluminación'!O39=0,1,VLOOKUP(BU29,$BU$6:$BX$15,1+BV29,0)) -> 1 | CC29: ppm interior | CD29: =+CD24+CD28/CD26*1000000 ->  | CE29: ppm | CJ29: Bibliotecas | CK29: 131.2 | CL29: 400 | CM29: 13 | CN29: 3.8 | CO29: 0.3 | CP29: 25 | CQ29: =IFERROR(100/CP29,"") -> 4 | CR29: Oficinas
D30: Factor Solar Vidrio | E30: =+VLOOKUP(E26,$D$33:$E$36,2,FALSE) -> 0.77 | K30: Cafeterías | L30: IDA 3 | W30: Poliuretano expandido | X30: 0.0245 | Y30: 45 | Z30: 1260 | AD30: NorOeste | AE30: =+'Ingreso Datos Iluminación'!T39*'Ingreso Datos Iluminación'!U39 -> 0 | AF30: =+IF('Ingreso Datos Iluminación'!T39<=Tablas!$AH$7,1,IF('Ingreso Datos Iluminación'!T39<=Tablas!$AH$8,2,3)) -> 1 | AG30: =+IF('Ingreso Datos Iluminación'!U39<=$AI$6,1,IF('Ingreso Datos Iluminación'!U39<=$AJ$6,2,IF('Ingreso Datos Iluminación'!U39<=$AK$6,3,4))) -> 1 | AH30: =+CONCATENATE(AD30,AF30) -> NorOeste1 | AI30: =+IF(AE30=0,1,VLOOKUP(AH30,$AF$7:$AL$21,3+AG30,0)) -> 1 | AN30: NorOeste | AO30: =+'Ingreso Datos Iluminación'!V39*'Ingreso Datos Iluminación'!W39 -> 0 | AP30: =+IF('Ingreso Datos Iluminación'!V39<=Tablas!$AR$7,1,IF('Ingreso Datos Iluminación'!V39<=Tablas!$AR$8,2,IF('Ingreso Datos Iluminación'!V39<=Tablas!$AR$9,3,4))) -> 1 | AQ30: =+IF('Ingreso Datos Iluminación'!W39<=$AS$6,1,IF('Ingreso Datos Iluminación'!W39<=$AT$6,2,IF('Ingreso Datos Iluminación'!W39<=$AU$6,3,4))) -> 1 | AR30: =+CONCATENATE(AN30,AP30) -> NorOeste1 | AS30: =+IF(AO30=0,1,VLOOKUP(AR30,$AP$7:$AV$26,3+AQ30,0)) -> 1 | AX30: NorOeste | AY30: =+IF('Ingreso Datos Iluminación'!J40<=Tablas!$AY$5,1,IF('Ingreso Datos Iluminación'!J40<=Tablas!$AZ$5,2,3)) -> 1 | AZ30: =+IF('Ingreso Datos Iluminación'!J40=0,1,VLOOKUP(AX30,$AX$6:$BA$10,1+AY30)) -> 1 | BC30: NorOeste | BD30: =+IF('Ingreso Datos Iluminación'!K40<=Tablas!$BJ$5,7,IF('Ingreso Datos Iluminación'!K40<=Tablas!$BI$5,6,IF('Ingreso Datos Iluminación'!K40<=Tablas!$BH$5,5,IF('Ingreso Datos Iluminación'!K40<=Tablas!$BG$5,4,0)))) -> 4 | BE30: =+IF('Ingreso Datos Iluminación'!K40>=$BD$5,1,IF('Ingreso Datos Iluminación'!K40>=$BE$5,2,IF('Ingreso Datos Iluminación'!K40>=$BF$5,3,IF('Ingreso Datos Iluminación'!K40>=$BG$5,4,0)))) -> 4 | BF30: =+MAX(BD30:BE30) -> 4 | BG30: =+IF('Ingreso Datos Iluminación'!K40="",1,VLOOKUP(BC30,$BC$6:$BJ$10,1+BF30,0)) -> 1 | BL30: NorOeste | BM30: =+'Ingreso Datos Iluminación'!L40 -> 0 | BN30: =+CONCATENATE(BL30,BM30) -> NorOeste0 | BO30: =+IF('Ingreso Datos Iluminación'!M40<=Tablas!$BO$5,1,IF('Ingreso Datos Iluminación'!M40<=Tablas!$BP$5,2,3)) -> 1 | BP30: =+IF('Ingreso Datos Iluminación'!M40=0,1,VLOOKUP(BN30,$BN$6:$BQ$15,1+BO30,0)) -> 1 | BS30: NorOeste | BT30: =+'Ingreso Datos Iluminación'!N40 -> 0 | BU30: =+CONCATENATE(BS30,BT30) -> NorOeste0 | BV30: =+IF('Ingreso Datos Iluminación'!O40<=Tablas!$BO$5,1,IF('Ingreso Datos Iluminación'!O40<=Tablas!$BP$5,2,3)) -> 1 | BW30: =+IF('Ingreso Datos Iluminación'!O40=0,1,VLOOKUP(BU30,$BU$6:$BX$15,1+BV30,0)) -> 1 | CJ30: Pasillos | CK30: - | CL30: 50 | CM30: 5 | CN30: 0 | CO30: 0.3 | CP30: 0 | CQ30: =IFERROR(100/CP30,"") ->  | CR30: Áreas comunes
K31: Bares | L31: IDA 3 | W31: Poliuretano expandido | X31: 0.0254 | Y31: 60 | Z31: 1260 | AD31: NorEste | AE31: =+'Ingreso Datos Iluminación'!T40*'Ingreso Datos Iluminación'!U40 -> 0 | AF31: =+IF('Ingreso Datos Iluminación'!T40<=Tablas!$AH$7,1,IF('Ingreso Datos Iluminación'!T40<=Tablas!$AH$8,2,3)) -> 1 | AG31: =+IF('Ingreso Datos Iluminación'!U40<=$AI$6,1,IF('Ingreso Datos Iluminación'!U40<=$AJ$6,2,IF('Ingreso Datos Iluminación'!U40<=$AK$6,3,4))) -> 1 | AH31: =+CONCATENATE(AD31,AF31) -> NorEste1 | AI31: =+IF(AE31=0,1,VLOOKUP(AH31,$AF$7:$AL$21,3+AG31,0)) -> 1 | AN31: NorEste | AO31: =+'Ingreso Datos Iluminación'!V40*'Ingreso Datos Iluminación'!W40 -> 0 | AP31: =+IF('Ingreso Datos Iluminación'!V40<=Tablas!$AR$7,1,IF('Ingreso Datos Iluminación'!V40<=Tablas!$AR$8,2,IF('Ingreso Datos Iluminación'!V40<=Tablas!$AR$9,3,4))) -> 1 | AQ31: =+IF('Ingreso Datos Iluminación'!W40<=$AS$6,1,IF('Ingreso Datos Iluminación'!W40<=$AT$6,2,IF('Ingreso Datos Iluminación'!W40<=$AU$6,3,4))) -> 1 | AR31: =+CONCATENATE(AN31,AP31) -> NorEste1 | AS31: =+IF(AO31=0,1,VLOOKUP(AR31,$AP$7:$AV$26,3+AQ31,0)) -> 1 | AX31: NorEste | AY31: =+IF('Ingreso Datos Iluminación'!J41<=Tablas!$AY$5,1,IF('Ingreso Datos Iluminación'!J41<=Tablas!$AZ$5,2,3)) -> 1 | AZ31: =+IF('Ingreso Datos Iluminación'!J41=0,1,VLOOKUP(AX31,$AX$6:$BA$10,1+AY31)) -> 1 | BC31: NorEste | BD31: =+IF('Ingreso Datos Iluminación'!K41<=Tablas!$BJ$5,7,IF('Ingreso Datos Iluminación'!K41<=Tablas!$BI$5,6,IF('Ingreso Datos Iluminación'!K41<=Tablas!$BH$5,5,IF('Ingreso Datos Iluminación'!K41<=Tablas!$BG$5,4,0)))) -> 4 | BE31: =+IF('Ingreso Datos Iluminación'!K41>=$BD$5,1,IF('Ingreso Datos Iluminación'!K41>=$BE$5,2,IF('Ingreso Datos Iluminación'!K41>=$BF$5,3,IF('Ingreso Datos Iluminación'!K41>=$BG$5,4,0)))) -> 4 | BF31: =+MAX(BD31:BE31) -> 4 | BG31: =+IF('Ingreso Datos Iluminación'!K41="",1,VLOOKUP(BC31,$BC$6:$BJ$10,1+BF31,0)) -> 1 | BL31: NorEste | BM31: =+'Ingreso Datos Iluminación'!L41 -> 0 | BN31: =+CONCATENATE(BL31,BM31) -> NorEste0 | BO31: =+IF('Ingreso Datos Iluminación'!M41<=Tablas!$BO$5,1,IF('Ingreso Datos Iluminación'!M41<=Tablas!$BP$5,2,3)) -> 1 | BP31: =+IF('Ingreso Datos Iluminación'!M41=0,1,VLOOKUP(BN31,$BN$6:$BQ$15,1+BO31,0)) -> 1 | BS31: NorEste | BT31: =+'Ingreso Datos Iluminación'!N41 -> 0 | BU31: =+CONCATENATE(BS31,BT31) -> NorEste0 | BV31: =+IF('Ingreso Datos Iluminación'!O41<=Tablas!$BO$5,1,IF('Ingreso Datos Iluminación'!O41<=Tablas!$BP$5,2,3)) -> 1 | BW31: =+IF('Ingreso Datos Iluminación'!O41=0,1,VLOOKUP(BU31,$BU$6:$BX$15,1+BV31,0)) -> 1 | CJ31: ------- Educación: -------
D32: Transmitancia térmica (U –Wh/m2K) | E32: Factor solar de la parte semitransparente (g⊥) | F32: Transmitancia de luz visible (TLV) | K32: Salas de Fiestas | L32: IDA 3 | W32: Poliuretano expandido | X32: 0.0274 | Y32: 70 | Z32: 1260 | AD32: Oeste | AE32: =+'Ingreso Datos Iluminación'!T41*'Ingreso Datos Iluminación'!U41 -> 0 | AF32: =+IF('Ingreso Datos Iluminación'!T41<=Tablas!$AH$7,1,IF('Ingreso Datos Iluminación'!T41<=Tablas!$AH$8,2,3)) -> 1 | AG32: =+IF('Ingreso Datos Iluminación'!U41<=$AI$6,1,IF('Ingreso Datos Iluminación'!U41<=$AJ$6,2,IF('Ingreso Datos Iluminación'!U41<=$AK$6,3,4))) -> 1 | AH32: =+CONCATENATE(AD32,AF32) -> Oeste1 | AI32: =+IF(AE32=0,1,VLOOKUP(AH32,$AF$7:$AL$21,3+AG32,0)) -> 1 | AN32: Oeste | AO32: =+'Ingreso Datos Iluminación'!V41*'Ingreso Datos Iluminación'!W41 -> 0.0007142857143 | AP32: =+IF('Ingreso Datos Iluminación'!V41<=Tablas!$AR$7,1,IF('Ingreso Datos Iluminación'!V41<=Tablas!$AR$8,2,IF('Ingreso Datos Iluminación'!V41<=Tablas!$AR$9,3,4))) -> 1 | AQ32: =+IF('Ingreso Datos Iluminación'!W41<=$AS$6,1,IF('Ingreso Datos Iluminación'!W41<=$AT$6,2,IF('Ingreso Datos Iluminación'!W41<=$AU$6,3,4))) -> 1 | AR32: =+CONCATENATE(AN32,AP32) -> Oeste1 | AS32: =+IF(AO32=0,1,VLOOKUP(AR32,$AP$7:$AV$26,3+AQ32,0)) -> 0.91 | AX32: Oeste | AY32: =+IF('Ingreso Datos Iluminación'!J42<=Tablas!$AY$5,1,IF('Ingreso Datos Iluminación'!J42<=Tablas!$AZ$5,2,3)) -> 1 | AZ32: =+IF('Ingreso Datos Iluminación'!J42=0,1,VLOOKUP(AX32,$AX$6:$BA$10,1+AY32)) -> 1 | BC32: Oeste | BD32: =+IF('Ingreso Datos Iluminación'!K42<=Tablas!$BJ$5,7,IF('Ingreso Datos Iluminación'!K42<=Tablas!$BI$5,6,IF('Ingreso Datos Iluminación'!K42<=Tablas!$BH$5,5,IF('Ingreso Datos Iluminación'!K42<=Tablas!$BG$5,4,0)))) -> 4 | BE32: =+IF('Ingreso Datos Iluminación'!K42>=$BD$5,1,IF('Ingreso Datos Iluminación'!K42>=$BE$5,2,IF('Ingreso Datos Iluminación'!K42>=$BF$5,3,IF('Ingreso Datos Iluminación'!K42>=$BG$5,4,0)))) -> 4 | BF32: =+MAX(BD32:BE32) -> 4 | BG32: =+IF('Ingreso Datos Iluminación'!K42="",1,VLOOKUP(BC32,$BC$6:$BJ$10,1+BF32,0)) -> 1 | BL32: Oeste | BM32: =+'Ingreso Datos Iluminación'!L42 -> 0 | BN32: =+CONCATENATE(BL32,BM32) -> Oeste0 | BO32: =+IF('Ingreso Datos Iluminación'!M42<=Tablas!$BO$5,1,IF('Ingreso Datos Iluminación'!M42<=Tablas!$BP$5,2,3)) -> 1 | BP32: =+IF('Ingreso Datos Iluminación'!M42=0,1,VLOOKUP(BN32,$BN$6:$BQ$15,1+BO32,0)) -> 1 | BS32: Oeste | BT32: =+'Ingreso Datos Iluminación'!N42 -> 0 | BU32: =+CONCATENATE(BS32,BT32) -> Oeste0 | BV32: =+IF('Ingreso Datos Iluminación'!O42<=Tablas!$BO$5,1,IF('Ingreso Datos Iluminación'!O42<=Tablas!$BP$5,2,3)) -> 1 | BW32: =+IF('Ingreso Datos Iluminación'!O42=0,1,VLOOKUP(BU32,$BU$6:$BX$15,1+BV32,0)) -> 1 | CJ32: Salones , auditorios | CK32: 82 | CL32: 300 | CM32: 15 | CN32: 3.8 | CO32: 0.3 | CP32: 200 | CQ32: 0.5 | CR32: Salas de clase
D33: 5.7 | E33: 0.87 | F33: 0.87 | K33: Gimnasios | L33: IDA 3 | W33: Poliuretano expandido | X33: 0.025 | Y33: 40 | Z33: 1260 | AD33: Este | AE33: =+'Ingreso Datos Iluminación'!T42*'Ingreso Datos Iluminación'!U42 -> 0 | AF33: =+IF('Ingreso Datos Iluminación'!T42<=Tablas!$AH$7,1,IF('Ingreso Datos Iluminación'!T42<=Tablas!$AH$8,2,3)) -> 1 | AG33: =+IF('Ingreso Datos Iluminación'!U42<=$AI$6,1,IF('Ingreso Datos Iluminación'!U42<=$AJ$6,2,IF('Ingreso Datos Iluminación'!U42<=$AK$6,3,4))) -> 1 | AH33: =+CONCATENATE(AD33,AF33) -> Este1 | AI33: =+IF(AE33=0,1,VLOOKUP(AH33,$AF$7:$AL$21,3+AG33,0)) -> 1 | AN33: Este | AO33: =+'Ingreso Datos Iluminación'!V42*'Ingreso Datos Iluminación'!W42 -> 0.0007142857143 | AP33: =+IF('Ingreso Datos Iluminación'!V42<=Tablas!$AR$7,1,IF('Ingreso Datos Iluminación'!V42<=Tablas!$AR$8,2,IF('Ingreso Datos Iluminación'!V42<=Tablas!$AR$9,3,4))) -> 1 | AQ33: =+IF('Ingreso Datos Iluminación'!W42<=$AS$6,1,IF('Ingreso Datos Iluminación'!W42<=$AT$6,2,IF('Ingreso Datos Iluminación'!W42<=$AU$6,3,4))) -> 1 | AR33: =+CONCATENATE(AN33,AP33) -> Este1 | AS33: =+IF(AO33=0,1,VLOOKUP(AR33,$AP$7:$AV$26,3+AQ33,0)) -> 0.91 | AX33: Este | AY33: =+IF('Ingreso Datos Iluminación'!J43<=Tablas!$AY$5,1,IF('Ingreso Datos Iluminación'!J43<=Tablas!$AZ$5,2,3)) -> 1 | AZ33: =+IF('Ingreso Datos Iluminación'!J43=0,1,VLOOKUP(AX33,$AX$6:$BA$10,1+AY33)) -> 1 | BC33: Este | BD33: =+IF('Ingreso Datos Iluminación'!K43<=Tablas!$BJ$5,7,IF('Ingreso Datos Iluminación'!K43<=Tablas!$BI$5,6,IF('Ingreso Datos Iluminación'!K43<=Tablas!$BH$5,5,IF('Ingreso Datos Iluminación'!K43<=Tablas!$BG$5,4,0)))) -> 4 | BE33: =+IF('Ingreso Datos Iluminación'!K43>=$BD$5,1,IF('Ingreso Datos Iluminación'!K43>=$BE$5,2,IF('Ingreso Datos Iluminación'!K43>=$BF$5,3,IF('Ingreso Datos Iluminación'!K43>=$BG$5,4,0)))) -> 4 | BF33: =+MAX(BD33:BE33) -> 4 | BG33: =+IF('Ingreso Datos Iluminación'!K43="",1,VLOOKUP(BC33,$BC$6:$BJ$10,1+BF33,0)) -> 1 | BL33: Este | BM33: =+'Ingreso Datos Iluminación'!L43 -> 0 | BN33: =+CONCATENATE(BL33,BM33) -> Este0 | BO33: =+IF('Ingreso Datos Iluminación'!M43<=Tablas!$BO$5,1,IF('Ingreso Datos Iluminación'!M43<=Tablas!$BP$5,2,3)) -> 1 | BP33: =+IF('Ingreso Datos Iluminación'!M43=0,1,VLOOKUP(BN33,$BN$6:$BQ$15,1+BO33,0)) -> 1 | BS33: Este | BT33: =+'Ingreso Datos Iluminación'!N43 -> 0 | BU33: =+CONCATENATE(BS33,BT33) -> Este0 | BV33: =+IF('Ingreso Datos Iluminación'!O43<=Tablas!$BO$5,1,IF('Ingreso Datos Iluminación'!O43<=Tablas!$BP$5,2,3)) -> 1 | BW33: =+IF('Ingreso Datos Iluminación'!O43=0,1,VLOOKUP(BU33,$BU$6:$BX$15,1+BV33,0)) -> 1 | CJ33: Salas cuna | CK33: 82 | CL33: 150 | CM33: 15 | CN33: 5 | CO33: 0.9 | CP33: 40 | CQ33: 2.5 | CR33: Salas de clase
D34: 3.6 | E34: 0.77 | F34: 0.79 | K34: Locales Deportivos | L34: IDA 3 | W34: Hormigon celular autoc Hebel | X34: 0.158 | Y34: 628 | Z34: 1094 | CJ34: Salas clase párvulos | CK34: 82 | CL34: 150 | CM34: 15 | CN34: 5 | CO34: 0.6 | CP34: 91 | CQ34: 1.098901099 | CR34: Salas de clase
D35: 3 | E35: 0.77 | F35: 0.79 | K35: Salas de Computadores | L35: IDA 3 | W35: Mortero EIFS | X35: 1.4 | Y35: 2000 | Z35: 920 | CJ35: Salas educación básica | CK35: 82 | CL35: 200 | CM35: 15 | CN35: 5 | CO35: 0.6 | CP35: 91 | CQ35: 1.098901099 | CR35: Salas de clase
D36: 2.4 | E36: 0.65 | F36: 0.77 | K36: Otros | L36: IDA 4 | W36: Poliestireno exp Polyplack | X36: 0.041 | Y36: 15 | Z36: 1200 | CJ36: Salas educación media | CK36: 82 | CL36: 250 | CM36: 15 | CN36: 5 | CO36: 0.6 | CP36: 91 | CQ36: 1.098901099 | CR36: Salas de clase
W37: Poliestireno exp estruc metalica | X37: 0.046 | Y37: 15 | Z37: 1200 | AD37: Absortividad Marcos ventanas | AH37: Transmitancia térmica del marco del vano | CJ37: Salas educación especial | CK37: 82 | CL37: 250 | CM37: 15 | CN37: 5 | CO37: 0.6 | CP37: 50 | CQ37: 2 | CR37: Salas de clase
W38: Poliestireno expandido EIFS | X38: 0.0425 | Y38: 15 | Z38: 1200 | AD38: Color | AE38: Absortividad a | CJ38: Camarines, gimnasios | CK38: 287 | CL38: 200 | CM38: 15 | CN38: 0 | CO38: 1.5 | CP38: 25 | CQ38: 4 | CR38: Áreas comunes
W39: Poliestireno expandido Poligyp | X39: 0.041 | Y39: 15 | Z39: 1200 | AD39: Blanco Claro | AE39: 0.2 | AH39: Metalico sin ruptura de puente térmico | AI39: 5.8 | CJ39: Talleres, Laboratorios | CK39: 131.2 | CL39: 200 | CM39: 15 y 20 | CN39: 5 | CO39: 0.9 | CP39: 66 | CQ39: 1.515151515 | CR39: Áreas comunes
W40: Yeso carton Poligyp | X40: 0.26 | Y40: 700 | Z40: 840 | AD40: Blanco Medio | AE40: 0.3 | AH40: Aluminio con ruptura de puente térmico | AI40: 3.3 | CJ40: Bibliotecas | CK40: 82 | CL40: 400 | CM40: 13 | CN40: 3.8 | CO40: 0.3 | CP40: 50 | CQ40: 2 | CR40: Áreas comunes
W41: Yeso carton Polyplack | X41: 0.26 | Y41: 700 | Z41: 840 | AD41: Amarillo Claro | AE41: 0.3 | AH41: PVC | AI41: 2.8 | CJ41: Casino, uso múltiple | CK41: 82 | CL41: 400 | CM41: 13 | CN41: 3.8 | CO41: 0.9 | CP41: 100 | CQ41: 1 | CR41: Áreas comunes
W42: Bloque de hormigon 190x140mm | X42: 0.92 | Y42: 2000 | Z42: 920 | AD42: Amarillo Medio | AE42: 0.5 | AH42: Madera | AI42: 2.6 | CJ42: Cocina | CK42: 147.6 | CL42: 300 | CM42: 13 | CN42: 0 | CO42: 0 | CP42: 6.6 | CQ42: 15.15151515 | CR42: Áreas comunes
W43: Bloque de hormigon 190x190mm | X43: 1.015 | Y43: 2000 | Z43: 920 | AD43: Amarillo Oscuro | AE43: 0.7 | CJ43: Estar, comedor, estudio | CK43: 82 | CL43: 150 | CM43: 10 | CN43: 3.8 | CO43: 0.9 | CP43: 55 | CQ43: 1.818181818 | CR43: Áreas comunes
D44: Elemento | E44: NL | F44: ND | G44: NVT | H44: CL | I44: CI | J44: SL | K44: SI | L44: SE | M44: An | N44: 1 | W44: Poliestireno exp bastidor madera | X44: 0.048 | Y44: 10 | Z44: 1200 | AD44: Beige Claro | AE44: 0.35 | CJ44: Dormitorios, Hogares, internados | CK44: 164 | CL44: 300 | CM44: 12 | CN44: 2.5 | CO44: 0.3 | CP44: 62 | CQ44: 1.612903226 | CR44: Áreas comunes
D45: U - Cubierta y Piso Ventilado | E45: 1.35 | F45: 0.8 | G45: 0.9 | H45: 0.9 | I45: 0.8 | J45: 0.7 | K45: 0.6 | L45: 0.3 | M45: 0.5 | N45: 2 | W45: Aserrin de madera | X45: 0.06 | Y45: 190 | Z45: 1800 | AD45: Rojo Oscuro | AE45: 0.9 | CJ45: ------- Salud (Hospitales y Clínicas): -------
D46: U - Muro | E46: 2.9 | F46: 2.9 | G46: 2.9 | H46: 2.9 | I46: 2.9 | J46: 2.9 | K46: 2.9 | L46: 2.9 | M46: 2.9 | N46: 3 | W46: Asfalto | X46: 0.7 | Y46: 1700 | Z46: 1000 | AD46: Verde Claro | AE46: 0.4 | CJ46: Sector ambulatorios y diagnóstico | CK46: 131.2 | CL46: 300 | CM46: 11 | CN46: 5 | CO46: 0.9 | CP46: 16.6 | CQ46: 6 | CR46: Pabellones
D47: U - Ventana y Lucernarios | E47: 5.7 | F47: 3.6 | G47: 3.6 | H47: 3.6 | I47: 3.6 | J47: 3 | K47: 3 | L47: 3 | M47: 3 | N47: 4 | W47: Azulejo | X47: 1.05 | Y47: 1900 | Z47: 1050 | AD47: Verde Medio | AE47: 0.7 | CJ47: Sector Habitaciones | CK47: 82 | CL47: 300 | CM47: 8 | CN47: 5 | CO47: 0.9 | CP47: 12.5 | CQ47: 8 | CR47: Pabellones
W48: Baldosa ceramica | X48: 1.75 | Y48: 2100 | Z48: 1042 | AD48: Verde Oscuro | AE48: 0.88 | CJ48: Oficinas administrativas | CK48: 82 | CL48: 400 | CM48: 12 | CN48: 2.5 | CO48: 0.3 | CP48: 10 | CQ48: 10 | CR48: Oficinas
W49: Betun | X49: 0.16 | Y49: 1050 | Z49: 1000 | AD49: Azul Claro | AE49: 0.5 | CJ49: Área tratamiento | CK49: 131.2 | CL49: 1000 | CM49: 16 | CN49: 8 | CO49: 1.2 | CP49: 5 | CQ49: 20 | CR49: Pabellones
D50: NL | E50: Norte Litoral | F50: =+CONCATENATE(D50,"- ",E50) -> NL- Norte Litoral | G50: NL | W50: Bronce | X50: 64 | Y50: 8500 | Z50: 360 | AD50: Azul Medio | AE50: 0.8 | CJ50: Salas de espera | CK50: 82 | CL50: 200 | CM50: 14 | CN50: 5 | CO50: 0.9 | CP50: 12.5 | CQ50: 0.8 | CR50: Áreas comunes
D51: ND | E51: Norte Desértico | F51: =+CONCATENATE(D51,"- ",E51) -> ND- Norte Desértico | G51: ND | W51: Capotillo de arroz | X51: 0.06 | Y51: 117 | Z51: 860 | AD51: Azul Oscuro | AE51: 0.95 | CJ51: Consultas | CK51: 82 | CL51: 300 | CM51: 9 | CN51: 5 | CO51: 0.9 | CP51: 33.3 | CQ51: 3 | CR51: Oficinas
D52: NVT | E52: Norte Valle Transversal | F52: NVT- Norte Valle Transversal | G52: NVT | W52: Cascote de ladrillo | X52: 0.41 | Y52: 1300 | Z52: 750 | AD52: Gris Claro | AE52: 0.4
D53: CL | E53: Central Litoral | F53: CL- Central Litoral | G53: CL | W53: Cebada | X53: 0.07 | Y53: 470 | Z53: 1000 | AD53: Gris Medio | AE53: 0.65
D54: CI | E54: Central Interior | F54: CI- Central Interior | G54: CI | W54: Cobre | X54: 380 | Y54: 8930 | Z54: 377 | AD54: Negro | AE54: 0.96
D55: SL | E55: Sur Litoral | F55: SL- Sur Litoral | G55: SL | W55: Enlucido de yeso con perlitas | X55: 0.18 | Y55: 570 | Z55: 837
D56: SI | E56: Sur Interior | F56: SI- Sur Interior | G56: SI | W56: Enlucido de yeso | X56: 0.44 | Y56: 1000 | Z56: 837
D57: SE | E57: Sur Extremo | F57: SE- Sur Extremo | G57: SE | W57: Enlucido de yeso | X57: 0.56 | Y57: 1200 | Z57: 837
D58: An | E58: Andino | F58: An- Andino | G58: An | W58: Enlucido de yeso | X58: 0.35 | Y58: 800 | Z58: 837
W59: Escorias | X59: 0.29 | Y59: 1000 | Z59: 1070
W60: Escorias | X60: 0.25 | Y60: 800 | Z60: 1070
F61: SL- Sur Litoral | W61: Fibrocemento | X61: 0.23 | Y61: 1000 | Z61: 831
F62: SI- Sur Interior | W62: Fibrocemento | X62: 0.23 | Y62: 1135 | Z62: 837
F63: SE- Sur Extremo | W63: Fibrocemento | X63: 0.22 | Y63: 920 | Z63: 837
F64: An- Andino | W64: Fundicion y Acero | X64: 58 | Y64: 7850 | Z64: 500
W65: Grava rodada o de machequeo | X65: 0.81 | Y65: 1700 | Z65: 920
W66: Hgon celular arido siliceo | X66: 1.09 | Y66: 1400 | Z66: 1094
W67: Hgon celular | X67: 0.67 | Y67: 1000 | Z67: 1094
W68: Hgon celular | X68: 0.34 | Y68: 600 | Z68: 1094
W69: Hgon con escoria alto horno | X69: 0.3 | Y69: 1000 | Z69: 1061
W70: Hgon con escoria alto horno | X70: 0.17 | Y70: 600 | Z70: 1061
W71: Hgon con escoria alto horno | X71: 0.22 | Y71: 800 | Z71: 1061
W72: Hgon liv cascarilla arroz | X72: 0.326 | Y72: 1200 | Z72: 1071
W73: Hgon liv cascarilla arroz | X73: 0.128 | Y73: 570 | Z73: 1071
W74: Hgon liv cascarilla arroz | X74: 0.186 | Y74: 780 | Z74: 1071
W75: Hgon liv cascarilla arroz | X75: 0.209 | Y75: 850 | Z75: 1071
W76: Hgon liv poliest exp | X76: 0.387 | Y76: 1100 | Z76: 1094
W77: Hgon liv poliest exp | X77: 0.088 | Y77: 260 | Z77: 1092
W78: Hgon liv poliest exp | X78: 0.105 | Y78: 320 | Z78: 1094
W79: Hgon liv poliest exp | X79: 0.134 | Y79: 430 | Z79: 1094
W80: Hgon liv poliest exp | X80: 0.214 | Y80: 640 | Z80: 1094
W81: Hgon liv poliest exp | X81: 0.269 | Y81: 840 | Z81: 1094
W82: Hgon masa grava normal | X82: 0.73 | Y82: 1600 | Z82: 920
W83: Hgon masa grava normal | X83: 1.63 | Y83: 2400 | Z83: 920
W84: Hgon masa grava normal | X84: 1.16 | Y84: 2000 | Z84: 920
W85: Hgon masa arcilla expandida | X85: 0.55 | Y85: 1500 | Z85: 1083
W86: Hgon masa arcilla expandida | X86: 0.12 | Y86: 500 | Z86: 1083
W87: Hgon normal aridos siliceos | X87: 0.67 | Y87: 1000 | Z87: 1063
W88: Hgon normal aridos siliceos | X88: 0.34 | Y88: 600 | Z88: 1063
W89: Hgon normal aridos siliceos | X89: 0.49 | Y89: 800 | Z89: 1063
W90: Hormigon Armado normal | X90: 1.63 | Y90: 2400 | Z90: 920
W91: Hormigon celular sin aridos | X91: 0.09 | Y91: 305 | Z91: 1360
W92: Hormigon con aridos ligeros | X92: 0.33 | Y92: 1000 | Z92: 920
W93: Hormigon con aridos ligeros | X93: 0.55 | Y93: 1400 | Z93: 920
W94: Hormigon con cenizas | X94: 0.41 | Y94: 1000 | Z94: 1055
W95: Hormigon de viruta de madera | X95: 0.26 | Y95: 500 | Z95: 920
W96: Hormigon fibras de madera | X96: 0.12 | Y96: 350 | Z96: 925
W97: Hormigon fibras de madera | X97: 0.14 | Y97: 450 | Z97: 925
W98: Hormigon fibras de madera | X98: 0.16 | Y98: 550 | Z98: 925
W99: Ladrillo hecho a mano | X99: 0.5 | Y99: 1500 | Z99: 750
W100: Ladrillo macizo hecho a maq | X100: 0.46 | Y100: 1000 | Z100: 750
W101: Ladrillo macizo hecho a maq | X101: 0.52 | Y101: 1200 | Z101: 750
W102: Ladrillo macizo hecho a maq | X102: 0.6 | Y102: 1400 | Z102: 750
W103: Ladrillo macizo hecho a maq | X103: 0.79 | Y103: 1800 | Z103: 750
W104: Ladrillo macizo hecho a maq | X104: 1 | Y104: 2000 | Z104: 750
W105: Laminas bituminosas | X105: 0.19 | Y105: 1100 | Z105: 1000
W106: Lana de amianto | X106: 0.6 | Y106: 100 | Z106: 1360
W107: Lana de amianto | X107: 0.063 | Y107: 200 | Z107: 1360
W108: Lana de amianto | X108: 0.12 | Y108: 400 | Z108: 1360
W109: Lana mineral colch libre | X109: 0.04 | Y109: 110 | Z109: 840
W110: Lana mineral colch libre | X110: 0.042 | Y110: 120 | Z110: 840
W111: Lana mineral colch libre | X111: 0.042 | Y111: 40 | Z111: 840
W112: Lana mineral colch libre | X112: 0.041 | Y112: 50 | Z112: 840
W113: Lana mineral colch libre | X113: 0.038 | Y113: 70 | Z113: 840
W114: Lana mineral granulada | X114: 0.042 | Y114: 120 | Z114: 840
W115: Lana mineral granulada | X115: 0.041 | Y115: 100 | Z115: 840
W116: Lana mineral granulada | X116: 0.042 | Y116: 140 | Z116: 840
W117: Lana mineral granulada | X117: 0.069 | Y117: 20 | Z117: 840
W118: Lana mineral granulada | X118: 0.06 | Y118: 30 | Z118: 840
W119: Lana mineral granulada | X119: 0.055 | Y119: 40 | Z119: 840
W120: Lana mineral granulada | X120: 0.048 | Y120: 60 | Z120: 840
W121: Lana mineral granulada | X121: 0.044 | Y121: 80 | Z121: 840
W122: Linoleo | X122: 0.19 | Y122: 1200 | Z122: 837
W123: Mad tab aglomerado de part | X123: 0.094 | Y123: 420 | Z123: 1420
W124: Mad tab aglomerado de part | X124: 0.098 | Y124: 460 | Z124: 1420
W125: Mad tab aglomerado de part | X125: 0.102 | Y125: 560 | Z125: 1420
W126: Mad tab aglomerado de part | X126: 0.106 | Y126: 600 | Z126: 1420
W127: Mad tab aglomerado de part | X127: 0.105 | Y127: 620 | Z127: 1420
W128: Mad tab aglomerado de part | X128: 0.106 | Y128: 650 | Z128: 1420
W129: Mad tab algomerado de part | X129: 0.095 | Y129: 400 | Z129: 1420
W130: Madera Alamo | X130: 0.091 | Y130: 380 | Z130: 1759
W131: Madera Alerce | X131: 0.134 | Y131: 560 | Z131: 1759
W132: Madera coigue | X132: 0.145 | Y132: 670 | Z132: 1759
W133: Madera lingue | X133: 0.136 | Y133: 640 | Z133: 1759
W134: Madera Pino Insigne | X134: 0.104 | Y134: 410 | Z134: 2805
W135: Madera Rauli | X135: 0.121 | Y135: 580 | Z135: 1759
W136: Madera Roble | X136: 0.157 | Y136: 800 | Z136: 1759
W137: Madera tableros de fibra | X137: 0.28 | Y137: 1030 | Z137: 2444
W138: Madera tableros de fibra | X138: 0.23 | Y138: 850 | Z138: 2444
W139: Madera tableros de fibra | X139: 0.26 | Y139: 930 | Z139: 2444
W140: Marmol | X140: 2 | Y140: 2500 | Z140: 860
W141: Marmol | X141: 3.5 | Y141: 2850 | Z141: 860
W142: Moquetas. alfombras | X142: 0.05 | Y142: 1000 | Z142: 1360
W143: Mortero de cemento | X143: 1.4 | Y143: 2000 | Z143: 920
W144: Morteros de cal y bastardos | X144: 0.87 | Y144: 1600 | Z144: 980
W145: Papel | X145: 0.13 | Y145: 1000 | Z145: 1300
W146: Perlita expandida | X146: 0.05 | Y146: 90 | Z146: 1380
W147: Plancha de corcho | X147: 0.04 | Y147: 100 | Z147: 2210
W148: Plancha de corcho | X148: 0.047 | Y148: 200 | Z148: 2210
W149: Plancha de corcho | X149: 0.058 | Y149: 300 | Z149: 2210
W150: Plancha de corcho | X150: 0.066 | Y150: 400 | Z150: 2210
W151: Plancha de corcho | X151: 0.074 | Y151: 500 | Z151: 2210
W152: Plomo | X152: 35 | Y152: 11300 | Z152: 130
W153: Productos minerales en polvo | X153: 0.08 | Y153: 200 | Z153: 1090
W154: Productos minerales en polvo | X154: 0.12 | Y154: 400 | Z154: 1090
W155: Productos minerales en polvo | X155: 0.16 | Y155: 600 | Z155: 1090
W156: Productos minerales en polvo | X156: 0.21 | Y156: 800 | Z156: 1090
W157: Productos minerales polvo | X157: 0.27 | Y157: 1000 | Z157: 1090
W158: Productos minerales polvo | X158: 0.4 | Y158: 1400 | Z158: 1090
W159: Rocas compactas | X159: 3.5 | Y159: 2750 | Z159: 800
W160: Rocas porosas | X160: 2.33 | Y160: 2100 | Z160: 820
W161: Vermiculita en particulas | X161: 0.047 | Y161: 99 | Z161: 1360
W162: Vermiculita expandida | X162: 0.07 | Y162: 100 | Z162: 1360
W163: Vidrio plano | X163: 1.2 | Y163: 2500 | Z163: 837
W164: Yeso carton | X164: 0.24 | Y164: 650 | Z164: 840
W165: Yeso carton | X165: 0.26 | Y165: 700 | Z165: 840
W166: Yeso carton | X166: 0.31 | Y166: 870 | Z166: 840
W167: INSTAPANEL KOVER( L-804) | X167: 0.0579 | Y167: 40 | Z167: 1260
W168: INSTAPANEL KOVER(L-806) | X168: 0.0495 | Y168: 40 | Z168: 1260
W169: Panel MUROLISTO corrugated | X169: 0.0366 | Y169: 30 | Z169: 1200

Sheet Datos (hidden)
A1: ARICA | B1: CALAMA | C1: ANTOFAGASTA | D1: COPIAPO | E1: LA SERENA | F1: VALPARAISO | G1: SANTIAGO | H1: CONCEPCION | I1: PUCON | J1: PUNTA ARENAS | K1: PUERTO MONTT | V1: =+'Ingreso Datos Generales'!D7 -> 8 | W1: =+'Ingreso Datos Energía'!$J$62 -> 0 | AA1: =+VLOOKUP(M11,'Ingreso Datos Energía'!$I$46:$AG$57,3,0) -> 0.5
A2: 1 | B2: 2 | C2: 3 | D2: 4 | E2: 5 | F2: 6 | G2: 7 | H2: 8 | I2: 9 | J2: 10 | K2: 11 | L2: =+HLOOKUP('Ingreso Datos Generales'!$D$6,Datos!$A$1:$K$2,2,FALSE) -> 7 | V2: =+'Ingreso Datos Generales'!D8 -> 18 | W2: =+'Ingreso Datos Energía'!$J$63 -> 0 | AC2: 1 | AD2: 1 | AI2: =+MAX(AI4:AI8763-P4:P8763) -> 9.428056909
A3: Arica | B3: Calama | C3: Antofagasta | D3: Copiapó | E3: La Serena | F3: Valparaíso | G3: Santiago | H3: Concepción | I3: Pucón | J3: Punta Arenas | K3: Puerto Montt | L3: diasem | M3: mes | N3: dia | O3: hora | P3: T° bulbo seco | Q3: Tmin | R3: Tmax | S3: HcN | T3: HcalefN | U3: HrefN | V3: Horario | W3: Horario Vent Noct | X3: Gh-calefN | Y3: Gh-refN | Z3: Cargas int Wh | AA3: Vent RAH | AB3: Env Wh | AC3: Sol Wh | AD3: F Wh | AE3: T1(20 mins) | AF3: Wh 20 mins | AG3: T2(40 mins) | AH3: Wh 40 mins | AI3: Ti | AJ3: F Tint libre | AK3: Hc | AL3: Hcalef | AM3: Href | AN3: Gh-calef | AO3: Gh-ref | AP3: Env Wh-c | AQ3: Vent Wh - c | AR3: F Wh | AS3: T1(20 mins) | AT3: T1rectificada | AU3: Env Wh-c | AV3: Vent Wh - c | AW3: Wh 20 mins | AX3: T2(40 mins) | AY3: T2rectificada | AZ3: Env Wh-c | BA3: Vent Wh - c | BB3: Wh 40 mins | BC3: Ti-c | BD3: Ti-c.rectificada | BE3: F Wh (frio) | BF3: F Wh (calor) | BG3: F Wh (total) | BH3: Te>Tc | BI3: Te<Tc | BJ3: Te<>Tc | BK3: Te<Ti | BL3: ΔT (Ti-Tamb) | BM3: Hora corrida
A4: 24.3 | B4: 18.2 | C4: 20.1 | D4: 21.6 | E4: 17.4 | F4: 10.4 | G4: 16 | H4: 16.4 | I4: 14 | J4: 10.5 | K4: 11 | L4: 1 | M4: Ene | N4: 1 | O4: 1 | P4: =+INDEX(A4:K4,1,$L$2) -> 16 | Q4: =+VLOOKUP(M4,'Ingreso Datos Generales'!$T$5:$Z$16,6,0) -> 20 | R4: =+VLOOKUP(M4,'Ingreso Datos Generales'!$T$5:$Z$16,7,0) -> 24 | S4: =+IF(AND(L4<=Dias_a_la_semana,T4+U4=0),1,0) -> 0 | T4: =++IF(AND(L4<=Dias_a_la_semana,P4<Q4),1,0) -> 1 | U4: =+IF(AND(L4<=Dias_a_la_semana,P4>R4),1,0) -> 0 | V4: =+IF(AND(L4<='Ingreso Datos Generales'!$D$9,O4>=$V$1,O4<=$V$2),1,0) -> 0 | W4: =+IF($W$1>12,IF(OR(O4>=$W$1,O4<=$W$2),1,0),IF(AND(O4>=$W$1,O4<=$W$2),1,0)) -> 0 | X4: =+IF(T4=1,Q4-P4,0) -> 4 | Y4: =+IF(U4=1,P4-R4,0) -> 0 | AI4: =+AI11692 -> 15.79954275 | AK4: =+IF(L4<='Ingreso Datos Generales'!$D$9,IF(AL4+AM4=0,1,0),0) -> 0 | AL4: =+IF(L4<='Ingreso Datos Generales'!$D$9,IF(AI4<Q4,1,0),0) -> 1 | AM4: =+IF(L4<='Ingreso Datos Generales'!$D$9,IF(AI4>R4,1,0),0) -> 0 | AN4: =+IF(AL4=1,Q4-AI4,0) -> 4.200457247 | AO4: =+IF(AM4=1,AI4-R4,0) -> 0 | AS4: =+AI4 -> 15.79954275 | BC4: =+AI4 -> 15.79954275 | BD4: =+BC4 -> 15.79954275 | BE4: =+IF(BG4>0,BG4,0)*V4*-1 -> 0 | BF4: =+IF(BG4<=0,BG4,0)*V4*-1 -> 0 | BG4: =+SUM(BB4,AW4,AR4)/3 -> 0 | BH4: =+IF(P4>R4,1,0)*V4 -> 0 | BI4: =+IF(P4<Q4,1,0)*V4 -> 0 | BJ4: =+IF(AND(P4>=Q4,P4<=R4),1,0)*V4 -> 0 | BM4: 1
A5: 24.1 | B5: 17.6 | C5: 19.9 | D5: 21.4 | E5: 16.9 | F5: 10 | G5: 15.5 | H5: 15.7 | I5: 13.7 | J5: 10.3 | K5: 10.4 | L5: =+IF(AND(L4=7,O5=1),1,IF(O5=1,1+L4,L4)) -> 1 | M5: Ene | N5: 1 | O5: 2 | P5: =+INDEX(A5:K5,1,$L$2) -> 15.5 | Q5: =+VLOOKUP(M5,'Ingreso Datos Generales'!$T$5:$Z$16,6,0) -> 20 | R5: =+VLOOKUP(M5,'Ingreso Datos Generales'!$T$5:$Z$16,7,0) -> 24 | S5: 0 | T5: 1 | U5: 0 | V5: =+IF(AND(L5<='Ingreso Datos Generales'!$D$9,O5>=$V$1,O5<=$V$2),1,0) -> 0 | W5: =+IF($W$1>12,IF(OR(O5>=$W$1,O5<=$W$2),1,0),IF(AND(O5>=$W$1,O5<=$W$2),1,0)) -> 0 | X5: =+IF(T5=1,Q5-P5,0) -> 4.5 | Y5: =+IF(U5=1,P5-R5,0) -> 0 | Z5: =+IF(L5<=Dias_a_la_semana,('Ingreso Datos Energía'!$D$49)*V5,0) -> 0 | AA5: =+(VLOOKUP(M5,'Ingreso Datos Energía'!$I$46:$K$57,2,0)+V5*IF(L5<=Dias_a_la_semana,VLOOKUP(M5,'Ingreso Datos Energía'!$I$46:$K$57,3,0),0)+W5*IF(L5<=Dias_a_la_semana,VLOOKUP(M5,'Ingreso Datos Energía'!$I$46:$K$57,3,0),0)) -> 0.5 | AB5: =+'Ingreso Datos Energía'!$U$36*(Datos!P5-Datos!AI4)+'Ingreso Datos Energía'!$U$38*('Ingreso Datos Energía'!$U$35-Datos!AI4) -> -432.4337449 | AC5: =+SUMIFS(Sol!$AO$31:$AO$186,Sol!$AP$31:$AP$186,Datos!M5,Sol!$AN$31:$AN$186,Datos!O5)*$AC$2 -> 0 | AD5: =+SUM(Z5,AB5:AC5)*$AD$2 -> -432.4337449 | AE5: =(((AD5/3)/(Tablas!$L$4*Tablas!$L$6*'Ingreso Datos Energía'!$U$17+Tablas!$CQ$18)+AI4)*1+(P4+(P5-P4)/3)*AA5/3)/(1+AA5/3) -> 15.5359507 | AF5: =+'Ingreso Datos Energía'!$U$36*(($P4+(P5-P4)/3)-$AE5)+'Ingreso Datos Energía'!$U$38*('Ingreso Datos Energía'!$U$35-$AE5)+$AC5+$Z5 -> -82.62984509 | AG5: =+(((AF5/3)/(Tablas!$L$4*Tablas!$L$6*'Ingreso Datos Energía'!$U$17+Tablas!$CQ$18)+AE5)*1+(P4+(P5-P4)*2/3)*AA5/3)/(1+AA5/3) -> 15.5033346 | AH5: =+'Ingreso Datos Energía'!$U$36*(($P4+(P5-P4)*2/3)-$AG5)+'Ingreso Datos Energía'!$U$38*('Ingreso Datos Energía'!$U$35-$AG5)+$AC5+$Z5 -> -125.8376842 | AI5: =+(((AH5/3)/(Tablas!$L$4*Tablas!$L$6*'Ingreso Datos Energía'!$U$17+Tablas!$CQ$18)+AG5)*1+P5*AA5/3)/(1+AA5/3) -> 15.42474855 | AJ5: =+AD5++(-(Tablas!$L$4*Tablas!$L$6*'Ingreso Datos Energía'!$U$17+Tablas!$CQ$18)*P5*AA5/3+(Tablas!$L$4*Tablas!$L$6*'Ingreso Datos Energía'!$U$17+Tablas!$CQ$18)*AI4)/(1+AA5/3) -> 4781.889519 | AK5: =+IF(L5<='Ingreso Datos Generales'!$D$9,IF(AL5+AM5=0,1,0),0) -> 0 | AL5: =+IF(L5<='Ingreso Datos Generales'!$D$9,IF(AI5<Q5,1,0),0) -> 1 | AM5: =+IF(L5<='Ingreso Datos Generales'!$D$9,IF(AI5>R5,1,0),0) -> 0 | AN5: =+IF(AL5=1,Q5-AI5,0) -> 4.575251445 | AO5: =+IF(AM5=1,AI5-R5,0) -> 0 | AP5: =+'Ingreso Datos Energía'!$U$36*(Datos!P5-Datos!BD4)+'Ingreso Datos Energía'!$U$38*('Ingreso Datos Energía'!$U$35-Datos!BD4) -> -432.4337449 | AQ5: =+AA5*Tablas!$L$4*Tablas!$L$6*'Ingreso Datos Energía'!$U$17*(Datos!P5-Datos!BD4) -> -17.73542715 | AR5: =+SUM($Z5,$AC5,AP5,AQ5)*$AD$2 -> -450.169172 | AS5: =+IF(((AR5/3)/(Tablas!$L$4*Tablas!$L$6*'Ingreso Datos Energía'!$U$17+Tablas!$CQ$18)+BD4)<P5,P5,((AR5/3)/(Tablas!$L$4*Tablas!$L$6*'Ingreso Datos Energía'!$U$17+Tablas!$CQ$18)+BD4)) -> 15.5 | AT5: =+IF(V5=1,IF(AS5<$Q5,$Q5,IF(AS5>$R5,$R5,AS5)),AS5) -> 15.5 | AU5: =+'Ingreso Datos Energía'!$U$36*(($P5+(P6-P5)/3)-$AT5)+'Ingreso Datos Energía'!$U$38*('Ingreso Datos Energía'!$U$35-$AT5) -> -275.7 | AV5: =+AA5*Tablas!$L$4*Tablas!$L$6*'Ingreso Datos Energía'!$U$17*(($P5+(P6-P5)/3)-$AT5) -> -11.84166667 | AW5: =+SUM($Z5,$AC5,AU5,AV5)*$AD$2 -> -287.5416667 | AX5: =+IF(((AW5/3)/(Tablas!$L$4*Tablas!$L$6*'Ingreso Datos Energía'!$U$17+Tablas!$CQ$18)+AT5)<P5,P5,((AW5/3)/(Tablas!$L$4*Tablas!$L$6*'Ingreso Datos Energía'!$U$17+Tablas!$CQ$18)+AT5)) -> 15.5 | AY5: =+IF(V5=1,IF(AX5<$Q5,$Q5,IF(AX5>$R5,$R5,AX5)),AX5) -> 15.5 | AZ5: =+'Ingreso Datos Energía'!$U$36*(($P5+(P6-P5)*2/3)-$AY5)+'Ingreso Datos Energía'!$U$38*('Ingreso Datos Energía'!$U$35-$AY5) -> -358.9 | BA5: =+AA5*Tablas!$L$4*Tablas!$L$6*'Ingreso Datos Energía'!$U$17*(($P5+(P6-P5)*2/3)-$AY5) -> -23.68333333 | BB5: =+SUM($Z5,$AC5,AZ5,BA5)*$AD$2 -> -382.5833333 | BC5: =+((BB5/3)/(Tablas!$L$4*Tablas!$L$6*'Ingreso Datos Energía'!$U$17+Tablas!$CQ$18)+AY5) -> 15.22294438 | BD5: =+IF(V5=1,IF(BC5<$Q5,$Q5,IF(BC5>$R5,$R5,BC5)),BC5) -> 15.22294438 | BE5: =+IF(BG5>0,BG5,0)*V5*-1 -> 0 | BF5: =+IF(BG5<=0,BG5,0)*V5*-1 -> 0 | BG5: =+SUM(BB5,AW5,AR5)/3 -> -373.4313907 | BH5: =+IF(P5>R5,1,0)*V5 -> 0 | BI5: =+IF(P5<Q5,1,0)*V5 -> 0 | BJ5: =+IF(AND(P5>=Q5,P5<=R5),1,0)*V5 -> 0 | BK5: =+IF(P5<AI4,1,0)*SUM(BI5:BJ5) -> 0 | BL5: =+AI5-P5 -> -0.07525144549 | BM5: 2
A6: 23.9 | B6: 17.1 | C6: 19.6 | D6: 21.2 | E6: 16.5 | F6: 9.6 | G6: 14.9 | H6: 14.9 | I6: 13.3 | J6: 10 | K6: 9.9 | L6: =+IF(AND(L5=7,O6=1),1,IF(O6=1,1+L5,L5)) -> 1 | M6: Ene | N6: 1 | O6: 3 | P6: 14.9 | Q6: =+VLOOKUP(M6,'Ingreso Datos Generales'!$T$5:$Z$16,6,0) -> 20 | R6: =+VLOOKUP(M6,'Ingreso Datos Generales'!$T$5:$Z$16,7,0) -> 24 | S6: 0 | T6: 1 | U6: 0 | V6: =+IF(AND(L6<='Ingreso Datos Generales'!$D$9,O6>=$V$1,O6<=$V$2),1,0) -> 0 | W6: 0 | X6: 5.1 | Y6: 0 | Z6: =+IF(L6<=Dias_a_la_semana,('Ingreso Datos Energía'!$D$49)*V6,0) -> 0 | AA6: =+(VLOOKUP(M6,'Ingreso Datos Energía'!$I$46:$K$57,2,0)+V6*IF(L6<=Dias_a_la_semana,VLOOKUP(M6,'Ingreso Datos Energía'!$I$46:$K$57,3,0),0)+W6*IF(L6<=Dias_a_la_semana,VLOOKUP(M6,'Ingreso Datos Energía'!$I$46:$K$57,3,0),0)) -> 0.5 | AB6: =+'Ingreso Datos Energía'!$U$36*(Datos!P6-Datos!AI5)+'Ingreso Datos Energía'!$U$38*('Ingreso Datos Energía'!$U$35-Datos!AI5) -> -381.8235922 | AC6: =+SUMIFS(Sol!$AO$31:$AO$186,Sol!$AP$31:$AP$186,Datos!M6,Sol!$AN$31:$AN$186,Datos!O6)*$AC$2 -> 0 | AD6: =+SUM(Z6,AB6:AC6)*$AD$2 -> -381.8235922 | AE6: =(((AD6/3)/(Tablas!$L$4*Tablas!$L$6*'Ingreso Datos Energía'!$U$17+Tablas!$CQ$18)+AI5)*1+(P5+(P6-P5)/3)*AA6/3)/(1+AA6/3) -> 15.16992267 | AF6: =+'Ingreso Datos Energía'!$U$36*(($P5+(P6-P5)/3)-$AE6)+'Ingreso Datos Energía'!$U$38*('Ingreso Datos Energía'!$U$35-$AE6)+$AC6+$Z6 -> -11.30806076 | AG6: =+(((AF6/3)/(Tablas!$L$4*Tablas!$L$6*'Ingreso Datos Energía'!$U$17+Tablas!$CQ$18)+AE6)*1+(P5+(P6-P5)*2/3)*AA6/3)/(1+AA6/3) -> 15.15291461 | AH6: =+'Ingreso Datos Energía'!$U$36*(($P5+(P6-P5)*2/3)-$AG6)+'Ingreso Datos Energía'!$U$38*('Ingreso Datos Energía'!$U$35-$AG6)+$AC6+$Z6 -> -80.88459939 | AI6: =+(((AH6/3)/(Tablas!$L$4*Tablas!$L$6*'Ingreso Datos Energía'!$U$17+Tablas!$CQ$18)+AG6)*1+P6*AA6/3)/(1+AA6/3) -> 15.06657745 | AJ6: =+AD6++(-(Tablas!$L$4*Tablas!$L$6*'Ingreso Datos Energía'!$U$17+Tablas!$CQ$18)*P6*AA6/3+(Tablas!$L$4*Tablas!$L$6*'Ingreso Datos Energía'!$U$17+Tablas!$CQ$18)*AI5)/(1+AA6/3) -> 4724.082369 | AK6: =+IF(L6<='Ingreso Datos Generales'!$D$9,IF(AL6+AM6=0,1,0),0) -> 0 | AL6: =+IF(L6<='Ingreso Datos Generales'!$D$9,IF(AI6<Q6,1,0),0) -> 1 | AM6: =+IF(L6<='Ingreso Datos Generales'!$D$9,IF(AI6>R6,1,0),0) -> 0 | AN6: =+IF(AL6=1,Q6-AI6,0) -> 4.933422554 | AO6: =+IF(AM6=1,AI6-R6,0) -> 0 | AP6: =+'Ingreso Datos Energía'!$U$36*(Datos!P6-Datos!BD5)+'Ingreso Datos Energía'!$U$38*('Ingreso Datos Energía'!$U$35-Datos!BD5) -> -220.1784494 | AQ6: =+AA6*Tablas!$L$4*Tablas!$L$6*'Ingreso Datos Energía'!$U$17*(Datos!P6-Datos!BD5) -> -19.12099857 | AR6: =+SUM($Z6,$AC6,AP6,AQ6)*$AD$2 -> -239.299448 | AS6: =+IF(((AR6/3)/(Tablas!$L$4*Tablas!$L$6*'Ingreso Datos Energía'!$U$17+Tablas!$CQ$18)+BD5)<P6,P6,((AR6/3)/(Tablas!$L$4*Tablas!$L$6*'Ingreso Datos Energía'!$U$17+Tablas!$CQ$18)+BD5)) -> 15.04965075 | AT6: =+IF(V6=1,IF(AS6<$Q6,$Q6,IF(AS6>$R6,$R6,AS6)),AS6) -> 15.04965075 | AU6: =+'Ingreso Datos Energía'!$U$36*(($P6+(P7-P6)/3)-$AT6)+'Ingreso Datos Energía'!$U$38*('Ingreso Datos Energía'!$U$35-$AT6) -> -150.7035809 | AV6: =+AA6*Tablas!$L$4*Tablas!$L$6*'Ingreso Datos Energía'!$U$17*(($P6+(P7-P6)/3)-$AT6) -> -18.72862681 | AW6: =+SUM($Z6,$AC6,AU6,AV6)*$AD$2 -> -169.4322077 | AX6: =+IF(((AW6/3)/(Tablas!$L$4*Tablas!$L$6*'Ingreso Datos Energía'!$U$17+Tablas!$CQ$18)+AT6)<P6,P6,((AW6/3)/(Tablas!$L$4*Tablas!$L$6*'Ingreso Datos Energía'!$U$17+Tablas!$CQ$18)+AT6)) -> 14.92695292 | AY6: =+IF(V6=1,IF(AX6<$Q6,$Q6,IF(AX6>$R6,$R6,AX6)),AX6) -> 14.92695292 | AZ6: =+'Ingreso Datos Energía'!$U$36*(($P6+(P7-P6)*2/3)-$AY6)+'Ingreso Datos Energía'!$U$38*('Ingreso Datos Energía'!$U$35-$AY6) -> -121.7559517 | BA6: =+AA6*Tablas!$L$4*Tablas!$L$6*'Ingreso Datos Energía'!$U$17*(($P6+(P7-P6)*2/3)-$AY6) -> -21.33194829 | BB6: =+SUM($Z6,$AC6,AZ6,BA6)*$AD$2 -> -143.0879 | BC6: =+((BB6/3)/(Tablas!$L$4*Tablas!$L$6*'Ingreso Datos Energía'!$U$17+Tablas!$CQ$18)+AY6) -> 14.82333286 | BD6: =+IF(V6=1,IF(BC6<$Q6,$Q6,IF(BC6>$R6,$R6,BC6)),BC6) -> 14.82333286 | BE6: 0 | BF6: 0 | BG6: -183.9398519 | BH6: =+IF(P6>R6,1,0)*V6 -> 0 | BI6: =+IF(P6<Q6,1,0)*V6 -> 0 | BJ6: =+IF(AND(P6>=Q6,P6<=R6),1,0)*V6 -> 0 | BK6: =+IF(P6<AI5,1,0)*SUM(BI6:BJ6) -> 0 | BL6: =+AI6-P6 -> 0.1665774459 | BM6: 3
A7: 23.6 | B7: 16.5 | C7: 19.4 | D7: 20.9 | E7: 16 | F7: 9.1 | G7: 14.4 | H7: 14.2 | I7: 12.9 | J7: 9.8 | K7: 9.3 | L7: 1 | M7: Ene | N7: 1 | O7: 4 | P7: 14.4 | Q7: =+VLOOKUP(M7,'Ingreso Datos Generales'!$T$5:$Z$16,6,0) -> 20 | R7: =+VLOOKUP(M7,'Ingreso Datos Generales'!$T$5:$Z$16,7,0) -> 24 | S7: 0 | T7: 1 | U7: 0 | V7: =+IF(AND(L7<='Ingreso Datos Generales'!$D$9,O7>=$V$1,O7<=$V$2),1,0) -> 0 | W7: 0 | X7: 5.6 | Y7: 0 | Z7: =+IF(L7<=Dias_a_la_semana,('Ingreso Datos Energía'!$D$49)*V7,0) -> 0 | AA7: =+(VLOOKUP(M7,'Ingreso Datos Energía'!$I$46:$K$57,2,0)+V7*IF(L7<=Dias_a_la_semana,VLOOKUP(M7,'Ingreso Datos Energía'!$I$46:$K$57,3,0),0)+W7*IF(L7<=Dias_a_la_semana,VLOOKUP(M7,'Ingreso Datos Energía'!$I$46:$K$57,3,0),0)) -> 0.5 | AB7: =+'Ingreso Datos Energía'!$U$36*(Datos!P7-Datos!AI6)+'Ingreso Datos Energía'!$U$38*('Ingreso Datos Energía'!$U$35-Datos!AI6) -> -302.9285342 | AC7: =+SUMIFS(Sol!$AO$31:$AO$186,Sol!$AP$31:$AP$186,Datos!M7,Sol!$AN$31:$AN$186,Datos!O7)*$AC$2 -> 0 | AD7: -302.9285342 | AE7: =(((AD7/3)/(Tablas!$L$4*Tablas!$L$6*'Ingreso Datos Energía'!$U$17+Tablas!$CQ$18)+AI6)*1+(P6+(P7-P6)/3)*AA7/3)/(1+AA7/3) -> 14.83093804 | AF7: =+'Ingreso Datos Energía'!$U$36*(($P6+(P7-P6)/3)-$AE7)+'Ingreso Datos Energía'!$U$38*('Ingreso Datos Energía'!$U$35-$AE7)+$AC7+$Z7 -> 24.48529439 | AG7: =+(((AF7/3)/(Tablas!$L$4*Tablas!$L$6*'Ingreso Datos Energía'!$U$17+Tablas!$CQ$18)+AE7)*1+(P6+(P7-P6)*2/3)*AA7/3)/(1+AA7/3) -> 14.80838344 | AH7: =+'Ingreso Datos Energía'!$U$36*(($P6+(P7-P6)*2/3)-$AG7)+'Ingreso Datos Energía'!$U$38*('Ingreso Datos Energía'!$U$35-$AG7)+$AC7+$Z7 -> -26.78180575 | AI7: =+(((AH7/3)/(Tablas!$L$4*Tablas!$L$6*'Ingreso Datos Energía'!$U$17+Tablas!$CQ$18)+AG7)*1+P7*AA7/3)/(1+AA7/3) -> 14.73341901 | AJ7: =+AD7++(-(Tablas!$L$4*Tablas!$L$6*'Ingreso Datos Energía'!$U$17+Tablas!$CQ$18)*P7*AA7/3+(Tablas!$L$4*Tablas!$L$6*'Ingreso Datos Energía'!$U$17+Tablas!$CQ$18)*AI6)/(1+AA7/3) -> 4694.542931 | AK7: =+IF(L7<='Ingreso Datos Generales'!$D$9,IF(AL7+AM7=0,1,0),0) -> 0 | AL7: =+IF(L7<='Ingreso Datos Generales'!$D$9,IF(AI7<Q7,1,0),0) -> 1 | AM7: =+IF(L7<='Ingreso Datos Generales'!$D$9,IF(AI7>R7,1,0),0) -> 0 | AN7: 5.266580988 | AO7: 0 | AP7: =+'Ingreso Datos Energía'!$U$36*(Datos!P7-Datos!BD6)+'Ingreso Datos Energía'!$U$38*('Ingreso Datos Energía'!$U$35-Datos!BD6) -> -108.0896197 | AQ7: =+AA7*Tablas!$L$4*Tablas!$L$6*'Ingreso Datos Energía'!$U$17*(Datos!P7-Datos!BD6) -> -25.064833 | AR7: -133.1544527 | AS7: =+IF(((AR7/3)/(Tablas!$L$4*Tablas!$L$6*'Ingreso Datos Energía'!$U$17+Tablas!$CQ$18)+BD6)<P7,P7,((AR7/3)/(Tablas!$L$4*Tablas!$L$6*'Ingreso Datos Energía'!$U$17+Tablas!$CQ$18)+BD6)) -> 14.72690631 | AT7: 14.72690631 | AU7: =+'Ingreso Datos Energía'!$U$36*(($P7+(P8-P7)/3)-$AT7)+'Ingreso Datos Energía'!$U$38*('Ingreso Datos Energía'!$U$35-$AT7) -> -114.0519566 | AV7: =+AA7*Tablas!$L$4*Tablas!$L$6*'Ingreso Datos Energía'!$U$17*(($P7+(P8-P7)/3)-$AT7) -> -31.19724461 | AW7: -145.2492012 | AX7: =+IF(((AW7/3)/(Tablas!$L$4*Tablas!$L$6*'Ingreso Datos Energía'!$U$17+Tablas!$CQ$18)+AT7)<P7,P7,((AW7/3)/(Tablas!$L$4*Tablas!$L$6*'Ingreso Datos Energía'!$U$17+Tablas!$CQ$18)+AT7)) -> 14.62172111 | AY7: 14.62172111 | AZ7: =+'Ingreso Datos Energía'!$U$36*(($P7+(P8-P7)*2/3)-$AY7)+'Ingreso Datos Energía'!$U$38*('Ingreso Datos Energía'!$U$35-$AY7) -> -112.9986054 | BA7: =+AA7*Tablas!$L$4*Tablas!$L$6*'Ingreso Datos Energía'!$U$17*(($P7+(P8-P7)*2/3)-$AY7) -> -36.81107044 | BB7: -149.8096758 | BC7: =+((BB7/3)/(Tablas!$L$4*Tablas!$L$6*'Ingreso Datos Energía'!$U$17+Tablas!$CQ$18)+AY7) -> 14.51323334 | BD7: 14.51323334 | BE7: 0 | BF7: 0 | BG7: -142.7377766 | BH7: 0 | BI7: 0 | BJ7: 0 | BK7: 0 | BL7: 0.3334190117 | BM7: 4
A8: 23.4 | B8: 15.9 | C8: 19.2 | D8: 20.7 | E8: 15.6 | F8: 8.7 | G8: 13.8 | H8: 13.5 | I8: 12.5 | J8: 9.8 | K8: 8.7 | L8: 1 | M8: Ene | N8: 1 | O8: 5 | P8: 13.8 | Q8: =+VLOOKUP(M8,'Ingreso Datos Generales'!$T$5:$Z$16,6,0) -> 20 | R8: =+VLOOKUP(M8,'Ingreso Datos Generales'!$T$5:$Z$16,7,0) -> 24 | S8: 0 | T8: 1 | U8: 0 | V8: =+IF(AND(L8<='Ingreso Datos Generales'!$D$9,O8>=$V$1,O8<=$V$2),1,0) -> 0 | W8: 0 | X8: 6.2 | Y8: 0 | Z8: =+IF(L8<=Dias_a_la_semana,('Ingreso Datos Energía'!$D$49)*V8,0) -> 0 | AA8: =+(VLOOKUP(M8,'Ingreso Datos Energía'!$I$46:$K$57,2,0)+V8*IF(L8<=Dias_a_la_semana,VLOOKUP(M8,'Ingreso Datos Energía'!$I$46:$K$57,3,0),0)+W8*IF(L8<=Dias_a_la_semana,VLOOKUP(M8,'Ingreso Datos Energía'!$I$46:$K$57,3,0),0)) -> 0.5 | AB8: =+'Ingreso Datos Energía'!$U$36*(Datos!P8-Datos!AI7)+'Ingreso Datos Energía'!$U$38*('Ingreso Datos Energía'!$U$35-Datos!AI7) -> -285.6686284 | AC8: =+SUMIFS(Sol!$AO$31:$AO$186,Sol!$AP$31:$AP$186,Datos!M8,Sol!$AN$31:$AN$186,Datos!O8)*$AC$2 -> 0 | AD8: -285.6686284 | AE8: =(((AD8/3)/(Tablas!$L$4*Tablas!$L$6*'Ingreso Datos Energía'!$U$17+Tablas!$CQ$18)+AI7)*1+(P7+(P8-P7)/3)*AA8/3)/(1+AA8/3) -> 14.47989672 | AF8: =+'Ingreso Datos Energía'!$U$36*(($P7+(P8-P7)/3)-$AE8)+'Ingreso Datos Energía'!$U$38*('Ingreso Datos Energía'!$U$35-$AE8)+$AC8+$Z8 -> 83.80272458 | AG8: =+(((AF8/3)/(Tablas!$L$4*Tablas!$L$6*'Ingreso Datos Energía'!$U$17+Tablas!$CQ$18)+AE8)*1+(P7+(P8-P7)*2/3)*AA8/3)/(1+AA8/3) -> 14.46335788 | AH8: =+'Ingreso Datos Energía'!$U$36*(($P7+(P8-P7)*2/3)-$AG8)+'Ingreso Datos Energía'!$U$38*('Ingreso Datos Energía'!$U$35-$AG8)+$AC8+$Z8 -> 13.85033604 | AI8: =+(((AH8/3)/(Tablas!$L$4*Tablas!$L$6*'Ingreso Datos Energía'!$U$17+Tablas!$CQ$18)+AG8)*1+P8*AA8/3)/(1+AA8/3) -> 14.37718962 | AJ8: =+AD8++(-(Tablas!$L$4*Tablas!$L$6*'Ingreso Datos Energía'!$U$17+Tablas!$CQ$18)*P8*AA8/3+(Tablas!$L$4*Tablas!$L$6*'Ingreso Datos Energía'!$U$17+Tablas!$CQ$18)*AI7)/(1+AA8/3) -> 4619.812508 | AK8: =+IF(L8<='Ingreso Datos Generales'!$D$9,IF(AL8+AM8=0,1,0),0) -> 0 | AL8: =+IF(L8<='Ingreso Datos Generales'!$D$9,IF(AI8<Q8,1,0),0) -> 1 | AM8: =+IF(L8<='Ingreso Datos Generales'!$D$9,IF(AI8>R8,1,0),0) -> 0 | AN8: 5.622810381 | AO8: 0 | AP8: =+'Ingreso Datos Energía'!$U$36*(Datos!P8-Datos!BD7)+'Ingreso Datos Energía'!$U$38*('Ingreso Datos Energía'!$U$35-Datos!BD7) -> -109.2999021 | AQ8: =+AA8*Tablas!$L$4*Tablas!$L$6*'Ingreso Datos Energía'!$U$17*(Datos!P8-Datos!BD7) -> -42.2293571 | AR8: -151.5292592 | AS8: =+IF(((AR8/3)/(Tablas!$L$4*Tablas!$L$6*'Ingreso Datos Energía'!$U$17+Tablas!$CQ$18)+BD7)<P8,P8,((AR8/3)/(Tablas!$L$4*Tablas!$L$6*'Ingreso Datos Energía'!$U$17+Tablas!$CQ$18)+BD7)) -> 14.40350029 | AT8: 14.40350029 | AU8: =+'Ingreso Datos Energía'!$U$36*(($P8+(P9-P8)/3)-$AT8)+'Ingreso Datos Energía'!$U$38*('Ingreso Datos Energía'!$U$35-$AT8) -> -90.73706948 | AV8: =+AA8*Tablas!$L$4*Tablas!$L$6*'Ingreso Datos Energía'!$U$17*(($P8+(P9-P8)/3)-$AT8) -> -45.60030218 | AW8: -136.3373717 | AX8: =+IF(((AW8/3)/(Tablas!$L$4*Tablas!$L$6*'Ingreso Datos Energía'!$U$17+Tablas!$CQ$18)+AT8)<P8,P8,((AW8/3)/(Tablas!$L$4*Tablas!$L$6*'Ingreso Datos Energía'!$U$17+Tablas!$CQ$18)+AT8)) -> 14.30476877 | AY8: 14.30476877 | AZ8: =+'Ingreso Datos Energía'!$U$36*(($P8+(P9-P8)*2/3)-$AY8)+'Ingreso Datos Energía'!$U$38*('Ingreso Datos Energía'!$U$35-$AY8) -> -80.98645355 | BA8: =+AA8*Tablas!$L$4*Tablas!$L$6*'Ingreso Datos Energía'!$U$17*(($P8+(P9-P8)*2/3)-$AY8) -> -49.62262886 | BB8: -130.6090824 | BC8: =+((BB8/3)/(Tablas!$L$4*Tablas!$L$6*'Ingreso Datos Energía'!$U$17+Tablas!$CQ$18)+AY8) -> 14.21018551 | BD8: 14.21018551 | BE8: 0 | BF8: 0 | BG8: -139.4919044 | BH8: 0 | BI8: 0 | BJ8: 0 | BK8: 0 | BL8: 0.5771896195 | BM8: 5
A9: 23.2 | B9: 15.4 | C9: 19 | D9: 20.5 | E9: 15.1 | F9: 8.3 | G9: 13.3 | H9: 12.8 | I9: 12.6 | J9: 10.1 | K9: 8.7 | L9: 1 | M9: Ene | N9: 1 | O9: 6 | P9: 13.3 | Q9: =+VLOOKUP(M9,'Ingreso Datos Generales'!$T$5:$Z$16,6,0) -> 20 | R9: =+VLOOKUP(M9,'Ingreso Datos Generales'!$T$5:$Z$16,7,0) -> 24 | S9: 0 | T9: 1 | U9: 0 | V9: =+IF(AND(L9<='Ingreso Datos Generales'!$D$9,O9>=$V$1,O9<=$V$2),1,0) -> 0 | W9: 0 | X9: 6.7 | Y9: 0 | Z9: =+IF(L9<=Dias_a_la_semana,('Ingreso Datos Energía'!$D$49)*V9,0) -> 0 | AA9: =+(VLOOKUP(M9,'Ingreso Datos Energía'!$I$46:$K$57,2,0)+V9*IF(L9<=Dias_a_la_semana,VLOOKUP(M9,'Ingreso Datos Energía'!$I$46:$K$57,3,0),0)+W9*IF(L9<=Dias_a_la_semana,VLOOKUP(M9,'Ingreso Datos Energía'!$I$46:$K$57,3,0),0)) -> 0.5 | AB9: =+'Ingreso Datos Energía'!$U$36*(Datos!P9-Datos!AI8)+'Ingreso Datos Energía'!$U$38*('Ingreso Datos Energía'!$U$35-Datos!AI8) -> -208.3288852 | AC9: =+SUMIFS(Sol!$AO$31:$AO$186,Sol!$AP$31:$AP$186,Datos!M9,Sol!$AN$31:$AN$186,Datos!O9)*$AC$2 -> 1640.275 | AD9: 1431.946115 | AE9: =(((AD9/3)/(Tablas!$L$4*Tablas!$L$6*'Ingreso Datos Energía'!$U$17+Tablas!$CQ$18)+AI8)*1+(P8+(P9-P8)/3)*AA9/3)/(1+AA9/3) -> 15.15975873 | AF9: =+'Ingreso Datos Energía'!$U$36*(($P8+(P9-P8)/3)-$AE9)+'Ingreso Datos Energía'!$U$38*('Ingreso Datos Energía'!$U$35-$AE9)+$AC9+$Z9 -> 943.7749265 | AG9: =+(((AF9/3)/(Tablas!$L$4*Tablas!$L$6*'Ingreso Datos Energía'!$U$17+Tablas!$CQ$18)+AE9)*1+(P8+(P9-P8)*2/3)*AA9/3)/(1+AA9/3) -> 15.50370623 | AH9: =+'Ingreso Datos Energía'!$U$36*(($P8+(P9-P8)*2/3)-$AG9)+'Ingreso Datos Energía'!$U$38*('Ingreso Datos Energía'!$U$35-$AG9)+$AC9+$Z9 -> 598.9396439 | AI9: =+(((AH9/3)/(Tablas!$L$4*Tablas!$L$6*'Ingreso Datos Energía'!$U$17+Tablas!$CQ$18)+AG9)*1+P9*AA9/3)/(1+AA9/3) -> 15.56066349 | AJ9: =+AD9++(-(Tablas!$L$4*Tablas!$L$6*'Ingreso Datos Energía'!$U$17+Tablas!$CQ$18)*P9*AA9/3+(Tablas!$L$4*Tablas!$L$6*'Ingreso Datos Energía'!$U$17+Tablas!$CQ$18)*AI8)/(1+AA9/3) -> 6229.758841 | AK9: =+IF(L9<='Ingreso Datos Generales'!$D$9,IF(AL9+AM9=0,1,0),0) -> 0 | AL9: =+IF(L9<='Ingreso Datos Generales'!$D$9,IF(AI9<Q9,1,0),0) -> 1 | AM9: =+IF(L9<='Ingreso Datos Generales'!$D$9,IF(AI9>R9,1,0),0) -> 0 | AN9: 4.439336512 | AO9: 0 | AP9: =+'Ingreso Datos Energía'!$U$36*(Datos!P9-Datos!BD8)+'Ingreso Datos Energía'!$U$38*('Ingreso Datos Energía'!$U$35-Datos!BD8) -> -74.55859301 | AQ9: =+AA9*Tablas!$L$4*Tablas!$L$6*'Ingreso Datos Energía'!$U$17*(Datos!P9-Datos!BD8) -> -53.89056703 | AR9: 1511.82584 | AS9: =+IF(((AR9/3)/(Tablas!$L$4*Tablas!$L$6*'Ingreso Datos Energía'!$U$17+Tablas!$CQ$18)+BD8)<P9,P9,((AR9/3)/(Tablas!$L$4*Tablas!$L$6*'Ingreso Datos Energía'!$U$17+Tablas!$CQ$18)+BD8)) -> 15.3050054 | AT9: 15.3050054 | AU9: =+'Ingreso Datos Energía'!$U$36*(($P9+(P10-P9)/3)-$AT9)+'Ingreso Datos Energía'!$U$38*('Ingreso Datos Energía'!$U$35-$AT9) -> -507.7759928 | AV9: =+AA9*Tablas!$L$4*Tablas!$L$6*'Ingreso Datos Energía'!$U$17*(($P9+(P10-P9)/3)-$AT9) -> -55.55747255 | AW9: 1076.941535 | AX9: =+IF(((AW9/3)/(Tablas!$L$4*Tablas!$L$6*'Ingreso Datos Energía'!$U$17+Tablas!$CQ$18)+AT9)<P9,P9,((AW9/3)/(Tablas!$L$4*Tablas!$L$6*'Ingreso Datos Energía'!$U$17+Tablas!$CQ$18)+AT9)) -> 16.08489485 | AY9: 16.08489485 | AZ9: =+'Ingreso Datos Energía'!$U$36*(($P9+(P10-P9)*2/3)-$AY9)+'Ingreso Datos Energía'!$U$38*('Ingreso Datos Energía'!$U$35-$AY9) -> -688.7341043 | BA9: =+AA9*Tablas!$L$4*Tablas!$L$6*'Ingreso Datos Energía'!$U$17*(($P9+(P10-P9)*2/3)-$AY9) -> -38.57787118 | BB9: 912.9630245 | BC9: =+((BB9/3)/(Tablas!$L$4*Tablas!$L$6*'Ingreso Datos Energía'!$U$17+Tablas!$CQ$18)+AY9) -> 16.74603587 | BD9: 16.74603587 | BE9: 0 | BF9: 0 | BG9: 1167.243466 | BH9: 0 | BI9: 0 | BJ9: 0 | BK9: 0 | BL9: 2.260663488 | BM9: 6
A10: 23.3 | B10: 16.5 | C10: 19.2 | D10: 20.6 | E10: 16 | F10: 10.9 | G10: 16.5 | H10: 14.9 | I10: 14.1 | J10: 11 | K10: 9.9 | L10: 1 | M10: Ene | N10: 1 | O10: 7 | P10: 16.5 | Q10: =+VLOOKUP(M10,'Ingreso Datos Generales'!$T$5:$Z$16,6,0) -> 20 | R10: =+VLOOKUP(M10,'Ingreso Datos Generales'!$T$5:$Z$16,7,0) -> 24 | S10: 0 | T10: 1 | U10: 0 | V10: =+IF(AND(L10<='Ingreso Datos Generales'!$D$9,O10>=$V$1,O10<=$V$2),1,0) -> 0 | W10: 0 | X10: 3.5 | Y10: 0 | Z10: =+IF(L10<=Dias_a_la_semana,('Ingreso Datos Energía'!$D$49)*V10,0) -> 0 | AA10: =+(VLOOKUP(M10,'Ingreso Datos Energía'!$I$46:$K$57,2,0)+V10*IF(L10<=Dias_a_la_semana,VLOOKUP(M10,'Ingreso Datos Energía'!$I$46:$K$57,3,0),0)+W10*IF(L10<=Dias_a_la_semana,VLOOKUP(M10,'Ingreso Datos Energía'!$I$46:$K$57,3,0),0)) -> 0.5 | AB10: =+'Ingreso Datos Energía'!$U$36*(Datos!P10-Datos!AI9)+'Ingreso Datos Energía'!$U$38*('Ingreso Datos Energía'!$U$35-Datos!AI9) -> 174.9085459 | AC10: =+SUMIFS(Sol!$AO$31:$AO$186,Sol!$AP$31:$AP$186,Datos!M10,Sol!$AN$31:$AN$186,Datos!O10)*$AC$2 -> 2702.84 | AD10: 2877.748546 | AE10: =(((AD10/3)/(Tablas!$L$4*Tablas!$L$6*'Ingreso Datos Energía'!$U$17+Tablas!$CQ$18)+AI9)*1+(P9+(P10-P9)/3)*AA10/3)/(1+AA10/3) -> 17.17636196 | AF10: =+'Ingreso Datos Energía'!$U$36*(($P9+(P10-P9)/3)-$AE10)+'Ingreso Datos Energía'!$U$38*('Ingreso Datos Energía'!$U$35-$AE10)+$AC10+$Z10 -> 696.1074062 | AG10: =+(((AF10/3)/(Tablas!$L$4*Tablas!$L$6*'Ingreso Datos Energía'!$U$17+Tablas!$CQ$18)+AE10)*1+(P9+(P10-P9)*2/3)*AA10/3)/(1+AA10/3) -> 17.35944405 | AH10: =+'Ingreso Datos Energía'!$U$36*(($P9+(P10-P9)*2/3)-$AG10)+'Ingreso Datos Energía'!$U$38*('Ingreso Datos Energía'!$U$35-$AG10)+$AC10+$Z10 -> 993.1919812 | AI10: =+(((AH10/3)/(Tablas!$L$4*Tablas!$L$6*'Ingreso Datos Energía'!$U$17+Tablas!$CQ$18)+AG10)*1+P10*AA10/3)/(1+AA10/3) -> 17.85315817 | AJ10: =+AD10++(-(Tablas!$L$4*Tablas!$L$6*'Ingreso Datos Energía'!$U$17+Tablas!$CQ$18)*P10*AA10/3+(Tablas!$L$4*Tablas!$L$6*'Ingreso Datos Energía'!$U$17+Tablas!$CQ$18)*AI9)/(1+AA10/3) -> 7932.067719 | AK10: =+IF(L10<='Ingreso Datos Generales'!$D$9,IF(AL10+AM10=0,1,0),0) -> 0 | AL10: =+IF(L10<='Ingreso Datos Generales'!$D$9,IF(AI10<Q10,1,0),0) -> 1 | AM10: =+IF(L10<='Ingreso Datos Generales'!$D$9,IF(AI10>R10,1,0),0) -> 0 | AN10: 2.146841833 | AO10: 0 | AP10: =+'Ingreso Datos Energía'!$U$36*(Datos!P10-Datos!BD9)+'Ingreso Datos Energía'!$U$38*('Ingreso Datos Energía'!$U$35-Datos!BD9) -> -774.5747288 | AQ10: =+AA10*Tablas!$L$4*Tablas!$L$6*'Ingreso Datos Energía'!$U$17*(Datos!P10-Datos!BD9) -> -14.56737358 | AR10: 1913.697898 | AS10: =+IF(((AR10/3)/(Tablas!$L$4*Tablas!$L$6*'Ingreso Datos Energía'!$U$17+Tablas!$CQ$18)+BD9)<P10,P10,((AR10/3)/(Tablas!$L$4*Tablas!$L$6*'Ingreso Datos Energía'!$U$17+Tablas!$CQ$18)+BD9)) -> 18.1318797 | AT10: 18.1318797 | AU10: =+'Ingreso Datos Energía'!$U$36*(($P10+(P11-P10)/3)-$AT10)+'Ingreso Datos Energía'!$U$38*('Ingreso Datos Energía'!$U$35-$AT10) -> -1537.968976 | AV10: =+AA10*Tablas!$L$4*Tablas!$L$6*'Ingreso Datos Energía'!$U$17*(($P10+(P11-P10)/3)-$AT10) -> -47.28059971 | AW10: 1117.590424 | AX10: =+IF(((AW10/3)/(Tablas!$L$4*Tablas!$L$6*'Ingreso Datos Energía'!$U$17+Tablas!$CQ$18)+AT10)<P10,P10,((AW10/3)/(Tablas!$L$4*Tablas!$L$6*'Ingreso Datos Energía'!$U$17+Tablas!$CQ$18)+AT10)) -> 18.94120588 | AY10: 18.94120588 | AZ10: =+'Ingreso Datos Energía'!$U$36*(($P10+(P11-P10)*2/3)-$AY10)+'Ingreso Datos Energía'!$U$38*('Ingreso Datos Energía'!$U$35-$AY10) -> -1839.572577 | BA10: =+AA10*Tablas!$L$4*Tablas!$L$6*'Ingreso Datos Energía'!$U$17*(($P10+(P11-P10)*2/3)-$AY10) -> -45.85917597 | BB10: 817.4082469 | BC10: =+((BB10/3)/(Tablas!$L$4*Tablas!$L$6*'Ingreso Datos Energía'!$U$17+Tablas!$CQ$18)+AY10) -> 19.53314894 | BD10: 19.53314894 | BE10: 0 | BF10: 0 | BG10: 1282.898856 | BH10: 0 | BI10: 0 | BJ10: 0 | BK10: 0 | BL10: 1.353158167 | BM10: 7
A11: 23.7 | B11: 18 | C11: 19.1 | D11: 20.8 | E11: 17 | F11: 13.6 | G11: 19 | H11: 16.3 | I11: 15.8 | J11: 12.1 | K11: 11.3 | L11: 1 | M11: Ene | N11: 1 | O11: 8 | P11: 19 | Q11: =+VLOOKUP(M11,'Ingreso Datos Generales'!$T$5:$Z$16,6,0) -> 20 | R11: =+VLOOKUP(M11,'Ingreso Datos Generales'!$T$5:$Z$16,7,0) -> 24 | S11: 0 | T11: 1 | U11: 0 | V11: =+IF(AND(L11<='Ingreso Datos Generales'!$D$9,O11>=$V$1,O11<=$V$2),1,0) -> 1 | W11: 0 | X11: 1 | Y11: 0 | Z11: =+IF(L11<=Dias_a_la_semana,('Ingreso Datos Energía'!$D$49)*V11,0) -> 3550 | AA11: =+(VLOOKUP(M11,'Ingreso Datos Energía'!$I$46:$K$57,2,0)+V11*IF(L11<=Dias_a_la_semana,VLOOKUP(M11,'Ingreso Datos Energía'!$I$46:$K$57,3,0),0)+W11*IF(L11<=Dias_a_la_semana,VLOOKUP(M11,'Ingreso Datos Energía'!$I$46:$K$57,3,0),0)) -> 1 | AB11: =+'Ingreso Datos Energía'!$U$36*(Datos!P11-Datos!AI10)+'Ingreso Datos Energía'!$U$38*('Ingreso Datos Energía'!$U$35-Datos!AI10) -> -621.3796916 | AC11: =+SUMIFS(Sol!$AO$31:$AO$186,Sol!$AP$31:$AP$186,Datos!M11,Sol!$AN$31:$AN$186,Datos!O11)*$AC$2 -> 3373.16 | AD11: =+SUM(Z11,AB11:AC11)*$AD$2 -> 6301.780308 | AE11: =(((AD11/3)/(Tablas!$L$4*Tablas!$L$6*'Ingreso Datos Energía'!$U$17+Tablas!$CQ$18)+AI10)*1+(P10+(P11-P10)/3)*AA11/3)/(1+AA11/3) -> 21.14587518 | AF11: =+'Ingreso Datos Energía'!$U$36*(($P10+(P11-P10)/3)-$AE11)+'Ingreso Datos Energía'!$U$38*('Ingreso Datos Energía'!$U$35-$AE11)+$AC11+$Z11 -> 2970.980644 | AG11: =+(((AF11/3)/(Tablas!$L$4*Tablas!$L$6*'Ingreso Datos Energía'!$U$17+Tablas!$CQ$18)+AE11)*1+(P10+(P11-P10)*2/3)*AA11/3)/(1+AA11/3) -> 22.01469578 | AH11: =+'Ingreso Datos Energía'!$U$36*(($P10+(P11-P10)*2/3)-$AG11)+'Ingreso Datos Energía'!$U$38*('Ingreso Datos Energía'!$U$35-$AG11)+$AC11+$Z11 -> 2621.722015 | AI11: =+(((AH11/3)/(Tablas!$L$4*Tablas!$L$6*'Ingreso Datos Energía'!$U$17+Tablas!$CQ$18)+AG11)*1+P11*AA11/3)/(1+AA11/3) -> 22.68495242 | AJ11: =+AD11++(-(Tablas!$L$4*Tablas!$L$6*'Ingreso Datos Energía'!$U$17+Tablas!$CQ$18)*P11*AA11/3+(Tablas!$L$4*Tablas!$L$6*'Ingreso Datos Energía'!$U$17+Tablas!$CQ$18)*AI10)/(1+AA11/3) -> 10278.68304 | AK11: =+IF(L11<='Ingreso Datos Generales'!$D$9,IF(AL11+AM11=0,1,0),0) -> 1 | AL11: =+IF(L11<='Ingreso Datos Generales'!$D$9,IF(AI11<Q11,1,0),0) -> 0 | AM11: =+IF(L11<='Ingreso Datos Generales'!$D$9,IF(AI11>R11,1,0),0) -> 0 | AN11: 0 | AO11: 0 | AP11: =+'Ingreso Datos Energía'!$U$36*(Datos!P11-Datos!BD10)+'Ingreso Datos Energía'!$U$38*('Ingreso Datos Energía'!$U$35-Datos!BD10) -> -1967.052299 | AQ11: =+AA11*Tablas!$L$4*Tablas!$L$6*'Ingreso Datos Energía'!$U$17*(Datos!P11-Datos!BD10) -> -63.13371995 | AR11: 4892.973982 | AS11: =+IF(((AR11/3)/(Tablas!$L$4*Tablas!$L$6*'Ingreso Datos Energía'!$U$17+Tablas!$CQ$18)+BD10)<P11,P11,((AR11/3)/(Tablas!$L$4*Tablas!$L$6*'Ingreso Datos Energía'!$U$17+Tablas!$CQ$18)+BD10)) -> 23.07649705 | AT11: 23.07649705 | AU11: =+'Ingreso Datos Energía'!$U$36*(($P11+(P12-P11)/3)-$AT11)+'Ingreso Datos Energía'!$U$38*('Ingreso Datos Energía'!$U$35-$AT11) -> -4417.007474 | AV11: =+AA11*Tablas!$L$4*Tablas!$L$6*'Ingreso Datos Energía'!$U$17*(($P11+(P12-P11)/3)-$AT11) -> -372.2029706 | AW11: 2133.949556 | AX11: =+IF(((AW11/3)/(Tablas!$L$4*Tablas!$L$6*'Ingreso Datos Energía'!$U$17+Tablas!$CQ$18)+AT11)<P11,P11,((AW11/3)/(Tablas!$L$4*Tablas!$L$6*'Ingreso Datos Energía'!$U$17+Tablas!$CQ$18)+AT11)) -> 24.62184068 | AY11: 24 | AZ11: =+'Ingreso Datos Energía'!$U$36*(($P11+(P12-P11)*2/3)-$AY11)+'Ingreso Datos Energía'!$U$38*('Ingreso Datos Energía'!$U$35-$AY11) -> -4768.466667 | BA11: =+AA11*Tablas!$L$4*Tablas!$L$6*'Ingreso Datos Energía'!$U$17*(($P11+(P12-P11)*2/3)-$AY11) -> -371.0388889 | BB11: 1783.654444 | BC11: =+((BB11/3)/(Tablas!$L$4*Tablas!$L$6*'Ingreso Datos Energía'!$U$17+Tablas!$CQ$18)+AY11) -> 25.29167019 | BD11: 24 | BE11: -2936.859327 | BF11: 0 | BG11: 2936.859327 | BH11: 0 | BI11: 1 | BJ11: 0 | BK11: 0 | BL11: 3.684952423 | BM11: 8
A12: 24 | B12: 19.6 | C12: 19.7 | D12: 21.2 | E12: 18.1 | F12: 16.7 | G12: 21.8 | H12: 17.8 | I12: 17.9 | J12: 13.2 | K12: 13.1 | L12: 1 | M12: Ene | N12: 1 | O12: 9 | P12: 21.8 | Q12: =+VLOOKUP(M12,'Ingreso Datos Generales'!$T$5:$Z$16,6,0) -> 20 | R12: =+VLOOKUP(M12,'Ingreso Datos Generales'!$T$5:$Z$16,7,0) -> 24 | S12: 1 | T12: 0 | U12: 0 | V12: =+IF(AND(L12<='Ingreso Datos Generales'!$D$9,O12>=$V$1,O12<=$V$2),1,0) -> 1 | W12: 0 | X12: 0 | Y12: 0 | Z12: =+IF(L12<=Dias_a_la_semana,('Ingreso Datos Energía'!$D$49)*V12,0) -> 3550 | AA12: =+(VLOOKUP(M12,'Ingreso Datos Energía'!$I$46:$K$57,2,0)+V12*IF(L12<=Dias_a_la_semana,VLOOKUP(M12,'Ingreso Datos Energía'!$I$46:$K$57,3,0),0)+W12*IF(L12<=Dias_a_la_semana,VLOOKUP(M12,'Ingreso Datos Energía'!$I$46:$K$57,3,0),0)) -> 1 | AB12: =+'Ingreso Datos Energía'!$U$36*(Datos!P12-Datos!AI11)+'Ingreso Datos Energía'!$U$38*('Ingreso Datos Energía'!$U$35-Datos!AI11) -> -3326.846891 | AC12: =+SUMIFS(Sol!$AO$31:$AO$186,Sol!$AP$31:$AP$186,Datos!M12,Sol!$AN$31:$AN$186,Datos!O12)*$AC$2 -> 3858.505 | AD12: 4081.658109 | AE12: =(((AD12/3)/(Tablas!$L$4*Tablas!$L$6*'Ingreso Datos Energía'!$U$17+Tablas!$CQ$18)+AI11)*1+(P11+(P12-P11)/3)*AA12/3)/(1+AA12/3) -> 24.21391039 | AF12: =+'Ingreso Datos Energía'!$U$36*(($P11+(P12-P11)/3)-$AE12)+'Ingreso Datos Energía'!$U$38*('Ingreso Datos Energía'!$U$35-$AE12)+$AC12+$Z12 -> 2080.429448 | AG12: =+(((AF12/3)/(Tablas!$L$4*Tablas!$L$6*'Ingreso Datos Energía'!$U$17+Tablas!$CQ$18)+AE12)*1+(P11+(P12-P11)*2/3)*AA12/3)/(1+AA12/3) -> 24.5070389 | AH12: =+'Ingreso Datos Energía'!$U$36*(($P11+(P12-P11)*2/3)-$AG12)+'Ingreso Datos Energía'!$U$38*('Ingreso Datos Energía'!$U$35-$AG12)+$AC12+$Z12 -> 2233.900171 | AI12: =+(((AH12/3)/(Tablas!$L$4*Tablas!$L$6*'Ingreso Datos Energía'!$U$17+Tablas!$CQ$18)+AG12)*1+P12*AA12/3)/(1+AA12/3) -> 25.04357287 | AJ12: =+AD12++(-(Tablas!$L$4*Tablas!$L$6*'Ingreso Datos Energía'!$U$17+Tablas!$CQ$18)*P12*AA12/3+(Tablas!$L$4*Tablas!$L$6*'Ingreso Datos Energía'!$U$17+Tablas!$CQ$18)*AI11)/(1+AA12/3) -> 9404.397264 | AK12: =+IF(L12<='Ingreso Datos Generales'!$D$9,IF(AL12+AM12=0,1,0),0) -> 0 | AL12: =+IF(L12<='Ingreso Datos Generales'!$D$9,IF(AI12<Q12,1,0),0) -> 0 | AM12: =+IF(L12<='Ingreso Datos Generales'!$D$9,IF(AI12>R12,1,0),0) -> 1 | AN12: 0 | AO12: 1.043572872 | AP12: =+'Ingreso Datos Energía'!$U$36*(Datos!P12-Datos!BD11)+'Ingreso Datos Energía'!$U$38*('Ingreso Datos Energía'!$U$35-Datos!BD11) -> -4380.2 | AQ12: =+AA12*Tablas!$L$4*Tablas!$L$6*'Ingreso Datos Energía'!$U$17*(Datos!P12-Datos!BD11) -> -260.5166667 | AR12: 2767.788333 | AS12: =+IF(((AR12/3)/(Tablas!$L$4*Tablas!$L$6*'Ingreso Datos Energía'!$U$17+Tablas!$CQ$18)+BD11)<P12,P12,((AR12/3)/(Tablas!$L$4*Tablas!$L$6*'Ingreso Datos Energía'!$U$17+Tablas!$CQ$18)+BD11)) -> 26.00435106 | AT12: 24 | AU12: =+'Ingreso Datos Energía'!$U$36*(($P12+(P13-P12)/3)-$AT12)+'Ingreso Datos Energía'!$U$38*('Ingreso Datos Energía'!$U$35-$AT12) -> -3964.2 | AV12: =+AA12*Tablas!$L$4*Tablas!$L$6*'Ingreso Datos Energía'!$U$17*(($P12+(P13-P12)/3)-$AT12) -> -142.1 | AW12: 3302.205 | AX12: =+IF(((AW12/3)/(Tablas!$L$4*Tablas!$L$6*'Ingreso Datos Energía'!$U$17+Tablas!$CQ$18)+AT12)<P12,P12,((AW12/3)/(Tablas!$L$4*Tablas!$L$6*'Ingreso Datos Energía'!$U$17+Tablas!$CQ$18)+AT12)) -> 26.39135992 | AY12: 24 | AZ12: =+'Ingreso Datos Energía'!$U$36*(($P12+(P13-P12)*2/3)-$AY12)+'Ingreso Datos Energía'!$U$38*('Ingreso Datos Energía'!$U$35-$AY12) -> -3548.2 | BA12: =+AA12*Tablas!$L$4*Tablas!$L$6*'Ingreso Datos Energía'!$U$17*(($P12+(P13-P12)*2/3)-$AY12) -> -23.68333333 | BB12: 3836.621667 | BC12: =+((BB12/3)/(Tablas!$L$4*Tablas!$L$6*'Ingreso Datos Energía'!$U$17+Tablas!$CQ$18)+AY12) -> 26.77836878 | BD12: 24 | BE12: -3302.205 | BF12: 0 | BG12: 3302.205 | BH12: 0 | BI12: 0 | BJ12: 1 | BK12: 1 | BL12: 3.243572872 | BM12: 9
A13: 24.1 | B13: 21.3 | C13: 19.8 | D13: 21.7 | E13: 19.3 | F13: 20 | G13: 24.8 | H13: 18.6 | I13: 20.3 | J13: 13.2 | K13: 15 | L13: 1 | M13: Ene | N13: 1 | O13: 10 | P13: 24.8 | Q13: =+VLOOKUP(M13,'Ingreso Datos Generales'!$T$5:$Z$16,6,0) -> 20 | R13: =+VLOOKUP(M13,'Ingreso Datos Generales'!$T$5:$Z$16,7,0) -> 24 | S13: 0 | T13: 0 | U13: 1 | V13: =+IF(AND(L13<='Ingreso Datos Generales'!$D$9,O13>=$V$1,O13<=$V$2),1,0) -> 1 | W13: 0 | X13: 0 | Y13: 0.8 | Z13: =+IF(L13<=Dias_a_la_semana,('Ingreso Datos Energía'!$D$49)*V13,0) -> 3550 | AA13: =+(VLOOKUP(M13,'Ingreso Datos Energía'!$I$46:$K$57,2,0)+V13*IF(L13<=Dias_a_la_semana,VLOOKUP(M13,'Ingreso Datos Energía'!$I$46:$K$57,3,0),0)+W13*IF(L13<=Dias_a_la_semana,VLOOKUP(M13,'Ingreso Datos Energía'!$I$46:$K$57,3,0),0)) -> 1 | AB13: =+'Ingreso Datos Energía'!$U$36*(Datos!P13-Datos!AI12)+'Ingreso Datos Energía'!$U$38*('Ingreso Datos Energía'!$U$35-Datos!AI12) -> -3968.10187 | AC13: =+SUMIFS(Sol!$AO$31:$AO$186,Sol!$AP$31:$AP$186,Datos!M13,Sol!$AN$31:$AN$186,Datos!O13)*$AC$2 -> 4147.85 | AD13: 3729.74813 | AE13: =(((AD13/3)/(Tablas!$L$4*Tablas!$L$6*'Ingreso Datos Energía'!$U$17+Tablas!$CQ$18)+AI12)*1+(P12+(P13-P12)/3)*AA13/3)/(1+AA13/3) -> 26.50841023 | AF13: =+'Ingreso Datos Energía'!$U$36*(($P12+(P13-P12)/3)-$AE13)+'Ingreso Datos Energía'!$U$38*('Ingreso Datos Energía'!$U$35-$AE13)+$AC13+$Z13 -> 1724.413405 | AG13: =+(((AF13/3)/(Tablas!$L$4*Tablas!$L$6*'Ingreso Datos Energía'!$U$17+Tablas!$CQ$18)+AE13)*1+(P12+(P13-P12)*2/3)*AA13/3)/(1+AA13/3) -> 26.76788485 | AH13: =+'Ingreso Datos Energía'!$U$36*(($P12+(P13-P12)*2/3)-$AG13)+'Ingreso Datos Energía'!$U$38*('Ingreso Datos Energía'!$U$35-$AG13)+$AC13+$Z13 -> 1932.574237 | AI13: =+(((AH13/3)/(Tablas!$L$4*Tablas!$L$6*'Ingreso Datos Energía'!$U$17+Tablas!$CQ$18)+AG13)*1+P13*AA13/3)/(1+AA13/3) -> 27.32554878 | AJ13: =+AD13++(-(Tablas!$L$4*Tablas!$L$6*'Ingreso Datos Energía'!$U$17+Tablas!$CQ$18)*P13*AA13/3+(Tablas!$L$4*Tablas!$L$6*'Ingreso Datos Energía'!$U$17+Tablas!$CQ$18)*AI12)/(1+AA13/3) -> 9521.513632 | AK13: =+IF(L13<='Ingreso Datos Generales'!$D$9,IF(AL13+AM13=0,1,0),0) -> 0 | AL13: =+IF(L13<='Ingreso Datos Generales'!$D$9,IF(AI13<Q13,1,0),0) -> 0 | AM13: =+IF(L13<='Ingreso Datos Generales'!$D$9,IF(AI13>R13,1,0),0) -> 1 | AN13: 0 | AO13: 3.325548782 | AP13: =+'Ingreso Datos Energía'!$U$36*(Datos!P13-Datos!BD12)+'Ingreso Datos Energía'!$U$38*('Ingreso Datos Energía'!$U$35-Datos!BD12) -> -3132.2 | AQ13: =+AA13*Tablas!$L$4*Tablas!$L$6*'Ingreso Datos Energía'!$U$17*(Datos!P13-Datos!BD12) -> 94.73333333 | AR13: 4660.383333 | AS13: =+IF(((AR13/3)/(Tablas!$L$4*Tablas!$L$6*'Ingreso Datos Energía'!$U$17+Tablas!$CQ$18)+BD12)<P13,P13,((AR13/3)/(Tablas!$L$4*Tablas!$L$6*'Ingreso Datos Energía'!$U$17+Tablas!$CQ$18)+BD12)) -> 27.3749128 | AT13: 24 | AU13: =+'Ingreso Datos Energía'!$U$36*(($P13+(P14-P13)/3)-$AT13)+'Ingreso Datos Energía'!$U$38*('Ingreso Datos Energía'!$U$35-$AT13) -> -2702.333333 | AV13: =+AA13*Tablas!$L$4*Tablas!$L$6*'Ingreso Datos Energía'!$U$17*(($P13+(P14-P13)/3)-$AT13) -> 217.0972222 | AW13: 5212.613889 | AX13: =+IF(((AW13/3)/(Tablas!$L$4*Tablas!$L$6*'Ingreso Datos Energía'!$U$17+Tablas!$CQ$18)+AT13)<P13,P13,((AW13/3)/(Tablas!$L$4*Tablas!$L$6*'Ingreso Datos Energía'!$U$17+Tablas!$CQ$18)+AT13)) -> 27.77482195 | AY13: 24 | AZ13: =+'Ingreso Datos Energía'!$U$36*(($P13+(P14-P13)*2/3)-$AY13)+'Ingreso Datos Energía'!$U$38*('Ingreso Datos Energía'!$U$35-$AY13) -> -2272.466667 | BA13: =+AA13*Tablas!$L$4*Tablas!$L$6*'Ingreso Datos Energía'!$U$17*(($P13+(P14-P13)*2/3)-$AY13) -> 339.4611111 | BB13: 5764.844444 | BC13: =+((BB13/3)/(Tablas!$L$4*Tablas!$L$6*'Ingreso Datos Energía'!$U$17+Tablas!$CQ$18)+AY13) -> 28.17473111 | BD13: 24 | BE13: -5212.613889 | BF13: 0 | BG13: 5212.613889 | BH13: 1 | BI13: 0 | BJ13: 0 | BK13: 0 | BL13: 2.525548782 | BM13: 10
A14: 25.1 | B14: 23 | C14: 20.2 | D14: 22.1 | E14: 20.7 | F14: 23.4 | G14: 27.9 | H14: 20 | I14: 23 | J14: 13.9 | K14: 17 | L14: 1 | M14: Ene | N14: 1 | O14: 11 | P14: 27.9 | Q14: =+VLOOKUP(M14,'Ingreso Datos Generales'!$T$5:$Z$16,6,0) -> 20 | R14: =+VLOOKUP(M14,'Ingreso Datos Generales'!$T$5:$Z$16,7,0) -> 24 | S14: 0 | T14: 0 | U14: 1 | V14: =+IF(AND(L14<='Ingreso Datos Generales'!$D$9,O14>=$V$1,O14<=$V$2),1,0) -> 1 | W14: 0 | X14: 0 | Y14: 3.9 | Z14: =+IF(L14<=Dias_a_la_semana,('Ingreso Datos Energía'!$D$49)*V14,0) -> 3550 | AA14: =+(VLOOKUP(M14,'Ingreso Datos Energía'!$I$46:$K$57,2,0)+V14*IF(L14<=Dias_a_la_semana,VLOOKUP(M14,'Ingreso Datos Energía'!$I$46:$K$57,3,0),0)+W14*IF(L14<=Dias_a_la_semana,VLOOKUP(M14,'Ingreso Datos Energía'!$I$46:$K$57,3,0),0)) -> 1 | AB14: =+'Ingreso Datos Energía'!$U$36*(Datos!P14-Datos!AI13)+'Ingreso Datos Energía'!$U$38*('Ingreso Datos Energía'!$U$35-Datos!AI13) -> -4506.364575 | AC14: =+SUMIFS(Sol!$AO$31:$AO$186,Sol!$AP$31:$AP$186,Datos!M14,Sol!$AN$31:$AN$186,Datos!O14)*$AC$2 -> 4127.515 | AD14: 3171.150425 | AE14: =(((AD14/3)/(Tablas!$L$4*Tablas!$L$6*'Ingreso Datos Energía'!$U$17+Tablas!$CQ$18)+AI13)*1+(P13+(P14-P13)/3)*AA14/3)/(1+AA14/3) -> 28.67483545 | AF14: =+'Ingreso Datos Energía'!$U$36*(($P13+(P14-P13)/3)-$AE14)+'Ingreso Datos Energía'!$U$38*('Ingreso Datos Energía'!$U$35-$AE14)+$AC14+$Z14 -> 1230.638469 | AG14: =+(((AF14/3)/(Tablas!$L$4*Tablas!$L$6*'Ingreso Datos Energía'!$U$17+Tablas!$CQ$18)+AE14)*1+(P13+(P14-P13)*2/3)*AA14/3)/(1+AA14/3) -> 28.89118745 | AH14: =+'Ingreso Datos Energía'!$U$36*(($P13+(P14-P13)*2/3)-$AG14)+'Ingreso Datos Energía'!$U$38*('Ingreso Datos Energía'!$U$35-$AG14)+$AC14+$Z14 -> 1487.207189 | AI14: =+(((AH14/3)/(Tablas!$L$4*Tablas!$L$6*'Ingreso Datos Energía'!$U$17+Tablas!$CQ$18)+AG14)*1+P14*AA14/3)/(1+AA14/3) -> 29.45113442 | AJ14: =+AD14++(-(Tablas!$L$4*Tablas!$L$6*'Ingreso Datos Energía'!$U$17+Tablas!$CQ$18)*P14*AA14/3+(Tablas!$L$4*Tablas!$L$6*'Ingreso Datos Energía'!$U$17+Tablas!$CQ$18)*AI13)/(1+AA14/3) -> 9393.97544 | AK14: =+IF(L14<='Ingreso Datos Generales'!$D$9,IF(AL14+AM14=0,1,0),0) -> 0 | AL14: =+IF(L14<='Ingreso Datos Generales'!$D$9,IF(AI14<Q14,1,0),0) -> 0 | AM14: =+IF(L14<='Ingreso Datos Generales'!$D$9,IF(AI14>R14,1,0),0) -> 1 | AN14: 0 | AO14: 5.451134425 | AP14: =+'Ingreso Datos Energía'!$U$36*(Datos!P14-Datos!BD13)+'Ingreso Datos Energía'!$U$38*('Ingreso Datos Energía'!$U$35-Datos!BD13) -> -1842.6 | AQ14: =+AA14*Tablas!$L$4*Tablas!$L$6*'Ingreso Datos Energía'!$U$17*(Datos!P14-Datos!BD13) -> 461.825 | AR14: 6296.74 | AS14: =+IF(((AR14/3)/(Tablas!$L$4*Tablas!$L$6*'Ingreso Datos Energía'!$U$17+Tablas!$CQ$18)+BD13)<P14,P14,((AR14/3)/(Tablas!$L$4*Tablas!$L$6*'Ingreso Datos Energía'!$U$17+Tablas!$CQ$18)+BD13)) -> 28.55991426 | AT14: 24 | AU14: =+'Ingreso Datos Energía'!$U$36*(($P14+(P15-P14)/3)-$AT14)+'Ingreso Datos Energía'!$U$38*('Ingreso Datos Energía'!$U$35-$AT14) -> -1495.933333 | AV14: =+AA14*Tablas!$L$4*Tablas!$L$6*'Ingreso Datos Energía'!$U$17*(($P14+(P15-P14)/3)-$AT14) -> 560.5055556 | AW14: 6742.087222 | AX14: =+IF(((AW14/3)/(Tablas!$L$4*Tablas!$L$6*'Ingreso Datos Energía'!$U$17+Tablas!$CQ$18)+AT14)<P14,P14,((AW14/3)/(Tablas!$L$4*Tablas!$L$6*'Ingreso Datos Energía'!$U$17+Tablas!$CQ$18)+AT14)) -> 28.88242164 | AY14: 24 | AZ14: =+'Ingreso Datos Energía'!$U$36*(($P14+(P15-P14)*2/3)-$AY14)+'Ingreso Datos Energía'!$U$38*('Ingreso Datos Energía'!$U$35-$AY14) -> -1149.266667 | BA14: =+AA14*Tablas!$L$4*Tablas!$L$6*'Ingreso Datos Energía'!$U$17*(($P14+(P15-P14)*2/3)-$AY14) -> 659.1861111 | BB14: 7187.434444 | BC14: =+((BB14/3)/(Tablas!$L$4*Tablas!$L$6*'Ingreso Datos Energía'!$U$17+Tablas!$CQ$18)+AY14) -> 29.20492903 | BD14: 24 | BE14: -6742.087222 | BF14: 0 | BG14: 6742.087222 | BH14: 1 | BI14: 0 | BJ14: 0 | BK14: 0 | BL14: 1.551134425 | BM14: 11
A15: 25.9 | B15: 24.4 | C15: 20.7 | D15: 22.9 | E15: 21.7 | F15: 26.1 | G15: 30.4 | H15: 21.5 | I15: 25.3 | J15: 14.3 | K15: 18.7 | L15: 1 | M15: Ene | N15: 1 | O15: 12 | P15: 30.4 | Q15: =+VLOOKUP(M15,'Ingreso Datos Generales'!$T$5:$Z$16,6,0) -> 20 | R15: =+VLOOKUP(M15,'Ingreso Datos Generales'!$T$5:$Z$16,7,0) -> 24 | S15: 0 | T15: 0 | U15: 1 | V15: =+IF(AND(L15<='Ingreso Datos Generales'!$D$9,O15>=$V$1,O15<=$V$2),1,0) -> 1 | W15: 0 | X15: 0 | Y15: 6.4 | Z15: =+IF(L15<=Dias_a_la_semana,('Ingreso Datos Energía'!$D$49)*V15,0) -> 3550 | AA15: =+(VLOOKUP(M15,'Ingreso Datos Energía'!$I$46:$K$57,2,0)+V15*IF(L15<=Dias_a_la_semana,VLOOKUP(M15,'Ingreso Datos Energía'!$I$46:$K$57,3,0),0)+W15*IF(L15<=Dias_a_la_semana,VLOOKUP(M15,'Ingreso Datos Energía'!$I$46:$K$57,3,0),0)) -> 1 | AB15: =+'Ingreso Datos Energía'!$U$36*(Datos!P15-Datos!AI14)+'Ingreso Datos Energía'!$U$38*('Ingreso Datos Energía'!$U$35-Datos!AI14) -> -5168.958674 | AC15: =+SUMIFS(Sol!$AO$31:$AO$186,Sol!$AP$31:$AP$186,Datos!M15,Sol!$AN$31:$AN$186,Datos!O15)*$AC$2 -> 3879.82 | AD15: 2260.861326 | AE15: =(((AD15/3)/(Tablas!$L$4*Tablas!$L$6*'Ingreso Datos Energía'!$U$17+Tablas!$CQ$18)+AI14)*1+(P14+(P15-P14)/3)*AA15/3)/(1+AA15/3) -> 30.4996212 | AF15: =+'Ingreso Datos Energía'!$U$36*(($P14+(P15-P14)/3)-$AE15)+'Ingreso Datos Energía'!$U$38*('Ingreso Datos Energía'!$U$35-$AE15)+$AC15+$Z15 -> 727.6900832 | AG15: =+(((AF15/3)/(Tablas!$L$4*Tablas!$L$6*'Ingreso Datos Energía'!$U$17+Tablas!$CQ$18)+AE15)*1+(P14+(P15-P14)*2/3)*AA15/3)/(1+AA15/3) -> 30.66161142 | AH15: =+'Ingreso Datos Energía'!$U$36*(($P14+(P15-P14)*2/3)-$AG15)+'Ingreso Datos Energía'!$U$38*('Ingreso Datos Energía'!$U$35-$AG15)+$AC15+$Z15 -> 944.6025893 | AI15: =+(((AH15/3)/(Tablas!$L$4*Tablas!$L$6*'Ingreso Datos Energía'!$U$17+Tablas!$CQ$18)+AG15)*1+P15*AA15/3)/(1+AA15/3) -> 31.10924866 | AJ15: =+AD15++(-(Tablas!$L$4*Tablas!$L$6*'Ingreso Datos Energía'!$U$17+Tablas!$CQ$18)*P15*AA15/3+(Tablas!$L$4*Tablas!$L$6*'Ingreso Datos Energía'!$U$17+Tablas!$CQ$18)*AI14)/(1+AA15/3) -> 8929.800913 | AK15: =+IF(L15<='Ingreso Datos Generales'!$D$9,IF(AL15+AM15=0,1,0),0) -> 0 | AL15: =+IF(L15<='Ingreso Datos Generales'!$D$9,IF(AI15<Q15,1,0),0) -> 0 | AM15: =+IF(L15<='Ingreso Datos Generales'!$D$9,IF(AI15>R15,1,0),0) -> 1 | AN15: 0 | AO15: 7.109248661 | AP15: =+'Ingreso Datos Energía'!$U$36*(Datos!P15-Datos!BD14)+'Ingreso Datos Energía'!$U$38*('Ingreso Datos Energía'!$U$35-Datos!BD14) -> -802.6 | AQ15: =+AA15*Tablas!$L$4*Tablas!$L$6*'Ingreso Datos Energía'!$U$17*(Datos!P15-Datos!BD14) -> 757.8666667 | AR15: 7385.086667 | AS15: =+IF(((AR15/3)/(Tablas!$L$4*Tablas!$L$6*'Ingreso Datos Energía'!$U$17+Tablas!$CQ$18)+BD14)<P15,P15,((AR15/3)/(Tablas!$L$4*Tablas!$L$6*'Ingreso Datos Energía'!$U$17+Tablas!$CQ$18)+BD14)) -> 30.4 | AT15: 24 | AU15: =+'Ingreso Datos Energía'!$U$36*(($P15+(P16-P15)/3)-$AT15)+'Ingreso Datos Energía'!$U$38*('Ingreso Datos Energía'!$U$35-$AT15) -> -539.1333333 | AV15: =+AA15*Tablas!$L$4*Tablas!$L$6*'Ingreso Datos Energía'!$U$17*(($P15+(P16-P15)/3)-$AT15) -> 832.8638889 | AW15: 7723.550556 | AX15: =+IF(((AW15/3)/(Tablas!$L$4*Tablas!$L$6*'Ingreso Datos Energía'!$U$17+Tablas!$CQ$18)+AT15)<P15,P15,((AW15/3)/(Tablas!$L$4*Tablas!$L$6*'Ingreso Datos Energía'!$U$17+Tablas!$CQ$18)+AT15)) -> 30.4 | AY15: 24 | AZ15: =+'Ingreso Datos Energía'!$U$36*(($P15+(P16-P15)*2/3)-$AY15)+'Ingreso Datos Energía'!$U$38*('Ingreso Datos Energía'!$U$35-$AY15) -> -275.6666667 | BA15: =+AA15*Tablas!$L$4*Tablas!$L$6*'Ingreso Datos Energía'!$U$17*(($P15+(P16-P15)*2/3)-$AY15) -> 907.8611111 | BB15: 8062.014444 | BC15: =+((BB15/3)/(Tablas!$L$4*Tablas!$L$6*'Ingreso Datos Energía'!$U$17+Tablas!$CQ$18)+AY15) -> 29.83827419 | BD15: 24 | BE15: -7723.550556 | BF15: 0 | BG15: 7723.550556 | BH15: 1 | BI15: 0 | BJ15: 0 | BK15: 0 | BL15: 0.7092486606 | BM15: 12
A16: 26.4 | B16: 25.4 | C16: 20.9 | D16: 23.5 | E16: 22.5 | F16: 28.4 | G16: 32.3 | H16: 22.4 | I16: 27 | J16: 15.6 | K16: 20.1 | L16: 1 | M16: Ene | N16: 1 | O16: 13 | P16: 32.3 | Q16: =+VLOOKUP(M16,'Ingreso Datos Generales'!$T$5:$Z$16,6,0) -> 20 | R16: =+VLOOKUP(M16,'Ingreso Datos Generales'!$T$5:$Z$16,7,0) -> 24 | S16: 0 | T16: 0 | U16: 1 | V16: =+IF(AND(L16<='Ingreso Datos Generales'!$D$9,O16>=$V$1,O16<=$V$2),1,0) -> 1 | W16: 0 | X16: 0 | Y16: 8.3 | Z16: =+IF(L16<=Dias_a_la_semana,('Ingreso Datos Energía'!$D$49)*V16,0) -> 3550 | AA16: =+(VLOOKUP(M16,'Ingreso Datos Energía'!$I$46:$K$57,2,0)+V16*IF(L16<=Dias_a_la_semana,VLOOKUP(M16,'Ingreso Datos Energía'!$I$46:$K$57,3,0),0)+W16*IF(L16<=Dias_a_la_semana,VLOOKUP(M16,'Ingreso Datos Energía'!$I$46:$K$57,3,0),0)) -> 1 | AB16: =+'Ingreso Datos Energía'!$U$36*(Datos!P16-Datos!AI15)+'Ingreso Datos Energía'!$U$38*('Ingreso Datos Energía'!$U$35-Datos!AI15) -> -5706.708177 | AC16: =+SUMIFS(Sol!$AO$31:$AO$186,Sol!$AP$31:$AP$186,Datos!M16,Sol!$AN$31:$AN$186,Datos!O16)*$AC$2 -> 4127.515 | AD16: 1970.806823 | AE16: =(((AD16/3)/(Tablas!$L$4*Tablas!$L$6*'Ingreso Datos Energía'!$U$17+Tablas!$CQ$18)+AI15)*1+(P15+(P16-P15)/3)*AA16/3)/(1+AA16/3) -> 32.16067016 | AF16: =+'Ingreso Datos Energía'!$U$36*(($P15+(P16-P15)/3)-$AE16)+'Ingreso Datos Energía'!$U$38*('Ingreso Datos Energía'!$U$35-$AE16)+$AC16+$Z16 -> 601.6848663 | AG16: =+(((AF16/3)/(Tablas!$L$4*Tablas!$L$6*'Ingreso Datos Energía'!$U$17+Tablas!$CQ$18)+AE16)*1+(P15+(P16-P15)*2/3)*AA16/3)/(1+AA16/3) -> 32.36396118 | AH16: =+'Ingreso Datos Energía'!$U$36*(($P15+(P16-P15)*2/3)-$AG16)+'Ingreso Datos Energía'!$U$38*('Ingreso Datos Energía'!$U$35-$AG16)+$AC16+$Z16 -> 702.3154311 | AI16: =+(((AH16/3)/(Tablas!$L$4*Tablas!$L$6*'Ingreso Datos Energía'!$U$17+Tablas!$CQ$18)+AG16)*1+P16*AA16/3)/(1+AA16/3) -> 32.72941805 | AJ16: =+AD16++(-(Tablas!$L$4*Tablas!$L$6*'Ingreso Datos Energía'!$U$17+Tablas!$CQ$18)*P16*AA16/3+(Tablas!$L$4*Tablas!$L$6*'Ingreso Datos Energía'!$U$17+Tablas!$CQ$18)*AI15)/(1+AA16/3) -> 8993.523835 | AK16: =+IF(L16<='Ingreso Datos Generales'!$D$9,IF(AL16+AM16=0,1,0),0) -> 0 | AL16: =+IF(L16<='Ingreso Datos Generales'!$D$9,IF(AI16<Q16,1,0),0) -> 0 | AM16: =+IF(L16<='Ingreso Datos Generales'!$D$9,IF(AI16>R16,1,0),0) -> 1 | AN16: 0 | AO16: 8.729418046 | AP16: =+'Ingreso Datos Energía'!$U$36*(Datos!P16-Datos!BD15)+'Ingreso Datos Energía'!$U$38*('Ingreso Datos Energía'!$U$35-Datos!BD15) -> -12.2 | AQ16: =+AA16*Tablas!$L$4*Tablas!$L$6*'Ingreso Datos Energía'!$U$17*(Datos!P16-Datos!BD15) -> 982.8583333 | AR16: 8648.173333 | AS16: =+IF(((AR16/3)/(Tablas!$L$4*Tablas!$L$6*'Ingreso Datos Energía'!$U$17+Tablas!$CQ$18)+BD15)<P16,P16,((AR16/3)/(Tablas!$L$4*Tablas!$L$6*'Ingreso Datos Energía'!$U$17+Tablas!$CQ$18)+BD15)) -> 32.3 | AT16: 24 | AU16: =+'Ingreso Datos Energía'!$U$36*(($P16+(P17-P16)/3)-$AT16)+'Ingreso Datos Energía'!$U$38*('Ingreso Datos Energía'!$U$35-$AT16) -> 181.9333333 | AV16: =+AA16*Tablas!$L$4*Tablas!$L$6*'Ingreso Datos Energía'!$U$17*(($P16+(P17-P16)/3)-$AT16) -> 1038.119444 | AW16: 8897.567778 | AX16: =+IF(((AW16/3)/(Tablas!$L$4*Tablas!$L$6*'Ingreso Datos Energía'!$U$17+Tablas!$CQ$18)+AT16)<P16,P16,((AW16/3)/(Tablas!$L$4*Tablas!$L$6*'Ingreso Datos Energía'!$U$17+Tablas!$CQ$18)+AT16)) -> 32.3 | AY16: 24 | AZ16: =+'Ingreso Datos Energía'!$U$36*(($P16+(P17-P16)*2/3)-$AY16)+'Ingreso Datos Energía'!$U$38*('Ingreso Datos Energía'!$U$35-$AY16) -> 376.0666667 | BA16: =+AA16*Tablas!$L$4*Tablas!$L$6*'Ingreso Datos Energía'!$U$17*(($P16+(P17-P16)*2/3)-$AY16) -> 1093.380556 | BB16: 9146.962222 | BC16: =+((BB16/3)/(Tablas!$L$4*Tablas!$L$6*'Ingreso Datos Energía'!$U$17+Tablas!$CQ$18)+AY16) -> 30.62396152 | BD16: 24 | BE16: -8897.567778 | BF16: 0 | BG16: 8897.567778 | BH16: 1 | BI16: 0 | BJ16: 0 | BK16: 0 | BL16: 0.4294180456 | BM16: 13
A17: 26.4 | B17: 26.2 | C17: 21.4 | D17: 23.7 | E17: 23.1 | F17: 30 | G17: 33.7 | H17: 23.1 | I17: 28.3 | J17: 16 | K17: 21.2 | L17: 1 | M17: Ene | N17: 1 | O17: 14 | P17: 33.7 | Q17: =+VLOOKUP(M17,'Ingreso Datos Generales'!$T$5:$Z$16,6,0) -> 20 | R17: =+VLOOKUP(M17,'Ingreso Datos Generales'!$T$5:$Z$16,7,0) -> 24 | S17: 0 | T17: 0 | U17: 1 | V17: =+IF(AND(L17<='Ingreso Datos Generales'!$D$9,O17>=$V$1,O17<=$V$2),1,0) -> 1 | W17: 0 | X17: 0 | Y17: 9.7 | Z17: =+IF(L17<=Dias_a_la_semana,('Ingreso Datos Energía'!$D$49)*V17,0) -> 3550 | AA17: =+(VLOOKUP(M17,'Ingreso Datos Energía'!$I$46:$K$57,2,0)+V17*IF(L17<=Dias_a_la_semana,VLOOKUP(M17,'Ingreso Datos Energía'!$I$46:$K$57,3,0),0)+W17*IF(L17<=Dias_a_la_semana,VLOOKUP(M17,'Ingreso Datos Energía'!$I$46:$K$57,3,0),0)) -> 1 | AB17: =+'Ingreso Datos Energía'!$U$36*(Datos!P17-Datos!AI16)+'Ingreso Datos Energía'!$U$38*('Ingreso Datos Energía'!$U$35-Datos!AI16) -> -6422.063854 | AC17: =+SUMIFS(Sol!$AO$31:$AO$186,Sol!$AP$31:$AP$186,Datos!M17,Sol!$AN$31:$AN$186,Datos!O17)*$AC$2 -> 4147.85 | AD17: 1275.786146 | AE17: =(((AD17/3)/(Tablas!$L$4*Tablas!$L$6*'Ingreso Datos Energía'!$U$17+Tablas!$CQ$18)+AI16)*1+(P16+(P17-P16)/3)*AA17/3)/(1+AA17/3) -> 33.43164536 | AF17: =+'Ingreso Datos Energía'!$U$36*(($P16+(P17-P16)/3)-$AE17)+'Ingreso Datos Energía'!$U$38*('Ingreso Datos Energía'!$U$35-$AE17)+$AC17+$Z17 -> 325.0354029 | AG17: =+(((AF17/3)/(Tablas!$L$4*Tablas!$L$6*'Ingreso Datos Energía'!$U$17+Tablas!$CQ$18)+AE17)*1+(P16+(P17-P16)*2/3)*AA17/3)/(1+AA17/3) -> 33.55860317 | AH17: =+'Ingreso Datos Energía'!$U$36*(($P16+(P17-P16)*2/3)-$AG17)+'Ingreso Datos Energía'!$U$38*('Ingreso Datos Energía'!$U$35-$AG17)+$AC17+$Z17 -> 417.4755249 | AI17: =+(((AH17/3)/(Tablas!$L$4*Tablas!$L$6*'Ingreso Datos Energía'!$U$17+Tablas!$CQ$18)+AG17)*1+P17*AA17/3)/(1+AA17/3) -> 33.82069502 | AJ17: =+AD17++(-(Tablas!$L$4*Tablas!$L$6*'Ingreso Datos Energía'!$U$17+Tablas!$CQ$18)*P17*AA17/3+(Tablas!$L$4*Tablas!$L$6*'Ingreso Datos Energía'!$U$17+Tablas!$CQ$18)*AI16)/(1+AA17/3) -> 8696.71825 | AK17: =+IF(L17<='Ingreso Datos Generales'!$D$9,IF(AL17+AM17=0,1,0),0) -> 0 | AL17: =+IF(L17<='Ingreso Datos Generales'!$D$9,IF(AI17<Q17,1,0),0) -> 0 | AM17: =+IF(L17<='Ingreso Datos Generales'!$D$9,IF(AI17>R17,1,0),0) -> 1 | AN17: 0 | AO17: 9.82069502 | AP17: =+'Ingreso Datos Energía'!$U$36*(Datos!P17-Datos!BD16)+'Ingreso Datos Energía'!$U$38*('Ingreso Datos Energía'!$U$35-Datos!BD16) -> 570.2 | AQ17: =+AA17*Tablas!$L$4*Tablas!$L$6*'Ingreso Datos Energía'!$U$17*(Datos!P17-Datos!BD16) -> 1148.641667 | AR17: 9416.691667 | AS17: =+IF(((AR17/3)/(Tablas!$L$4*Tablas!$L$6*'Ingreso Datos Energía'!$U$17+Tablas!$CQ$18)+BD16)<P17,P17,((AR17/3)/(Tablas!$L$4*Tablas!$L$6*'Ingreso Datos Energía'!$U$17+Tablas!$CQ$18)+BD16)) -> 33.7 | AT17: 24 | AU17: =+'Ingreso Datos Energía'!$U$36*(($P17+(P18-P17)/3)-$AT17)+'Ingreso Datos Energía'!$U$38*('Ingreso Datos Energía'!$U$35-$AT17) -> 681.1333333 | AV17: =+AA17*Tablas!$L$4*Tablas!$L$6*'Ingreso Datos Energía'!$U$17*(($P17+(P18-P17)/3)-$AT17) -> 1180.219444 | AW17: 9559.202778 | AX17: =+IF(((AW17/3)/(Tablas!$L$4*Tablas!$L$6*'Ingreso Datos Energía'!$U$17+Tablas!$CQ$18)+AT17)<P17,P17,((AW17/3)/(Tablas!$L$4*Tablas!$L$6*'Ingreso Datos Energía'!$U$17+Tablas!$CQ$18)+AT17)) -> 33.7 | AY17: 24 | AZ17: =+'Ingreso Datos Energía'!$U$36*(($P17+(P18-P17)*2/3)-$AY17)+'Ingreso Datos Energía'!$U$38*('Ingreso Datos Energía'!$U$35-$AY17) -> 792.0666667 | BA17: =+AA17*Tablas!$L$4*Tablas!$L$6*'Ingreso Datos Energía'!$U$17*(($P17+(P18-P17)*2/3)-$AY17) -> 1211.797222 | BB17: 9701.713889 | BC17: =+((BB17/3)/(Tablas!$L$4*Tablas!$L$6*'Ingreso Datos Energía'!$U$17+Tablas!$CQ$18)+AY17) -> 31.02569639 | BD17: 24 | BE17: -9559.202778 | BF17: 0 | BG17: 9559.202778 | BH17: 1 | BI17: 0 | BJ17: 0 | BK17: 0 | BL17: 0.1206950196 | BM17: 14
A18: 26.6 | B18: 26.6 | C18: 21.4 | D18: 23.8 | E18: 23.5 | F18: 31.1 | G18: 34.5 | H18: 24.4 | I18: 29.2 | J18: 16.1 | K18: 21.9 | L18: 1 | M18: Ene | N18: 1 | O18: 15 | P18: 34.5 | Q18: =+VLOOKUP(M18,'Ingreso Datos Generales'!$T$5:$Z$16,6,0) -> 20 | R18: =+VLOOKUP(M18,'Ingreso Datos Generales'!$T$5:$Z$16,7,0) -> 24 | S18: 0 | T18: 0 | U18: 1 | V18: =+IF(AND(L18<='Ingreso Datos Generales'!$D$9,O18>=$V$1,O18<=$V$2),1,0) -> 1 | W18: 0 | X18: 0 | Y18: 10.5 | Z18: =+IF(L18<=Dias_a_la_semana,('Ingreso Datos Energía'!$D$49)*V18,0) -> 3550 | AA18: =+(VLOOKUP(M18,'Ingreso Datos Energía'!$I$46:$K$57,2,0)+V18*IF(L18<=Dias_a_la_semana,VLOOKUP(M18,'Ingreso Datos Energía'!$I$46:$K$57,3,0),0)+W18*IF(L18<=Dias_a_la_semana,VLOOKUP(M18,'Ingreso Datos Energía'!$I$46:$K$57,3,0),0)) -> 1 | AB18: =+'Ingreso Datos Energía'!$U$36*(Datos!P18-Datos!AI17)+'Ingreso Datos Energía'!$U$38*('Ingreso Datos Energía'!$U$35-Datos!AI17) -> -6963.376711 | AC18: =+SUMIFS(Sol!$AO$31:$AO$186,Sol!$AP$31:$AP$186,Datos!M18,Sol!$AN$31:$AN$186,Datos!O18)*$AC$2 -> 3858.505 | AD18: 445.1282893 | AE18: =(((AD18/3)/(Tablas!$L$4*Tablas!$L$6*'Ingreso Datos Energía'!$U$17+Tablas!$CQ$18)+AI17)*1+(P17+(P18-P17)/3)*AA18/3)/(1+AA18/3) -> 34.09894956 | AF18: =+'Ingreso Datos Energía'!$U$36*(($P17+(P18-P17)/3)-$AE18)+'Ingreso Datos Energía'!$U$38*('Ingreso Datos Energía'!$U$35-$AE18)+$AC18+$Z18 -> 0.3797348387 | AG18: =+(((AF18/3)/(Tablas!$L$4*Tablas!$L$6*'Ingreso Datos Energía'!$U$17+Tablas!$CQ$18)+AE18)*1+(P17+(P18-P17)*2/3)*AA18/3)/(1+AA18/3) -> 34.13275175 | AH18: =+'Ingreso Datos Energía'!$U$36*(($P17+(P18-P17)*2/3)-$AG18)+'Ingreso Datos Energía'!$U$38*('Ingreso Datos Energía'!$U$35-$AG18)+$AC18+$Z18 -> 84.23751586 | AI18: =+(((AH18/3)/(Tablas!$L$4*Tablas!$L$6*'Ingreso Datos Energía'!$U$17+Tablas!$CQ$18)+AG18)*1+P18*AA18/3)/(1+AA18/3) -> 34.27031556 | AJ18: =+AD18++(-(Tablas!$L$4*Tablas!$L$6*'Ingreso Datos Energía'!$U$17+Tablas!$CQ$18)*P18*AA18/3+(Tablas!$L$4*Tablas!$L$6*'Ingreso Datos Energía'!$U$17+Tablas!$CQ$18)*AI17)/(1+AA18/3) -> 8150.734426 | AK18: =+IF(L18<='Ingreso Datos Generales'!$D$9,IF(AL18+AM18=0,1,0),0) -> 0 | AL18: =+IF(L18<='Ingreso Datos Generales'!$D$9,IF(AI18<Q18,1,0),0) -> 0 | AM18: =+IF(L18<='Ingreso Datos Generales'!$D$9,IF(AI18>R18,1,0),0) -> 1 | AN18: 0 | AO18: 10.27031556 | AP18: =+'Ingreso Datos Energía'!$U$36*(Datos!P18-Datos!BD17)+'Ingreso Datos Energía'!$U$38*('Ingreso Datos Energía'!$U$35-Datos!BD17) -> 903 | AQ18: =+AA18*Tablas!$L$4*Tablas!$L$6*'Ingreso Datos Energía'!$U$17*(Datos!P18-Datos!BD17) -> 1243.375 | AR18: 9554.88 | AS18: =+IF(((AR18/3)/(Tablas!$L$4*Tablas!$L$6*'Ingreso Datos Energía'!$U$17+Tablas!$CQ$18)+BD17)<P18,P18,((AR18/3)/(Tablas!$L$4*Tablas!$L$6*'Ingreso Datos Energía'!$U$17+Tablas!$CQ$18)+BD17)) -> 34.5 | AT18: 24 | AU18: =+'Ingreso Datos Energía'!$U$36*(($P18+(P19-P18)/3)-$AT18)+'Ingreso Datos Energía'!$U$38*('Ingreso Datos Energía'!$U$35-$AT18) -> 944.6 | AV18: =+AA18*Tablas!$L$4*Tablas!$L$6*'Ingreso Datos Energía'!$U$17*(($P18+(P19-P18)/3)-$AT18) -> 1255.216667 | AW18: 9608.321667 | AX18: =+IF(((AW18/3)/(Tablas!$L$4*Tablas!$L$6*'Ingreso Datos Energía'!$U$17+Tablas!$CQ$18)+AT18)<P18,P18,((AW18/3)/(Tablas!$L$4*Tablas!$L$6*'Ingreso Datos Energía'!$U$17+Tablas!$CQ$18)+AT18)) -> 34.5 | AY18: 24 | AZ18: =+'Ingreso Datos Energía'!$U$36*(($P18+(P19-P18)*2/3)-$AY18)+'Ingreso Datos Energía'!$U$38*('Ingreso Datos Energía'!$U$35-$AY18) -> 986.2 | BA18: =+AA18*Tablas!$L$4*Tablas!$L$6*'Ingreso Datos Energía'!$U$17*(($P18+(P19-P18)*2/3)-$AY18) -> 1267.058333 | BB18: 9661.763333 | BC18: =+((BB18/3)/(Tablas!$L$4*Tablas!$L$6*'Ingreso Datos Energía'!$U$17+Tablas!$CQ$18)+AY18) -> 30.99676537 | BD18: 24 | BE18: -9608.321667 | BF18: 0 | BG18: 9608.321667 | BH18: 1 | BI18: 0 | BJ18: 0 | BK18: 0 | BL18: -0.2296844363 | BM18: 15
A19: 26.6 | B19: 26.6 | C19: 21.4 | D19: 24 | E19: 23.6 | F19: 31.5 | G19: 34.8 | H19: 25.2 | I19: 29.7 | J19: 15.8 | K19: 22.3 | L19: 1 | M19: Ene | N19: 1 | O19: 16 | P19: 34.8 | Q19: =+VLOOKUP(M19,'Ingreso Datos Generales'!$T$5:$Z$16,6,0) -> 20 | R19: =+VLOOKUP(M19,'Ingreso Datos Generales'!$T$5:$Z$16,7,0) -> 24 | S19: 0 | T19: 0 | U19: 1 | V19: =+IF(AND(L19<='Ingreso Datos Generales'!$D$9,O19>=$V$1,O19<=$V$2),1,0) -> 1 | W19: 0 | X19: 0 | Y19: 10.8 | Z19: =+IF(L19<=Dias_a_la_semana,('Ingreso Datos Energía'!$D$49)*V19,0) -> 3550 | AA19: =+(VLOOKUP(M19,'Ingreso Datos Energía'!$I$46:$K$57,2,0)+V19*IF(L19<=Dias_a_la_semana,VLOOKUP(M19,'Ingreso Datos Energía'!$I$46:$K$57,3,0),0)+W19*IF(L19<=Dias_a_la_semana,VLOOKUP(M19,'Ingreso Datos Energía'!$I$46:$K$57,3,0),0)) -> 1 | AB19: =+'Ingreso Datos Energía'!$U$36*(Datos!P19-Datos!AI18)+'Ingreso Datos Energía'!$U$38*('Ingreso Datos Energía'!$U$35-Datos!AI18) -> -7198.722767 | AC19: =+SUMIFS(Sol!$AO$31:$AO$186,Sol!$AP$31:$AP$186,Datos!M19,Sol!$AN$31:$AN$186,Datos!O19)*$AC$2 -> 3373.16 | AD19: -275.5627665 | AE19: =(((AD19/3)/(Tablas!$L$4*Tablas!$L$6*'Ingreso Datos Energía'!$U$17+Tablas!$CQ$18)+AI18)*1+(P18+(P19-P18)/3)*AA19/3)/(1+AA19/3) -> 34.20307082 | AF19: =+'Ingreso Datos Energía'!$U$36*(($P18+(P19-P18)/3)-$AE19)+'Ingreso Datos Energía'!$U$38*('Ingreso Datos Energía'!$U$35-$AE19)+$AC19+$Z19 -> -304.8997294 | AG19: =+(((AF19/3)/(Tablas!$L$4*Tablas!$L$6*'Ingreso Datos Energía'!$U$17+Tablas!$CQ$18)+AE19)*1+(P18+(P19-P18)*2/3)*AA19/3)/(1+AA19/3) -> 34.16170354 | AH19: =+'Ingreso Datos Energía'!$U$36*(($P18+(P19-P18)*2/3)-$AG19)+'Ingreso Datos Energía'!$U$38*('Ingreso Datos Energía'!$U$35-$AG19)+$AC19+$Z19 -> -230.1645375 | AI19: =+(((AH19/3)/(Tablas!$L$4*Tablas!$L$6*'Ingreso Datos Energía'!$U$17+Tablas!$CQ$18)+AG19)*1+P19*AA19/3)/(1+AA19/3) -> 34.19626886 | AJ19: =+AD19++(-(Tablas!$L$4*Tablas!$L$6*'Ingreso Datos Energía'!$U$17+Tablas!$CQ$18)*P19*AA19/3+(Tablas!$L$4*Tablas!$L$6*'Ingreso Datos Energía'!$U$17+Tablas!$CQ$18)*AI18)/(1+AA19/3) -> 7550.740248 | AK19: =+IF(L19<='Ingreso Datos Generales'!$D$9,IF(AL19+AM19=0,1,0),0) -> 0 | AL19: =+IF(L19<='Ingreso Datos Generales'!$D$9,IF(AI19<Q19,1,0),0) -> 0 | AM19: =+IF(L19<='Ingreso Datos Generales'!$D$9,IF(AI19>R19,1,0),0) -> 1 | AN19: 0 | AO19: 10.19626886 | AP19: =+'Ingreso Datos Energía'!$U$36*(Datos!P19-Datos!BD18)+'Ingreso Datos Energía'!$U$38*('Ingreso Datos Energía'!$U$35-Datos!BD18) -> 1027.8 | AQ19: =+AA19*Tablas!$L$4*Tablas!$L$6*'Ingreso Datos Energía'!$U$17*(Datos!P19-Datos!BD18) -> 1278.9 | AR19: 9229.86 | AS19: =+IF(((AR19/3)/(Tablas!$L$4*Tablas!$L$6*'Ingreso Datos Energía'!$U$17+Tablas!$CQ$18)+BD18)<P19,P19,((AR19/3)/(Tablas!$L$4*Tablas!$L$6*'Ingreso Datos Energía'!$U$17+Tablas!$CQ$18)+BD18)) -> 34.8 | AT19: 24 | AU19: =+'Ingreso Datos Energía'!$U$36*(($P19+(P20-P19)/3)-$AT19)+'Ingreso Datos Energía'!$U$38*('Ingreso Datos Energía'!$U$35-$AT19) -> 986.2 | AV19: =+AA19*Tablas!$L$4*Tablas!$L$6*'Ingreso Datos Energía'!$U$17*(($P19+(P20-P19)/3)-$AT19) -> 1267.058333 | AW19: 9176.418333 | AX19: =+IF(((AW19/3)/(Tablas!$L$4*Tablas!$L$6*'Ingreso Datos Energía'!$U$17+Tablas!$CQ$18)+AT19)<P19,P19,((AW19/3)/(Tablas!$L$4*Tablas!$L$6*'Ingreso Datos Energía'!$U$17+Tablas!$CQ$18)+AT19)) -> 34.8 | AY19: 24 | AZ19: =+'Ingreso Datos Energía'!$U$36*(($P19+(P20-P19)*2/3)-$AY19)+'Ingreso Datos Energía'!$U$38*('Ingreso Datos Energía'!$U$35-$AY19) -> 944.6 | BA19: =+AA19*Tablas!$L$4*Tablas!$L$6*'Ingreso Datos Energía'!$U$17*(($P19+(P20-P19)*2/3)-$AY19) -> 1255.216667 | BB19: 9122.976667 | BC19: =+((BB19/3)/(Tablas!$L$4*Tablas!$L$6*'Ingreso Datos Energía'!$U$17+Tablas!$CQ$18)+AY19) -> 30.60659188 | BD19: 24 | BE19: -9176.418333 | BF19: 0 | BG19: 9176.418333 | BH19: 1 | BI19: 0 | BJ19: 0 | BK19: 0 | BL19: -0.6037311441 | BM19: 16
A20: 26.5 | B20: 26.3 | C20: 21.3 | D20: 24.1 | E20: 23.6 | F20: 31.3 | G20: 34.5 | H20: 25.3 | I20: 29.8 | J20: 15.9 | K20: 22.3 | L20: 1 | M20: Ene | N20: 1 | O20: 17 | P20: 34.5 | Q20: =+VLOOKUP(M20,'Ingreso Datos Generales'!$T$5:$Z$16,6,0) -> 20 | R20: =+VLOOKUP(M20,'Ingreso Datos Generales'!$T$5:$Z$16,7,0) -> 24 | S20: 0 | T20: 0 | U20: 1 | V20: =+IF(AND(L20<='Ingreso Datos Generales'!$D$9,O20>=$V$1,O20<=$V$2),1,0) -> 1 | W20: 0 | X20: 0 | Y20: 10.5 | Z20: =+IF(L20<=Dias_a_la_semana,('Ingreso Datos Energía'!$D$49)*V20,0) -> 3550 | AA20: =+(VLOOKUP(M20,'Ingreso Datos Energía'!$I$46:$K$57,2,0)+V20*IF(L20<=Dias_a_la_semana,VLOOKUP(M20,'Ingreso Datos Energía'!$I$46:$K$57,3,0),0)+W20*IF(L20<=Dias_a_la_semana,VLOOKUP(M20,'Ingreso Datos Energía'!$I$46:$K$57,3,0),0)) -> 1 | AB20: =+'Ingreso Datos Energía'!$U$36*(Datos!P20-Datos!AI19)+'Ingreso Datos Energía'!$U$38*('Ingreso Datos Energía'!$U$35-Datos!AI19) -> -7264.211354 | AC20: =+SUMIFS(Sol!$AO$31:$AO$186,Sol!$AP$31:$AP$186,Datos!M20,Sol!$AN$31:$AN$186,Datos!O20)*$AC$2 -> 2702.84 | AD20: -1011.371354 | AE20: =(((AD20/3)/(Tablas!$L$4*Tablas!$L$6*'Ingreso Datos Energía'!$U$17+Tablas!$CQ$18)+AI19)*1+(P19+(P20-P19)/3)*AA20/3)/(1+AA20/3) -> 33.77289756 | AF20: =+'Ingreso Datos Energía'!$U$36*(($P19+(P20-P19)/3)-$AE20)+'Ingreso Datos Energía'!$U$38*('Ingreso Datos Energía'!$U$35-$AE20)+$AC20+$Z20 -> -589.0509447 | AG20: =+(((AF20/3)/(Tablas!$L$4*Tablas!$L$6*'Ingreso Datos Energía'!$U$17+Tablas!$CQ$18)+AE20)*1+(P19+(P20-P19)*2/3)*AA20/3)/(1+AA20/3) -> 33.65974312 | AH20: =+'Ingreso Datos Energía'!$U$36*(($P19+(P20-P19)*2/3)-$AG20)+'Ingreso Datos Energía'!$U$38*('Ingreso Datos Energía'!$U$35-$AG20)+$AC20+$Z20 -> -540.0142374 | AI20: =+(((AH20/3)/(Tablas!$L$4*Tablas!$L$6*'Ingreso Datos Energía'!$U$17+Tablas!$CQ$18)+AG20)*1+P20*AA20/3)/(1+AA20/3) -> 33.5765105 | AJ20: =+AD20++(-(Tablas!$L$4*Tablas!$L$6*'Ingreso Datos Energía'!$U$17+Tablas!$CQ$18)*P20*AA20/3+(Tablas!$L$4*Tablas!$L$6*'Ingreso Datos Energía'!$U$17+Tablas!$CQ$18)*AI19)/(1+AA20/3) -> 6823.891322 | AK20: =+IF(L20<='Ingreso Datos Generales'!$D$9,IF(AL20+AM20=0,1,0),0) -> 0 | AL20: =+IF(L20<='Ingreso Datos Generales'!$D$9,IF(AI20<Q20,1,0),0) -> 0 | AM20: =+IF(L20<='Ingreso Datos Generales'!$D$9,IF(AI20>R20,1,0),0) -> 1 | AN20: 0 | AO20: 9.576510495 | AP20: =+'Ingreso Datos Energía'!$U$36*(Datos!P20-Datos!BD19)+'Ingreso Datos Energía'!$U$38*('Ingreso Datos Energía'!$U$35-Datos!BD19) -> 903 | AQ20: =+AA20*Tablas!$L$4*Tablas!$L$6*'Ingreso Datos Energía'!$U$17*(Datos!P20-Datos!BD19) -> 1243.375 | AR20: 8399.215 | AS20: =+IF(((AR20/3)/(Tablas!$L$4*Tablas!$L$6*'Ingreso Datos Energía'!$U$17+Tablas!$CQ$18)+BD19)<P20,P20,((AR20/3)/(Tablas!$L$4*Tablas!$L$6*'Ingreso Datos Energía'!$U$17+Tablas!$CQ$18)+BD19)) -> 34.5 | AT20: 24 | AU20: =+'Ingreso Datos Energía'!$U$36*(($P20+(P21-P20)/3)-$AT20)+'Ingreso Datos Energía'!$U$38*('Ingreso Datos Energía'!$U$35-$AT20) -> 750.4666667 | AV20: =+AA20*Tablas!$L$4*Tablas!$L$6*'Ingreso Datos Energía'!$U$17*(($P20+(P21-P20)/3)-$AT20) -> 1199.955556 | AW20: 8203.262222 | AX20: =+IF(((AW20/3)/(Tablas!$L$4*Tablas!$L$6*'Ingreso Datos Energía'!$U$17+Tablas!$CQ$18)+AT20)<P20,P20,((AW20/3)/(Tablas!$L$4*Tablas!$L$6*'Ingreso Datos Energía'!$U$17+Tablas!$CQ$18)+AT20)) -> 34.5 | AY20: 24 | AZ20: =+'Ingreso Datos Energía'!$U$36*(($P20+(P21-P20)*2/3)-$AY20)+'Ingreso Datos Energía'!$U$38*('Ingreso Datos Energía'!$U$35-$AY20) -> 597.9333333 | BA20: =+AA20*Tablas!$L$4*Tablas!$L$6*'Ingreso Datos Energía'!$U$17*(($P20+(P21-P20)*2/3)-$AY20) -> 1156.536111 | BB20: 8007.309444 | BC20: =+((BB20/3)/(Tablas!$L$4*Tablas!$L$6*'Ingreso Datos Energía'!$U$17+Tablas!$CQ$18)+AY20) -> 29.79865843 | BD20: 24 | BE20: -8203.262222 | BF20: 0 | BG20: 8203.262222 | BH20: 1 | BI20: 0 | BJ20: 0 | BK20: 0 | BL20: -0.923489505 | BM20: 17
A21: 26.2 | B21: 25.6 | C21: 21 | D21: 24.2 | E21: 23.1 | F21: 30.2 | G21: 33.4 | H21: 24.8 | I21: 29.3 | J21: 15.8 | K21: 21.9 | L21: 1 | M21: Ene | N21: 1 | O21: 18 | P21: 33.4 | Q21: =+VLOOKUP(M21,'Ingreso Datos Generales'!$T$5:$Z$16,6,0) -> 20 | R21: =+VLOOKUP(M21,'Ingreso Datos Generales'!$T$5:$Z$16,7,0) -> 24 | S21: 0 | T21: 0 | U21: 1 | V21: =+IF(AND(L21<='Ingreso Datos Generales'!$D$9,O21>=$V$1,O21<=$V$2),1,0) -> 1 | W21: 0 | X21: 0 | Y21: 9.4 | Z21: =+IF(L21<=Dias_a_la_semana,('Ingreso Datos Energía'!$D$49)*V21,0) -> 3550 | AA21: =+(VLOOKUP(M21,'Ingreso Datos Energía'!$I$46:$K$57,2,0)+V21*IF(L21<=Dias_a_la_semana,VLOOKUP(M21,'Ingreso Datos Energía'!$I$46:$K$57,3,0),0)+W21*IF(L21<=Dias_a_la_semana,VLOOKUP(M21,'Ingreso Datos Energía'!$I$46:$K$57,3,0),0)) -> 1 | AB21: =+'Ingreso Datos Energía'!$U$36*(Datos!P21-Datos!AI20)+'Ingreso Datos Energía'!$U$38*('Ingreso Datos Energía'!$U$35-Datos!AI20) -> -7225.384907 | AC21: =+SUMIFS(Sol!$AO$31:$AO$186,Sol!$AP$31:$AP$186,Datos!M21,Sol!$AN$31:$AN$186,Datos!O21)*$AC$2 -> 1640.275 | AD21: -2035.109907 | AE21: =(((AD21/3)/(Tablas!$L$4*Tablas!$L$6*'Ingreso Datos Energía'!$U$17+Tablas!$CQ$18)+AI20)*1+(P20+(P21-P20)/3)*AA21/3)/(1+AA21/3) -> 32.61039107 | AF21: =+'Ingreso Datos Energía'!$U$36*(($P20+(P21-P20)/3)-$AE21)+'Ingreso Datos Energía'!$U$38*('Ingreso Datos Energía'!$U$35-$AE21)+$AC21+$Z21 -> -956.1815776 | AG21: =+(((AF21/3)/(Tablas!$L$4*Tablas!$L$6*'Ingreso Datos Energía'!$U$17+Tablas!$CQ$18)+AE21)*1+(P20+(P21-P20)*2/3)*AA21/3)/(1+AA21/3) -> 32.380131 | AH21: =+'Ingreso Datos Energía'!$U$36*(($P20+(P21-P20)*2/3)-$AG21)+'Ingreso Datos Energía'!$U$38*('Ingreso Datos Energía'!$U$35-$AG21)+$AC21+$Z21 -> -924.2765939 | AI21: =+(((AH21/3)/(Tablas!$L$4*Tablas!$L$6*'Ingreso Datos Energía'!$U$17+Tablas!$CQ$18)+AG21)*1+P21*AA21/3)/(1+AA21/3) -> 32.13309776 | AJ21: =+AD21++(-(Tablas!$L$4*Tablas!$L$6*'Ingreso Datos Energía'!$U$17+Tablas!$CQ$18)*P21*AA21/3+(Tablas!$L$4*Tablas!$L$6*'Ingreso Datos Energía'!$U$17+Tablas!$CQ$18)*AI20)/(1+AA21/3) -> 5712.779821 | AK21: =+IF(L21<='Ingreso Datos Generales'!$D$9,IF(AL21+AM21=0,1,0),0) -> 0 | AL21: =+IF(L21<='Ingreso Datos Generales'!$D$9,IF(AI21<Q21,1,0),0) -> 0 | AM21: =+IF(L21<='Ingreso Datos Generales'!$D$9,IF(AI21>R21,1,0),0) -> 1 | AN21: 0 | AO21: 8.133097765 | AP21: =+'Ingreso Datos Energía'!$U$36*(Datos!P21-Datos!BD20)+'Ingreso Datos Energía'!$U$38*('Ingreso Datos Energía'!$U$35-Datos!BD20) -> 445.4 | AQ21: =+AA21*Tablas!$L$4*Tablas!$L$6*'Ingreso Datos Energía'!$U$17*(Datos!P21-Datos!BD20) -> 1113.116667 | AR21: 6748.791667 | AS21: =+IF(((AR21/3)/(Tablas!$L$4*Tablas!$L$6*'Ingreso Datos Energía'!$U$17+Tablas!$CQ$18)+BD20)<P21,P21,((AR21/3)/(Tablas!$L$4*Tablas!$L$6*'Ingreso Datos Energía'!$U$17+Tablas!$CQ$18)+BD20)) -> 33.4 | AT21: 24 | AU21: =+'Ingreso Datos Energía'!$U$36*(($P21+(P22-P21)/3)-$AT21)+'Ingreso Datos Energía'!$U$38*('Ingreso Datos Energía'!$U$35-$AT21) -> 195.8 | AV21: =+AA21*Tablas!$L$4*Tablas!$L$6*'Ingreso Datos Energía'!$U$17*(($P21+(P22-P21)/3)-$AT21) -> 1042.066667 | AW21: 6428.141667 | AX21: =+IF(((AW21/3)/(Tablas!$L$4*Tablas!$L$6*'Ingreso Datos Energía'!$U$17+Tablas!$CQ$18)+AT21)<P21,P21,((AW21/3)/(Tablas!$L$4*Tablas!$L$6*'Ingreso Datos Energía'!$U$17+Tablas!$CQ$18)+AT21)) -> 33.4 | AY21: 24 | AZ21: =+'Ingreso Datos Energía'!$U$36*(($P21+(P22-P21)*2/3)-$AY21)+'Ingreso Datos Energía'!$U$38*('Ingreso Datos Energía'!$U$35-$AY21) -> -53.8 | BA21: =+AA21*Tablas!$L$4*Tablas!$L$6*'Ingreso Datos Energía'!$U$17*(($P21+(P22-P21)*2/3)-$AY21) -> 971.0166667 | BB21: 6107.491667 | BC21: =+((BB21/3)/(Tablas!$L$4*Tablas!$L$6*'Ingreso Datos Energía'!$U$17+Tablas!$CQ$18)+AY21) -> 28.42286617 | BD21: 24 | BE21: -6428.141667 | BF21: 0 | BG21: 6428.141667 | BH21: 1 | BI21: 0 | BJ21: 0 | BK21: 0 | BL21: -1.266902235 | BM21: 18
A22: 25.9 | B22: 24.4 | C22: 20.8 | D22: 23.9 | E22: 22.5 | F22: 28.4 | G22: 31.6 | H22: 23.7 | I22: 28.2 | J22: 15.3 | K22: 21 | L22: 1 | M22: Ene | N22: 1 | O22: 19 | P22: 31.6 | Q22: =+VLOOKUP(M22,'Ingreso Datos Generales'!$T$5:$Z$16,6,0) -> 20 | R22: =+VLOOKUP(M22,'Ingreso Datos Generales'!$T$5:$Z$16,7,0) -> 24 | S22: 0 | T22: 0 | U22: 1 | V22: =+IF(AND(L22<='Ingreso Datos Generales'!$D$9,O22>=$V$1,O22<=$V$2),1,0) -> 0 | W22: 0 | X22: 0 | Y22: 7.6 | Z22: =+IF(L22<=Dias_a_la_semana,('Ingreso Datos Energía'!$D$49)*V22,0) -> 0 | AA22: =+(VLOOKUP(M22,'Ingreso Datos Energía'!$I$46:$K$57,2,0)+V22*IF(L22<=Dias_a_la_semana,VLOOKUP(M22,'Ingreso Datos Energía'!$I$46:$K$57,3,0),0)+W22*IF(L22<=Dias_a_la_semana,VLOOKUP(M22,'Ingreso Datos Energía'!$I$46:$K$57,3,0),0)) -> 0.5 | AB22: =+'Ingreso Datos Energía'!$U$36*(Datos!P22-Datos!AI21)+'Ingreso Datos Energía'!$U$38*('Ingreso Datos Energía'!$U$35-Datos!AI21) -> -6818.011309 | AC22: =+SUMIFS(Sol!$AO$31:$AO$186,Sol!$AP$31:$AP$186,Datos!M22,Sol!$AN$31:$AN$186,Datos!O22)*$AC$2 -> 0 | AD22: -6818.011309 | AE22: =(((AD22/3)/(Tablas!$L$4*Tablas!$L$6*'Ingreso Datos Energía'!$U$17+Tablas!$CQ$18)+AI21)*1+(P21+(P22-P21)/3)*AA22/3)/(1+AA22/3) -> 27.99630925 | AF22: =+'Ingreso Datos Energía'!$U$36*(($P21+(P22-P21)/3)-$AE22)+'Ingreso Datos Energía'!$U$38*('Ingreso Datos Energía'!$U$35-$AE22)+$AC22+$Z22 -> -3005.24371 | AG22: =+(((AF22/3)/(Tablas!$L$4*Tablas!$L$6*'Ingreso Datos Energía'!$U$17+Tablas!$CQ$18)+AE22)*1+(P21+(P22-P21)*2/3)*AA22/3)/(1+AA22/3) -> 26.73142855 | AH22: =+'Ingreso Datos Energía'!$U$36*(($P21+(P22-P21)*2/3)-$AG22)+'Ingreso Datos Energía'!$U$38*('Ingreso Datos Energía'!$U$35-$AG22)+$AC22+$Z22 -> -2241.674272 | AI22: =+(((AH22/3)/(Tablas!$L$4*Tablas!$L$6*'Ingreso Datos Energía'!$U$17+Tablas!$CQ$18)+AG22)*1+P22*AA22/3)/(1+AA22/3) -> 26.03549187 | AJ22: =+AD22++(-(Tablas!$L$4*Tablas!$L$6*'Ingreso Datos Energía'!$U$17+Tablas!$CQ$18)*P22*AA22/3+(Tablas!$L$4*Tablas!$L$6*'Ingreso Datos Energía'!$U$17+Tablas!$CQ$18)*AI21)/(1+AA22/3) -> 3781.870416 | AK22: =+IF(L22<='Ingreso Datos Generales'!$D$9,IF(AL22+AM22=0,1,0),0) -> 0 | AL22: =+IF(L22<='Ingreso Datos Generales'!$D$9,IF(AI22<Q22,1,0),0) -> 0 | AM22: =+IF(L22<='Ingreso Datos Generales'!$D$9,IF(AI22>R22,1,0),0) -> 1 | AN22: 0 | AO22: 2.035491875 | AP22: =+'Ingreso Datos Energía'!$U$36*(Datos!P22-Datos!BD21)+'Ingreso Datos Energía'!$U$38*('Ingreso Datos Energía'!$U$35-Datos!BD21) -> -303.4 | AQ22: =+AA22*Tablas!$L$4*Tablas!$L$6*'Ingreso Datos Energía'!$U$17*(Datos!P22-Datos!BD21) -> 449.9833333 | AR22: 146.5833333 | AS22: =+IF(((AR22/3)/(Tablas!$L$4*Tablas!$L$6*'Ingreso Datos Energía'!$U$17+Tablas!$CQ$18)+BD21)<P22,P22,((AR22/3)/(Tablas!$L$4*Tablas!$L$6*'Ingreso Datos Energía'!$U$17+Tablas!$CQ$18)+BD21)) -> 31.6 | AT22: 31.6 | AU22: =+'Ingreso Datos Energía'!$U$36*(($P22+(P23-P22)/3)-$AT22)+'Ingreso Datos Energía'!$U$38*('Ingreso Datos Energía'!$U$35-$AT22) -> -6696.066667 | AV22: =+AA22*Tablas!$L$4*Tablas!$L$6*'Ingreso Datos Energía'!$U$17*(($P22+(P23-P22)/3)-$AT22) -> -43.41944444 | AW22: -6739.486111 | AX22: =+IF(((AW22/3)/(Tablas!$L$4*Tablas!$L$6*'Ingreso Datos Energía'!$U$17+Tablas!$CQ$18)+AT22)<P22,P22,((AW22/3)/(Tablas!$L$4*Tablas!$L$6*'Ingreso Datos Energía'!$U$17+Tablas!$CQ$18)+AT22)) -> 31.6 | AY22: 31.6 | AZ22: =+'Ingreso Datos Energía'!$U$36*(($P22+(P23-P22)*2/3)-$AY22)+'Ingreso Datos Energía'!$U$38*('Ingreso Datos Energía'!$U$35-$AY22) -> -7001.133333 | BA22: =+AA22*Tablas!$L$4*Tablas!$L$6*'Ingreso Datos Energía'!$U$17*(($P22+(P23-P22)*2/3)-$AY22) -> -86.83888889 | BB22: -7087.972222 | BC22: =+((BB22/3)/(Tablas!$L$4*Tablas!$L$6*'Ingreso Datos Energía'!$U$17+Tablas!$CQ$18)+AY22) -> 26.46709859 | BD22: 26.46709859 | BE22: 0 | BF22: 0 | BG22: -4560.291667 | BH22: 0 | BI22: 0 | BJ22: 0 | BK22: 0 | BL22: -5.564508125 | BM22: 19
A23: 25.4 | B23: 23.1 | C23: 20.5 | D23: 23.5 | E23: 21.6 | F23: 26.1 | G23: 29.4 | H23: 22.3 | I23: 26.7 | J23: 15 | K23: 19.7 | L23: 1 | M23: Ene | N23: 1 | O23: 20 | P23: 29.4 | Q23: =+VLOOKUP(M23,'Ingreso Datos Generales'!$T$5:$Z$16,6,0) -> 20 | R23: =+VLOOKUP(M23,'Ingreso Datos Generales'!$T$5:$Z$16,7,0) -> 24 | S23: 0 | T23: 0 | U23: 1 | V23: =+IF(AND(L23<='Ingreso Datos Generales'!$D$9,O23>=$V$1,O23<=$V$2),1,0) -> 0 | W23: 0 | X23: 0 | Y23: 5.4 | Z23: =+IF(L23<=Dias_a_la_semana,('Ingreso Datos Energía'!$D$49)*V23,0) -> 0 | AA23: =+(VLOOKUP(M23,'Ingreso Datos Energía'!$I$46:$K$57,2,0)+V23*IF(L23<=Dias_a_la_semana,VLOOKUP(M23,'Ingreso Datos Energía'!$I$46:$K$57,3,0),0)+W23*IF(L23<=Dias_a_la_semana,VLOOKUP(M23,'Ingreso Datos Energía'!$I$46:$K$57,3,0),0)) -> 0.5 | AB23: =+'Ingreso Datos Energía'!$U$36*(Datos!P23-Datos!AI22)+'Ingreso Datos Energía'!$U$38*('Ingreso Datos Energía'!$U$35-Datos!AI22) -> -2849.028992 | AC23: =+SUMIFS(Sol!$AO$31:$AO$186,Sol!$AP$31:$AP$186,Datos!M23,Sol!$AN$31:$AN$186,Datos!O23)*$AC$2 -> 0 | AD23: -2849.028992 | AE23: =(((AD23/3)/(Tablas!$L$4*Tablas!$L$6*'Ingreso Datos Energía'!$U$17+Tablas!$CQ$18)+AI22)*1+(P22+(P23-P22)/3)*AA23/3)/(1+AA23/3) -> 24.95721699 | AF23: =+'Ingreso Datos Energía'!$U$36*(($P22+(P23-P22)/3)-$AE23)+'Ingreso Datos Energía'!$U$38*('Ingreso Datos Energía'!$U$35-$AE23)+$AC23+$Z23 -> -1375.19748 | AG23: =+(((AF23/3)/(Tablas!$L$4*Tablas!$L$6*'Ingreso Datos Energía'!$U$17+Tablas!$CQ$18)+AE23)*1+(P22+(P23-P22)*2/3)*AA23/3)/(1+AA23/3) -> 24.84305278 | AH23: =+'Ingreso Datos Energía'!$U$36*(($P22+(P23-P22)*2/3)-$AG23)+'Ingreso Datos Energía'!$U$38*('Ingreso Datos Energía'!$U$35-$AG23)+$AC23+$Z23 -> -1588.818608 | AI23: =+(((AH23/3)/(Tablas!$L$4*Tablas!$L$6*'Ingreso Datos Energía'!$U$17+Tablas!$CQ$18)+AG23)*1+P23*AA23/3)/(1+AA23/3) -> 24.50783741 | AJ23: =+AD23++(-(Tablas!$L$4*Tablas!$L$6*'Ingreso Datos Energía'!$U$17+Tablas!$CQ$18)*P23*AA23/3+(Tablas!$L$4*Tablas!$L$6*'Ingreso Datos Energía'!$U$17+Tablas!$CQ$18)*AI22)/(1+AA23/3) -> 5489.767973 | AK23: =+IF(L23<='Ingreso Datos Generales'!$D$9,IF(AL23+AM23=0,1,0),0) -> 0 | AL23: =+IF(L23<='Ingreso Datos Generales'!$D$9,IF(AI23<Q23,1,0),0) -> 0 | AM23: =+IF(L23<='Ingreso Datos Generales'!$D$9,IF(AI23>R23,1,0),0) -> 1 | AN23: 0 | AO23: 0.5078374143 | AP23: =+'Ingreso Datos Energía'!$U$36*(Datos!P23-Datos!BD22)+'Ingreso Datos Energía'!$U$38*('Ingreso Datos Energía'!$U$35-Datos!BD22) -> -3194.745974 | AQ23: =+AA23*Tablas!$L$4*Tablas!$L$6*'Ingreso Datos Energía'!$U$17*(Datos!P23-Datos!BD22) -> 173.6522041 | AR23: -3021.09377 | AS23: =+IF(((AR23/3)/(Tablas!$L$4*Tablas!$L$6*'Ingreso Datos Energía'!$U$17+Tablas!$CQ$18)+BD22)<P23,P23,((AR23/3)/(Tablas!$L$4*Tablas!$L$6*'Ingreso Datos Energía'!$U$17+Tablas!$CQ$18)+BD22)) -> 29.4 | AT23: 29.4 | AU23: =+'Ingreso Datos Energía'!$U$36*(($P23+(P24-P23)/3)-$AT23)+'Ingreso Datos Energía'!$U$38*('Ingreso Datos Energía'!$U$35-$AT23) -> -5738.133333 | AV23: =+AA23*Tablas!$L$4*Tablas!$L$6*'Ingreso Datos Energía'!$U$17*(($P23+(P24-P23)/3)-$AT23) -> -27.63055556 | AW23: -5765.763889 | AX23: =+IF(((AW23/3)/(Tablas!$L$4*Tablas!$L$6*'Ingreso Datos Energía'!$U$17+Tablas!$CQ$18)+AT23)<P23,P23,((AW23/3)/(Tablas!$L$4*Tablas!$L$6*'Ingreso Datos Energía'!$U$17+Tablas!$CQ$18)+AT23)) -> 29.4 | AY23: 29.4 | AZ23: =+'Ingreso Datos Energía'!$U$36*(($P23+(P24-P23)*2/3)-$AY23)+'Ingreso Datos Energía'!$U$38*('Ingreso Datos Energía'!$U$35-$AY23) -> -5932.266667 | BA23: =+AA23*Tablas!$L$4*Tablas!$L$6*'Ingreso Datos Energía'!$U$17*(($P23+(P24-P23)*2/3)-$AY23) -> -55.26111111 | BB23: -5987.527778 | BC23: =+((BB23/3)/(Tablas!$L$4*Tablas!$L$6*'Ingreso Datos Energía'!$U$17+Tablas!$CQ$18)+AY23) -> 25.06400816 | BD23: 25.06400816 | BE23: 0 | BF23: 0 | BG23: -4924.795146 | BH23: 0 | BI23: 0 | BJ23: 0 | BK23: 0 | BL23: -4.892162586 | BM23: 20
A24: 24.9 | B24: 21.7 | C24: 20.2 | D24: 22.9 | E24: 21 | F24: 24.2 | G24: 28 | H24: 21.2 | I24: 25.1 | J24: 14.5 | K24: 18.2 | L24: 1 | M24: Ene | N24: 1 | O24: 21 | P24: 28 | Q24: =+VLOOKUP(M24,'Ingreso Datos Generales'!$T$5:$Z$16,6,0) -> 20 | R24: =+VLOOKUP(M24,'Ingreso Datos Generales'!$T$5:$Z$16,7,0) -> 24 | S24: 0 | T24: 0 | U24: 1 | V24: =+IF(AND(L24<='Ingreso Datos Generales'!$D$9,O24>=$V$1,O24<=$V$2),1,0) -> 0 | W24: 0 | X24: 0 | Y24: 4 | Z24: =+IF(L24<=Dias_a_la_semana,('Ingreso Datos Energía'!$D$49)*V24,0) -> 0 | AA24: =+(VLOOKUP(M24,'Ingreso Datos Energía'!$I$46:$K$57,2,0)+V24*IF(L24<=Dias_a_la_semana,VLOOKUP(M24,'Ingreso Datos Energía'!$I$46:$K$57,3,0),0)+W24*IF(L24<=Dias_a_la_semana,VLOOKUP(M24,'Ingreso Datos Energía'!$I$46:$K$57,3,0),0)) -> 0.5 | AB24: =+'Ingreso Datos Energía'!$U$36*(Datos!P24-Datos!AI23)+'Ingreso Datos Energía'!$U$38*('Ingreso Datos Energía'!$U$35-Datos!AI23) -> -2207.777769 | AC24: =+SUMIFS(Sol!$AO$31:$AO$186,Sol!$AP$31:$AP$186,Datos!M24,Sol!$AN$31:$AN$186,Datos!O24)*$AC$2 -> 0 | AD24: =+SUM(Z24,AB24:AC24)*$AD$2 -> -2207.777769 | AE24: =(((AD24/3)/(Tablas!$L$4*Tablas!$L$6*'Ingreso Datos Energía'!$U$17+Tablas!$CQ$18)+AI23)*1+(P23+(P24-P23)/3)*AA24/3)/(1+AA24/3) -> 23.76964439 | AF24: =+'Ingreso Datos Energía'!$U$36*(($P23+(P24-P23)/3)-$AE24)+'Ingreso Datos Energía'!$U$38*('Ingreso Datos Energía'!$U$35-$AE24)+$AC24+$Z24 -> -1228.21849 | AG24: =+(((AF24/3)/(Tablas!$L$4*Tablas!$L$6*'Ingreso Datos Energía'!$U$17+Tablas!$CQ$18)+AE24)*1+(P23+(P24-P23)*2/3)*AA24/3)/(1+AA24/3) -> 23.67827062 | AH24: =+'Ingreso Datos Energía'!$U$36*(($P23+(P24-P23)*2/3)-$AG24)+'Ingreso Datos Energía'!$U$38*('Ingreso Datos Energía'!$U$35-$AG24)+$AC24+$Z24 -> -1349.161436 | AI24: =+(((AH24/3)/(Tablas!$L$4*Tablas!$L$6*'Ingreso Datos Energía'!$U$17+Tablas!$CQ$18)+AG24)*1+P24*AA24/3)/(1+AA24/3) -> 23.45821216 | AJ24: =+AD24++(-(Tablas!$L$4*Tablas!$L$6*'Ingreso Datos Energía'!$U$17+Tablas!$CQ$18)*P24*AA24/3+(Tablas!$L$4*Tablas!$L$6*'Ingreso Datos Energía'!$U$17+Tablas!$CQ$18)*AI23)/(1+AA24/3) -> 5620.357738 | AK24: =+IF(L24<='Ingreso Datos Generales'!$D$9,IF(AL24+AM24=0,1,0),0) -> 1 | AL24: =+IF(L24<='Ingreso Datos Generales'!$D$9,IF(AI24<Q24,1,0),0) -> 0 | AM24: =+IF(L24<='Ingreso Datos Generales'!$D$9,IF(AI24>R24,1,0),0) -> 0 | AN24: =+IF(AL24=1,Q24-AI24,0) -> 0 | AO24: =+IF(AM24=1,AI24-R24,0) -> 0 | AP24: =+'Ingreso Datos Energía'!$U$36*(Datos!P24-Datos!BD23)+'Ingreso Datos Energía'!$U$38*('Ingreso Datos Energía'!$U$35-Datos!BD23) -> -2653.270533 | AQ24: =+AA24*Tablas!$L$4*Tablas!$L$6*'Ingreso Datos Energía'!$U$17*(Datos!P24-Datos!BD23) -> 173.8351838 | AR24: -2479.435349 | AS24: =+IF(((AR24/3)/(Tablas!$L$4*Tablas!$L$6*'Ingreso Datos Energía'!$U$17+Tablas!$CQ$18)+BD23)<P24,P24,((AR24/3)/(Tablas!$L$4*Tablas!$L$6*'Ingreso Datos Energía'!$U$17+Tablas!$CQ$18)+BD23)) -> 28 | AT24: 28 | AU24: =+'Ingreso Datos Energía'!$U$36*(($P24+(P25-P24)/3)-$AT24)+'Ingreso Datos Energía'!$U$38*('Ingreso Datos Energía'!$U$35-$AT24) -> -5199.133333 | AV24: =+AA24*Tablas!$L$4*Tablas!$L$6*'Ingreso Datos Energía'!$U$17*(($P24+(P25-P24)/3)-$AT24) -> -27.63055556 | AW24: -5226.763889 | AX24: =+IF(((AW24/3)/(Tablas!$L$4*Tablas!$L$6*'Ingreso Datos Energía'!$U$17+Tablas!$CQ$18)+AT24)<P24,P24,((AW24/3)/(Tablas!$L$4*Tablas!$L$6*'Ingreso Datos Energía'!$U$17+Tablas!$CQ$18)+AT24)) -> 28 | AY24: 28 | AZ24: =+'Ingreso Datos Energía'!$U$36*(($P24+(P25-P24)*2/3)-$AY24)+'Ingreso Datos Energía'!$U$38*('Ingreso Datos Energía'!$U$35-$AY24) -> -5393.266667 | BA24: =+AA24*Tablas!$L$4*Tablas!$L$6*'Ingreso Datos Energía'!$U$17*(($P24+(P25-P24)*2/3)-$AY24) -> -55.26111111 | BB24: -5448.527778 | BC24: =+((BB24/3)/(Tablas!$L$4*Tablas!$L$6*'Ingreso Datos Energía'!$U$17+Tablas!$CQ$18)+AY24) -> 24.05433613 | BD24: 24.05433613 | BE24: 0 | BF24: 0 | BG24: -4384.909005 | BH24: 0 | BI24: 0 | BJ24: 0 | BK24: 0 | BL24: -4.541787842 | BM24: 21
A25: 24.4 | B25: 20.3 | C25: 19.8 | D25: 22.4 | E25: 20.4 | F25: 22.3 | G25: 26.6 | H25: 20.1 | I25: 23.5 | J25: 13.3 | K25: 16.8 | L25: 1 | M25: Ene | N25: 1 | O25: 22 | P25: 26.6 | Q25: =+VLOOKUP(M25,'Ingreso Datos Generales'!$T$5:$Z$16,6,0) -> 20 | R25: =+VLOOKUP(M25,'Ingreso Datos Generales'!$T$5:$Z$16,7,0) -> 24 | S25: 0 | T25: 0 | U25: 1 | V25: =+IF(AND(L25<='Ingreso Datos Generales'!$D$9,O25>=$V$1,O25<=$V$2),1,0) -> 0 | W25: 0 | X25: 0 | Y25: 2.6 | Z25: =+IF(L25<=Dias_a_la_semana,('Ingreso Datos Energía'!$D$49)*V25,0) -> 0 | AA25: =+(VLOOKUP(M25,'Ingreso Datos Energía'!$I$46:$K$57,2,0)+V25*IF(L25<=Dias_a_la_semana,VLOOKUP(M25,'Ingreso Datos Energía'!$I$46:$K$57,3,0),0)+W25*IF(L25<=Dias_a_la_semana,VLOOKUP(M25,'Ingreso Datos Energía'!$I$46:$K$57,3,0),0)) -> 0.5 | AB25: =+'Ingreso Datos Energía'!$U$36*(Datos!P25-Datos!AI24)+'Ingreso Datos Energía'!$U$38*('Ingreso Datos Energía'!$U$35-Datos!AI24) -> -1949.427939 | AC25: =+SUMIFS(Sol!$AO$31:$AO$186,Sol!$AP$31:$AP$186,Datos!M25,Sol!$AN$31:$AN$186,Datos!O25)*$AC$2 -> 0 | AD25: -1949.427939 | AE25: =(((AD25/3)/(Tablas!$L$4*Tablas!$L$6*'Ingreso Datos Energía'!$U$17+Tablas!$CQ$18)+AI24)*1+(P24+(P25-P24)/3)*AA25/3)/(1+AA25/3) -> 22.83032791 | AF25: =+'Ingreso Datos Energía'!$U$36*(($P24+(P25-P24)/3)-$AE25)+'Ingreso Datos Energía'!$U$38*('Ingreso Datos Energía'!$U$35-$AE25)+$AC25+$Z25 -> -1058.22599 | AG25: =+(((AF25/3)/(Tablas!$L$4*Tablas!$L$6*'Ingreso Datos Energía'!$U$17+Tablas!$CQ$18)+AE25)*1+(P24+(P25-P24)*2/3)*AA25/3)/(1+AA25/3) -> 22.77865956 | AH25: =+'Ingreso Datos Energía'!$U$36*(($P24+(P25-P24)*2/3)-$AG25)+'Ingreso Datos Energía'!$U$38*('Ingreso Datos Energía'!$U$35-$AG25)+$AC25+$Z25 -> -1210.972978 | AI25: =+(((AH25/3)/(Tablas!$L$4*Tablas!$L$6*'Ingreso Datos Energía'!$U$17+Tablas!$CQ$18)+AG25)*1+P25*AA25/3)/(1+AA25/3) -> 22.57289299 | AJ25: =+AD25++(-(Tablas!$L$4*Tablas!$L$6*'Ingreso Datos Energía'!$U$17+Tablas!$CQ$18)*P25*AA25/3+(Tablas!$L$4*Tablas!$L$6*'Ingreso Datos Energía'!$U$17+Tablas!$CQ$18)*AI24)/(1+AA25/3) -> 5556.647753 | AK25: =+IF(L25<='Ingreso Datos Generales'!$D$9,IF(AL25+AM25=0,1,0),0) -> 1 | AL25: =+IF(L25<='Ingreso Datos Generales'!$D$9,IF(AI25<Q25,1,0),0) -> 0 | AM25: =+IF(L25<='Ingreso Datos Generales'!$D$9,IF(AI25>R25,1,0),0) -> 0 | AN25: 0 | AO25: 0 | AP25: =+'Ingreso Datos Energía'!$U$36*(Datos!P25-Datos!BD24)+'Ingreso Datos Energía'!$U$38*('Ingreso Datos Energía'!$U$35-Datos!BD24) -> -2426.923242 | AQ25: =+AA25*Tablas!$L$4*Tablas!$L$6*'Ingreso Datos Energía'!$U$17*(Datos!P25-Datos!BD24) -> 150.7245148 | AR25: -2276.198727 | AS25: =+IF(((AR25/3)/(Tablas!$L$4*Tablas!$L$6*'Ingreso Datos Energía'!$U$17+Tablas!$CQ$18)+BD24)<P25,P25,((AR25/3)/(Tablas!$L$4*Tablas!$L$6*'Ingreso Datos Energía'!$U$17+Tablas!$CQ$18)+BD24)) -> 26.6 | AT25: 26.6 | AU25: =+'Ingreso Datos Energía'!$U$36*(($P25+(P26-P25)/3)-$AT25)+'Ingreso Datos Energía'!$U$38*('Ingreso Datos Energía'!$U$35-$AT25) -> -4660.133333 | AV25: =+AA25*Tablas!$L$4*Tablas!$L$6*'Ingreso Datos Energía'!$U$17*(($P25+(P26-P25)/3)-$AT25) -> -27.63055556 | AW25: -4687.763889 | AX25: =+IF(((AW25/3)/(Tablas!$L$4*Tablas!$L$6*'Ingreso Datos Energía'!$U$17+Tablas!$CQ$18)+AT25)<P25,P25,((AW25/3)/(Tablas!$L$4*Tablas!$L$6*'Ingreso Datos Energía'!$U$17+Tablas!$CQ$18)+AT25)) -> 26.6 | AY25: 26.6 | AZ25: =+'Ingreso Datos Energía'!$U$36*(($P25+(P26-P25)*2/3)-$AY25)+'Ingreso Datos Energía'!$U$38*('Ingreso Datos Energía'!$U$35-$AY25) -> -4854.266667 | BA25: =+AA25*Tablas!$L$4*Tablas!$L$6*'Ingreso Datos Energía'!$U$17*(($P25+(P26-P25)*2/3)-$AY25) -> -55.26111111 | BB25: -4909.527778 | BC25: =+((BB25/3)/(Tablas!$L$4*Tablas!$L$6*'Ingreso Datos Energía'!$U$17+Tablas!$CQ$18)+AY25) -> 23.04466411 | BD25: 23.04466411 | BE25: 0 | BF25: 0 | BG25: -3957.830131 | BH25: 0 | BI25: 0 | BJ25: 0 | BK25: 0 | BL25: -4.027107014 | BM25: 22
A26: 23.9 | B26: 19 | C26: 19.5 | D26: 21.8 | E26: 19.9 | F26: 20.4 | G26: 25.2 | H26: 18.9 | I26: 21.9 | J26: 12.1 | K26: 15.4 | L26: 1 | M26: Ene | N26: 1 | O26: 23 | P26: 25.2 | Q26: =+VLOOKUP(M26,'Ingreso Datos Generales'!$T$5:$Z$16,6,0) -> 20 | R26: =+VLOOKUP(M26,'Ingreso Datos Generales'!$T$5:$Z$16,7,0) -> 24 | S26: 0 | T26: 0 | U26: 1 | V26: =+IF(AND(L26<='Ingreso Datos Generales'!$D$9,O26>=$V$1,O26<=$V$2),1,0) -> 0 | W26: 0 | X26: 0 | Y26: 1.2 | Z26: =+IF(L26<=Dias_a_la_semana,('Ingreso Datos Energía'!$D$49)*V26,0) -> 0 | AA26: =+(VLOOKUP(M26,'Ingreso Datos Energía'!$I$46:$K$57,2,0)+V26*IF(L26<=Dias_a_la_semana,VLOOKUP(M26,'Ingreso Datos Energía'!$I$46:$K$57,3,0),0)+W26*IF(L26<=Dias_a_la_semana,VLOOKUP(M26,'Ingreso Datos Energía'!$I$46:$K$57,3,0),0)) -> 0.5 | AB26: =+'Ingreso Datos Energía'!$U$36*(Datos!P26-Datos!AI25)+'Ingreso Datos Energía'!$U$38*('Ingreso Datos Energía'!$U$35-Datos!AI25) -> -1822.687282 | AC26: =+SUMIFS(Sol!$AO$31:$AO$186,Sol!$AP$31:$AP$186,Datos!M26,Sol!$AN$31:$AN$186,Datos!O26)*$AC$2 -> 0 | AD26: -1822.687282 | AE26: =(((AD26/3)/(Tablas!$L$4*Tablas!$L$6*'Ingreso Datos Energía'!$U$17+Tablas!$CQ$18)+AI25)*1+(P25+(P26-P25)/3)*AA26/3)/(1+AA26/3) -> 21.95015307 | AF26: =+'Ingreso Datos Energía'!$U$36*(($P25+(P26-P25)/3)-$AE26)+'Ingreso Datos Energía'!$U$38*('Ingreso Datos Energía'!$U$35-$AE26)+$AC26+$Z26 -> -935.6059457 | AG26: =+(((AF26/3)/(Tablas!$L$4*Tablas!$L$6*'Ingreso Datos Energía'!$U$17+Tablas!$CQ$18)+AE26)*1+(P25+(P26-P25)*2/3)*AA26/3)/(1+AA26/3) -> 21.90033642 | AH26: =+'Ingreso Datos Energía'!$U$36*(($P25+(P26-P25)*2/3)-$AG26)+'Ingreso Datos Energía'!$U$38*('Ingreso Datos Energía'!$U$35-$AG26)+$AC26+$Z26 -> -1089.83614 | AI26: =+(((AH26/3)/(Tablas!$L$4*Tablas!$L$6*'Ingreso Datos Energía'!$U$17+Tablas!$CQ$18)+AG26)*1+P26*AA26/3)/(1+AA26/3) -> 21.69523636 | AJ26: =+AD26++(-(Tablas!$L$4*Tablas!$L$6*'Ingreso Datos Energía'!$U$17+Tablas!$CQ$18)*P26*AA26/3+(Tablas!$L$4*Tablas!$L$6*'Ingreso Datos Energía'!$U$17+Tablas!$CQ$18)*AI25)/(1+AA26/3) -> 5426.153917 | AK26: =+IF(L26<='Ingreso Datos Generales'!$D$9,IF(AL26+AM26=0,1,0),0) -> 1 | AL26: =+IF(L26<='Ingreso Datos Generales'!$D$9,IF(AI26<Q26,1,0),0) -> 0 | AM26: =+IF(L26<='Ingreso Datos Generales'!$D$9,IF(AI26>R26,1,0),0) -> 0 | AN26: 0 | AO26: 0 | AP26: =+'Ingreso Datos Energía'!$U$36*(Datos!P26-Datos!BD25)+'Ingreso Datos Energía'!$U$38*('Ingreso Datos Energía'!$U$35-Datos!BD25) -> -2200.575952 | AQ26: =+AA26*Tablas!$L$4*Tablas!$L$6*'Ingreso Datos Energía'!$U$17*(Datos!P26-Datos!BD25) -> 127.6138458 | AR26: -2072.962106 | AS26: =+IF(((AR26/3)/(Tablas!$L$4*Tablas!$L$6*'Ingreso Datos Energía'!$U$17+Tablas!$CQ$18)+BD25)<P26,P26,((AR26/3)/(Tablas!$L$4*Tablas!$L$6*'Ingreso Datos Energía'!$U$17+Tablas!$CQ$18)+BD25)) -> 25.2 | AT26: 25.2 | AU26: =+'Ingreso Datos Energía'!$U$36*(($P26+(P27-P26)/3)-$AT26)+'Ingreso Datos Energía'!$U$38*('Ingreso Datos Energía'!$U$35-$AT26) -> -4107.266667 | AV26: =+AA26*Tablas!$L$4*Tablas!$L$6*'Ingreso Datos Energía'!$U$17*(($P26+(P27-P26)/3)-$AT26) -> -25.65694444 | AW26: -4132.923611 | AX26: =+IF(((AW26/3)/(Tablas!$L$4*Tablas!$L$6*'Ingreso Datos Energía'!$U$17+Tablas!$CQ$18)+AT26)<P26,P26,((AW26/3)/(Tablas!$L$4*Tablas!$L$6*'Ingreso Datos Energía'!$U$17+Tablas!$CQ$18)+AT26)) -> 25.2 | AY26: 25.2 | AZ26: =+'Ingreso Datos Energía'!$U$36*(($P26+(P27-P26)*2/3)-$AY26)+'Ingreso Datos Energía'!$U$38*('Ingreso Datos Energía'!$U$35-$AY26) -> -4287.533333 | BA26: =+AA26*Tablas!$L$4*Tablas!$L$6*'Ingreso Datos Energía'!$U$17*(($P26+(P27-P26)*2/3)-$AY26) -> -51.31388889 | BB26: -4338.847222 | BC26: =+((BB26/3)/(Tablas!$L$4*Tablas!$L$6*'Ingreso Datos Energía'!$U$17+Tablas!$CQ$18)+AY26) -> 22.05793421 | BD26: 22.05793421 | BE26: 0 | BF26: 0 | BG26: -3514.91098 | BH26: 0 | BI26: 0 | BJ26: 0 | BK26: 0 | BL26: -3.504763644 | BM26: 23
A27: 23.4 | B27: 17.6 | C27: 19.2 | D27: 21.3 | E27: 19.3 | F27: 18.5 | G27: 23.9 | H27: 17.8 | I27: 20.3 | J27: 10.9 | K27: 13.9 | L27: 1 | M27: Ene | N27: 1 | O27: 24 | P27: 23.9 | Q27: =+VLOOKUP(M27,'Ingreso Datos Generales'!$T$5:$Z$16,6,0) -> 20 | R27: =+VLOOKUP(M27,'Ingreso Datos Generales'!$T$5:$Z$16,7,0) -> 24 | S27: 1 | T27: 0 | U27: 0 | V27: =+IF(AND(L27<='Ingreso Datos Generales'!$D$9,O27>=$V$1,O27<=$V$2),1,0) -> 0 | W27: 0 | X27: 0 | Y27: 0 | Z27: =+IF(L27<=Dias_a_la_semana,('Ingreso Datos Energía'!$D$49)*V27,0) -> 0 | AA27: =+(VLOOKUP(M27,'Ingreso Datos Energía'!$I$46:$K$57,2,0)+V27*IF(L27<=Dias_a_la_semana,VLOOKUP(M27,'Ingreso Datos Energía'!$I$46:$K$57,3,0),0)+W27*IF(L27<=Dias_a_la_semana,VLOOKUP(M27,'Ingreso Datos Energía'!$I$46:$K$57,3,0),0)) -> 0.5 | AB27: =+'Ingreso Datos Energía'!$U$36*(Datos!P27-Datos!AI26)+'Ingreso Datos Energía'!$U$38*('Ingreso Datos Energía'!$U$35-Datos!AI26) -> -1660.484322 | AC27: =+SUMIFS(Sol!$AO$31:$AO$186,Sol!$AP$31:$AP$186,Datos!M27,Sol!$AN$31:$AN$186,Datos!O27)*$AC$2 -> 0 | AD27: -1660.484322 | AE27: =(((AD27/3)/(Tablas!$L$4*Tablas!$L$6*'Ingreso Datos Energía'!$U$17+Tablas!$CQ$18)+AI26)*1+(P26+(P27-P26)/3)*AA27/3)/(1+AA27/3) -> 21.10332012 | AF27: =+'Ingreso Datos Energía'!$U$36*(($P26+(P27-P26)/3)-$AE27)+'Ingreso Datos Energía'!$U$38*('Ingreso Datos Energía'!$U$35-$AE27)+$AC27+$Z27 -> -825.826079 | AG27: =+(((AF27/3)/(Tablas!$L$4*Tablas!$L$6*'Ingreso Datos Energía'!$U$17+Tablas!$CQ$18)+AE27)*1+(P26+(P27-P26)*2/3)*AA27/3)/(1+AA27/3) -> 21.05214572 | AH27: =+'Ingreso Datos Energía'!$U$36*(($P26+(P27-P26)*2/3)-$AG27)+'Ingreso Datos Energía'!$U$38*('Ingreso Datos Energía'!$U$35-$AG27)+$AC27+$Z27 -> -965.1020512 | AI27: =+(((AH27/3)/(Tablas!$L$4*Tablas!$L$6*'Ingreso Datos Energía'!$U$17+Tablas!$CQ$18)+AG27)*1+P27*AA27/3)/(1+AA27/3) -> 20.85992612 | AJ27: =+AD27++(-(Tablas!$L$4*Tablas!$L$6*'Ingreso Datos Energía'!$U$17+Tablas!$CQ$18)*P27*AA27/3+(Tablas!$L$4*Tablas!$L$6*'Ingreso Datos Energía'!$U$17+Tablas!$CQ$18)*AI26)/(1+AA27/3) -> 5327.569897 | AK27: =+IF(L27<='Ingreso Datos Generales'!$D$9,IF(AL27+AM27=0,1,0),0) -> 1 | AL27: =+IF(L27<='Ingreso Datos Generales'!$D$9,IF(AI27<Q27,1,0),0) -> 0 | AM27: =+IF(L27<='Ingreso Datos Generales'!$D$9,IF(AI27>R27,1,0),0) -> 0 | AN27: 0 | AO27: 0 | AP27: =+'Ingreso Datos Energía'!$U$36*(Datos!P27-Datos!BD26)+'Ingreso Datos Energía'!$U$38*('Ingreso Datos Energía'!$U$35-Datos!BD26) -> -1951.005306 | AQ27: =+AA27*Tablas!$L$4*Tablas!$L$6*'Ingreso Datos Energía'!$U$17*(Datos!P27-Datos!BD26) -> 109.065645 | AR27: -1841.939661 | AS27: =+IF(((AR27/3)/(Tablas!$L$4*Tablas!$L$6*'Ingreso Datos Energía'!$U$17+Tablas!$CQ$18)+BD26)<P27,P27,((AR27/3)/(Tablas!$L$4*Tablas!$L$6*'Ingreso Datos Energía'!$U$17+Tablas!$CQ$18)+BD26)) -> 23.9 | AT27: 23.9 | AU27: =+'Ingreso Datos Energía'!$U$36*(($P27+(P28-P27)/3)-$AT27)+'Ingreso Datos Energía'!$U$38*('Ingreso Datos Energía'!$U$35-$AT27) -> -3620.633333 | AV27: =+AA27*Tablas!$L$4*Tablas!$L$6*'Ingreso Datos Energía'!$U$17*(($P27+(P28-P27)/3)-$AT27) -> -27.63055556 | AW27: -3648.263889 | AX27: =+IF(((AW27/3)/(Tablas!$L$4*Tablas!$L$6*'Ingreso Datos Energía'!$U$17+Tablas!$CQ$18)+AT27)<P27,P27,((AW27/3)/(Tablas!$L$4*Tablas!$L$6*'Ingreso Datos Energía'!$U$17+Tablas!$CQ$18)+AT27)) -> 23.9 | AY27: 23.9 | AZ27: =+'Ingreso Datos Energía'!$U$36*(($P27+(P28-P27)*2/3)-$AY27)+'Ingreso Datos Energía'!$U$38*('Ingreso Datos Energía'!$U$35-$AY27) -> -3814.766667 | BA27: =+AA27*Tablas!$L$4*Tablas!$L$6*'Ingreso Datos Energía'!$U$17*(($P27+(P28-P27)*2/3)-$AY27) -> -55.26111111 | BB27: -3870.027778 | BC27: =+((BB27/3)/(Tablas!$L$4*Tablas!$L$6*'Ingreso Datos Energía'!$U$17+Tablas!$CQ$18)+AY27) -> 21.09743949 | BD27: 21.09743949 | BE27: 0 | BF27: 0 | BG27: -3120.077109 | BH27: 0 | BI27: 0 | BJ27: 0 | BK27: 0 | BL27: -3.040073879 | BM27: 24
A28: 22.8 | B28: 16.5 | C28: 18.9 | D28: 20.7 | E28: 18.6 | F28: 16.2 | G28: 22.5 | H28: 17 | I28: 18.7 | J28: 10.1 | K28: 12.6 | L28: 2 | M28: Ene | N28: 2 | O28: 1 | P28: 22.5 | Q28: =+VLOOKUP(M28,'Ingreso Datos Generales'!$T$5:$Z$16,6,0) -> 20 | R28: =+VLOOKUP(M28,'Ingreso Datos Generales'!$T$5:$Z$16,7,0) -> 24 | S28: 1 | T28: 0 | U28: 0 | V28: =+IF(AND(L28<='Ingreso Datos Generales'!$D$9,O28>=$V$1,O28<=$V$2),1,0) -> 0 | W28: 0 | X28: 0 | Y28: 0 | Z28: =+IF(L28<=Dias_a_la_semana,('Ingreso Datos Energía'!$D$49)*V28,0) -> 0 | AA28: =+(VLOOKUP(M28,'Ingreso Datos Energía'!$I$46:$K$57,2,0)+V28*IF(L28<=Dias_a_la_semana,VLOOKUP(M28,'Ingreso Datos Energía'!$I$46:$K$57,3,0),0)+W28*IF(L28<=Dias_a_la_semana,VLOOKUP(M28,'Ingreso Datos Energía'!$I$46:$K$57,3,0),0)) -> 0.5 | AB28: =+'Ingreso Datos Energía'!$U$36*(Datos!P28-Datos!AI27)+'Ingreso Datos Energía'!$U$38*('Ingreso Datos Energía'!$U$35-Datos!AI27) -> -1573.800823 | AC28: =+SUMIFS(Sol!$AO$31:$AO$186,Sol!$AP$31:$AP$186,Datos!M28,Sol!$AN$31:$AN$186,Datos!O28)*$AC$2 -> 0 | AD28: -1573.800823 | AE28: =(((AD28/3)/(Tablas!$L$4*Tablas!$L$6*'Ingreso Datos Energía'!$U$17+Tablas!$CQ$18)+AI27)*1+(P27+(P28-P27)/3)*AA28/3)/(1+AA28/3) -> 20.2506697 | AF28: =+'Ingreso Datos Energía'!$U$36*(($P27+(P28-P27)/3)-$AE28)+'Ingreso Datos Energía'!$U$38*('Ingreso Datos Energía'!$U$35-$AE28)+$AC28+$Z28 -> -697.5197667 | AG28: =+(((AF28/3)/(Tablas!$L$4*Tablas!$L$6*'Ingreso Datos Energía'!$U$17+Tablas!$CQ$18)+AE28)*1+(P27+(P28-P27)*2/3)*AA28/3)/(1+AA28/3) -> 20.20570641 | AH28: =+'Ingreso Datos Energía'!$U$36*(($P27+(P28-P27)*2/3)-$AG28)+'Ingreso Datos Energía'!$U$38*('Ingreso Datos Energía'!$U$35-$AG28)+$AC28+$Z28 -> -855.6375004 | AI28: =+(((AH28/3)/(Tablas!$L$4*Tablas!$L$6*'Ingreso Datos Energía'!$U$17+Tablas!$CQ$18)+AG28)*1+P28*AA28/3)/(1+AA28/3) -> 20.0023533 | AJ28: =+AD28++(-(Tablas!$L$4*Tablas!$L$6*'Ingreso Datos Energía'!$U$17+Tablas!$CQ$18)*P28*AA28/3+(Tablas!$L$4*Tablas!$L$6*'Ingreso Datos Energía'!$U$17+Tablas!$CQ$18)*AI27)/(1+AA28/3) -> 5176.749429 | AK28: =+IF(L28<='Ingreso Datos Generales'!$D$9,IF(AL28+AM28=0,1,0),0) -> 1 | AL28: =+IF(L28<='Ingreso Datos Generales'!$D$9,IF(AI28<Q28,1,0),0) -> 0 | AM28: =+IF(L28<='Ingreso Datos Generales'!$D$9,IF(AI28>R28,1,0),0) -> 0 | AN28: 0 | AO28: 0 | AP28: =+'Ingreso Datos Energía'!$U$36*(Datos!P28-Datos!BD27)+'Ingreso Datos Energía'!$U$38*('Ingreso Datos Energía'!$U$35-Datos!BD27) -> -1764.049034 | AQ28: =+AA28*Tablas!$L$4*Tablas!$L$6*'Ingreso Datos Energía'!$U$17*(Datos!P28-Datos!BD27) -> 83.04326999 | AR28: -1681.005764 | AS28: =+IF(((AR28/3)/(Tablas!$L$4*Tablas!$L$6*'Ingreso Datos Energía'!$U$17+Tablas!$CQ$18)+BD27)<P28,P28,((AR28/3)/(Tablas!$L$4*Tablas!$L$6*'Ingreso Datos Energía'!$U$17+Tablas!$CQ$18)+BD27)) -> 22.5 | AT28: 22.5 | AU28: =+'Ingreso Datos Energía'!$U$36*(($P28+(P29-P28)/3)-$AT28)+'Ingreso Datos Energía'!$U$38*('Ingreso Datos Energía'!$U$35-$AT28) -> -3067.766667 | AV28: =+AA28*Tablas!$L$4*Tablas!$L$6*'Ingreso Datos Energía'!$U$17*(($P28+(P29-P28)/3)-$AT28) -> -25.65694444 | AW28: -3093.423611 | AX28: =+IF(((AW28/3)/(Tablas!$L$4*Tablas!$L$6*'Ingreso Datos Energía'!$U$17+Tablas!$CQ$18)+AT28)<P28,P28,((AW28/3)/(Tablas!$L$4*Tablas!$L$6*'Ingreso Datos Energía'!$U$17+Tablas!$CQ$18)+AT28)) -> 22.5 | AY28: 22.5 | AZ28: =+'Ingreso Datos Energía'!$U$36*(($P28+(P29-P28)*2/3)-$AY28)+'Ingreso Datos Energía'!$U$38*('Ingreso Datos Energía'!$U$35-$AY28) -> -3248.033333 | BA28: =+AA28*Tablas!$L$4*Tablas!$L$6*'Ingreso Datos Energía'!$U$17*(($P28+(P29-P28)*2/3)-$AY28) -> -51.31388889 | BB28: -3299.347222 | BC28: =+((BB28/3)/(Tablas!$L$4*Tablas!$L$6*'Ingreso Datos Energía'!$U$17+Tablas!$CQ$18)+AY28) -> 20.1107096 | BD28: 20.1107096 | BE28: 0 | BF28: 0 | BG28: -2691.258866 | BH28: 0 | BI28: 0 | BJ28: 0 | BK28: 0 | BL28: -2.4976467 | BM28: 25
A29: 22.1 | B29: 15.3 | C29: 18.5 | D29: 20.1 | E29: 17.8 | F29: 13.8 | G29: 21.2 | H29: 16.1 | I29: 17.1 | J29: 9.1 | K29: 11.3 | L29: 2 | M29: Ene | N29: 2 | O29: 2 | P29: 21.2 | Q29: =+VLOOKUP(M29,'Ingreso Datos Generales'!$T$5:$Z$16,6,0) -> 20 | R29: =+VLOOKUP(M29,'Ingreso Datos Generales'!$T$5:$Z$16,7,0) -> 24 | S29: 1 | T29: 0 | U29: 0 | V29: =+IF(AND(L29<='Ingreso Datos Generales'!$D$9,O29>=$V$1,O29<=$V$2),1,0) -> 0 | W29: 0 | X29: 0 | Y29: 0 | Z29: =+IF(L29<=Dias_a_la_semana,('Ingreso Datos Energía'!$D$49)*V29,0) -> 0 | AA29: =+(VLOOKUP(M29,'Ingreso Datos Energía'!$I$46:$K$57,2,0)+V29*IF(L29<=Dias_a_la_semana,VLOOKUP(M29,'Ingreso Datos Energía'!$I$46:$K$57,3,0),0)+W29*IF(L29<=Dias_a_la_semana,VLOOKUP(M29,'Ingreso Datos Energía'!$I$46:$K$57,3,0),0)) -> 0.5 | AB29: =+'Ingreso Datos Energía'!$U$36*(Datos!P29-Datos!AI28)+'Ingreso Datos Energía'!$U$38*('Ingreso Datos Energía'!$U$35-Datos!AI28) -> -1427.684993 | AC29: =+SUMIFS(Sol!$AO$31:$AO$186,Sol!$AP$31:$AP$186,Datos!M29,Sol!$AN$31:$AN$186,Datos!O29)*$AC$2 -> 0 | AD29: -1427.684993 | AE29: =(((AD29/3)/(Tablas!$L$4*Tablas!$L$6*'Ingreso Datos Energía'!$U$17+Tablas!$CQ$18)+AI28)*1+(P28+(P29-P28)/3)*AA29/3)/(1+AA29/3) -> 19.41106587 | AF29: =+'Ingreso Datos Energía'!$U$36*(($P28+(P29-P28)/3)-$AE29)+'Ingreso Datos Energía'!$U$38*('Ingreso Datos Energía'!$U$35-$AE29)+$AC29+$Z29 -> -593.5304301 | AG29: =+(((AF29/3)/(Tablas!$L$4*Tablas!$L$6*'Ingreso Datos Energía'!$U$17+Tablas!$CQ$18)+AE29)*1+(P28+(P29-P28)*2/3)*AA29/3)/(1+AA29/3) -> 19.36011781 | AH29: =+'Ingreso Datos Energía'!$U$36*(($P28+(P29-P28)*2/3)-$AG29)+'Ingreso Datos Energía'!$U$38*('Ingreso Datos Energía'!$U$35-$AG29)+$AC29+$Z29 -> -732.9877007 | AI29: =+(((AH29/3)/(Tablas!$L$4*Tablas!$L$6*'Ingreso Datos Energía'!$U$17+Tablas!$CQ$18)+AG29)*1+P29*AA29/3)/(1+AA29/3) -> 19.16797969 | AJ29: =+AD29++(-(Tablas!$L$4*Tablas!$L$6*'Ingreso Datos Energía'!$U$17+Tablas!$CQ$18)*P29*AA29/3+(Tablas!$L$4*Tablas!$L$6*'Ingreso Datos Energía'!$U$17+Tablas!$CQ$18)*AI28)/(1+AA29/3) -> 5070.002144 | AK29: =+IF(L29<='Ingreso Datos Generales'!$D$9,IF(AL29+AM29=0,1,0),0) -> 0 | AL29: =+IF(L29<='Ingreso Datos Generales'!$D$9,IF(AI29<Q29,1,0),0) -> 1 | AM29: =+IF(L29<='Ingreso Datos Generales'!$D$9,IF(AI29>R29,1,0),0) -> 0 | AN29: 0.8320203111 | AO29: 0 | AP29: =+'Ingreso Datos Energía'!$U$36*(Datos!P29-Datos!BD28)+'Ingreso Datos Energía'!$U$38*('Ingreso Datos Energía'!$U$35-Datos!BD28) -> -1514.478389 | AQ29: =+AA29*Tablas!$L$4*Tablas!$L$6*'Ingreso Datos Energía'!$U$17*(Datos!P29-Datos!BD28) -> 64.49506918 | AR29: -1449.983319 | AS29: =+IF(((AR29/3)/(Tablas!$L$4*Tablas!$L$6*'Ingreso Datos Energía'!$U$17+Tablas!$CQ$18)+BD28)<P29,P29,((AR29/3)/(Tablas!$L$4*Tablas!$L$6*'Ingreso Datos Energía'!$U$17+Tablas!$CQ$18)+BD28)) -> 21.2 | AT29: 21.2 | AU29: =+'Ingreso Datos Energía'!$U$36*(($P29+(P30-P29)/3)-$AT29)+'Ingreso Datos Energía'!$U$38*('Ingreso Datos Energía'!$U$35-$AT29) -> -2581.133333 | AV29: =+AA29*Tablas!$L$4*Tablas!$L$6*'Ingreso Datos Energía'!$U$17*(($P29+(P30-P29)/3)-$AT29) -> -27.63055556 | AW29: -2608.763889 | AX29: =+IF(((AW29/3)/(Tablas!$L$4*Tablas!$L$6*'Ingreso Datos Energía'!$U$17+Tablas!$CQ$18)+AT29)<P29,P29,((AW29/3)/(Tablas!$L$4*Tablas!$L$6*'Ingreso Datos Energía'!$U$17+Tablas!$CQ$18)+AT29)) -> 21.2 | AY29: 21.2 | AZ29: =+'Ingreso Datos Energía'!$U$36*(($P29+(P30-P29)*2/3)-$AY29)+'Ingreso Datos Energía'!$U$38*('Ingreso Datos Energía'!$U$35-$AY29) -> -2775.266667 | BA29: =+AA29*Tablas!$L$4*Tablas!$L$6*'Ingreso Datos Energía'!$U$17*(($P29+(P30-P29)*2/3)-$AY29) -> -55.26111111 | BB29: -2830.527778 | BC29: =+((BB29/3)/(Tablas!$L$4*Tablas!$L$6*'Ingreso Datos Energía'!$U$17+Tablas!$CQ$18)+AY29) -> 19.15021488 | BD29: 19.15021488 | BE29: 0 | BF29: 0 | BG29: -2296.424995 | BH29: 0 | BI29: 0 | BJ29: 0 | BK29: 0 | BL29: -2.032020311 | BM29: 26
A30: 21.5 | B30: 14.1 | C30: 18.2 | D30: 19.5 | E30: 17.1 | F30: 11.4 | G30: 19.8 | H30: 15.2 | I30: 15.6 | J30: 8.2 | K30: 9.9 | L30: 2 | M30: Ene | N30: 2 | O30: 3 | P30: 19.8 | Q30: =+VLOOKUP(M30,'Ingreso Datos Generales'!$T$5:$Z$16,6,0) -> 20 | R30: =+VLOOKUP(M30,'Ingreso Datos Generales'!$T$5:$Z$16,7,0) -> 24 | S30: 0 | T30: 1 | U30: 0 | V30: =+IF(AND(L30<='Ingreso Datos Generales'!$D$9,O30>=$V$1,O30<=$V$2),1,0) -> 0 | W30: 0 | X30: 0.2 | Y30: 0 | Z30: =+IF(L30<=Dias_a_la_semana,('Ingreso Datos Energía'!$D$49)*V30,0) -> 0 | AA30: =+(VLOOKUP(M30,'Ingreso Datos Energía'!$I$46:$K$57,2,0)+V30*IF(L30<=Dias_a_la_semana,VLOOKUP(M30,'Ingreso Datos Energía'!$I$46:$K$57,3,0),0)+W30*IF(L30<=Dias_a_la_semana,VLOOKUP(M30,'Ingreso Datos Energía'!$I$46:$K$57,3,0),0)) -> 0.5 | AB30: =+'Ingreso Datos Energía'!$U$36*(Datos!P30-Datos!AI29)+'Ingreso Datos Energía'!$U$38*('Ingreso Datos Energía'!$U$35-Datos!AI29) -> -1341.751731 | AC30: =+SUMIFS(Sol!$AO$31:$AO$186,Sol!$AP$31:$AP$186,Datos!M30,Sol!$AN$31:$AN$186,Datos!O30)*$AC$2 -> 0 | AD30: -1341.751731 | AE30: =(((AD30/3)/(Tablas!$L$4*Tablas!$L$6*'Ingreso Datos Energía'!$U$17+Tablas!$CQ$18)+AI29)*1+(P29+(P30-P29)/3)*AA30/3)/(1+AA30/3) -> 18.5587526 | AF30: =+'Ingreso Datos Energía'!$U$36*(($P29+(P30-P29)/3)-$AE30)+'Ingreso Datos Energía'!$U$38*('Ingreso Datos Energía'!$U$35-$AE30)+$AC30+$Z30 -> -465.4941637 | AG30: =+(((AF30/3)/(Tablas!$L$4*Tablas!$L$6*'Ingreso Datos Energía'!$U$17+Tablas!$CQ$18)+AE30)*1+(P29+(P30-P29)*2/3)*AA30/3)/(1+AA30/3) -> 18.51379986 | AH30: =+'Ingreso Datos Energía'!$U$36*(($P29+(P30-P29)*2/3)-$AG30)+'Ingreso Datos Energía'!$U$38*('Ingreso Datos Energía'!$U$35-$AG30)+$AC30+$Z30 -> -623.6203524 | AI30: =+(((AH30/3)/(Tablas!$L$4*Tablas!$L$6*'Ingreso Datos Energía'!$U$17+Tablas!$CQ$18)+AG30)*1+P30*AA30/3)/(1+AA30/3) -> 18.31045055 | AJ30: =+AD30++(-(Tablas!$L$4*Tablas!$L$6*'Ingreso Datos Energía'!$U$17+Tablas!$CQ$18)*P30*AA30/3+(Tablas!$L$4*Tablas!$L$6*'Ingreso Datos Energía'!$U$17+Tablas!$CQ$18)*AI29)/(1+AA30/3) -> 4918.800976 | AK30: =+IF(L30<='Ingreso Datos Generales'!$D$9,IF(AL30+AM30=0,1,0),0) -> 0 | AL30: =+IF(L30<='Ingreso Datos Generales'!$D$9,IF(AI30<Q30,1,0),0) -> 1 | AM30: =+IF(L30<='Ingreso Datos Generales'!$D$9,IF(AI30>R30,1,0),0) -> 0 | AN30: 1.689549453 | AO30: 0 | AP30: =+'Ingreso Datos Energía'!$U$36*(Datos!P30-Datos!BD29)+'Ingreso Datos Energía'!$U$38*('Ingreso Datos Energía'!$U$35-Datos!BD29) -> -1327.522117 | AQ30: =+AA30*Tablas!$L$4*Tablas!$L$6*'Ingreso Datos Energía'!$U$17*(Datos!P30-Datos!BD29) -> 38.47269413 | AR30: -1289.049423 | AS30: =+IF(((AR30/3)/(Tablas!$L$4*Tablas!$L$6*'Ingreso Datos Energía'!$U$17+Tablas!$CQ$18)+BD29)<P30,P30,((AR30/3)/(Tablas!$L$4*Tablas!$L$6*'Ingreso Datos Energía'!$U$17+Tablas!$CQ$18)+BD29)) -> 19.8 | AT30: 19.8 | AU30: =+'Ingreso Datos Energía'!$U$36*(($P30+(P31-P30)/3)-$AT30)+'Ingreso Datos Energía'!$U$38*('Ingreso Datos Energía'!$U$35-$AT30) -> -2042.133333 | AV30: =+AA30*Tablas!$L$4*Tablas!$L$6*'Ingreso Datos Energía'!$U$17*(($P30+(P31-P30)/3)-$AT30) -> -27.63055556 | AW30: -2069.763889 | AX30: =+IF(((AW30/3)/(Tablas!$L$4*Tablas!$L$6*'Ingreso Datos Energía'!$U$17+Tablas!$CQ$18)+AT30)<P30,P30,((AW30/3)/(Tablas!$L$4*Tablas!$L$6*'Ingreso Datos Energía'!$U$17+Tablas!$CQ$18)+AT30)) -> 19.8 | AY30: 19.8 | AZ30: =+'Ingreso Datos Energía'!$U$36*(($P30+(P31-P30)*2/3)-$AY30)+'Ingreso Datos Energía'!$U$38*('Ingreso Datos Energía'!$U$35-$AY30) -> -2236.266667 | BA30: =+AA30*Tablas!$L$4*Tablas!$L$6*'Ingreso Datos Energía'!$U$17*(($P30+(P31-P30)*2/3)-$AY30) -> -55.26111111 | BB30: -2291.527778 | BC30: =+((BB30/3)/(Tablas!$L$4*Tablas!$L$6*'Ingreso Datos Energía'!$U$17+Tablas!$CQ$18)+AY30) -> 18.14054285 | BD30: 18.14054285 | BE30: 0 | BF30: 0 | BG30: -1883.44703 | BH30: 0 | BI30: 0 | BJ30: 0 | BK30: 0 | BL30: -1.489549453 | BM30: 27
A31: 20.9 | B31: 12.9 | C31: 17.8 | D31: 18.8 | E31: 16.4 | F31: 9 | G31: 18.4 | H31: 14.4 | I31: 14 | J31: 7.3 | K31: 8.5 | L31: 2 | M31: Ene | N31: 2 | O31: 4 | P31: 18.4 | Q31: =+VLOOKUP(M31,'Ingreso Datos Generales'!$T$5:$Z$16,6,0) -> 20 | R31: =+VLOOKUP(M31,'Ingreso Datos Generales'!$T$5:$Z$16,7,0) -> 24 | S31: 0 | T31: 1 | U31: 0 | V31: =+IF(AND(L31<='Ingreso Datos Generales'!$D$9,O31>=$V$1,O31<=$V$2),1,0) -> 0 | W31: 0 | X31: 1.6 | Y31: 0 | Z31: =+IF(L31<=Dias_a_la_semana,('Ingreso Datos Energía'!$D$49)*V31,0) -> 0 | AA31: =+(VLOOKUP(M31,'Ingreso Datos Energía'!$I$46:$K$57,2,0)+V31*IF(L31<=Dias_a_la_semana,VLOOKUP(M31,'Ingreso Datos Energía'!$I$46:$K$57,3,0),0)+W31*IF(L31<=Dias_a_la_semana,VLOOKUP(M31,'Ingreso Datos Energía'!$I$46:$K$57,3,0),0)) -> 0.5 | AB31: =+'Ingreso Datos Energía'!$U$36*(Datos!P31-Datos!AI30)+'Ingreso Datos Energía'!$U$38*('Ingreso Datos Energía'!$U$35-Datos!AI30) -> -1237.270889 | AC31: =+SUMIFS(Sol!$AO$31:$AO$186,Sol!$AP$31:$AP$186,Datos!M31,Sol!$AN$31:$AN$186,Datos!O31)*$AC$2 -> 0 | AD31: -1237.270889 | AE31: =(((AD31/3)/(Tablas!$L$4*Tablas!$L$6*'Ingreso Datos Energía'!$U$17+Tablas!$CQ$18)+AI30)*1+(P30+(P31-P30)/3)*AA31/3)/(1+AA31/3) -> 17.68858073 | AF31: =+'Ingreso Datos Energía'!$U$36*(($P30+(P31-P30)/3)-$AE31)+'Ingreso Datos Energía'!$U$38*('Ingreso Datos Energía'!$U$35-$AE31)+$AC31+$Z31 -> -350.8864951 | AG31: =+(((AF31/3)/(Tablas!$L$4*Tablas!$L$6*'Ingreso Datos Energía'!$U$17+Tablas!$CQ$18)+AE31)*1+(P30+(P31-P30)*2/3)*AA31/3)/(1+AA31/3) -> 17.63907726 | AH31: =+'Ingreso Datos Energía'!$U$36*(($P30+(P31-P30)*2/3)-$AG31)+'Ingreso Datos Energía'!$U$38*('Ingreso Datos Energía'!$U$35-$AG31)+$AC31+$Z31 -> -505.3675532 | AI31: =+(((AH31/3)/(Tablas!$L$4*Tablas!$L$6*'Ingreso Datos Energía'!$U$17+Tablas!$CQ$18)+AG31)*1+P31*AA31/3)/(1+AA31/3) -> 17.43408993 | AJ31: =+AD31++(-(Tablas!$L$4*Tablas!$L$6*'Ingreso Datos Energía'!$U$17+Tablas!$CQ$18)*P31*AA31/3+(Tablas!$L$4*Tablas!$L$6*'Ingreso Datos Energía'!$U$17+Tablas!$CQ$18)*AI30)/(1+AA31/3) -> 4777.011604 | AK31: =+IF(L31<='Ingreso Datos Generales'!$D$9,IF(AL31+AM31=0,1,0),0) -> 0 | AL31: =+IF(L31<='Ingreso Datos Generales'!$D$9,IF(AI31<Q31,1,0),0) -> 1 | AM31: =+IF(L31<='Ingreso Datos Generales'!$D$9,IF(AI31>R31,1,0),0) -> 0 | AN31: 2.565910073 | AO31: 0 | AP31: =+'Ingreso Datos Energía'!$U$36*(Datos!P31-Datos!BD30)+'Ingreso Datos Energía'!$U$38*('Ingreso Datos Energía'!$U$35-Datos!BD30) -> -1101.174826 | AQ31: =+AA31*Tablas!$L$4*Tablas!$L$6*'Ingreso Datos Energía'!$U$17*(Datos!P31-Datos!BD30) -> 15.36202516 | AR31: -1085.812801 | AS31: =+IF(((AR31/3)/(Tablas!$L$4*Tablas!$L$6*'Ingreso Datos Energía'!$U$17+Tablas!$CQ$18)+BD30)<P31,P31,((AR31/3)/(Tablas!$L$4*Tablas!$L$6*'Ingreso Datos Energía'!$U$17+Tablas!$CQ$18)+BD30)) -> 18.4 | AT31: 18.4 | AU31: =+'Ingreso Datos Energía'!$U$36*(($P31+(P32-P31)/3)-$AT31)+'Ingreso Datos Energía'!$U$38*('Ingreso Datos Energía'!$U$35-$AT31) -> -1503.133333 | AV31: =+AA31*Tablas!$L$4*Tablas!$L$6*'Ingreso Datos Energía'!$U$17*(($P31+(P32-P31)/3)-$AT31) -> -27.63055556 | AW31: -1530.763889 | AX31: =+IF(((AW31/3)/(Tablas!$L$4*Tablas!$L$6*'Ingreso Datos Energía'!$U$17+Tablas!$CQ$18)+AT31)<P31,P31,((AW31/3)/(Tablas!$L$4*Tablas!$L$6*'Ingreso Datos Energía'!$U$17+Tablas!$CQ$18)+AT31)) -> 18.4 | AY31: 18.4 | AZ31: =+'Ingreso Datos Energía'!$U$36*(($P31+(P32-P31)*2/3)-$AY31)+'Ingreso Datos Energía'!$U$38*('Ingreso Datos Energía'!$U$35-$AY31) -> -1697.266667 | BA31: =+AA31*Tablas!$L$4*Tablas!$L$6*'Ingreso Datos Energía'!$U$17*(($P31+(P32-P31)*2/3)-$AY31) -> -55.26111111 | BB31: -1752.527778 | BC31: =+((BB31/3)/(Tablas!$L$4*Tablas!$L$6*'Ingreso Datos Energía'!$U$17+Tablas!$CQ$18)+AY31) -> 17.13087083 | BD31: 17.13087083 | BE31: 0 | BF31: 0 | BG31: -1456.368156 | BH31: 0 | BI31: 0 | BJ31: 0 | BK31: 0 | BL31: -0.9659100726 | BM31: 28
A32: 20.3 | B32: 11.7 | C32: 17.5 | D32: 18.2 | E32: 15.7 | F32: 6.6 | G32: 17 | H32: 13.5 | I32: 12.4 | J32: 6.3 | K32: 7.2 | L32: 2 | M32: Ene | N32: 2 | O32: 5 | P32: 17 | Q32: =+VLOOKUP(M32,'Ingreso Datos Generales'!$T$5:$Z$16,6,0) -> 20 | R32: =+VLOOKUP(M32,'Ingreso Datos Generales'!$T$5:$Z$16,7,0) -> 24 | S32: 0 | T32: 1 | U32: 0 | V32: =+IF(AND(L32<='Ingreso Datos Generales'!$D$9,O32>=$V$1,O32<=$V$2),1,0) -> 0 | W32: 0 | X32: 3 | Y32: 0 | Z32: =+IF(L32<=Dias_a_la_semana,('Ingreso Datos Energía'!$D$49)*V32,0) -> 0 | AA32: =+(VLOOKUP(M32,'Ingreso Datos Energía'!$I$46:$K$57,2,0)+V32*IF(L32<=Dias_a_la_semana,VLOOKUP(M32,'Ingreso Datos Energía'!$I$46:$K$57,3,0),0)+W32*IF(L32<=Dias_a_la_semana,VLOOKUP(M32,'Ingreso Datos Energía'!$I$46:$K$57,3,0),0)) -> 0.5 | AB32: =+'Ingreso Datos Energía'!$U$36*(Datos!P32-Datos!AI31)+'Ingreso Datos Energía'!$U$38*('Ingreso Datos Energía'!$U$35-Datos!AI31) -> -1117.706032 | AC32: =+SUMIFS(Sol!$AO$31:$AO$186,Sol!$AP$31:$AP$186,Datos!M32,Sol!$AN$31:$AN$186,Datos!O32)*$AC$2 -> 0 | AD32: -1117.706032 | AE32: =(((AD32/3)/(Tablas!$L$4*Tablas!$L$6*'Ingreso Datos Energía'!$U$17+Tablas!$CQ$18)+AI31)*1+(P31+(P32-P31)/3)*AA32/3)/(1+AA32/3) -> 16.8116305 | AF32: =+'Ingreso Datos Energía'!$U$36*(($P31+(P32-P31)/3)-$AE32)+'Ingreso Datos Energía'!$U$38*('Ingreso Datos Energía'!$U$35-$AE32)+$AC32+$Z32 -> -230.849366 | AG32: =+(((AF32/3)/(Tablas!$L$4*Tablas!$L$6*'Ingreso Datos Energía'!$U$17+Tablas!$CQ$18)+AE32)*1+(P31+(P32-P31)*2/3)*AA32/3)/(1+AA32/3) -> 16.76191481 | AH32: =+'Ingreso Datos Energía'!$U$36*(($P31+(P32-P31)*2/3)-$AG32)+'Ingreso Datos Energía'!$U$38*('Ingreso Datos Energía'!$U$35-$AG32)+$AC32+$Z32 -> -385.1604306 | AI32: =+(((AH32/3)/(Tablas!$L$4*Tablas!$L$6*'Ingreso Datos Energía'!$U$17+Tablas!$CQ$18)+AG32)*1+P32*AA32/3)/(1+AA32/3) -> 16.55685109 | AJ32: =+AD32++(-(Tablas!$L$4*Tablas!$L$6*'Ingreso Datos Energía'!$U$17+Tablas!$CQ$18)*P32*AA32/3+(Tablas!$L$4*Tablas!$L$6*'Ingreso Datos Energía'!$U$17+Tablas!$CQ$18)*AI31)/(1+AA32/3) -> 4642.876475 | AK32: =+IF(L32<='Ingreso Datos Generales'!$D$9,IF(AL32+AM32=0,1,0),0) -> 0 | AL32: =+IF(L32<='Ingreso Datos Generales'!$D$9,IF(AI32<Q32,1,0),0) -> 1 | AM32: =+IF(L32<='Ingreso Datos Generales'!$D$9,IF(AI32>R32,1,0),0) -> 0 | AN32: 3.443148913 | AO32: 0 | AP32: =+'Ingreso Datos Energía'!$U$36*(Datos!P32-Datos!BD31)+'Ingreso Datos Energía'!$U$38*('Ingreso Datos Energía'!$U$35-Datos!BD31) -> -874.8275359 | AQ32: =+AA32*Tablas!$L$4*Tablas!$L$6*'Ingreso Datos Energía'!$U$17*(Datos!P32-Datos!BD31) -> -7.748643803 | AR32: -882.5761797 | AS32: =+IF(((AR32/3)/(Tablas!$L$4*Tablas!$L$6*'Ingreso Datos Energía'!$U$17+Tablas!$CQ$18)+BD31)<P32,P32,((AR32/3)/(Tablas!$L$4*Tablas!$L$6*'Ingreso Datos Energía'!$U$17+Tablas!$CQ$18)+BD31)) -> 17 | AT32: 17 | AU32: =+'Ingreso Datos Energía'!$U$36*(($P32+(P33-P32)/3)-$AT32)+'Ingreso Datos Energía'!$U$38*('Ingreso Datos Energía'!$U$35-$AT32) -> -964.1333333 | AV32: =+AA32*Tablas!$L$4*Tablas!$L$6*'Ingreso Datos Energía'!$U$17*(($P32+(P33-P32)/3)-$AT32) -> -27.63055556 | AW32: -991.7638889 | AX32: =+IF(((AW32/3)/(Tablas!$L$4*Tablas!$L$6*'Ingreso Datos Energía'!$U$17+Tablas!$CQ$18)+AT32)<P32,P32,((AW32/3)/(Tablas!$L$4*Tablas!$L$6*'Ingreso Datos Energía'!$U$17+Tablas!$CQ$18)+AT32)) -> 17 | AY32: 17 | AZ32: =+'Ingreso Datos Energía'!$U$36*(($P32+(P33-P32)*2/3)-$AY32)+'Ingreso Datos Energía'!$U$38*('Ingreso Datos Energía'!$U$35-$AY32) -> -1158.266667 | BA32: =+AA32*Tablas!$L$4*Tablas!$L$6*'Ingreso Datos Energía'!$U$17*(($P32+(P33-P32)*2/3)-$AY32) -> -55.26111111 | BB32: -1213.527778 | BC32: =+((BB32/3)/(Tablas!$L$4*Tablas!$L$6*'Ingreso Datos Energía'!$U$17+Tablas!$CQ$18)+AY32) -> 16.12119881 | BD32: 16.12119881 | BE32: 0 | BF32: 0 | BG32: -1029.289282 | BH32: 0 | BI32: 0 | BJ32: 0 | BK32: 0 | BL32: -0.4431489133 | BM32: 29
A33: 19.7 | B33: 10.5 | C33: 17.1 | D33: 17.6 | E33: 14.9 | F33: 4.3 | G33: 15.6 | H33: 12.6 | I33: 10.8 | J33: 7.3 | K33: 7.1 | L33: 2 | M33: Ene | N33: 2 | O33: 6 | P33: 15.6 | Q33: =+VLOOKUP(M33,'Ingreso Datos Generales'!$T$5:$Z$16,6,0) -> 20 | R33: =+VLOOKUP(M33,'Ingreso Datos Generales'!$T$5:$Z$16,7,0) -> 24 | S33: 0 | T33: 1 | U33: 0 | V33: =+IF(AND(L33<='Ingreso Datos Generales'!$D$9,O33>=$V$1,O33<=$V$2),1,0) -> 0 | W33: 0 | X33: 4.4 | Y33: 0 | Z33: =+IF(L33<=Dias_a_la_semana,('Ingreso Datos Energía'!$D$49)*V33,0) -> 0 | AA33: =+(VLOOKUP(M33,'Ingreso Datos Energía'!$I$46:$K$57,2,0)+V33*IF(L33<=Dias_a_la_semana,VLOOKUP(M33,'Ingreso Datos Energía'!$I$46:$K$57,3,0),0)+W33*IF(L33<=Dias_a_la_semana,VLOOKUP(M33,'Ingreso Datos Energía'!$I$46:$K$57,3,0),0)) -> 0.5 | AB33: =+'Ingreso Datos Energía'!$U$36*(Datos!P33-Datos!AI32)+'Ingreso Datos Energía'!$U$38*('Ingreso Datos Energía'!$U$35-Datos!AI32) -> -997.4377204 | AC33: =+SUMIFS(Sol!$AO$31:$AO$186,Sol!$AP$31:$AP$186,Datos!M33,Sol!$AN$31:$AN$186,Datos!O33)*$AC$2 -> 1640.275 | AD33: 642.8372796 | AE33: =(((AD33/3)/(Tablas!$L$4*Tablas!$L$6*'Ingreso Datos Energía'!$U$17+Tablas!$CQ$18)+AI32)*1+(P32+(P33-P32)/3)*AA33/3)/(1+AA33/3) -> 16.95251188 | AF33: =+'Ingreso Datos Energía'!$U$36*(($P32+(P33-P32)/3)-$AE33)+'Ingreso Datos Energía'!$U$38*('Ingreso Datos Energía'!$U$35-$AE33)+$AC33+$Z33 -> 714.1796494 | AG33: =+(((AF33/3)/(Tablas!$L$4*Tablas!$L$6*'Ingreso Datos Energía'!$U$17+Tablas!$CQ$18)+AE33)*1+(P32+(P33-P32)*2/3)*AA33/3)/(1+AA33/3) -> 17.26926651 | AH33: =+'Ingreso Datos Energía'!$U$36*(($P32+(P33-P32)*2/3)-$AG33)+'Ingreso Datos Energía'!$U$38*('Ingreso Datos Energía'!$U$35-$AG33)+$AC33+$Z33 -> 266.3258582 | AI33: =+(((AH33/3)/(Tablas!$L$4*Tablas!$L$6*'Ingreso Datos Energía'!$U$17+Tablas!$CQ$18)+AG33)*1+P33*AA33/3)/(1+AA33/3) -> 17.19611304 | AJ33: =+AD33++(-(Tablas!$L$4*Tablas!$L$6*'Ingreso Datos Energía'!$U$17+Tablas!$CQ$18)*P33*AA33/3+(Tablas!$L$4*Tablas!$L$6*'Ingreso Datos Energía'!$U$17+Tablas!$CQ$18)*AI32)/(1+AA33/3) -> 6149.373307 | AK33: =+IF(L33<='Ingreso Datos Generales'!$D$9,IF(AL33+AM33=0,1,0),0) -> 0 | AL33: =+IF(L33<='Ingreso Datos Generales'!$D$9,IF(AI33<Q33,1,0),0) -> 1 | AM33: =+IF(L33<='Ingreso Datos Generales'!$D$9,IF(AI33>R33,1,0),0) -> 0 | AN33: 2.803886961 | AO33: 0 | AP33: =+'Ingreso Datos Energía'!$U$36*(Datos!P33-Datos!BD32)+'Ingreso Datos Energía'!$U$38*('Ingreso Datos Energía'!$U$35-Datos!BD32) -> -648.4802453 | AQ33: =+AA33*Tablas!$L$4*Tablas!$L$6*'Ingreso Datos Energía'!$U$17*(Datos!P33-Datos!BD32) -> -30.85931277 | AR33: 960.9354419 | AS33: =+IF(((AR33/3)/(Tablas!$L$4*Tablas!$L$6*'Ingreso Datos Energía'!$U$17+Tablas!$CQ$18)+BD32)<P33,P33,((AR33/3)/(Tablas!$L$4*Tablas!$L$6*'Ingreso Datos Energía'!$U$17+Tablas!$CQ$18)+BD32)) -> 16.81708005 | AT33: 16.81708005 | AU33: =+'Ingreso Datos Energía'!$U$36*(($P33+(P34-P33)/3)-$AT33)+'Ingreso Datos Energía'!$U$38*('Ingreso Datos Energía'!$U$35-$AT33) -> -1067.21445 | AV33: =+AA33*Tablas!$L$4*Tablas!$L$6*'Ingreso Datos Energía'!$U$17*(($P33+(P34-P33)/3)-$AT33) -> -52.32516992 | AW33: 520.7353803 | AX33: =+IF(((AW33/3)/(Tablas!$L$4*Tablas!$L$6*'Ingreso Datos Energía'!$U$17+Tablas!$CQ$18)+AT33)<P33,P33,((AW33/3)/(Tablas!$L$4*Tablas!$L$6*'Ingreso Datos Energía'!$U$17+Tablas!$CQ$18)+AT33)) -> 17.19418132 | AY33: 17.19418132 | AZ33: =+'Ingreso Datos Energía'!$U$36*(($P33+(P34-P33)*2/3)-$AY33)+'Ingreso Datos Energía'!$U$38*('Ingreso Datos Energía'!$U$35-$AY33) -> -1230.605905 | BA33: =+AA33*Tablas!$L$4*Tablas!$L$6*'Ingreso Datos Energía'!$U$17*(($P33+(P34-P33)*2/3)-$AY33) -> -54.91659683 | BB33: 354.7524984 | BC33: =+((BB33/3)/(Tablas!$L$4*Tablas!$L$6*'Ingreso Datos Energía'!$U$17+Tablas!$CQ$18)+AY33) -> 17.45108267 | BD33: 17.45108267 | BE33: 0 | BF33: 0 | BG33: 612.1411068 | BH33: 0 | BI33: 0 | BJ33: 0 | BK33: 0 | BL33: 1.596113039 | BM33: 30
A34: 19.8 | B34: 11.4 | C34: 17.7 | D34: 18.5 | E34: 15.1 | F34: 6.1 | G34: 16.6 | H34: 14 | I34: 11.1 | J34: 8.2 | K34: 8 | L34: 2 | M34: Ene | N34: 2 | O34: 7 | P34: 16.6 | Q34: =+VLOOKUP(M34,'Ingreso Datos Generales'!$T$5:$Z$16,6,0) -> 20 | R34: =+VLOOKUP(M34,'Ingreso Datos Generales'!$T$5:$Z$16,7,0) -> 24 | S34: 0 | T34: 1 | U34: 0 | V34: =+IF(AND(L34<='Ingreso Datos Generales'!$D$9,O34>=$V$1,O34<=$V$2),1,0) -> 0 | W34: 0 | X34: 3.4 | Y34: 0 | Z34: =+IF(L34<=Dias_a_la_semana,('Ingreso Datos Energía'!$D$49)*V34,0) -> 0 | AA34: =+(VLOOKUP(M34,'Ingreso Datos Energía'!$I$46:$K$57,2,0)+V34*IF(L34<=Dias_a_la_semana,VLOOKUP(M34,'Ingreso Datos Energía'!$I$46:$K$57,3,0),0)+W34*IF(L34<=Dias_a_la_semana,VLOOKUP(M34,'Ingreso Datos Energía'!$I$46:$K$57,3,0),0)) -> 0.5 | AB34: =+'Ingreso Datos Energía'!$U$36*(Datos!P34-Datos!AI33)+'Ingreso Datos Energía'!$U$38*('Ingreso Datos Energía'!$U$35-Datos!AI33) -> -1093.486544 | AC34: =+SUMIFS(Sol!$AO$31:$AO$186,Sol!$AP$31:$AP$186,Datos!M34,Sol!$AN$31:$AN$186,Datos!O34)*$AC$2 -> 2702.84 | AD34: 1609.353456 | AE34: =(((AD34/3)/(Tablas!$L$4*Tablas!$L$6*'Ingreso Datos Energía'!$U$17+Tablas!$CQ$18)+AI33)*1+(P33+(P34-P33)/3)*AA34/3)/(1+AA34/3) -> 18.0146701 | AF34: =+'Ingreso Datos Energía'!$U$36*(($P33+(P34-P33)/3)-$AE34)+'Ingreso Datos Energía'!$U$38*('Ingreso Datos Energía'!$U$35-$AE34)+$AC34+$Z34 -> 676.3559127 | AG34: =+(((AF34/3)/(Tablas!$L$4*Tablas!$L$6*'Ingreso Datos Energía'!$U$17+Tablas!$CQ$18)+AE34)*1+(P33+(P34-P33)*2/3)*AA34/3)/(1+AA34/3) -> 18.18478141 | AH34: =+'Ingreso Datos Energía'!$U$36*(($P33+(P34-P33)*2/3)-$AG34)+'Ingreso Datos Energía'!$U$38*('Ingreso Datos Energía'!$U$35-$AG34)+$AC34+$Z34 -> 678.7634233 | AI34: =+(((AH34/3)/(Tablas!$L$4*Tablas!$L$6*'Ingreso Datos Energía'!$U$17+Tablas!$CQ$18)+AG34)*1+P34*AA34/3)/(1+AA34/3) -> 18.37970453 | AJ34: =+AD34++(-(Tablas!$L$4*Tablas!$L$6*'Ingreso Datos Energía'!$U$17+Tablas!$CQ$18)*P34*AA34/3+(Tablas!$L$4*Tablas!$L$6*'Ingreso Datos Energía'!$U$17+Tablas!$CQ$18)*AI33)/(1+AA34/3) -> 7302.347227 | AK34: =+IF(L34<='Ingreso Datos Generales'!$D$9,IF(AL34+AM34=0,1,0),0) -> 0 | AL34: =+IF(L34<='Ingreso Datos Generales'!$D$9,IF(AI34<Q34,1,0),0) -> 1 | AM34: =+IF(L34<='Ingreso Datos Generales'!$D$9,IF(AI34>R34,1,0),0) -> 0 | AN34: 1.620295466 | AO34: 0 | AP34: =+'Ingreso Datos Energía'!$U$36*(Datos!P34-Datos!BD33)+'Ingreso Datos Energía'!$U$38*('Ingreso Datos Energía'!$U$35-Datos!BD33) -> -1297.717216 | AQ34: =+AA34*Tablas!$L$4*Tablas!$L$6*'Ingreso Datos Energía'!$U$17*(Datos!P34-Datos!BD33) -> -50.39118619 | AR34: 1354.731598 | AS34: =+IF(((AR34/3)/(Tablas!$L$4*Tablas!$L$6*'Ingreso Datos Energía'!$U$17+Tablas!$CQ$18)+BD33)<P34,P34,((AR34/3)/(Tablas!$L$4*Tablas!$L$6*'Ingreso Datos Energía'!$U$17+Tablas!$CQ$18)+BD33)) -> 18.43213952 | AT34: 18.43213952 | AU34: =+'Ingreso Datos Energía'!$U$36*(($P34+(P35-P34)/3)-$AT34)+'Ingreso Datos Energía'!$U$38*('Ingreso Datos Energía'!$U$35-$AT34) -> -1931.010422 | AV34: =+AA34*Tablas!$L$4*Tablas!$L$6*'Ingreso Datos Energía'!$U$17*(($P34+(P35-P34)/3)-$AT34) -> -86.76820516 | AW34: 685.0613731 | AX34: =+IF(((AW34/3)/(Tablas!$L$4*Tablas!$L$6*'Ingreso Datos Energía'!$U$17+Tablas!$CQ$18)+AT34)<P34,P34,((AW34/3)/(Tablas!$L$4*Tablas!$L$6*'Ingreso Datos Energía'!$U$17+Tablas!$CQ$18)+AT34)) -> 18.92824085 | AY34: 18.92824085 | AZ34: =+'Ingreso Datos Energía'!$U$36*(($P34+(P35-P34)*2/3)-$AY34)+'Ingreso Datos Energía'!$U$38*('Ingreso Datos Energía'!$U$35-$AY34) -> -2175.854258 | BA34: =+AA34*Tablas!$L$4*Tablas!$L$6*'Ingreso Datos Energía'!$U$17*(($P34+(P35-P34)*2/3)-$AY34) -> -94.43181617 | BB34: 432.5539257 | BC34: =+((BB34/3)/(Tablas!$L$4*Tablas!$L$6*'Ingreso Datos Energía'!$U$17+Tablas!$CQ$18)+AY34) -> 19.24148371 | BD34: 19.24148371 | BE34: 0 | BF34: 0 | BG34: 824.1156324 | BH34: 0 | BI34: 0 | BJ34: 0 | BK34: 0 | BL34: 1.779704534 | BM34: 31
A35: 20.6 | B35: 12.8 | C35: 18.1 | D35: 19.3 | E35: 15.5 | F35: 9.1 | G35: 17.7 | H35: 14.9 | I35: 11.7 | J35: 9.4 | K35: 9.5 | L35: 2 | M35: Ene | N35: 2 | O35: 8 | P35: 17.7 | Q35: =+VLOOKUP(M35,'Ingreso Datos Generales'!$T$5:$Z$16,6,0) -> 20 | R35: =+VLOOKUP(M35,'Ingreso Datos Generales'!$T$5:$Z$16,7,0) -> 24 | S35: 0 | T35: 1 | U35: 0 | V35: =+IF(AND(L35<='Ingreso Datos Generales'!$D$9,O35>=$V$1,O35<=$V$2),1,0) -> 1 | W35: 0 | X35: 2.3 | Y35: 0 | Z35: =+IF(L35<=Dias_a_la_semana,('Ingreso Datos Energía'!$D$49)*V35,0) -> 3550 | AA35: =+(VLOOKUP(M35,'Ingreso Datos Energía'!$I$46:$K$57,2,0)+V35*IF(L35<=Dias_a_la_semana,VLOOKUP(M35,'Ingreso Datos Energía'!$I$46:$K$57,3,0),0)+W35*IF(L35<=Dias_a_la_semana,VLOOKUP(M35,'Ingreso Datos Energía'!$I$46:$K$57,3,0),0)) -> 1 | AB35: =+'Ingreso Datos Energía'!$U$36*(Datos!P35-Datos!AI34)+'Ingreso Datos Energía'!$U$38*('Ingreso Datos Energía'!$U$35-Datos!AI34) -> -1583.943331 | AC35: =+SUMIFS(Sol!$AO$31:$AO$186,Sol!$AP$31:$AP$186,Datos!M35,Sol!$AN$31:$AN$186,Datos!O35)*$AC$2 -> 3373.16 | AD35: 5339.216669 | AE35: =(((AD35/3)/(Tablas!$L$4*Tablas!$L$6*'Ingreso Datos Energía'!$U$17+Tablas!$CQ$18)+AI34)*1+(P34+(P35-P34)/3)*AA35/3)/(1+AA35/3) -> 20.92632305 | AF35: =+'Ingreso Datos Energía'!$U$36*(($P34+(P35-P34)/3)-$AE35)+'Ingreso Datos Energía'!$U$38*('Ingreso Datos Energía'!$U$35-$AE35)+$AC35+$Z35 -> 2994.308574 | AG35: =+(((AF35/3)/(Tablas!$L$4*Tablas!$L$6*'Ingreso Datos Energía'!$U$17+Tablas!$CQ$18)+AE35)*1+(P34+(P35-P34)*2/3)*AA35/3)/(1+AA35/3) -> 21.65436839 | AH35: =+'Ingreso Datos Energía'!$U$36*(($P34+(P35-P34)*2/3)-$AG35)+'Ingreso Datos Energía'!$U$38*('Ingreso Datos Energía'!$U$35-$AG35)+$AC35+$Z35 -> 2563.677584 | AI35: =+(((AH35/3)/(Tablas!$L$4*Tablas!$L$6*'Ingreso Datos Energía'!$U$17+Tablas!$CQ$18)+AG35)*1+P35*AA35/3)/(1+AA35/3) -> 22.05818133 | AJ35: =+AD35++(-(Tablas!$L$4*Tablas!$L$6*'Ingreso Datos Energía'!$U$17+Tablas!$CQ$18)*P35*AA35/3+(Tablas!$L$4*Tablas!$L$6*'Ingreso Datos Energía'!$U$17+Tablas!$CQ$18)*AI34)/(1+AA35/3) -> 9647.491467 | AK35: =+IF(L35<='Ingreso Datos Generales'!$D$9,IF(AL35+AM35=0,1,0),0) -> 1 | AL35: =+IF(L35<='Ingreso Datos Generales'!$D$9,IF(AI35<Q35,1,0),0) -> 0 | AM35: =+IF(L35<='Ingreso Datos Generales'!$D$9,IF(AI35>R35,1,0),0) -> 0 | AN35: 0 | AO35: 0 | AP35: =+'Ingreso Datos Energía'!$U$36*(Datos!P35-Datos!BD34)+'Ingreso Datos Energía'!$U$38*('Ingreso Datos Energía'!$U$35-Datos!BD34) -> -2274.228451 | AQ35: =+AA35*Tablas!$L$4*Tablas!$L$6*'Ingreso Datos Energía'!$U$17*(Datos!P35-Datos!BD34) -> -182.5373626 | AR35: 4466.394186 | AS35: =+IF(((AR35/3)/(Tablas!$L$4*Tablas!$L$6*'Ingreso Datos Energía'!$U$17+Tablas!$CQ$18)+BD34)<P35,P35,((AR35/3)/(Tablas!$L$4*Tablas!$L$6*'Ingreso Datos Energía'!$U$17+Tablas!$CQ$18)+BD34)) -> 22.47591526 | AT35: 22.47591526 | AU35: =+'Ingreso Datos Energía'!$U$36*(($P35+(P36-P35)/3)-$AT35)+'Ingreso Datos Energía'!$U$38*('Ingreso Datos Energía'!$U$35-$AT35) -> -4643.141458 | AV35: =+AA35*Tablas!$L$4*Tablas!$L$6*'Ingreso Datos Energía'!$U$17*(($P35+(P36-P35)/3)-$AT35) -> -502.39241 | AW35: 1777.626132 | AX35: =+IF(((AW35/3)/(Tablas!$L$4*Tablas!$L$6*'Ingreso Datos Energía'!$U$17+Tablas!$CQ$18)+AT35)<P35,P35,((AW35/3)/(Tablas!$L$4*Tablas!$L$6*'Ingreso Datos Energía'!$U$17+Tablas!$CQ$18)+AT35)) -> 23.76321992 | AY35: 23.76321992 | AZ35: =+'Ingreso Datos Energía'!$U$36*(($P35+(P36-P35)*2/3)-$AY35)+'Ingreso Datos Energía'!$U$38*('Ingreso Datos Energía'!$U$35-$AY35) -> -5452.405824 | BA35: =+AA35*Tablas!$L$4*Tablas!$L$6*'Ingreso Datos Energía'!$U$17*(($P35+(P36-P35)*2/3)-$AY35) -> -591.6751813 | BB35: 879.0789947 | BC35: =+((BB35/3)/(Tablas!$L$4*Tablas!$L$6*'Ingreso Datos Energía'!$U$17+Tablas!$CQ$18)+AY35) -> 24.39982312 | BD35: 24 | BE35: -2374.366438 | BF35: 0 | BG35: 2374.366438 | BH35: 0 | BI35: 1 | BJ35: 0 | BK35: 1 | BL35: 4.358181329 | BM35: 32
A36: 21.3 | B36: 14.5 | C36: 19.3 | D36: 20.1 | E36: 16.2 | F36: 12.7 | G36: 19.3 | H36: 16 | I36: 12.7 | J36: 10.2 | K36: 11.4 | L36: 2 | M36: Ene | N36: 2 | O36: 9 | P36: 19.3 | Q36: =+VLOOKUP(M36,'Ingreso Datos Generales'!$T$5:$Z$16,6,0) -> 20 | R36: =+VLOOKUP(M36,'Ingreso Datos Generales'!$T$5:$Z$16,7,0) -> 24 | S36: 0 | T36: 1 | U36: 0 | V36: =+IF(AND(L36<='Ingreso Datos Generales'!$D$9,O36>=$V$1,O36<=$V$2),1,0) -> 1 | W36: 0 | X36: 0.7 | Y36: 0 | Z36: =+IF(L36<=Dias_a_la_semana,('Ingreso Datos Energía'!$D$49)*V36,0) -> 3550 | AA36: =+(VLOOKUP(M36,'Ingreso Datos Energía'!$I$46:$K$57,2,0)+V36*IF(L36<=Dias_a_la_semana,VLOOKUP(M36,'Ingreso Datos Energía'!$I$46:$K$57,3,0),0)+W36*IF(L36<=Dias_a_la_semana,VLOOKUP(M36,'Ingreso Datos Energía'!$I$46:$K$57,3,0),0)) -> 1 | AB36: =+'Ingreso Datos Energía'!$U$36*(Datos!P36-Datos!AI35)+'Ingreso Datos Energía'!$U$38*('Ingreso Datos Energía'!$U$35-Datos!AI35) -> -3864.803245 | AC36: =+SUMIFS(Sol!$AO$31:$AO$186,Sol!$AP$31:$AP$186,Datos!M36,Sol!$AN$31:$AN$186,Datos!O36)*$AC$2 -> 3858.505 | AD36: 3543.701755 | AE36: =(((AD36/3)/(Tablas!$L$4*Tablas!$L$6*'Ingreso Datos Energía'!$U$17+Tablas!$CQ$18)+AI35)*1+(P35+(P36-P35)/3)*AA36/3)/(1+AA36/3) -> 23.02665292 | AF36: =+'Ingreso Datos Energía'!$U$36*(($P35+(P36-P35)/3)-$AE36)+'Ingreso Datos Energía'!$U$38*('Ingreso Datos Energía'!$U$35-$AE36)+$AC36+$Z36 -> 2324.222681 | AG36: =+(((AF36/3)/(Tablas!$L$4*Tablas!$L$6*'Ingreso Datos Energía'!$U$17+Tablas!$CQ$18)+AE36)*1+(P35+(P36-P35)*2/3)*AA36/3)/(1+AA36/3) -> 23.22400673 | AH36: =+'Ingreso Datos Energía'!$U$36*(($P35+(P36-P35)*2/3)-$AG36)+'Ingreso Datos Energía'!$U$38*('Ingreso Datos Energía'!$U$35-$AG36)+$AC36+$Z36 -> 2388.008943 | AI36: =+(((AH36/3)/(Tablas!$L$4*Tablas!$L$6*'Ingreso Datos Energía'!$U$17+Tablas!$CQ$18)+AG36)*1+P36*AA36/3)/(1+AA36/3) -> 23.53999953 | AJ36: =+AD36++(-(Tablas!$L$4*Tablas!$L$6*'Ingreso Datos Energía'!$U$17+Tablas!$CQ$18)*P36*AA36/3+(Tablas!$L$4*Tablas!$L$6*'Ingreso Datos Energía'!$U$17+Tablas!$CQ$18)*AI35)/(1+AA36/3) -> 8937.750843 | AK36: =+IF(L36<='Ingreso Datos Generales'!$D$9,IF(AL36+AM36=0,1,0),0) -> 1 | AL36: =+IF(L36<='Ingreso Datos Generales'!$D$9,IF(AI36<Q36,1,0),0) -> 0 | AM36: =+IF(L36<='Ingreso Datos Generales'!$D$9,IF(AI36>R36,1,0),0) -> 0 | AN36: 0 | AO36: 0 | AP36: =+'Ingreso Datos Energía'!$U$36*(Datos!P36-Datos!BD35)+'Ingreso Datos Energía'!$U$38*('Ingreso Datos Energía'!$U$35-Datos!BD35) -> -5420.2 | AQ36: =+AA36*Tablas!$L$4*Tablas!$L$6*'Ingreso Datos Energía'!$U$17*(Datos!P36-Datos!BD35) -> -556.5583333 | AR36: 1431.746667 | AS36: =+IF(((AR36/3)/(Tablas!$L$4*Tablas!$L$6*'Ingreso Datos Energía'!$U$17+Tablas!$CQ$18)+BD35)<P36,P36,((AR36/3)/(Tablas!$L$4*Tablas!$L$6*'Ingreso Datos Energía'!$U$17+Tablas!$CQ$18)+BD35)) -> 25.03682891 | AT36: 24 | AU36: =+'Ingreso Datos Energía'!$U$36*(($P36+(P37-P36)/3)-$AT36)+'Ingreso Datos Energía'!$U$38*('Ingreso Datos Energía'!$U$35-$AT36) -> -5198.333333 | AV36: =+AA36*Tablas!$L$4*Tablas!$L$6*'Ingreso Datos Energía'!$U$17*(($P36+(P37-P36)/3)-$AT36) -> -493.4027778 | AW36: 1716.768889 | AX36: =+IF(((AW36/3)/(Tablas!$L$4*Tablas!$L$6*'Ingreso Datos Energía'!$U$17+Tablas!$CQ$18)+AT36)<P36,P36,((AW36/3)/(Tablas!$L$4*Tablas!$L$6*'Ingreso Datos Energía'!$U$17+Tablas!$CQ$18)+AT36)) -> 25.24323363 | AY36: 24 | AZ36: =+'Ingreso Datos Energía'!$U$36*(($P36+(P37-P36)*2/3)-$AY36)+'Ingreso Datos Energía'!$U$38*('Ingreso Datos Energía'!$U$35-$AY36) -> -4976.466667 | BA36: =+AA36*Tablas!$L$4*Tablas!$L$6*'Ingreso Datos Energía'!$U$17*(($P36+(P37-P36)*2/3)-$AY36) -> -430.2472222 | BB36: 2001.791111 | BC36: =+((BB36/3)/(Tablas!$L$4*Tablas!$L$6*'Ingreso Datos Energía'!$U$17+Tablas!$CQ$18)+AY36) -> 25.44963836 | BD36: 24 | BE36: -1716.768889 | BF36: 0 | BG36: 1716.768889 | BH36: 0 | BI36: 1 | BJ36: 0 | BK36: 1 | BL36: 4.239999527 | BM36: 33
A37: 22.2 | B37: 16.3 | C37: 20 | D37: 20.7 | E37: 16.8 | F37: 16.4 | G37: 20.9 | H37: 17.4 | I37: 13.7 | J37: 12 | K37: 13.4 | L37: 2 | M37: Ene | N37: 2 | O37: 10 | P37: 20.9 | Q37: =+VLOOKUP(M37,'Ingreso Datos Generales'!$T$5:$Z$16,6,0) -> 20 | R37: =+VLOOKUP(M37,'Ingreso Datos Generales'!$T$5:$Z$16,7,0) -> 24 | S37: 1 | T37: 0 | U37: 0 | V37: =+IF(AND(L37<='Ingreso Datos Generales'!$D$9,O37>=$V$1,O37<=$V$2),1,0) -> 1 | W37: 0 | X37: 0 | Y37: 0 | Z37: =+IF(L37<=Dias_a_la_semana,('Ingreso Datos Energía'!$D$49)*V37,0) -> 3550 | AA37: =+(VLOOKUP(M37,'Ingreso Datos Energía'!$I$46:$K$57,2,0)+V37*IF(L37<=Dias_a_la_semana,VLOOKUP(M37,'Ingreso Datos Energía'!$I$46:$K$57,3,0),0)+W37*IF(L37<=Dias_a_la_semana,VLOOKUP(M37,'Ingreso Datos Energía'!$I$46:$K$57,3,0),0)) -> 1 | AB37: =+'Ingreso Datos Energía'!$U$36*(Datos!P37-Datos!AI36)+'Ingreso Datos Energía'!$U$38*('Ingreso Datos Energía'!$U$35-Datos!AI36) -> -4386.139621 | AC37: =+SUMIFS(Sol!$AO$31:$AO$186,Sol!$AP$31:$AP$186,Datos!M37,Sol!$AN$31:$AN$186,Datos!O37)*$AC$2 -> 4147.85 | AD37: 3311.710379 | AE37: =(((AD37/3)/(Tablas!$L$4*Tablas!$L$6*'Ingreso Datos Energía'!$U$17+Tablas!$CQ$18)+AI36)*1+(P36+(P37-P36)/3)*AA37/3)/(1+AA37/3) -> 24.41201556 | AF37: =+'Ingreso Datos Energía'!$U$36*(($P36+(P37-P36)/3)-$AE37)+'Ingreso Datos Energía'!$U$38*('Ingreso Datos Energía'!$U$35-$AE37)+$AC37+$Z37 -> 2169.492206 | AG37: =+(((AF37/3)/(Tablas!$L$4*Tablas!$L$6*'Ingreso Datos Energía'!$U$17+Tablas!$CQ$18)+AE37)*1+(P36+(P37-P36)*2/3)*AA37/3)/(1+AA37/3) -> 24.57899026 | AH37: =+'Ingreso Datos Energía'!$U$36*(($P36+(P37-P36)*2/3)-$AG37)+'Ingreso Datos Energía'!$U$38*('Ingreso Datos Energía'!$U$35-$AG37)+$AC37+$Z37 -> 2257.612136 | AI37: =+(((AH37/3)/(Tablas!$L$4*Tablas!$L$6*'Ingreso Datos Energía'!$U$17+Tablas!$CQ$18)+AG37)*1+P37*AA37/3)/(1+AA37/3) -> 24.88541502 | AJ37: =+AD37++(-(Tablas!$L$4*Tablas!$L$6*'Ingreso Datos Energía'!$U$17+Tablas!$CQ$18)*P37*AA37/3+(Tablas!$L$4*Tablas!$L$6*'Ingreso Datos Energía'!$U$17+Tablas!$CQ$18)*AI36)/(1+AA37/3) -> 9033.197782 | AK37: =+IF(L37<='Ingreso Datos Generales'!$D$9,IF(AL37+AM37=0,1,0),0) -> 0 | AL37: =+IF(L37<='Ingreso Datos Generales'!$D$9,IF(AI37<Q37,1,0),0) -> 0 | AM37: =+IF(L37<='Ingreso Datos Generales'!$D$9,IF(AI37>R37,1,0),0) -> 1 | AN37: 0 | AO37: 0.8854150193 | AP37: =+'Ingreso Datos Energía'!$U$36*(Datos!P37-Datos!BD36)+'Ingreso Datos Energía'!$U$38*('Ingreso Datos Energía'!$U$35-Datos!BD36) -> -4754.6 | AQ37: =+AA37*Tablas!$L$4*Tablas!$L$6*'Ingreso Datos Energía'!$U$17*(Datos!P37-Datos!BD36) -> -367.0916667 | AR37: 2576.158333 | AS37: =+IF(((AR37/3)/(Tablas!$L$4*Tablas!$L$6*'Ingreso Datos Energía'!$U$17+Tablas!$CQ$18)+BD36)<P37,P37,((AR37/3)/(Tablas!$L$4*Tablas!$L$6*'Ingreso Datos Energía'!$U$17+Tablas!$CQ$18)+BD36)) -> 25.86557824 | AT37: 24 | AU37: =+'Ingreso Datos Energía'!$U$36*(($P37+(P38-P37)/3)-$AT37)+'Ingreso Datos Energía'!$U$38*('Ingreso Datos Energía'!$U$35-$AT37) -> -4532.733333 | AV37: =+AA37*Tablas!$L$4*Tablas!$L$6*'Ingreso Datos Energía'!$U$17*(($P37+(P38-P37)/3)-$AT37) -> -303.9361111 | AW37: 2861.180556 | AX37: =+IF(((AW37/3)/(Tablas!$L$4*Tablas!$L$6*'Ingreso Datos Energía'!$U$17+Tablas!$CQ$18)+AT37)<P37,P37,((AW37/3)/(Tablas!$L$4*Tablas!$L$6*'Ingreso Datos Energía'!$U$17+Tablas!$CQ$18)+AT37)) -> 26.07198296 | AY37: 24 | AZ37: =+'Ingreso Datos Energía'!$U$36*(($P37+(P38-P37)*2/3)-$AY37)+'Ingreso Datos Energía'!$U$38*('Ingreso Datos Energía'!$U$35-$AY37) -> -4310.866667 | BA37: =+AA37*Tablas!$L$4*Tablas!$L$6*'Ingreso Datos Energía'!$U$17*(($P37+(P38-P37)*2/3)-$AY37) -> -240.7805556 | BB37: 3146.202778 | BC37: =+((BB37/3)/(Tablas!$L$4*Tablas!$L$6*'Ingreso Datos Energía'!$U$17+Tablas!$CQ$18)+AY37) -> 26.27838769 | BD37: 24 | BE37: -2861.180556 | BF37: 0 | BG37: 2861.180556 | BH37: 0 | BI37: 0 | BJ37: 1 | BK37: 1 | BL37: 3.985415019 | BM37: 34
A38: 23.1 | B38: 18 | C38: 20.5 | D38: 21.4 | E38: 17.5 | F38: 19.8 | G38: 22.5 | H38: 19.2 | I38: 14.8 | J38: 12.9 | K38: 15.3 | L38: 2 | M38: Ene | N38: 2 | O38: 11 | P38: 22.5 | Q38: =+VLOOKUP(M38,'Ingreso Datos Generales'!$T$5:$Z$16,6,0) -> 20 | R38: =+VLOOKUP(M38,'Ingreso Datos Generales'!$T$5:$Z$16,7,0) -> 24 | S38: 1 | T38: 0 | U38: 0 | V38: =+IF(AND(L38<='Ingreso Datos Generales'!$D$9,O38>=$V$1,O38<=$V$2),1,0) -> 1 | W38: 0 | X38: 0 | Y38: 0 | Z38: =+IF(L38<=Dias_a_la_semana,('Ingreso Datos Energía'!$D$49)*V38,0) -> 3550 | AA38: =+(VLOOKUP(M38,'Ingreso Datos Energía'!$I$46:$K$57,2,0)+V38*IF(L38<=Dias_a_la_semana,VLOOKUP(M38,'Ingreso Datos Energía'!$I$46:$K$57,3,0),0)+W38*IF(L38<=Dias_a_la_semana,VLOOKUP(M38,'Ingreso Datos Energía'!$I$46:$K$57,3,0),0)) -> 1 | AB38: =+'Ingreso Datos Energía'!$U$36*(Datos!P38-Datos!AI37)+'Ingreso Datos Energía'!$U$38*('Ingreso Datos Energía'!$U$35-Datos!AI37) -> -4798.21743 | AC38: =+SUMIFS(Sol!$AO$31:$AO$186,Sol!$AP$31:$AP$186,Datos!M38,Sol!$AN$31:$AN$186,Datos!O38)*$AC$2 -> 4127.515 | AD38: 2879.29757 | AE38: =(((AD38/3)/(Tablas!$L$4*Tablas!$L$6*'Ingreso Datos Energía'!$U$17+Tablas!$CQ$18)+AI37)*1+(P37+(P38-P37)/3)*AA38/3)/(1+AA38/3) -> 25.58622168 | AF38: =+'Ingreso Datos Energía'!$U$36*(($P37+(P38-P37)/3)-$AE38)+'Ingreso Datos Energía'!$U$38*('Ingreso Datos Energía'!$U$35-$AE38)+$AC38+$Z38 -> 1874.218102 | AG38: =+(((AF38/3)/(Tablas!$L$4*Tablas!$L$6*'Ingreso Datos Energía'!$U$17+Tablas!$CQ$18)+AE38)*1+(P37+(P38-P37)*2/3)*AA38/3)/(1+AA38/3) -> 25.69927322 | AH38: =+'Ingreso Datos Energía'!$U$36*(($P37+(P38-P37)*2/3)-$AG38)+'Ingreso Datos Energía'!$U$38*('Ingreso Datos Energía'!$U$35-$AG38)+$AC38+$Z38 -> 2005.530482 | AI38: =+(((AH38/3)/(Tablas!$L$4*Tablas!$L$6*'Ingreso Datos Energía'!$U$17+Tablas!$CQ$18)+AG38)*1+P38*AA38/3)/(1+AA38/3) -> 25.98871464 | AJ38: =+AD38++(-(Tablas!$L$4*Tablas!$L$6*'Ingreso Datos Energía'!$U$17+Tablas!$CQ$18)*P38*AA38/3+(Tablas!$L$4*Tablas!$L$6*'Ingreso Datos Energía'!$U$17+Tablas!$CQ$18)*AI37)/(1+AA38/3) -> 8881.134006 | AK38: =+IF(L38<='Ingreso Datos Generales'!$D$9,IF(AL38+AM38=0,1,0),0) -> 0 | AL38: =+IF(L38<='Ingreso Datos Generales'!$D$9,IF(AI38<Q38,1,0),0) -> 0 | AM38: =+IF(L38<='Ingreso Datos Generales'!$D$9,IF(AI38>R38,1,0),0) -> 1 | AN38: 0 | AO38: 1.988714642 | AP38: =+'Ingreso Datos Energía'!$U$36*(Datos!P38-Datos!BD37)+'Ingreso Datos Energía'!$U$38*('Ingreso Datos Energía'!$U$35-Datos!BD37) -> -4089 | AQ38: =+AA38*Tablas!$L$4*Tablas!$L$6*'Ingreso Datos Energía'!$U$17*(Datos!P38-Datos!BD37) -> -177.625 | AR38: 3410.89 | AS38: =+IF(((AR38/3)/(Tablas!$L$4*Tablas!$L$6*'Ingreso Datos Energía'!$U$17+Tablas!$CQ$18)+BD37)<P38,P38,((AR38/3)/(Tablas!$L$4*Tablas!$L$6*'Ingreso Datos Energía'!$U$17+Tablas!$CQ$18)+BD37)) -> 26.47006641 | AT38: 24 | AU38: =+'Ingreso Datos Energía'!$U$36*(($P38+(P39-P38)/3)-$AT38)+'Ingreso Datos Energía'!$U$38*('Ingreso Datos Energía'!$U$35-$AT38) -> -3756.2 | AV38: =+AA38*Tablas!$L$4*Tablas!$L$6*'Ingreso Datos Energía'!$U$17*(($P38+(P39-P38)/3)-$AT38) -> -82.89166667 | AW38: 3838.423333 | AX38: =+IF(((AW38/3)/(Tablas!$L$4*Tablas!$L$6*'Ingreso Datos Energía'!$U$17+Tablas!$CQ$18)+AT38)<P38,P38,((AW38/3)/(Tablas!$L$4*Tablas!$L$6*'Ingreso Datos Energía'!$U$17+Tablas!$CQ$18)+AT38)) -> 26.7796735 | AY38: 24 | AZ38: =+'Ingreso Datos Energía'!$U$36*(($P38+(P39-P38)*2/3)-$AY38)+'Ingreso Datos Energía'!$U$38*('Ingreso Datos Energía'!$U$35-$AY38) -> -3423.4 | BA38: =+AA38*Tablas!$L$4*Tablas!$L$6*'Ingreso Datos Energía'!$U$17*(($P38+(P39-P38)*2/3)-$AY38) -> 11.84166667 | BB38: 4265.956667 | BC38: =+((BB38/3)/(Tablas!$L$4*Tablas!$L$6*'Ingreso Datos Energía'!$U$17+Tablas!$CQ$18)+AY38) -> 27.08928058 | BD38: 24 | BE38: -3838.423333 | BF38: 0 | BG38: 3838.423333 | BH38: 0 | BI38: 0 | BJ38: 1 | BK38: 1 | BL38: 3.488714642 | BM38: 35
A39: 23.8 | B39: 19.4 | C39: 20.9 | D39: 22.2 | E39: 18.5 | F39: 22.8 | G39: 24.9 | H39: 21.2 | I39: 16.6 | J39: 14 | K39: 17.1 | L39: 2 | M39: Ene | N39: 2 | O39: 12 | P39: 24.9 | Q39: =+VLOOKUP(M39,'Ingreso Datos Generales'!$T$5:$Z$16,6,0) -> 20 | R39: =+VLOOKUP(M39,'Ingreso Datos Generales'!$T$5:$Z$16,7,0) -> 24 | S39: 0 | T39: 0 | U39: 1 | V39: =+IF(AND(L39<='Ingreso Datos Generales'!$D$9,O39>=$V$1,O39<=$V$2),1,0) -> 1 | W39: 0 | X39: 0 | Y39: 0.9 | Z39: =+IF(L39<=Dias_a_la_semana,('Ingreso Datos Energía'!$D$49)*V39,0) -> 3550 | AA39: =+(VLOOKUP(M39,'Ingreso Datos Energía'!$I$46:$K$57,2,0)+V39*IF(L39<=Dias_a_la_semana,VLOOKUP(M39,'Ingreso Datos Energía'!$I$46:$K$57,3,0),0)+W39*IF(L39<=Dias_a_la_semana,VLOOKUP(M39,'Ingreso Datos Energía'!$I$46:$K$57,3,0),0)) -> 1 | AB39: =+'Ingreso Datos Energía'!$U$36*(Datos!P39-Datos!AI38)+'Ingreso Datos Energía'!$U$38*('Ingreso Datos Energía'!$U$35-Datos!AI38) -> -4683.560428 | AC39: =+SUMIFS(Sol!$AO$31:$AO$186,Sol!$AP$31:$AP$186,Datos!M39,Sol!$AN$31:$AN$186,Datos!O39)*$AC$2 -> 3879.82 | AD39: 2746.259572 | AE39: =(((AD39/3)/(Tablas!$L$4*Tablas!$L$6*'Ingreso Datos Energía'!$U$17+Tablas!$CQ$18)+AI38)*1+(P38+(P39-P38)/3)*AA39/3)/(1+AA39/3) -> 26.8081064 | AF39: =+'Ingreso Datos Energía'!$U$36*(($P38+(P39-P38)/3)-$AE39)+'Ingreso Datos Energía'!$U$38*('Ingreso Datos Energía'!$U$35-$AE39)+$AC39+$Z39 -> 1424.326772 | AG39: =+(((AF39/3)/(Tablas!$L$4*Tablas!$L$6*'Ingreso Datos Energía'!$U$17+Tablas!$CQ$18)+AE39)*1+(P38+(P39-P38)*2/3)*AA39/3)/(1+AA39/3) -> 26.90467153 | AH39: =+'Ingreso Datos Energía'!$U$36*(($P38+(P39-P38)*2/3)-$AG39)+'Ingreso Datos Energía'!$U$38*('Ingreso Datos Energía'!$U$35-$AG39)+$AC39+$Z39 -> 1679.778106 | AI39: =+(((AH39/3)/(Tablas!$L$4*Tablas!$L$6*'Ingreso Datos Energía'!$U$17+Tablas!$CQ$18)+AG39)*1+P39*AA39/3)/(1+AA39/3) -> 27.31583814 | AJ39: =+AD39++(-(Tablas!$L$4*Tablas!$L$6*'Ingreso Datos Energía'!$U$17+Tablas!$CQ$18)*P39*AA39/3+(Tablas!$L$4*Tablas!$L$6*'Ingreso Datos Energía'!$U$17+Tablas!$CQ$18)*AI38)/(1+AA39/3) -> 8852.801862 | AK39: =+IF(L39<='Ingreso Datos Generales'!$D$9,IF(AL39+AM39=0,1,0),0) -> 0 | AL39: =+IF(L39<='Ingreso Datos Generales'!$D$9,IF(AI39<Q39,1,0),0) -> 0 | AM39: =+IF(L39<='Ingreso Datos Generales'!$D$9,IF(AI39>R39,1,0),0) -> 1 | AN39: 0 | AO39: 3.31583814 | AP39: =+'Ingreso Datos Energía'!$U$36*(Datos!P39-Datos!BD38)+'Ingreso Datos Energía'!$U$38*('Ingreso Datos Energía'!$U$35-Datos!BD38) -> -3090.6 | AQ39: =+AA39*Tablas!$L$4*Tablas!$L$6*'Ingreso Datos Energía'!$U$17*(Datos!P39-Datos!BD38) -> 106.575 | AR39: 4445.795 | AS39: =+IF(((AR39/3)/(Tablas!$L$4*Tablas!$L$6*'Ingreso Datos Energía'!$U$17+Tablas!$CQ$18)+BD38)<P39,P39,((AR39/3)/(Tablas!$L$4*Tablas!$L$6*'Ingreso Datos Energía'!$U$17+Tablas!$CQ$18)+BD38)) -> 27.21951423 | AT39: 24 | AU39: =+'Ingreso Datos Energía'!$U$36*(($P39+(P40-P39)/3)-$AT39)+'Ingreso Datos Energía'!$U$38*('Ingreso Datos Energía'!$U$35-$AT39) -> -2799.4 | AV39: =+AA39*Tablas!$L$4*Tablas!$L$6*'Ingreso Datos Energía'!$U$17*(($P39+(P40-P39)/3)-$AT39) -> 189.4666667 | AW39: 4819.886667 | AX39: =+IF(((AW39/3)/(Tablas!$L$4*Tablas!$L$6*'Ingreso Datos Energía'!$U$17+Tablas!$CQ$18)+AT39)<P39,P39,((AW39/3)/(Tablas!$L$4*Tablas!$L$6*'Ingreso Datos Energía'!$U$17+Tablas!$CQ$18)+AT39)) -> 27.49042043 | AY39: 24 | AZ39: =+'Ingreso Datos Energía'!$U$36*(($P39+(P40-P39)*2/3)-$AY39)+'Ingreso Datos Energía'!$U$38*('Ingreso Datos Energía'!$U$35-$AY39) -> -2508.2 | BA39: =+AA39*Tablas!$L$4*Tablas!$L$6*'Ingreso Datos Energía'!$U$17*(($P39+(P40-P39)*2/3)-$AY39) -> 272.3583333 | BB39: 5193.978333 | BC39: =+((BB39/3)/(Tablas!$L$4*Tablas!$L$6*'Ingreso Datos Energía'!$U$17+Tablas!$CQ$18)+AY39) -> 27.76132663 | BD39: 24 | BE39: -4819.886667 | BF39: 0 | BG39: 4819.886667 | BH39: 1 | BI39: 0 | BJ39: 0 | BK39: 0 | BL39: 2.41583814 | BM39: 36
A40: 24.6 | B40: 20.6 | C40: 21.4 | D40: 22.7 | E40: 19.4 | F40: 25.2 | G40: 27 | H40: 22.4 | I40: 18.2 | J40: 13.9 | K40: 18.5 | L40: 2 | M40: Ene | N40: 2 | O40: 13 | P40: 27 | Q40: =+VLOOKUP(M40,'Ingreso Datos Generales'!$T$5:$Z$16,6,0) -> 20 | R40: =+VLOOKUP(M40,'Ingreso Datos Generales'!$T$5:$Z$16,7,0) -> 24 | S40: 0 | T40: 0 | U40: 1 | V40: =+IF(AND(L40<='Ingreso Datos Generales'!$D$9,O40>=$V$1,O40<=$V$2),1,0) -> 1 | W40: 0 | X40: 0 | Y40: 3 | Z40: =+IF(L40<=Dias_a_la_semana,('Ingreso Datos Energía'!$D$49)*V40,0) -> 3550 | AA40: =+(VLOOKUP(M40,'Ingreso Datos Energía'!$I$46:$K$57,2,0)+V40*IF(L40<=Dias_a_la_semana,VLOOKUP(M40,'Ingreso Datos Energía'!$I$46:$K$57,3,0),0)+W40*IF(L40<=Dias_a_la_semana,VLOOKUP(M40,'Ingreso Datos Energía'!$I$46:$K$57,3,0),0)) -> 1 | AB40: =+'Ingreso Datos Energía'!$U$36*(Datos!P40-Datos!AI39)+'Ingreso Datos Energía'!$U$38*('Ingreso Datos Energía'!$U$35-Datos!AI39) -> -4872.98635 | AC40: =+SUMIFS(Sol!$AO$31:$AO$186,Sol!$AP$31:$AP$186,Datos!M40,Sol!$AN$31:$AN$186,Datos!O40)*$AC$2 -> 4127.515 | AD40: 2804.52865 | AE40: =(((AD40/3)/(Tablas!$L$4*Tablas!$L$6*'Ingreso Datos Energía'!$U$17+Tablas!$CQ$18)+AI39)*1+(P39+(P40-P39)/3)*AA40/3)/(1+AA40/3) -> 28.41009659 | AF40: =+'Ingreso Datos Energía'!$U$36*(($P39+(P40-P39)/3)-$AE40)+'Ingreso Datos Energía'!$U$38*('Ingreso Datos Energía'!$U$35-$AE40)+$AC40+$Z40 -> 1345.627629 | AG40: =+(((AF40/3)/(Tablas!$L$4*Tablas!$L$6*'Ingreso Datos Energía'!$U$17+Tablas!$CQ$18)+AE40)*1+(P39+(P40-P39)*2/3)*AA40/3)/(1+AA40/3) -> 28.61342046 | AH40: =+'Ingreso Datos Energía'!$U$36*(($P39+(P40-P39)*2/3)-$AG40)+'Ingreso Datos Energía'!$U$38*('Ingreso Datos Energía'!$U$35-$AG40)+$AC40+$Z40 -> 1473.965208 | AI40: =+(((AH40/3)/(Tablas!$L$4*Tablas!$L$6*'Ingreso Datos Energía'!$U$17+Tablas!$CQ$18)+AG40)*1+P40*AA40/3)/(1+AA40/3) -> 29.0106171 | AJ40: =+AD40++(-(Tablas!$L$4*Tablas!$L$6*'Ingreso Datos Energía'!$U$17+Tablas!$CQ$18)*P40*AA40/3+(Tablas!$L$4*Tablas!$L$6*'Ingreso Datos Energía'!$U$17+Tablas!$CQ$18)*AI39)/(1+AA40/3) -> 9127.568082 | AK40: =+IF(L40<='Ingreso Datos Generales'!$D$9,IF(AL40+AM40=0,1,0),0) -> 0 | AL40: =+IF(L40<='Ingreso Datos Generales'!$D$9,IF(AI40<Q40,1,0),0) -> 0 | AM40: =+IF(L40<='Ingreso Datos Generales'!$D$9,IF(AI40>R40,1,0),0) -> 1 | AN40: 0 | AO40: 5.010617098 | AP40: =+'Ingreso Datos Energía'!$U$36*(Datos!P40-Datos!BD39)+'Ingreso Datos Energía'!$U$38*('Ingreso Datos Energía'!$U$35-Datos!BD39) -> -2217 | AQ40: =+AA40*Tablas!$L$4*Tablas!$L$6*'Ingreso Datos Energía'!$U$17*(Datos!P40-Datos!BD39) -> 355.25 | AR40: 5815.765 | AS40: =+IF(((AR40/3)/(Tablas!$L$4*Tablas!$L$6*'Ingreso Datos Energía'!$U$17+Tablas!$CQ$18)+BD39)<P40,P40,((AR40/3)/(Tablas!$L$4*Tablas!$L$6*'Ingreso Datos Energía'!$U$17+Tablas!$CQ$18)+BD39)) -> 28.21160628 | AT40: 24 | AU40: =+'Ingreso Datos Energía'!$U$36*(($P40+(P41-P40)/3)-$AT40)+'Ingreso Datos Energía'!$U$38*('Ingreso Datos Energía'!$U$35-$AT40) -> -2106.066667 | AV40: =+AA40*Tablas!$L$4*Tablas!$L$6*'Ingreso Datos Energía'!$U$17*(($P40+(P41-P40)/3)-$AT40) -> 386.8277778 | AW40: 5958.276111 | AX40: =+IF(((AW40/3)/(Tablas!$L$4*Tablas!$L$6*'Ingreso Datos Energía'!$U$17+Tablas!$CQ$18)+AT40)<P40,P40,((AW40/3)/(Tablas!$L$4*Tablas!$L$6*'Ingreso Datos Energía'!$U$17+Tablas!$CQ$18)+AT40)) -> 28.31480865 | AY40: 24 | AZ40: =+'Ingreso Datos Energía'!$U$36*(($P40+(P41-P40)*2/3)-$AY40)+'Ingreso Datos Energía'!$U$38*('Ingreso Datos Energía'!$U$35-$AY40) -> -1995.133333 | BA40: =+AA40*Tablas!$L$4*Tablas!$L$6*'Ingreso Datos Energía'!$U$17*(($P40+(P41-P40)*2/3)-$AY40) -> 418.4055556 | BB40: 6100.787222 | BC40: =+((BB40/3)/(Tablas!$L$4*Tablas!$L$6*'Ingreso Datos Energía'!$U$17+Tablas!$CQ$18)+AY40) -> 28.41801101 | BD40: 24 | BE40: -5958.276111 | BF40: 0 | BG40: 5958.276111 | BH40: 1 | BI40: 0 | BJ40: 0 | BK40: 0 | BL40: 2.010617098 | BM40: 37
A41: 24.9 | B41: 21.4 | C41: 21.9 | D41: 23.1 | E41: 19.8 | F41: 26.9 | G41: 27.8 | H41: 22.6 | I41: 18.7 | J41: 14.2 | K41: 19.6 | L41: 2 | M41: Ene | N41: 2 | O41: 14 | P41: 27.8 | Q41: =+VLOOKUP(M41,'Ingreso Datos Generales'!$T$5:$Z$16,6,0) -> 20 | R41: =+VLOOKUP(M41,'Ingreso Datos Generales'!$T$5:$Z$16,7,0) -> 24 | S41: 0 | T41: 0 | U41: 1 | V41: =+IF(AND(L41<='Ingreso Datos Generales'!$D$9,O41>=$V$1,O41<=$V$2),1,0) -> 1 | W41: 0 | X41: 0 | Y41: 3.8 | Z41: =+IF(L41<=Dias_a_la_semana,('Ingreso Datos Energía'!$D$49)*V41,0) -> 3550 | AA41: =+(VLOOKUP(M41,'Ingreso Datos Energía'!$I$46:$K$57,2,0)+V41*IF(L41<=Dias_a_la_semana,VLOOKUP(M41,'Ingreso Datos Energía'!$I$46:$K$57,3,0),0)+W41*IF(L41<=Dias_a_la_semana,VLOOKUP(M41,'Ingreso Datos Energía'!$I$46:$K$57,3,0),0)) -> 1 | AB41: =+'Ingreso Datos Energía'!$U$36*(Datos!P41-Datos!AI40)+'Ingreso Datos Energía'!$U$38*('Ingreso Datos Energía'!$U$35-Datos!AI40) -> -5897.704296 | AC41: =+SUMIFS(Sol!$AO$31:$AO$186,Sol!$AP$31:$AP$186,Datos!M41,Sol!$AN$31:$AN$186,Datos!O41)*$AC$2 -> 4147.85 | AD41: 1800.145704 | AE41: =(((AD41/3)/(Tablas!$L$4*Tablas!$L$6*'Ingreso Datos Energía'!$U$17+Tablas!$CQ$18)+AI40)*1+(P40+(P41-P40)/3)*AA41/3)/(1+AA41/3) -> 29.552339 | AF41: =+'Ingreso Datos Energía'!$U$36*(($P40+(P41-P40)/3)-$AE41)+'Ingreso Datos Energía'!$U$38*('Ingreso Datos Energía'!$U$35-$AE41)+$AC41+$Z41 -> 1144.359798 | AG41: =+(((AF41/3)/(Tablas!$L$4*Tablas!$L$6*'Ingreso Datos Energía'!$U$17+Tablas!$CQ$18)+AE41)*1+(P40+(P41-P40)*2/3)*AA41/3)/(1+AA41/3) -> 29.66912141 | AH41: =+'Ingreso Datos Energía'!$U$36*(($P40+(P41-P40)*2/3)-$AG41)+'Ingreso Datos Energía'!$U$38*('Ingreso Datos Energía'!$U$35-$AG41)+$AC41+$Z41 -> 1161.750419 | AI41: =+(((AH41/3)/(Tablas!$L$4*Tablas!$L$6*'Ingreso Datos Energía'!$U$17+Tablas!$CQ$18)+AG41)*1+P41*AA41/3)/(1+AA41/3) -> 29.83282022 | AJ41: =+AD41++(-(Tablas!$L$4*Tablas!$L$6*'Ingreso Datos Energía'!$U$17+Tablas!$CQ$18)*P41*AA41/3+(Tablas!$L$4*Tablas!$L$6*'Ingreso Datos Energía'!$U$17+Tablas!$CQ$18)*AI40)/(1+AA41/3) -> 8616.201632 | AK41: =+IF(L41<='Ingreso Datos Generales'!$D$9,IF(AL41+AM41=0,1,0),0) -> 0 | AL41: =+IF(L41<='Ingreso Datos Generales'!$D$9,IF(AI41<Q41,1,0),0) -> 0 | AM41: =+IF(L41<='Ingreso Datos Generales'!$D$9,IF(AI41>R41,1,0),0) -> 1 | AN41: 0 | AO41: 5.832820217 | AP41: =+'Ingreso Datos Energía'!$U$36*(Datos!P41-Datos!BD40)+'Ingreso Datos Energía'!$U$38*('Ingreso Datos Energía'!$U$35-Datos!BD40) -> -1884.2 | AQ41: =+AA41*Tablas!$L$4*Tablas!$L$6*'Ingreso Datos Energía'!$U$17*(Datos!P41-Datos!BD40) -> 449.9833333 | AR41: 6263.633333 | AS41: =+IF(((AR41/3)/(Tablas!$L$4*Tablas!$L$6*'Ingreso Datos Energía'!$U$17+Tablas!$CQ$18)+BD40)<P41,P41,((AR41/3)/(Tablas!$L$4*Tablas!$L$6*'Ingreso Datos Energía'!$U$17+Tablas!$CQ$18)+BD40)) -> 28.53593938 | AT41: 24 | AU41: =+'Ingreso Datos Energía'!$U$36*(($P41+(P42-P41)/3)-$AT41)+'Ingreso Datos Energía'!$U$38*('Ingreso Datos Energía'!$U$35-$AT41) -> -1856.466667 | AV41: =+AA41*Tablas!$L$4*Tablas!$L$6*'Ingreso Datos Energía'!$U$17*(($P41+(P42-P41)/3)-$AT41) -> 457.8777778 | AW41: 6299.261111 | AX41: =+IF(((AW41/3)/(Tablas!$L$4*Tablas!$L$6*'Ingreso Datos Energía'!$U$17+Tablas!$CQ$18)+AT41)<P41,P41,((AW41/3)/(Tablas!$L$4*Tablas!$L$6*'Ingreso Datos Energía'!$U$17+Tablas!$CQ$18)+AT41)) -> 28.56173997 | AY41: 24 | AZ41: =+'Ingreso Datos Energía'!$U$36*(($P41+(P42-P41)*2/3)-$AY41)+'Ingreso Datos Energía'!$U$38*('Ingreso Datos Energía'!$U$35-$AY41) -> -1828.733333 | BA41: =+AA41*Tablas!$L$4*Tablas!$L$6*'Ingreso Datos Energía'!$U$17*(($P41+(P42-P41)*2/3)-$AY41) -> 465.7722222 | BB41: 6334.888889 | BC41: =+((BB41/3)/(Tablas!$L$4*Tablas!$L$6*'Ingreso Datos Energía'!$U$17+Tablas!$CQ$18)+AY41) -> 28.58754056 | BD41: 24 | BE41: -6299.261111 | BF41: 0 | BG41: 6299.261111 | BH41: 1 | BI41: 0 | BJ41: 0 | BK41: 0 | BL41: 2.032820217 | BM41: 38
A42: 25.1 | B42: 21.8 | C42: 22.1 | D42: 23.6 | E42: 19.9 | F42: 27.7 | G42: 28 | H42: 22.5 | I42: 18.9 | J42: 14.5 | K42: 20.2 | L42: 2 | M42: Ene | N42: 2 | O42: 15 | P42: 28 | Q42: =+VLOOKUP(M42,'Ingreso Datos Generales'!$T$5:$Z$16,6,0) -> 20 | R42: =+VLOOKUP(M42,'Ingreso Datos Generales'!$T$5:$Z$16,7,0) -> 24 | S42: 0 | T42: 0 | U42: 1 | V42: =+IF(AND(L42<='Ingreso Datos Generales'!$D$9,O42>=$V$1,O42<=$V$2),1,0) -> 1 | W42: 0 | X42: 0 | Y42: 4 | Z42: =+IF(L42<=Dias_a_la_semana,('Ingreso Datos Energía'!$D$49)*V42,0) -> 3550 | AA42: =+(VLOOKUP(M42,'Ingreso Datos Energía'!$I$46:$K$57,2,0)+V42*IF(L42<=Dias_a_la_semana,VLOOKUP(M42,'Ingreso Datos Energía'!$I$46:$K$57,3,0),0)+W42*IF(L42<=Dias_a_la_semana,VLOOKUP(M42,'Ingreso Datos Energía'!$I$46:$K$57,3,0),0)) -> 1 | AB42: =+'Ingreso Datos Energía'!$U$36*(Datos!P42-Datos!AI41)+'Ingreso Datos Energía'!$U$38*('Ingreso Datos Energía'!$U$35-Datos!AI41) -> -6473.088994 | AC42: =+SUMIFS(Sol!$AO$31:$AO$186,Sol!$AP$31:$AP$186,Datos!M42,Sol!$AN$31:$AN$186,Datos!O42)*$AC$2 -> 3858.505 | AD42: 935.4160058 | AE42: =(((AD42/3)/(Tablas!$L$4*Tablas!$L$6*'Ingreso Datos Energía'!$U$17+Tablas!$CQ$18)+AI41)*1+(P41+(P42-P41)/3)*AA42/3)/(1+AA42/3) -> 29.84933244 | AF42: =+'Ingreso Datos Energía'!$U$36*(($P41+(P42-P41)/3)-$AE42)+'Ingreso Datos Energía'!$U$38*('Ingreso Datos Energía'!$U$35-$AE42)+$AC42+$Z42 -> 866.7230505 | AG42: =+(((AF42/3)/(Tablas!$L$4*Tablas!$L$6*'Ingreso Datos Energía'!$U$17+Tablas!$CQ$18)+AE42)*1+(P41+(P42-P41)*2/3)*AA42/3)/(1+AA42/3) -> 29.8410742 | AH42: =+'Ingreso Datos Energía'!$U$36*(($P41+(P42-P41)*2/3)-$AG42)+'Ingreso Datos Energía'!$U$38*('Ingreso Datos Energía'!$U$35-$AG42)+$AC42+$Z42 -> 901.0712294 | AI42: =+(((AH42/3)/(Tablas!$L$4*Tablas!$L$6*'Ingreso Datos Energía'!$U$17+Tablas!$CQ$18)+AG42)*1+P42*AA42/3)/(1+AA42/3) -> 29.87020265 | AJ42: =+AD42++(-(Tablas!$L$4*Tablas!$L$6*'Ingreso Datos Energía'!$U$17+Tablas!$CQ$18)*P42*AA42/3+(Tablas!$L$4*Tablas!$L$6*'Ingreso Datos Energía'!$U$17+Tablas!$CQ$18)*AI41)/(1+AA42/3) -> 8012.300117 | AK42: =+IF(L42<='Ingreso Datos Generales'!$D$9,IF(AL42+AM42=0,1,0),0) -> 0 | AL42: =+IF(L42<='Ingreso Datos Generales'!$D$9,IF(AI42<Q42,1,0),0) -> 0 | AM42: =+IF(L42<='Ingreso Datos Generales'!$D$9,IF(AI42>R42,1,0),0) -> 1 | AN42: 0 | AO42: 5.870202652 | AP42: =+'Ingreso Datos Energía'!$U$36*(Datos!P42-Datos!BD41)+'Ingreso Datos Energía'!$U$38*('Ingreso Datos Energía'!$U$35-Datos!BD41) -> -1801 | AQ42: =+AA42*Tablas!$L$4*Tablas!$L$6*'Ingreso Datos Energía'!$U$17*(Datos!P42-Datos!BD41) -> 473.6666667 | AR42: 6081.171667 | AS42: =+IF(((AR42/3)/(Tablas!$L$4*Tablas!$L$6*'Ingreso Datos Energía'!$U$17+Tablas!$CQ$18)+BD41)<P42,P42,((AR42/3)/(Tablas!$L$4*Tablas!$L$6*'Ingreso Datos Energía'!$U$17+Tablas!$CQ$18)+BD41)) -> 28.403806 | AT42: 24 | AU42: =+'Ingreso Datos Energía'!$U$36*(($P42+(P43-P42)/3)-$AT42)+'Ingreso Datos Energía'!$U$38*('Ingreso Datos Energía'!$U$35-$AT42) -> -1731.666667 | AV42: =+AA42*Tablas!$L$4*Tablas!$L$6*'Ingreso Datos Energía'!$U$17*(($P42+(P43-P42)/3)-$AT42) -> 493.4027778 | AW42: 6170.241111 | AX42: =+IF(((AW42/3)/(Tablas!$L$4*Tablas!$L$6*'Ingreso Datos Energía'!$U$17+Tablas!$CQ$18)+AT42)<P42,P42,((AW42/3)/(Tablas!$L$4*Tablas!$L$6*'Ingreso Datos Energía'!$U$17+Tablas!$CQ$18)+AT42)) -> 28.46830748 | AY42: 24 | AZ42: =+'Ingreso Datos Energía'!$U$36*(($P42+(P43-P42)*2/3)-$AY42)+'Ingreso Datos Energía'!$U$38*('Ingreso Datos Energía'!$U$35-$AY42) -> -1662.333333 | BA42: =+AA42*Tablas!$L$4*Tablas!$L$6*'Ingreso Datos Energía'!$U$17*(($P42+(P43-P42)*2/3)-$AY42) -> 513.1388889 | BB42: 6259.310556 | BC42: =+((BB42/3)/(Tablas!$L$4*Tablas!$L$6*'Ingreso Datos Energía'!$U$17+Tablas!$CQ$18)+AY42) -> 28.53280895 | BD42: 24 | BE42: -6170.241111 | BF42: 0 | BG42: 6170.241111 | BH42: 1 | BI42: 0 | BJ42: 0 | BK42: 0 | BL42: 1.870202652 | BM42: 39
A43: 25.1 | B43: 21.8 | C43: 21.8 | D43: 23.9 | E43: 20.1 | F43: 28 | G43: 28.5 | H43: 21.8 | I43: 19.3 | J43: 14.7 | K43: 20.6 | L43: 2 | M43: Ene | N43: 2 | O43: 16 | P43: 28.5 | Q43: =+VLOOKUP(M43,'Ingreso Datos Generales'!$T$5:$Z$16,6,0) -> 20 | R43: =+VLOOKUP(M43,'Ingreso Datos Generales'!$T$5:$Z$16,7,0) -> 24 | S43: 0 | T43: 0 | U43: 1 | V43: =+IF(AND(L43<='Ingreso Datos Generales'!$D$9,O43>=$V$1,O43<=$V$2),1,0) -> 1 | W43: 0 | X43: 0 | Y43: 4.5 | Z43: =+IF(L43<=Dias_a_la_semana,('Ingreso Datos Energía'!$D$49)*V43,0) -> 3550 | AA43: =+(VLOOKUP(M43,'Ingreso Datos Energía'!$I$46:$K$57,2,0)+V43*IF(L43<=Dias_a_la_semana,VLOOKUP(M43,'Ingreso Datos Energía'!$I$46:$K$57,3,0),0)+W43*IF(L43<=Dias_a_la_semana,VLOOKUP(M43,'Ingreso Datos Energía'!$I$46:$K$57,3,0),0)) -> 1 | AB43: =+'Ingreso Datos Energía'!$U$36*(Datos!P43-Datos!AI42)+'Ingreso Datos Energía'!$U$38*('Ingreso Datos Energía'!$U$35-Datos!AI42) -> -6295.032324 | AC43: =+SUMIFS(Sol!$AO$31:$AO$186,Sol!$AP$31:$AP$186,Datos!M43,Sol!$AN$31:$AN$186,Datos!O43)*$AC$2 -> 3373.16 | AD43: 628.1276758 | AE43: =(((AD43/3)/(Tablas!$L$4*Tablas!$L$6*'Ingreso Datos Energía'!$U$17+Tablas!$CQ$18)+AI42)*1+(P42+(P43-P42)/3)*AA43/3)/(1+AA43/3) -> 29.78547237 | AF43: =+'Ingreso Datos Energía'!$U$36*(($P42+(P43-P42)/3)-$AE43)+'Ingreso Datos Energía'!$U$38*('Ingreso Datos Energía'!$U$35-$AE43)+$AC43+$Z43 -> 557.3299625 | AG43: =+(((AF43/3)/(Tablas!$L$4*Tablas!$L$6*'Ingreso Datos Energía'!$U$17+Tablas!$CQ$18)+AE43)*1+(P42+(P43-P42)*2/3)*AA43/3)/(1+AA43/3) -> 29.72513911 | AH43: =+'Ingreso Datos Energía'!$U$36*(($P42+(P43-P42)*2/3)-$AG43)+'Ingreso Datos Energía'!$U$38*('Ingreso Datos Energía'!$U$35-$AG43)+$AC43+$Z43 -> 674.9902385 | AI43: =+(((AH43/3)/(Tablas!$L$4*Tablas!$L$6*'Ingreso Datos Energía'!$U$17+Tablas!$CQ$18)+AG43)*1+P43*AA43/3)/(1+AA43/3) -> 29.78546042 | AJ43: =+AD43++(-(Tablas!$L$4*Tablas!$L$6*'Ingreso Datos Energía'!$U$17+Tablas!$CQ$18)*P43*AA43/3+(Tablas!$L$4*Tablas!$L$6*'Ingreso Datos Energía'!$U$17+Tablas!$CQ$18)*AI42)/(1+AA43/3) -> 7660.379961 | AK43: =+IF(L43<='Ingreso Datos Generales'!$D$9,IF(AL43+AM43=0,1,0),0) -> 0 | AL43: =+IF(L43<='Ingreso Datos Generales'!$D$9,IF(AI43<Q43,1,0),0) -> 0 | AM43: =+IF(L43<='Ingreso Datos Generales'!$D$9,IF(AI43>R43,1,0),0) -> 1 | AN43: 0 | AO43: 5.78546042 | AP43: =+'Ingreso Datos Energía'!$U$36*(Datos!P43-Datos!BD42)+'Ingreso Datos Energía'!$U$38*('Ingreso Datos Energía'!$U$35-Datos!BD42) -> -1593 | AQ43: =+AA43*Tablas!$L$4*Tablas!$L$6*'Ingreso Datos Energía'!$U$17*(Datos!P43-Datos!BD42) -> 532.875 | AR43: 5863.035 | AS43: =+IF(((AR43/3)/(Tablas!$L$4*Tablas!$L$6*'Ingreso Datos Energía'!$U$17+Tablas!$CQ$18)+BD42)<P43,P43,((AR43/3)/(Tablas!$L$4*Tablas!$L$6*'Ingreso Datos Energía'!$U$17+Tablas!$CQ$18)+BD42)) -> 28.5 | AT43: 24 | AU43: =+'Ingreso Datos Energía'!$U$36*(($P43+(P44-P43)/3)-$AT43)+'Ingreso Datos Energía'!$U$38*('Ingreso Datos Energía'!$U$35-$AT43) -> -1551.4 | AV43: =+AA43*Tablas!$L$4*Tablas!$L$6*'Ingreso Datos Energía'!$U$17*(($P43+(P44-P43)/3)-$AT43) -> 544.7166667 | AW43: 5916.476667 | AX43: =+IF(((AW43/3)/(Tablas!$L$4*Tablas!$L$6*'Ingreso Datos Energía'!$U$17+Tablas!$CQ$18)+AT43)<P43,P43,((AW43/3)/(Tablas!$L$4*Tablas!$L$6*'Ingreso Datos Energía'!$U$17+Tablas!$CQ$18)+AT43)) -> 28.5 | AY43: 24 | AZ43: =+'Ingreso Datos Energía'!$U$36*(($P43+(P44-P43)*2/3)-$AY43)+'Ingreso Datos Energía'!$U$38*('Ingreso Datos Energía'!$U$35-$AY43) -> -1509.8 | BA43: =+AA43*Tablas!$L$4*Tablas!$L$6*'Ingreso Datos Energía'!$U$17*(($P43+(P44-P43)*2/3)-$AY43) -> 556.5583333 | BB43: 5969.918333 | BC43: =+((BB43/3)/(Tablas!$L$4*Tablas!$L$6*'Ingreso Datos Energía'!$U$17+Tablas!$CQ$18)+AY43) -> 28.3232396 | BD43: 24 | BE43: -5916.476667 | BF43: 0 | BG43: 5916.476667 | BH43: 1 | BI43: 0 | BJ43: 0 | BK43: 0 | BL43: 1.28546042 | BM43: 40
A44: 24.8 | B44: 21.4 | C44: 21.6 | D44: 23.9 | E44: 20.2 | F44: 27.6 | G44: 28.8 | H44: 21.6 | I44: 19.5 | J44: 14.7 | K44: 20.6 | L44: 2 | M44: Ene | N44: 2 | O44: 17 | P44: 28.8 | Q44: =+VLOOKUP(M44,'Ingreso Datos Generales'!$T$5:$Z$16,6,0) -> 20 | R44: =+VLOOKUP(M44,'Ingreso Datos Generales'!$T$5:$Z$16,7,0) -> 24 | S44: 0 | T44: 0 | U44: 1 | V44: =+IF(AND(L44<='Ingreso Datos Generales'!$D$9,O44>=$V$1,O44<=$V$2),1,0) -> 1 | W44: 0 | X44: 0 | Y44: 4.8 | Z44: =+IF(L44<=Dias_a_la_semana,('Ingreso Datos Energía'!$D$49)*V44,0) -> 3550 | AA44: =+(VLOOKUP(M44,'Ingreso Datos Energía'!$I$46:$K$57,2,0)+V44*IF(L44<=Dias_a_la_semana,VLOOKUP(M44,'Ingreso Datos Energía'!$I$46:$K$57,3,0),0)+W44*IF(L44<=Dias_a_la_semana,VLOOKUP(M44,'Ingreso Datos Energía'!$I$46:$K$57,3,0),0)) -> 1 | AB44: =+'Ingreso Datos Energía'!$U$36*(Datos!P44-Datos!AI43)+'Ingreso Datos Energía'!$U$38*('Ingreso Datos Energía'!$U$35-Datos!AI43) -> -6102.353796 | AC44: =+SUMIFS(Sol!$AO$31:$AO$186,Sol!$AP$31:$AP$186,Datos!M44,Sol!$AN$31:$AN$186,Datos!O44)*$AC$2 -> 2702.84 | AD44: 150.4862035 | AE44: =(((AD44/3)/(Tablas!$L$4*Tablas!$L$6*'Ingreso Datos Energía'!$U$17+Tablas!$CQ$18)+AI43)*1+(P43+(P44-P43)/3)*AA44/3)/(1+AA44/3) -> 29.57082858 | AF44: =+'Ingreso Datos Energía'!$U$36*(($P43+(P44-P43)/3)-$AE44)+'Ingreso Datos Energía'!$U$38*('Ingreso Datos Energía'!$U$35-$AE44)+$AC44+$Z44 -> 239.2063049 | AG44: =+(((AF44/3)/(Tablas!$L$4*Tablas!$L$6*'Ingreso Datos Energía'!$U$17+Tablas!$CQ$18)+AE44)*1+(P43+(P44-P43)*2/3)*AA44/3)/(1+AA44/3) -> 29.48304108 | AH44: =+'Ingreso Datos Energía'!$U$36*(($P43+(P44-P43)*2/3)-$AG44)+'Ingreso Datos Energía'!$U$38*('Ingreso Datos Energía'!$U$35-$AG44)+$AC44+$Z44 -> 351.1240988 | AI44: =+(((AH44/3)/(Tablas!$L$4*Tablas!$L$6*'Ingreso Datos Energía'!$U$17+Tablas!$CQ$18)+AG44)*1+P44*AA44/3)/(1+AA44/3) -> 29.50298613 | AJ44: =+AD44++(-(Tablas!$L$4*Tablas!$L$6*'Ingreso Datos Energía'!$U$17+Tablas!$CQ$18)*P44*AA44/3+(Tablas!$L$4*Tablas!$L$6*'Ingreso Datos Energía'!$U$17+Tablas!$CQ$18)*AI43)/(1+AA44/3) -> 7118.961313 | AK44: =+IF(L44<='Ingreso Datos Generales'!$D$9,IF(AL44+AM44=0,1,0),0) -> 0 | AL44: =+IF(L44<='Ingreso Datos Generales'!$D$9,IF(AI44<Q44,1,0),0) -> 0 | AM44: =+IF(L44<='Ingreso Datos Generales'!$D$9,IF(AI44>R44,1,0),0) -> 1 | AN44: 0 | AO44: 5.50298613 | AP44: =+'Ingreso Datos Energía'!$U$36*(Datos!P44-Datos!BD43)+'Ingreso Datos Energía'!$U$38*('Ingreso Datos Energía'!$U$35-Datos!BD43) -> -1468.2 | AQ44: =+AA44*Tablas!$L$4*Tablas!$L$6*'Ingreso Datos Energía'!$U$17*(Datos!P44-Datos!BD43) -> 568.4 | AR44: 5353.04 | AS44: =+IF(((AR44/3)/(Tablas!$L$4*Tablas!$L$6*'Ingreso Datos Energía'!$U$17+Tablas!$CQ$18)+BD43)<P44,P44,((AR44/3)/(Tablas!$L$4*Tablas!$L$6*'Ingreso Datos Energía'!$U$17+Tablas!$CQ$18)+BD43)) -> 28.8 | AT44: 24 | AU44: =+'Ingreso Datos Energía'!$U$36*(($P44+(P45-P44)/3)-$AT44)+'Ingreso Datos Energía'!$U$38*('Ingreso Datos Energía'!$U$35-$AT44) -> -1440.466667 | AV44: =+AA44*Tablas!$L$4*Tablas!$L$6*'Ingreso Datos Energía'!$U$17*(($P44+(P45-P44)/3)-$AT44) -> 576.2944444 | AW44: 5388.667778 | AX44: =+IF(((AW44/3)/(Tablas!$L$4*Tablas!$L$6*'Ingreso Datos Energía'!$U$17+Tablas!$CQ$18)+AT44)<P44,P44,((AW44/3)/(Tablas!$L$4*Tablas!$L$6*'Ingreso Datos Energía'!$U$17+Tablas!$CQ$18)+AT44)) -> 28.8 | AY44: 24 | AZ44: =+'Ingreso Datos Energía'!$U$36*(($P44+(P45-P44)*2/3)-$AY44)+'Ingreso Datos Energía'!$U$38*('Ingreso Datos Energía'!$U$35-$AY44) -> -1412.733333 | BA44: =+AA44*Tablas!$L$4*Tablas!$L$6*'Ingreso Datos Energía'!$U$17*(($P44+(P45-P44)*2/3)-$AY44) -> 584.1888889 | BB44: 5424.295556 | BC44: =+((BB44/3)/(Tablas!$L$4*Tablas!$L$6*'Ingreso Datos Energía'!$U$17+Tablas!$CQ$18)+AY44) -> 27.9281156 | BD44: 24 | BE44: -5388.667778 | BF44: 0 | BG44: 5388.667778 | BH44: 1 | BI44: 0 | BJ44: 0 | BK44: 0 | BL44: 0.7029861298 | BM44: 41
A45: 24.2 | B45: 20.6 | C45: 21.2 | D45: 23.5 | E45: 20.3 | F45: 26.2 | G45: 29 | H45: 21.2 | I45: 19.9 | J45: 14.4 | K45: 20.2 | L45: 2 | M45: Ene | N45: 2 | O45: 18 | P45: 29 | Q45: =+VLOOKUP(M45,'Ingreso Datos Generales'!$T$5:$Z$16,6,0) -> 20 | R45: =+VLOOKUP(M45,'Ingreso Datos Generales'!$T$5:$Z$16,7,0) -> 24 | S45: 0 | T45: 0 | U45: 1 | V45: =+IF(AND(L45<='Ingreso Datos Generales'!$D$9,O45>=$V$1,O45<=$V$2),1,0) -> 1 | W45: 0 | X45: 0 | Y45: 5 | Z45: =+IF(L45<=Dias_a_la_semana,('Ingreso Datos Energía'!$D$49)*V45,0) -> 3550 | AA45: =+(VLOOKUP(M45,'Ingreso Datos Energía'!$I$46:$K$57,2,0)+V45*IF(L45<=Dias_a_la_semana,VLOOKUP(M45,'Ingreso Datos Energía'!$I$46:$K$57,3,0),0)+W45*IF(L45<=Dias_a_la_semana,VLOOKUP(M45,'Ingreso Datos Energía'!$I$46:$K$57,3,0),0)) -> 1 | AB45: =+'Ingreso Datos Energía'!$U$36*(Datos!P45-Datos!AI44)+'Ingreso Datos Energía'!$U$38*('Ingreso Datos Energía'!$U$35-Datos!AI44) -> -5792.89189 | AC45: =+SUMIFS(Sol!$AO$31:$AO$186,Sol!$AP$31:$AP$186,Datos!M45,Sol!$AN$31:$AN$186,Datos!O45)*$AC$2 -> 1640.275 | AD45: -602.61689 | AE45: =(((AD45/3)/(Tablas!$L$4*Tablas!$L$6*'Ingreso Datos Energía'!$U$17+Tablas!$CQ$18)+AI44)*1+(P44+(P45-P44)/3)*AA45/3)/(1+AA45/3) -> 29.01660817 | AF45: =+'Ingreso Datos Energía'!$U$36*(($P44+(P45-P44)/3)-$AE45)+'Ingreso Datos Energía'!$U$38*('Ingreso Datos Energía'!$U$35-$AE45)+$AC45+$Z45 -> -268.4948094 | AG45: =+(((AF45/3)/(Tablas!$L$4*Tablas!$L$6*'Ingreso Datos Energía'!$U$17+Tablas!$CQ$18)+AE45)*1+(P44+(P45-P44)*2/3)*AA45/3)/(1+AA45/3) -> 28.84996242 | AH45: =+'Ingreso Datos Energía'!$U$36*(($P44+(P45-P44)*2/3)-$AG45)+'Ingreso Datos Energía'!$U$38*('Ingreso Datos Energía'!$U$35-$AG45)+$AC45+$Z45 -> -107.278228 | AI45: =+(((AH45/3)/(Tablas!$L$4*Tablas!$L$6*'Ingreso Datos Energía'!$U$17+Tablas!$CQ$18)+AG45)*1+P45*AA45/3)/(1+AA45/3) -> 28.829206 | AJ45: =+AD45++(-(Tablas!$L$4*Tablas!$L$6*'Ingreso Datos Energía'!$U$17+Tablas!$CQ$18)*P45*AA45/3+(Tablas!$L$4*Tablas!$L$6*'Ingreso Datos Energía'!$U$17+Tablas!$CQ$18)*AI44)/(1+AA45/3) -> 6245.326906 | AK45: =+IF(L45<='Ingreso Datos Generales'!$D$9,IF(AL45+AM45=0,1,0),0) -> 0 | AL45: =+IF(L45<='Ingreso Datos Generales'!$D$9,IF(AI45<Q45,1,0),0) -> 0 | AM45: =+IF(L45<='Ingreso Datos Generales'!$D$9,IF(AI45>R45,1,0),0) -> 1 | AN45: 0 | AO45: 4.829206004 | AP45: =+'Ingreso Datos Energía'!$U$36*(Datos!P45-Datos!BD44)+'Ingreso Datos Energía'!$U$38*('Ingreso Datos Energía'!$U$35-Datos!BD44) -> -1385 | AQ45: =+AA45*Tablas!$L$4*Tablas!$L$6*'Ingreso Datos Energía'!$U$17*(Datos!P45-Datos!BD44) -> 592.0833333 | AR45: 4397.358333 | AS45: =+IF(((AR45/3)/(Tablas!$L$4*Tablas!$L$6*'Ingreso Datos Energía'!$U$17+Tablas!$CQ$18)+BD44)<P45,P45,((AR45/3)/(Tablas!$L$4*Tablas!$L$6*'Ingreso Datos Energía'!$U$17+Tablas!$CQ$18)+BD44)) -> 29 | AT45: 24 | AU45: =+'Ingreso Datos Energía'!$U$36*(($P45+(P46-P45)/3)-$AT45)+'Ingreso Datos Energía'!$U$38*('Ingreso Datos Energía'!$U$35-$AT45) -> -1523.666667 | AV45: =+AA45*Tablas!$L$4*Tablas!$L$6*'Ingreso Datos Energía'!$U$17*(($P45+(P46-P45)/3)-$AT45) -> 552.6111111 | AW45: 4219.219444 | AX45: =+IF(((AW45/3)/(Tablas!$L$4*Tablas!$L$6*'Ingreso Datos Energía'!$U$17+Tablas!$CQ$18)+AT45)<P45,P45,((AW45/3)/(Tablas!$L$4*Tablas!$L$6*'Ingreso Datos Energía'!$U$17+Tablas!$CQ$18)+AT45)) -> 29 | AY45: 24 | AZ45: =+'Ingreso Datos Energía'!$U$36*(($P45+(P46-P45)*2/3)-$AY45)+'Ingreso Datos Energía'!$U$38*('Ingreso Datos Energía'!$U$35-$AY45) -> -1662.333333 | BA45: =+AA45*Tablas!$L$4*Tablas!$L$6*'Ingreso Datos Energía'!$U$17*(($P45+(P46-P45)*2/3)-$AY45) -> 513.1388889 | BB45: 4041.080556 | BC45: =+((BB45/3)/(Tablas!$L$4*Tablas!$L$6*'Ingreso Datos Energía'!$U$17+Tablas!$CQ$18)+AY45) -> 26.92643191 | BD45: 24 | BE45: -4219.219444 | BF45: 0 | BG45: 4219.219444 | BH45: 1 | BI45: 0 | BJ45: 0 | BK45: 0 | BL45: -0.1707939961 | BM45: 42
A46: 23.6 | B46: 19.5 | C46: 20.8 | D46: 22.9 | E46: 19.9 | F46: 23.8 | G46: 28 | H46: 20.4 | I46: 19.3 | J46: 13.6 | K46: 19.1 | L46: 2 | M46: Ene | N46: 2 | O46: 19 | P46: 28 | Q46: =+VLOOKUP(M46,'Ingreso Datos Generales'!$T$5:$Z$16,6,0) -> 20 | R46: =+VLOOKUP(M46,'Ingreso Datos Generales'!$T$5:$Z$16,7,0) -> 24 | S46: 0 | T46: 0 | U46: 1 | V46: =+IF(AND(L46<='Ingreso Datos Generales'!$D$9,O46>=$V$1,O46<=$V$2),1,0) -> 0 | W46: 0 | X46: 0 | Y46: 4 | Z46: =+IF(L46<=Dias_a_la_semana,('Ingreso Datos Energía'!$D$49)*V46,0) -> 0 | AA46: =+(VLOOKUP(M46,'Ingreso Datos Energía'!$I$46:$K$57,2,0)+V46*IF(L46<=Dias_a_la_semana,VLOOKUP(M46,'Ingreso Datos Energía'!$I$46:$K$57,3,0),0)+W46*IF(L46<=Dias_a_la_semana,VLOOKUP(M46,'Ingreso Datos Energía'!$I$46:$K$57,3,0),0)) -> 0.5 | AB46: =+'Ingreso Datos Energía'!$U$36*(Datos!P46-Datos!AI45)+'Ingreso Datos Energía'!$U$38*('Ingreso Datos Energía'!$U$35-Datos!AI45) -> -5669.194009 | AC46: =+SUMIFS(Sol!$AO$31:$AO$186,Sol!$AP$31:$AP$186,Datos!M46,Sol!$AN$31:$AN$186,Datos!O46)*$AC$2 -> 0 | AD46: -5669.194009 | AE46: =(((AD46/3)/(Tablas!$L$4*Tablas!$L$6*'Ingreso Datos Energía'!$U$17+Tablas!$CQ$18)+AI45)*1+(P45+(P46-P45)/3)*AA46/3)/(1+AA46/3) -> 25.28701706 | AF46: =+'Ingreso Datos Energía'!$U$36*(($P45+(P46-P45)/3)-$AE46)+'Ingreso Datos Energía'!$U$38*('Ingreso Datos Energía'!$U$35-$AE46)+$AC46+$Z46 -> -2554.567335 | AG46: =+(((AF46/3)/(Tablas!$L$4*Tablas!$L$6*'Ingreso Datos Energía'!$U$17+Tablas!$CQ$18)+AE46)*1+(P45+(P46-P45)*2/3)*AA46/3)/(1+AA46/3) -> 24.13653996 | AH46: =+'Ingreso Datos Energía'!$U$36*(($P45+(P46-P45)*2/3)-$AG46)+'Ingreso Datos Energía'!$U$38*('Ingreso Datos Energía'!$U$35-$AG46)+$AC46+$Z46 -> -1771.701838 | AI46: =+(((AH46/3)/(Tablas!$L$4*Tablas!$L$6*'Ingreso Datos Energía'!$U$17+Tablas!$CQ$18)+AG46)*1+P46*AA46/3)/(1+AA46/3) -> 23.58873614 | AJ46: =+AD46++(-(Tablas!$L$4*Tablas!$L$6*'Ingreso Datos Energía'!$U$17+Tablas!$CQ$18)*P46*AA46/3+(Tablas!$L$4*Tablas!$L$6*'Ingreso Datos Energía'!$U$17+Tablas!$CQ$18)*AI45)/(1+AA46/3) -> 3863.894261 | AK46: =+IF(L46<='Ingreso Datos Generales'!$D$9,IF(AL46+AM46=0,1,0),0) -> 1 | AL46: =+IF(L46<='Ingreso Datos Generales'!$D$9,IF(AI46<Q46,1,0),0) -> 0 | AM46: =+IF(L46<='Ingreso Datos Generales'!$D$9,IF(AI46>R46,1,0),0) -> 0 | AN46: 0 | AO46: 0 | AP46: =+'Ingreso Datos Energía'!$U$36*(Datos!P46-Datos!BD45)+'Ingreso Datos Energía'!$U$38*('Ingreso Datos Energía'!$U$35-Datos!BD45) -> -1801 | AQ46: =+AA46*Tablas!$L$4*Tablas!$L$6*'Ingreso Datos Energía'!$U$17*(Datos!P46-Datos!BD45) -> 236.8333333 | AR46: -1564.166667 | AS46: =+IF(((AR46/3)/(Tablas!$L$4*Tablas!$L$6*'Ingreso Datos Energía'!$U$17+Tablas!$CQ$18)+BD45)<P46,P46,((AR46/3)/(Tablas!$L$4*Tablas!$L$6*'Ingreso Datos Energía'!$U$17+Tablas!$CQ$18)+BD45)) -> 28 | AT46: 28 | AU46: =+'Ingreso Datos Energía'!$U$36*(($P46+(P47-P46)/3)-$AT46)+'Ingreso Datos Energía'!$U$38*('Ingreso Datos Energía'!$U$35-$AT46) -> -5213 | AV46: =+AA46*Tablas!$L$4*Tablas!$L$6*'Ingreso Datos Energía'!$U$17*(($P46+(P47-P46)/3)-$AT46) -> -29.60416667 | AW46: -5242.604167 | AX46: =+IF(((AW46/3)/(Tablas!$L$4*Tablas!$L$6*'Ingreso Datos Energía'!$U$17+Tablas!$CQ$18)+AT46)<P46,P46,((AW46/3)/(Tablas!$L$4*Tablas!$L$6*'Ingreso Datos Energía'!$U$17+Tablas!$CQ$18)+AT46)) -> 28 | AY46: 28 | AZ46: =+'Ingreso Datos Energía'!$U$36*(($P46+(P47-P46)*2/3)-$AY46)+'Ingreso Datos Energía'!$U$38*('Ingreso Datos Energía'!$U$35-$AY46) -> -5421 | BA46: =+AA46*Tablas!$L$4*Tablas!$L$6*'Ingreso Datos Energía'!$U$17*(($P46+(P47-P46)*2/3)-$AY46) -> -59.20833333 | BB46: -5480.208333 | BC46: =+((BB46/3)/(Tablas!$L$4*Tablas!$L$6*'Ingreso Datos Energía'!$U$17+Tablas!$CQ$18)+AY46) -> 24.031394 | BD46: 24.031394 | BE46: 0 | BF46: 0 | BG46: -4095.659722 | BH46: 0 | BI46: 0 | BJ46: 0 | BK46: 0 | BL46: -4.411263861 | BM46: 43
A47: 23.1 | B47: 18.5 | C47: 20.4 | D47: 22.1 | E47: 19.3 | F47: 21 | G47: 26.5 | H47: 19.3 | I47: 18.4 | J47: 12.9 | K47: 17.8 | L47: 2 | M47: Ene | N47: 2 | O47: 20 | P47: 26.5 | Q47: =+VLOOKUP(M47,'Ingreso Datos Generales'!$T$5:$Z$16,6,0) -> 20 | R47: =+VLOOKUP(M47,'Ingreso Datos Generales'!$T$5:$Z$16,7,0) -> 24 | S47: 0 | T47: 0 | U47: 1 | V47: =+IF(AND(L47<='Ingreso Datos Generales'!$D$9,O47>=$V$1,O47<=$V$2),1,0) -> 0 | W47: 0 | X47: 0 | Y47: 2.5 | Z47: =+IF(L47<=Dias_a_la_semana,('Ingreso Datos Energía'!$D$49)*V47,0) -> 0 | AA47: =+(VLOOKUP(M47,'Ingreso Datos Energía'!$I$46:$K$57,2,0)+V47*IF(L47<=Dias_a_la_semana,VLOOKUP(M47,'Ingreso Datos Energía'!$I$46:$K$57,3,0),0)+W47*IF(L47<=Dias_a_la_semana,VLOOKUP(M47,'Ingreso Datos Energía'!$I$46:$K$57,3,0),0)) -> 0.5 | AB47: =+'Ingreso Datos Energía'!$U$36*(Datos!P47-Datos!AI46)+'Ingreso Datos Energía'!$U$38*('Ingreso Datos Energía'!$U$35-Datos!AI46) -> -2095.577647 | AC47: =+SUMIFS(Sol!$AO$31:$AO$186,Sol!$AP$31:$AP$186,Datos!M47,Sol!$AN$31:$AN$186,Datos!O47)*$AC$2 -> 0 | AD47: -2095.577647 | AE47: =(((AD47/3)/(Tablas!$L$4*Tablas!$L$6*'Ingreso Datos Energía'!$U$17+Tablas!$CQ$18)+AI46)*1+(P46+(P47-P46)/3)*AA47/3)/(1+AA47/3) -> 22.84672599 | AF47: =+'Ingreso Datos Energía'!$U$36*(($P46+(P47-P46)/3)-$AE47)+'Ingreso Datos Energía'!$U$38*('Ingreso Datos Energía'!$U$35-$AE47)+$AC47+$Z47 -> -1085.227521 | AG47: =+(((AF47/3)/(Tablas!$L$4*Tablas!$L$6*'Ingreso Datos Energía'!$U$17+Tablas!$CQ$18)+AE47)*1+(P46+(P47-P46)*2/3)*AA47/3)/(1+AA47/3) -> 22.76643093 | AH47: =+'Ingreso Datos Energía'!$U$36*(($P46+(P47-P46)*2/3)-$AG47)+'Ingreso Datos Energía'!$U$38*('Ingreso Datos Energía'!$U$35-$AG47)+$AC47+$Z47 -> -1228.911172 | AI47: =+(((AH47/3)/(Tablas!$L$4*Tablas!$L$6*'Ingreso Datos Energía'!$U$17+Tablas!$CQ$18)+AG47)*1+P47*AA47/3)/(1+AA47/3) -> 22.53699103 | AJ47: =+AD47++(-(Tablas!$L$4*Tablas!$L$6*'Ingreso Datos Energía'!$U$17+Tablas!$CQ$18)*P47*AA47/3+(Tablas!$L$4*Tablas!$L$6*'Ingreso Datos Energía'!$U$17+Tablas!$CQ$18)*AI46)/(1+AA47/3) -> 5468.570642 | AK47: =+IF(L47<='Ingreso Datos Generales'!$D$9,IF(AL47+AM47=0,1,0),0) -> 1 | AL47: =+IF(L47<='Ingreso Datos Generales'!$D$9,IF(AI47<Q47,1,0),0) -> 0 | AM47: =+IF(L47<='Ingreso Datos Generales'!$D$9,IF(AI47>R47,1,0),0) -> 0 | AN47: 0 | AO47: 0 | AP47: =+'Ingreso Datos Energía'!$U$36*(Datos!P47-Datos!BD46)+'Ingreso Datos Energía'!$U$38*('Ingreso Datos Energía'!$U$35-Datos!BD46) -> -2450.146597 | AQ47: =+AA47*Tablas!$L$4*Tablas!$L$6*'Ingreso Datos Energía'!$U$17*(Datos!P47-Datos!BD46) -> 146.1620467 | AR47: -2303.984551 | AS47: =+IF(((AR47/3)/(Tablas!$L$4*Tablas!$L$6*'Ingreso Datos Energía'!$U$17+Tablas!$CQ$18)+BD46)<P47,P47,((AR47/3)/(Tablas!$L$4*Tablas!$L$6*'Ingreso Datos Energía'!$U$17+Tablas!$CQ$18)+BD46)) -> 26.5 | AT47: 26.5 | AU47: =+'Ingreso Datos Energía'!$U$36*(($P47+(P48-P47)/3)-$AT47)+'Ingreso Datos Energía'!$U$38*('Ingreso Datos Energía'!$U$35-$AT47) -> -4663.233333 | AV47: =+AA47*Tablas!$L$4*Tablas!$L$6*'Ingreso Datos Energía'!$U$17*(($P47+(P48-P47)/3)-$AT47) -> -33.55138889 | AW47: -4696.784722 | AX47: =+IF(((AW47/3)/(Tablas!$L$4*Tablas!$L$6*'Ingreso Datos Energía'!$U$17+Tablas!$CQ$18)+AT47)<P47,P47,((AW47/3)/(Tablas!$L$4*Tablas!$L$6*'Ingreso Datos Energía'!$U$17+Tablas!$CQ$18)+AT47)) -> 26.5 | AY47: 26.5 | AZ47: =+'Ingreso Datos Energía'!$U$36*(($P47+(P48-P47)*2/3)-$AY47)+'Ingreso Datos Energía'!$U$38*('Ingreso Datos Energía'!$U$35-$AY47) -> -4898.966667 | BA47: =+AA47*Tablas!$L$4*Tablas!$L$6*'Ingreso Datos Energía'!$U$17*(($P47+(P48-P47)*2/3)-$AY47) -> -67.10277778 | BB47: -4966.069444 | BC47: =+((BB47/3)/(Tablas!$L$4*Tablas!$L$6*'Ingreso Datos Energía'!$U$17+Tablas!$CQ$18)+AY47) -> 22.90371829 | BD47: 22.90371829 | BE47: 0 | BF47: 0 | BG47: -3988.946239 | BH47: 0 | BI47: 0 | BJ47: 0 | BK47: 0 | BL47: -3.963008972 | BM47: 44
A48: 22.7 | B48: 17.5 | C48: 19.9 | D48: 21.6 | E48: 18.6 | F48: 19.3 | G48: 24.8 | H48: 18.5 | I48: 17.3 | J48: 12 | K48: 16.6 | L48: 2 | M48: Ene | N48: 2 | O48: 21 | P48: 24.8 | Q48: =+VLOOKUP(M48,'Ingreso Datos Generales'!$T$5:$Z$16,6,0) -> 20 | R48: =+VLOOKUP(M48,'Ingreso Datos Generales'!$T$5:$Z$16,7,0) -> 24 | S48: 0 | T48: 0 | U48: 1 | V48: =+IF(AND(L48<='Ingreso Datos Generales'!$D$9,O48>=$V$1,O48<=$V$2),1,0) -> 0 | W48: 0 | X48: 0 | Y48: 0.8 | Z48: =+IF(L48<=Dias_a_la_semana,('Ingreso Datos Energía'!$D$49)*V48,0) -> 0 | AA48: =+(VLOOKUP(M48,'Ingreso Datos Energía'!$I$46:$K$57,2,0)+V48*IF(L48<=Dias_a_la_semana,VLOOKUP(M48,'Ingreso Datos Energía'!$I$46:$K$57,3,0),0)+W48*IF(L48<=Dias_a_la_semana,VLOOKUP(M48,'Ingreso Datos Energía'!$I$46:$K$57,3,0),0)) -> 0.5 | AB48: =+'Ingreso Datos Energía'!$U$36*(Datos!P48-Datos!AI47)+'Ingreso Datos Energía'!$U$38*('Ingreso Datos Energía'!$U$35-Datos!AI47) -> -1960.329813 | AC48: =+SUMIFS(Sol!$AO$31:$AO$186,Sol!$AP$31:$AP$186,Datos!M48,Sol!$AN$31:$AN$186,Datos!O48)*$AC$2 -> 0 | AD48: -1960.329813 | AE48: =(((AD48/3)/(Tablas!$L$4*Tablas!$L$6*'Ingreso Datos Energía'!$U$17+Tablas!$CQ$18)+AI47)*1+(P47+(P48-P47)/3)*AA48/3)/(1+AA48/3) -> 21.80537138 | AF48: =+'Ingreso Datos Energía'!$U$36*(($P47+(P48-P47)/3)-$AE48)+'Ingreso Datos Energía'!$U$38*('Ingreso Datos Energía'!$U$35-$AE48)+$AC48+$Z48 -> -902.8358115 | AG48: =+(((AF48/3)/(Tablas!$L$4*Tablas!$L$6*'Ingreso Datos Energía'!$U$17+Tablas!$CQ$18)+AE48)*1+(P47+(P48-P47)*2/3)*AA48/3)/(1+AA48/3) -> 21.75372169 | AH48: =+'Ingreso Datos Energía'!$U$36*(($P47+(P48-P47)*2/3)-$AG48)+'Ingreso Datos Energía'!$U$38*('Ingreso Datos Energía'!$U$35-$AG48)+$AC48+$Z48 -> -1097.19774 | AI48: =+(((AH48/3)/(Tablas!$L$4*Tablas!$L$6*'Ingreso Datos Energía'!$U$17+Tablas!$CQ$18)+AG48)*1+P48*AA48/3)/(1+AA48/3) -> 21.50785425 | AJ48: =+AD48++(-(Tablas!$L$4*Tablas!$L$6*'Ingreso Datos Energía'!$U$17+Tablas!$CQ$18)*P48*AA48/3+(Tablas!$L$4*Tablas!$L$6*'Ingreso Datos Energía'!$U$17+Tablas!$CQ$18)*AI47)/(1+AA48/3) -> 5300.649294 | AK48: =+IF(L48<='Ingreso Datos Generales'!$D$9,IF(AL48+AM48=0,1,0),0) -> 1 | AL48: =+IF(L48<='Ingreso Datos Generales'!$D$9,IF(AI48<Q48,1,0),0) -> 0 | AM48: =+IF(L48<='Ingreso Datos Generales'!$D$9,IF(AI48>R48,1,0),0) -> 0 | AN48: 0 | AO48: 0 | AP48: =+'Ingreso Datos Energía'!$U$36*(Datos!P48-Datos!BD47)+'Ingreso Datos Energía'!$U$38*('Ingreso Datos Energía'!$U$35-Datos!BD47) -> -2254.078354 | AQ48: =+AA48*Tablas!$L$4*Tablas!$L$6*'Ingreso Datos Energía'!$U$17*(Datos!P48-Datos!BD47) -> 112.2756793 | AR48: -2141.802674 | AS48: =+IF(((AR48/3)/(Tablas!$L$4*Tablas!$L$6*'Ingreso Datos Energía'!$U$17+Tablas!$CQ$18)+BD47)<P48,P48,((AR48/3)/(Tablas!$L$4*Tablas!$L$6*'Ingreso Datos Energía'!$U$17+Tablas!$CQ$18)+BD47)) -> 24.8 | AT48: 24.8 | AU48: =+'Ingreso Datos Energía'!$U$36*(($P48+(P49-P48)/3)-$AT48)+'Ingreso Datos Energía'!$U$38*('Ingreso Datos Energía'!$U$35-$AT48) -> -4008.733333 | AV48: =+AA48*Tablas!$L$4*Tablas!$L$6*'Ingreso Datos Energía'!$U$17*(($P48+(P49-P48)/3)-$AT48) -> -33.55138889 | AW48: -4042.284722 | AX48: =+IF(((AW48/3)/(Tablas!$L$4*Tablas!$L$6*'Ingreso Datos Energía'!$U$17+Tablas!$CQ$18)+AT48)<P48,P48,((AW48/3)/(Tablas!$L$4*Tablas!$L$6*'Ingreso Datos Energía'!$U$17+Tablas!$CQ$18)+AT48)) -> 24.8 | AY48: 24.8 | AZ48: =+'Ingreso Datos Energía'!$U$36*(($P48+(P49-P48)*2/3)-$AY48)+'Ingreso Datos Energía'!$U$38*('Ingreso Datos Energía'!$U$35-$AY48) -> -4244.466667 | BA48: =+AA48*Tablas!$L$4*Tablas!$L$6*'Ingreso Datos Energía'!$U$17*(($P48+(P49-P48)*2/3)-$AY48) -> -67.10277778 | BB48: -4311.569444 | BC48: =+((BB48/3)/(Tablas!$L$4*Tablas!$L$6*'Ingreso Datos Energía'!$U$17+Tablas!$CQ$18)+AY48) -> 21.67768798 | BD48: 21.67768798 | BE48: 0 | BF48: 0 | BG48: -3498.55228 | BH48: 0 | BI48: 0 | BJ48: 0 | BK48: 0 | BL48: -3.292145746 | BM48: 45
A49: 22.2 | B49: 16.5 | C49: 19.5 | D49: 21.1 | E49: 17.9 | F49: 17.6 | G49: 23.1 | H49: 17.8 | I49: 16.2 | J49: 11.2 | K49: 15.4 | L49: 2 | M49: Ene | N49: 2 | O49: 22 | P49: 23.1 | Q49: =+VLOOKUP(M49,'Ingreso Datos Generales'!$T$5:$Z$16,6,0) -> 20 | R49: =+VLOOKUP(M49,'Ingreso Datos Generales'!$T$5:$Z$16,7,0) -> 24 | S49: 1 | T49: 0 | U49: 0 | V49: =+IF(AND(L49<='Ingreso Datos Generales'!$D$9,O49>=$V$1,O49<=$V$2),1,0) -> 0 | W49: 0 | X49: 0 | Y49: 0 | Z49: =+IF(L49<=Dias_a_la_semana,('Ingreso Datos Energía'!$D$49)*V49,0) -> 0 | AA49: =+(VLOOKUP(M49,'Ingreso Datos Energía'!$I$46:$K$57,2,0)+V49*IF(L49<=Dias_a_la_semana,VLOOKUP(M49,'Ingreso Datos Energía'!$I$46:$K$57,3,0),0)+W49*IF(L49<=Dias_a_la_semana,VLOOKUP(M49,'Ingreso Datos Energía'!$I$46:$K$57,3,0),0)) -> 0.5 | AB49: =+'Ingreso Datos Energía'!$U$36*(Datos!P49-Datos!AI48)+'Ingreso Datos Energía'!$U$38*('Ingreso Datos Energía'!$U$35-Datos!AI48) -> -1843.191257 | AC49: =+SUMIFS(Sol!$AO$31:$AO$186,Sol!$AP$31:$AP$186,Datos!M49,Sol!$AN$31:$AN$186,Datos!O49)*$AC$2 -> 0 | AD49: -1843.191257 | AE49: =(((AD49/3)/(Tablas!$L$4*Tablas!$L$6*'Ingreso Datos Energía'!$U$17+Tablas!$CQ$18)+AI48)*1+(P48+(P49-P48)/3)*AA49/3)/(1+AA49/3) -> 20.75310698 | AF49: =+'Ingreso Datos Energía'!$U$36*(($P48+(P49-P48)/3)-$AE49)+'Ingreso Datos Energía'!$U$38*('Ingreso Datos Energía'!$U$35-$AE49)+$AC49+$Z49 -> -767.1720245 | AG49: =+(((AF49/3)/(Tablas!$L$4*Tablas!$L$6*'Ingreso Datos Energía'!$U$17+Tablas!$CQ$18)+AE49)*1+(P48+(P49-P48)*2/3)*AA49/3)/(1+AA49/3) -> 20.69313254 | AH49: =+'Ingreso Datos Energía'!$U$36*(($P48+(P49-P48)*2/3)-$AG49)+'Ingreso Datos Energía'!$U$38*('Ingreso Datos Energía'!$U$35-$AG49)+$AC49+$Z49 -> -954.865833 | AI49: =+(((AH49/3)/(Tablas!$L$4*Tablas!$L$6*'Ingreso Datos Energía'!$U$17+Tablas!$CQ$18)+AG49)*1+P49*AA49/3)/(1+AA49/3) -> 20.44426863 | AJ49: =+AD49++(-(Tablas!$L$4*Tablas!$L$6*'Ingreso Datos Energía'!$U$17+Tablas!$CQ$18)*P49*AA49/3+(Tablas!$L$4*Tablas!$L$6*'Ingreso Datos Energía'!$U$17+Tablas!$CQ$18)*AI48)/(1+AA49/3) -> 5123.53856 | AK49: =+IF(L49<='Ingreso Datos Generales'!$D$9,IF(AL49+AM49=0,1,0),0) -> 1 | AL49: =+IF(L49<='Ingreso Datos Generales'!$D$9,IF(AI49<Q49,1,0),0) -> 0 | AM49: =+IF(L49<='Ingreso Datos Generales'!$D$9,IF(AI49>R49,1,0),0) -> 0 | AN49: 0 | AO49: 0 | AP49: =+'Ingreso Datos Energía'!$U$36*(Datos!P49-Datos!BD48)+'Ingreso Datos Energía'!$U$38*('Ingreso Datos Energía'!$U$35-Datos!BD48) -> -1979.228072 | AQ49: =+AA49*Tablas!$L$4*Tablas!$L$6*'Ingreso Datos Energía'!$U$17*(Datos!P49-Datos!BD48) -> 84.21272415 | AR49: -1895.015348 | AS49: =+IF(((AR49/3)/(Tablas!$L$4*Tablas!$L$6*'Ingreso Datos Energía'!$U$17+Tablas!$CQ$18)+BD48)<P49,P49,((AR49/3)/(Tablas!$L$4*Tablas!$L$6*'Ingreso Datos Energía'!$U$17+Tablas!$CQ$18)+BD48)) -> 23.1 | AT49: 23.1 | AU49: =+'Ingreso Datos Energía'!$U$36*(($P49+(P50-P49)/3)-$AT49)+'Ingreso Datos Energía'!$U$38*('Ingreso Datos Energía'!$U$35-$AT49) -> -3368.1 | AV49: =+AA49*Tablas!$L$4*Tablas!$L$6*'Ingreso Datos Energía'!$U$17*(($P49+(P50-P49)/3)-$AT49) -> -35.525 | AW49: -3403.625 | AX49: =+IF(((AW49/3)/(Tablas!$L$4*Tablas!$L$6*'Ingreso Datos Energía'!$U$17+Tablas!$CQ$18)+AT49)<P49,P49,((AW49/3)/(Tablas!$L$4*Tablas!$L$6*'Ingreso Datos Energía'!$U$17+Tablas!$CQ$18)+AT49)) -> 23.1 | AY49: 23.1 | AZ49: =+'Ingreso Datos Energía'!$U$36*(($P49+(P50-P49)*2/3)-$AY49)+'Ingreso Datos Energía'!$U$38*('Ingreso Datos Energía'!$U$35-$AY49) -> -3617.7 | BA49: =+AA49*Tablas!$L$4*Tablas!$L$6*'Ingreso Datos Energía'!$U$17*(($P49+(P50-P49)*2/3)-$AY49) -> -71.05 | BB49: -3688.75 | BC49: =+((BB49/3)/(Tablas!$L$4*Tablas!$L$6*'Ingreso Datos Energía'!$U$17+Tablas!$CQ$18)+AY49) -> 20.42871554 | BD49: 20.42871554 | BE49: 0 | BF49: 0 | BG49: -2995.796783 | BH49: 0 | BI49: 0 | BJ49: 0 | BK49: 0 | BL49: -2.655731368 | BM49: 46
A50: 21.8 | B50: 15.5 | C50: 19.1 | D50: 20.6 | E50: 17.2 | F50: 15.9 | G50: 21.3 | H50: 17.1 | I50: 15.1 | J50: 10.4 | K50: 14.2 | L50: 2 | M50: Ene | N50: 2 | O50: 23 | P50: 21.3 | Q50: =+VLOOKUP(M50,'Ingreso Datos Generales'!$T$5:$Z$16,6,0) -> 20 | R50: =+VLOOKUP(M50,'Ingreso Datos Generales'!$T$5:$Z$16,7,0) -> 24 | S50: 1 | T50: 0 | U50: 0 | V50: =+IF(AND(L50<='Ingreso Datos Generales'!$D$9,O50>=$V$1,O50<=$V$2),1,0) -> 0 | W50: 0 | X50: 0 | Y50: 0 | Z50: =+IF(L50<=Dias_a_la_semana,('Ingreso Datos Energía'!$D$49)*V50,0) -> 0 | AA50: =+(VLOOKUP(M50,'Ingreso Datos Energía'!$I$46:$K$57,2,0)+V50*IF(L50<=Dias_a_la_semana,VLOOKUP(M50,'Ingreso Datos Energía'!$I$46:$K$57,3,0),0)+W50*IF(L50<=Dias_a_la_semana,VLOOKUP(M50,'Ingreso Datos Energía'!$I$46:$K$57,3,0),0)) -> 0.5 | AB50: =+'Ingreso Datos Energía'!$U$36*(Datos!P50-Datos!AI49)+'Ingreso Datos Energía'!$U$38*('Ingreso Datos Energía'!$U$35-Datos!AI49) -> -1740.059174 | AC50: =+SUMIFS(Sol!$AO$31:$AO$186,Sol!$AP$31:$AP$186,Datos!M50,Sol!$AN$31:$AN$186,Datos!O50)*$AC$2 -> 0 | AD50: -1740.059174 | AE50: =(((AD50/3)/(Tablas!$L$4*Tablas!$L$6*'Ingreso Datos Energía'!$U$17+Tablas!$CQ$18)+AI49)*1+(P49+(P50-P49)/3)*AA50/3)/(1+AA50/3) -> 19.65785902 | AF50: =+'Ingreso Datos Energía'!$U$36*(($P49+(P50-P49)/3)-$AE50)+'Ingreso Datos Energía'!$U$38*('Ingreso Datos Energía'!$U$35-$AE50)+$AC50+$Z50 -> -610.9450773 | AG50: =+(((AF50/3)/(Tablas!$L$4*Tablas!$L$6*'Ingreso Datos Energía'!$U$17+Tablas!$CQ$18)+AE50)*1+(P49+(P50-P49)*2/3)*AA50/3)/(1+AA50/3) -> 19.59894046 | AH50: =+'Ingreso Datos Energía'!$U$36*(($P49+(P50-P49)*2/3)-$AG50)+'Ingreso Datos Energía'!$U$38*('Ingreso Datos Energía'!$U$35-$AG50)+$AC50+$Z50 -> -813.351306 | AI50: =+(((AH50/3)/(Tablas!$L$4*Tablas!$L$6*'Ingreso Datos Energía'!$U$17+Tablas!$CQ$18)+AG50)*1+P50*AA50/3)/(1+AA50/3) -> 19.33708742 | AJ50: =+AD50++(-(Tablas!$L$4*Tablas!$L$6*'Ingreso Datos Energía'!$U$17+Tablas!$CQ$18)*P50*AA50/3+(Tablas!$L$4*Tablas!$L$6*'Ingreso Datos Energía'!$U$17+Tablas!$CQ$18)*AI49)/(1+AA50/3) -> 4925.405572 | AK50: =+IF(L50<='Ingreso Datos Generales'!$D$9,IF(AL50+AM50=0,1,0),0) -> 0 | AL50: =+IF(L50<='Ingreso Datos Generales'!$D$9,IF(AI50<Q50,1,0),0) -> 1 | AM50: =+IF(L50<='Ingreso Datos Generales'!$D$9,IF(AI50>R50,1,0),0) -> 0 | AN50: 0.6629125844 | AO50: 0 | AP50: =+'Ingreso Datos Energía'!$U$36*(Datos!P50-Datos!BD49)+'Ingreso Datos Energía'!$U$38*('Ingreso Datos Energía'!$U$35-Datos!BD49) -> -1727.601146 | AQ50: =+AA50*Tablas!$L$4*Tablas!$L$6*'Ingreso Datos Energía'!$U$17*(Datos!P50-Datos!BD49) -> 51.58730082 | AR50: -1676.013846 | AS50: =+IF(((AR50/3)/(Tablas!$L$4*Tablas!$L$6*'Ingreso Datos Energía'!$U$17+Tablas!$CQ$18)+BD49)<P50,P50,((AR50/3)/(Tablas!$L$4*Tablas!$L$6*'Ingreso Datos Energía'!$U$17+Tablas!$CQ$18)+BD49)) -> 21.3 | AT50: 21.3 | AU50: =+'Ingreso Datos Energía'!$U$36*(($P50+(P51-P50)/3)-$AT50)+'Ingreso Datos Energía'!$U$38*('Ingreso Datos Energía'!$U$35-$AT50) -> -2661.233333 | AV50: =+AA50*Tablas!$L$4*Tablas!$L$6*'Ingreso Datos Energía'!$U$17*(($P50+(P51-P50)/3)-$AT50) -> -33.55138889 | AW50: -2694.784722 | AX50: =+IF(((AW50/3)/(Tablas!$L$4*Tablas!$L$6*'Ingreso Datos Energía'!$U$17+Tablas!$CQ$18)+AT50)<P50,P50,((AW50/3)/(Tablas!$L$4*Tablas!$L$6*'Ingreso Datos Energía'!$U$17+Tablas!$CQ$18)+AT50)) -> 21.3 | AY50: 21.3 | AZ50: =+'Ingreso Datos Energía'!$U$36*(($P50+(P51-P50)*2/3)-$AY50)+'Ingreso Datos Energía'!$U$38*('Ingreso Datos Energía'!$U$35-$AY50) -> -2896.966667 | BA50: =+AA50*Tablas!$L$4*Tablas!$L$6*'Ingreso Datos Energía'!$U$17*(($P50+(P51-P50)*2/3)-$AY50) -> -67.10277778 | BB50: -2964.069444 | BC50: =+((BB50/3)/(Tablas!$L$4*Tablas!$L$6*'Ingreso Datos Energía'!$U$17+Tablas!$CQ$18)+AY50) -> 19.15350792 | BD50: 19.15350792 | BE50: 0 | BF50: 0 | BG50: -2444.956004 | BH50: 0 | BI50: 0 | BJ50: 0 | BK50: 0 | BL50: -1.962912584 | BM50: 47
A51: 21.3 | B51: 14.5 | C51: 18.6 | D51: 20 | E51: 16.5 | F51: 14.2 | G51: 19.6 | H51: 16.4 | I51: 14 | J51: 9.7 | K51: 13 | L51: 2 | M51: Ene | N51: 2 | O51: 24 | P51: 19.6 | Q51: =+VLOOKUP(M51,'Ingreso Datos Generales'!$T$5:$Z$16,6,0) -> 20 | R51: =+VLOOKUP(M51,'Ingreso Datos Generales'!$T$5:$Z$16,7,0) -> 24 | S51: 0 | T51: 1 | U51: 0 | V51: =+IF(AND(L51<='Ingreso Datos Generales'!$D$9,O51>=$V$1,O51<=$V$2),1,0) -> 0 | W51: 0 | X51: 0.4 | Y51: 0 | Z51: =+IF(L51<=Dias_a_la_semana,('Ingreso Datos Energía'!$D$49)*V51,0) -> 0 | AA51: =+(VLOOKUP(M51,'Ingreso Datos Energía'!$I$46:$K$57,2,0)+V51*IF(L51<=Dias_a_la_semana,VLOOKUP(M51,'Ingreso Datos Energía'!$I$46:$K$57,3,0),0)+W51*IF(L51<=Dias_a_la_semana,VLOOKUP(M51,'Ingreso Datos Energía'!$I$46:$K$57,3,0),0)) -> 0.5 | AB51: =+'Ingreso Datos Energía'!$U$36*(Datos!P51-Datos!AI50)+'Ingreso Datos Energía'!$U$38*('Ingreso Datos Energía'!$U$35-Datos!AI50) -> -1560.40702 | AC51: =+SUMIFS(Sol!$AO$31:$AO$186,Sol!$AP$31:$AP$186,Datos!M51,Sol!$AN$31:$AN$186,Datos!O51)*$AC$2 -> 0 | AD51: -1560.40702 | AE51: =(((AD51/3)/(Tablas!$L$4*Tablas!$L$6*'Ingreso Datos Energía'!$U$17+Tablas!$CQ$18)+AI50)*1+(P50+(P51-P50)/3)*AA51/3)/(1+AA51/3) -> 18.56797887 | AF51: =+'Ingreso Datos Energía'!$U$36*(($P50+(P51-P50)/3)-$AE51)+'Ingreso Datos Energía'!$U$38*('Ingreso Datos Energía'!$U$35-$AE51)+$AC51+$Z51 -> -472.8844084 | AG51: =+(((AF51/3)/(Tablas!$L$4*Tablas!$L$6*'Ingreso Datos Energía'!$U$17+Tablas!$CQ$18)+AE51)*1+(P50+(P51-P50)*2/3)*AA51/3)/(1+AA51/3) -> 18.50283512 | AH51: =+'Ingreso Datos Energía'!$U$36*(($P50+(P51-P50)*2/3)-$AG51)+'Ingreso Datos Energía'!$U$38*('Ingreso Datos Energía'!$U$35-$AG51)+$AC51+$Z51 -> -656.4375989 | AI51: =+(((AH51/3)/(Tablas!$L$4*Tablas!$L$6*'Ingreso Datos Energía'!$U$17+Tablas!$CQ$18)+AG51)*1+P51*AA51/3)/(1+AA51/3) -> 18.25211053 | AJ51: =+AD51++(-(Tablas!$L$4*Tablas!$L$6*'Ingreso Datos Energía'!$U$17+Tablas!$CQ$18)*P51*AA51/3+(Tablas!$L$4*Tablas!$L$6*'Ingreso Datos Energía'!$U$17+Tablas!$CQ$18)*AI50)/(1+AA51/3) -> 4780.016782 | AK51: =+IF(L51<='Ingreso Datos Generales'!$D$9,IF(AL51+AM51=0,1,0),0) -> 0 | AL51: =+IF(L51<='Ingreso Datos Generales'!$D$9,IF(AI51<Q51,1,0),0) -> 1 | AM51: =+IF(L51<='Ingreso Datos Generales'!$D$9,IF(AI51>R51,1,0),0) -> 0 | AN51: 1.747889472 | AO51: 0 | AP51: =+'Ingreso Datos Energía'!$U$36*(Datos!P51-Datos!BD50)+'Ingreso Datos Energía'!$U$38*('Ingreso Datos Energía'!$U$35-Datos!BD50) -> -1413.359846 | AQ51: =+AA51*Tablas!$L$4*Tablas!$L$6*'Ingreso Datos Energía'!$U$17*(Datos!P51-Datos!BD50) -> 26.43605174 | AR51: -1386.923794 | AS51: =+IF(((AR51/3)/(Tablas!$L$4*Tablas!$L$6*'Ingreso Datos Energía'!$U$17+Tablas!$CQ$18)+BD50)<P51,P51,((AR51/3)/(Tablas!$L$4*Tablas!$L$6*'Ingreso Datos Energía'!$U$17+Tablas!$CQ$18)+BD50)) -> 19.6 | AT51: 19.6 | AU51: =+'Ingreso Datos Energía'!$U$36*(($P51+(P52-P51)/3)-$AT51)+'Ingreso Datos Energía'!$U$38*('Ingreso Datos Energía'!$U$35-$AT51) -> -1979 | AV51: =+AA51*Tablas!$L$4*Tablas!$L$6*'Ingreso Datos Energía'!$U$17*(($P51+(P52-P51)/3)-$AT51) -> -29.60416667 | AW51: -2008.604167 | AX51: =+IF(((AW51/3)/(Tablas!$L$4*Tablas!$L$6*'Ingreso Datos Energía'!$U$17+Tablas!$CQ$18)+AT51)<P51,P51,((AW51/3)/(Tablas!$L$4*Tablas!$L$6*'Ingreso Datos Energía'!$U$17+Tablas!$CQ$18)+AT51)) -> 19.6 | AY51: 19.6 | AZ51: =+'Ingreso Datos Energía'!$U$36*(($P51+(P52-P51)*2/3)-$AY51)+'Ingreso Datos Energía'!$U$38*('Ingreso Datos Energía'!$U$35-$AY51) -> -2187 | BA51: =+AA51*Tablas!$L$4*Tablas!$L$6*'Ingreso Datos Energía'!$U$17*(($P51+(P52-P51)*2/3)-$AY51) -> -59.20833333 | BB51: -2246.208333 | BC51: =+((BB51/3)/(Tablas!$L$4*Tablas!$L$6*'Ingreso Datos Energía'!$U$17+Tablas!$CQ$18)+AY51) -> 17.97336187 | BD51: 17.97336187 | BE51: 0 | BF51: 0 | BG51: -1880.578765 | BH51: 0 | BI51: 0 | BJ51: 0 | BK51: 0 | BL51: -1.347889472 | BM51: 48
A52: 20.9 | B52: 13.8 | C52: 18.2 | D52: 19.7 | E52: 15.9 | F52: 13.2 | G52: 18.1 | H52: 15.9 | I52: 13.2 | J52: 9.3 | K52: 12.1 | L52: 3 | M52: Ene | N52: 3 | O52: 1 | P52: 18.1 | Q52: =+VLOOKUP(M52,'Ingreso Datos Generales'!$T$5:$Z$16,6,0) -> 20 | R52: =+VLOOKUP(M52,'Ingreso Datos Generales'!$T$5:$Z$16,7,0) -> 24 | S52: 0 | T52: 1 | U52: 0 | V52: =+IF(AND(L52<='Ingreso Datos Generales'!$D$9,O52>=$V$1,O52<=$V$2),1,0) -> 0 | W52: 0 | X52: 1.9 | Y52: 0 | Z52: =+IF(L52<=Dias_a_la_semana,('Ingreso Datos Energía'!$D$49)*V52,0) -> 0 | AA52: =+(VLOOKUP(M52,'Ingreso Datos Energía'!$I$46:$K$57,2,0)+V52*IF(L52<=Dias_a_la_semana,VLOOKUP(M52,'Ingreso Datos Energía'!$I$46:$K$57,3,0),0)+W52*IF(L52<=Dias_a_la_semana,VLOOKUP(M52,'Ingreso Datos Energía'!$I$46:$K$57,3,0),0)) -> 0.5 | AB52: =+'Ingreso Datos Energía'!$U$36*(Datos!P52-Datos!AI51)+'Ingreso Datos Energía'!$U$38*('Ingreso Datos Energía'!$U$35-Datos!AI51) -> -1315.340533 | AC52: =+SUMIFS(Sol!$AO$31:$AO$186,Sol!$AP$31:$AP$186,Datos!M52,Sol!$AN$31:$AN$186,Datos!O52)*$AC$2 -> 0 | AD52: -1315.340533 | AE52: =(((AD52/3)/(Tablas!$L$4*Tablas!$L$6*'Ingreso Datos Energía'!$U$17+Tablas!$CQ$18)+AI51)*1+(P51+(P52-P51)/3)*AA52/3)/(1+AA52/3) -> 17.55678245 | AF52: =+'Ingreso Datos Energía'!$U$36*(($P51+(P52-P51)/3)-$AE52)+'Ingreso Datos Energía'!$U$38*('Ingreso Datos Energía'!$U$35-$AE52)+$AC52+$Z52 -> -342.3827444 | AG52: =+(((AF52/3)/(Tablas!$L$4*Tablas!$L$6*'Ingreso Datos Energía'!$U$17+Tablas!$CQ$18)+AE52)*1+(P51+(P52-P51)*2/3)*AA52/3)/(1+AA52/3) -> 17.4932905 | AH52: =+'Ingreso Datos Energía'!$U$36*(($P51+(P52-P51)*2/3)-$AG52)+'Ingreso Datos Energía'!$U$38*('Ingreso Datos Energía'!$U$35-$AG52)+$AC52+$Z52 -> -499.5256928 | AI52: =+(((AH52/3)/(Tablas!$L$4*Tablas!$L$6*'Ingreso Datos Energía'!$U$17+Tablas!$CQ$18)+AG52)*1+P52*AA52/3)/(1+AA52/3) -> 17.26989885 | AJ52: =+AD52++(-(Tablas!$L$4*Tablas!$L$6*'Ingreso Datos Energía'!$U$17+Tablas!$CQ$18)*P52*AA52/3+(Tablas!$L$4*Tablas!$L$6*'Ingreso Datos Energía'!$U$17+Tablas!$CQ$18)*AI51)/(1+AA52/3) -> 4695.651488 | AK52: =+IF(L52<='Ingreso Datos Generales'!$D$9,IF(AL52+AM52=0,1,0),0) -> 0 | AL52: =+IF(L52<='Ingreso Datos Generales'!$D$9,IF(AI52<Q52,1,0),0) -> 1 | AM52: =+IF(L52<='Ingreso Datos Generales'!$D$9,IF(AI52>R52,1,0),0) -> 0 | AN52: 2.730101148 | AO52: 0 | AP52: =+'Ingreso Datos Energía'!$U$36*(Datos!P52-Datos!BD51)+'Ingreso Datos Energía'!$U$38*('Ingreso Datos Energía'!$U$35-Datos!BD51) -> -1092.062854 | AQ52: =+AA52*Tablas!$L$4*Tablas!$L$6*'Ingreso Datos Energía'!$U$17*(Datos!P52-Datos!BD51) -> 7.498032871 | AR52: -1084.564822 | AS52: =+IF(((AR52/3)/(Tablas!$L$4*Tablas!$L$6*'Ingreso Datos Energía'!$U$17+Tablas!$CQ$18)+BD51)<P52,P52,((AR52/3)/(Tablas!$L$4*Tablas!$L$6*'Ingreso Datos Energía'!$U$17+Tablas!$CQ$18)+BD51)) -> 18.1 | AT52: 18.1 | AU52: =+'Ingreso Datos Energía'!$U$36*(($P52+(P53-P52)/3)-$AT52)+'Ingreso Datos Energía'!$U$38*('Ingreso Datos Energía'!$U$35-$AT52) -> -1401.5 | AV52: =+AA52*Tablas!$L$4*Tablas!$L$6*'Ingreso Datos Energía'!$U$17*(($P52+(P53-P52)/3)-$AT52) -> -29.60416667 | AW52: -1431.104167 | AX52: =+IF(((AW52/3)/(Tablas!$L$4*Tablas!$L$6*'Ingreso Datos Energía'!$U$17+Tablas!$CQ$18)+AT52)<P52,P52,((AW52/3)/(Tablas!$L$4*Tablas!$L$6*'Ingreso Datos Energía'!$U$17+Tablas!$CQ$18)+AT52)) -> 18.1 | AY52: 18.1 | AZ52: =+'Ingreso Datos Energía'!$U$36*(($P52+(P53-P52)*2/3)-$AY52)+'Ingreso Datos Energía'!$U$38*('Ingreso Datos Energía'!$U$35-$AY52) -> -1609.5 | BA52: =+AA52*Tablas!$L$4*Tablas!$L$6*'Ingreso Datos Energía'!$U$17*(($P52+(P53-P52)*2/3)-$AY52) -> -59.20833333 | BB52: -1668.708333 | BC52: =+((BB52/3)/(Tablas!$L$4*Tablas!$L$6*'Ingreso Datos Energía'!$U$17+Tablas!$CQ$18)+AY52) -> 16.89157041 | BD52: 16.89157041 | BE52: 0 | BF52: 0 | BG52: -1394.792441 | BH52: 0 | BI52: 0 | BJ52: 0 | BK52: 0 | BL52: -0.8301011482 | BM52: 49
A53: 20.6 | B53: 13 | C53: 17.8 | D53: 19.3 | E53: 15.3 | F53: 12.2 | G53: 16.6 | H53: 15.4 | I53: 12.3 | J53: 8.9 | K53: 11.2 | L53: 3 | M53: Ene | N53: 3 | O53: 2 | P53: 16.6 | Q53: =+VLOOKUP(M53,'Ingreso Datos Generales'!$T$5:$Z$16,6,0) -> 20 | R53: =+VLOOKUP(M53,'Ingreso Datos Generales'!$T$5:$Z$16,7,0) -> 24 | S53: 0 | T53: 1 | U53: 0 | V53: =+IF(AND(L53<='Ingreso Datos Generales'!$D$9,O53>=$V$1,O53<=$V$2),1,0) -> 0 | W53: 0 | X53: 3.4 | Y53: 0 | Z53: =+IF(L53<=Dias_a_la_semana,('Ingreso Datos Energía'!$D$49)*V53,0) -> 0 | AA53: =+(VLOOKUP(M53,'Ingreso Datos Energía'!$I$46:$K$57,2,0)+V53*IF(L53<=Dias_a_la_semana,VLOOKUP(M53,'Ingreso Datos Energía'!$I$46:$K$57,3,0),0)+W53*IF(L53<=Dias_a_la_semana,VLOOKUP(M53,'Ingreso Datos Energía'!$I$46:$K$57,3,0),0)) -> 0.5 | AB53: =+'Ingreso Datos Energía'!$U$36*(Datos!P53-Datos!AI52)+'Ingreso Datos Energía'!$U$38*('Ingreso Datos Energía'!$U$35-Datos!AI52) -> -1152.58898 | AC53: =+SUMIFS(Sol!$AO$31:$AO$186,Sol!$AP$31:$AP$186,Datos!M53,Sol!$AN$31:$AN$186,Datos!O53)*$AC$2 -> 0 | AD53: -1152.58898 | AE53: =(((AD53/3)/(Tablas!$L$4*Tablas!$L$6*'Ingreso Datos Energía'!$U$17+Tablas!$CQ$18)+AI52)*1+(P52+(P53-P52)/3)*AA53/3)/(1+AA53/3) -> 16.60162378 | AF53: =+'Ingreso Datos Energía'!$U$36*(($P52+(P53-P52)/3)-$AE53)+'Ingreso Datos Energía'!$U$38*('Ingreso Datos Energía'!$U$35-$AE53)+$AC53+$Z53 -> -201.3006511 | AG53: =+(((AF53/3)/(Tablas!$L$4*Tablas!$L$6*'Ingreso Datos Energía'!$U$17+Tablas!$CQ$18)+AE53)*1+(P52+(P53-P52)*2/3)*AA53/3)/(1+AA53/3) -> 16.54786951 | AH53: =+'Ingreso Datos Energía'!$U$36*(($P52+(P53-P52)*2/3)-$AG53)+'Ingreso Datos Energía'!$U$38*('Ingreso Datos Energía'!$U$35-$AG53)+$AC53+$Z53 -> -366.2434778 | AI53: =+(((AH53/3)/(Tablas!$L$4*Tablas!$L$6*'Ingreso Datos Energía'!$U$17+Tablas!$CQ$18)+AG53)*1+P53*AA53/3)/(1+AA53/3) -> 16.32798292 | AJ53: =+AD53++(-(Tablas!$L$4*Tablas!$L$6*'Ingreso Datos Energía'!$U$17+Tablas!$CQ$18)*P53*AA53/3+(Tablas!$L$4*Tablas!$L$6*'Ingreso Datos Energía'!$U$17+Tablas!$CQ$18)*AI52)/(1+AA53/3) -> 4569.516246 | AK53: =+IF(L53<='Ingreso Datos Generales'!$D$9,IF(AL53+AM53=0,1,0),0) -> 0 | AL53: =+IF(L53<='Ingreso Datos Generales'!$D$9,IF(AI53<Q53,1,0),0) -> 1 | AM53: =+IF(L53<='Ingreso Datos Generales'!$D$9,IF(AI53>R53,1,0),0) -> 0 | AN53: 3.672017084 | AO53: 0 | AP53: =+'Ingreso Datos Energía'!$U$36*(Datos!P53-Datos!BD52)+'Ingreso Datos Energía'!$U$38*('Ingreso Datos Energía'!$U$35-Datos!BD52) -> -849.5479003 | AQ53: =+AA53*Tablas!$L$4*Tablas!$L$6*'Ingreso Datos Energía'!$U$17*(Datos!P53-Datos!BD52) -> -17.26339816 | AR53: -866.8112984 | AS53: =+IF(((AR53/3)/(Tablas!$L$4*Tablas!$L$6*'Ingreso Datos Energía'!$U$17+Tablas!$CQ$18)+BD52)<P53,P53,((AR53/3)/(Tablas!$L$4*Tablas!$L$6*'Ingreso Datos Energía'!$U$17+Tablas!$CQ$18)+BD52)) -> 16.6 | AT53: 16.6 | AU53: =+'Ingreso Datos Energía'!$U$36*(($P53+(P54-P53)/3)-$AT53)+'Ingreso Datos Energía'!$U$38*('Ingreso Datos Energía'!$U$35-$AT53) -> -837.8666667 | AV53: =+AA53*Tablas!$L$4*Tablas!$L$6*'Ingreso Datos Energía'!$U$17*(($P53+(P54-P53)/3)-$AT53) -> -31.57777778 | AW53: -869.4444444 | AX53: =+IF(((AW53/3)/(Tablas!$L$4*Tablas!$L$6*'Ingreso Datos Energía'!$U$17+Tablas!$CQ$18)+AT53)<P53,P53,((AW53/3)/(Tablas!$L$4*Tablas!$L$6*'Ingreso Datos Energía'!$U$17+Tablas!$CQ$18)+AT53)) -> 16.6 | AY53: 16.6 | AZ53: =+'Ingreso Datos Energía'!$U$36*(($P53+(P54-P53)*2/3)-$AY53)+'Ingreso Datos Energía'!$U$38*('Ingreso Datos Energía'!$U$35-$AY53) -> -1059.733333 | BA53: =+AA53*Tablas!$L$4*Tablas!$L$6*'Ingreso Datos Energía'!$U$17*(($P53+(P54-P53)*2/3)-$AY53) -> -63.15555556 | BB53: -1122.888889 | BC53: =+((BB53/3)/(Tablas!$L$4*Tablas!$L$6*'Ingreso Datos Energía'!$U$17+Tablas!$CQ$18)+AY53) -> 15.78683683 | BD53: 15.78683683 | BE53: 0 | BF53: 0 | BG53: -953.0482106 | BH53: 0 | BI53: 0 | BJ53: 0 | BK53: 0 | BL53: -0.272017084 | BM53: 50
A54: 20.2 | B54: 12.3 | C54: 17.4 | D54: 18.9 | E54: 14.7 | F54: 11.1 | G54: 15 | H54: 14.9 | I54: 11.5 | J54: 8.5 | K54: 10.3 | L54: 3 | M54: Ene | N54: 3 | O54: 3 | P54: 15 | Q54: =+VLOOKUP(M54,'Ingreso Datos Generales'!$T$5:$Z$16,6,0) -> 20 | R54: =+VLOOKUP(M54,'Ingreso Datos Generales'!$T$5:$Z$16,7,0) -> 24 | S54: 0 | T54: 1 | U54: 0 | V54: =+IF(AND(L54<='Ingreso Datos Generales'!$D$9,O54>=$V$1,O54<=$V$2),1,0) -> 0 | W54: 0 | X54: 5 | Y54: 0 | Z54: =+IF(L54<=Dias_a_la_semana,('Ingreso Datos Energía'!$D$49)*V54,0) -> 0 | AA54: =+(VLOOKUP(M54,'Ingreso Datos Energía'!$I$46:$K$57,2,0)+V54*IF(L54<=Dias_a_la_semana,VLOOKUP(M54,'Ingreso Datos Energía'!$I$46:$K$57,3,0),0)+W54*IF(L54<=Dias_a_la_semana,VLOOKUP(M54,'Ingreso Datos Energía'!$I$46:$K$57,3,0),0)) -> 0.5 | AB54: =+'Ingreso Datos Energía'!$U$36*(Datos!P54-Datos!AI53)+'Ingreso Datos Energía'!$U$38*('Ingreso Datos Energía'!$U$35-Datos!AI53) -> -1063.714316 | AC54: =+SUMIFS(Sol!$AO$31:$AO$186,Sol!$AP$31:$AP$186,Datos!M54,Sol!$AN$31:$AN$186,Datos!O54)*$AC$2 -> 0 | AD54: -1063.714316 | AE54: =(((AD54/3)/(Tablas!$L$4*Tablas!$L$6*'Ingreso Datos Energía'!$U$17+Tablas!$CQ$18)+AI53)*1+(P53+(P54-P53)/3)*AA54/3)/(1+AA54/3) -> 15.63038573 | AF54: =+'Ingreso Datos Energía'!$U$36*(($P53+(P54-P53)/3)-$AE54)+'Ingreso Datos Energía'!$U$38*('Ingreso Datos Energía'!$U$35-$AE54)+$AC54+$Z54 -> -61.20563287 | AG54: =+(((AF54/3)/(Tablas!$L$4*Tablas!$L$6*'Ingreso Datos Energía'!$U$17+Tablas!$CQ$18)+AE54)*1+(P53+(P54-P53)*2/3)*AA54/3)/(1+AA54/3) -> 15.57852968 | AH54: =+'Ingreso Datos Energía'!$U$36*(($P53+(P54-P53)*2/3)-$AG54)+'Ingreso Datos Energía'!$U$38*('Ingreso Datos Energía'!$U$35-$AG54)+$AC54+$Z54 -> -241.5356061 | AI54: =+(((AH54/3)/(Tablas!$L$4*Tablas!$L$6*'Ingreso Datos Energía'!$U$17+Tablas!$CQ$18)+AG54)*1+P54*AA54/3)/(1+AA54/3) -> 15.34595716 | AJ54: =+AD54++(-(Tablas!$L$4*Tablas!$L$6*'Ingreso Datos Energía'!$U$17+Tablas!$CQ$18)*P54*AA54/3+(Tablas!$L$4*Tablas!$L$6*'Ingreso Datos Energía'!$U$17+Tablas!$CQ$18)*AI53)/(1+AA54/3) -> 4391.978064 | AK54: =+IF(L54<='Ingreso Datos Generales'!$D$9,IF(AL54+AM54=0,1,0),0) -> 0 | AL54: =+IF(L54<='Ingreso Datos Generales'!$D$9,IF(AI54<Q54,1,0),0) -> 1 | AM54: =+IF(L54<='Ingreso Datos Generales'!$D$9,IF(AI54>R54,1,0),0) -> 0 | AN54: 4.654042843 | AO54: 0 | AP54: =+'Ingreso Datos Energía'!$U$36*(Datos!P54-Datos!BD53)+'Ingreso Datos Energía'!$U$38*('Ingreso Datos Energía'!$U$35-Datos!BD53) -> -630.2563014 | AQ54: =+AA54*Tablas!$L$4*Tablas!$L$6*'Ingreso Datos Energía'!$U$17*(Datos!P54-Datos!BD53) -> -46.58729735 | AR54: -676.8435987 | AS54: =+IF(((AR54/3)/(Tablas!$L$4*Tablas!$L$6*'Ingreso Datos Energía'!$U$17+Tablas!$CQ$18)+BD53)<P54,P54,((AR54/3)/(Tablas!$L$4*Tablas!$L$6*'Ingreso Datos Energía'!$U$17+Tablas!$CQ$18)+BD53)) -> 15.29668657 | AT54: 15.29668657 | AU54: =+'Ingreso Datos Energía'!$U$36*(($P54+(P55-P54)/3)-$AT54)+'Ingreso Datos Energía'!$U$38*('Ingreso Datos Energía'!$U$35-$AT54) -> -459.5126062 | AV54: =+AA54*Tablas!$L$4*Tablas!$L$6*'Ingreso Datos Energía'!$U$17*(($P54+(P55-P54)/3)-$AT54) -> -49.14409488 | AW54: -508.6567011 | AX54: =+IF(((AW54/3)/(Tablas!$L$4*Tablas!$L$6*'Ingreso Datos Energía'!$U$17+Tablas!$CQ$18)+AT54)<P54,P54,((AW54/3)/(Tablas!$L$4*Tablas!$L$6*'Ingreso Datos Energía'!$U$17+Tablas!$CQ$18)+AT54)) -> 15 | AY54: 15 | AZ54: =+'Ingreso Datos Energía'!$U$36*(($P54+(P55-P54)*2/3)-$AY54)+'Ingreso Datos Energía'!$U$38*('Ingreso Datos Energía'!$U$35-$AY54) -> -443.7333333 | BA54: =+AA54*Tablas!$L$4*Tablas!$L$6*'Ingreso Datos Energía'!$U$17*(($P54+(P55-P54)*2/3)-$AY54) -> -63.15555556 | BB54: -506.8888889 | BC54: =+((BB54/3)/(Tablas!$L$4*Tablas!$L$6*'Ingreso Datos Energía'!$U$17+Tablas!$CQ$18)+AY54) -> 14.63292595 | BD54: 14.63292595 | BE54: 0 | BF54: 0 | BG54: -564.1297296 | BH54: 0 | BI54: 0 | BJ54: 0 | BK54: 0 | BL54: 0.3459571573 | BM54: 51
A55: 19.8 | B55: 11.5 | C55: 17 | D55: 18.5 | E55: 14.1 | F55: 10.1 | G55: 13.4 | H55: 14.4 | I55: 10.6 | J55: 8.1 | K55: 9.4 | L55: 3 | M55: Ene | N55: 3 | O55: 4 | P55: 13.4 | Q55: =+VLOOKUP(M55,'Ingreso Datos Generales'!$T$5:$Z$16,6,0) -> 20 | R55: =+VLOOKUP(M55,'Ingreso Datos Generales'!$T$5:$Z$16,7,0) -> 24 | S55: 0 | T55: 1 | U55: 0 | V55: =+IF(AND(L55<='Ingreso Datos Generales'!$D$9,O55>=$V$1,O55<=$V$2),1,0) -> 0 | W55: 0 | X55: 6.6 | Y55: 0 | Z55: =+IF(L55<=Dias_a_la_semana,('Ingreso Datos Energía'!$D$49)*V55,0) -> 0 | AA55: =+(VLOOKUP(M55,'Ingreso Datos Energía'!$I$46:$K$57,2,0)+V55*IF(L55<=Dias_a_la_semana,VLOOKUP(M55,'Ingreso Datos Energía'!$I$46:$K$57,3,0),0)+W55*IF(L55<=Dias_a_la_semana,VLOOKUP(M55,'Ingreso Datos Energía'!$I$46:$K$57,3,0),0)) -> 0.5 | AB55: =+'Ingreso Datos Energía'!$U$36*(Datos!P55-Datos!AI54)+'Ingreso Datos Energía'!$U$38*('Ingreso Datos Energía'!$U$35-Datos!AI54) -> -942.711683 | AC55: =+SUMIFS(Sol!$AO$31:$AO$186,Sol!$AP$31:$AP$186,Datos!M55,Sol!$AN$31:$AN$186,Datos!O55)*$AC$2 -> 0 | AD55: -942.711683 | AE55: =(((AD55/3)/(Tablas!$L$4*Tablas!$L$6*'Ingreso Datos Energía'!$U$17+Tablas!$CQ$18)+AI54)*1+(P54+(P55-P54)/3)*AA55/3)/(1+AA55/3) -> 14.63518641 | AF55: =+'Ingreso Datos Energía'!$U$36*(($P54+(P55-P54)/3)-$AE55)+'Ingreso Datos Energía'!$U$38*('Ingreso Datos Energía'!$U$35-$AE55)+$AC55+$Z55 -> 70.34902082 | AG55: =+(((AF55/3)/(Tablas!$L$4*Tablas!$L$6*'Ingreso Datos Energía'!$U$17+Tablas!$CQ$18)+AE55)*1+(P54+(P55-P54)*2/3)*AA55/3)/(1+AA55/3) -> 14.57858856 | AH55: =+'Ingreso Datos Energía'!$U$36*(($P54+(P55-P54)*2/3)-$AG55)+'Ingreso Datos Energía'!$U$38*('Ingreso Datos Energía'!$U$35-$AG55)+$AC55+$Z55 -> -106.1827737 | AI55: =+(((AH55/3)/(Tablas!$L$4*Tablas!$L$6*'Ingreso Datos Energía'!$U$17+Tablas!$CQ$18)+AG55)*1+P55*AA55/3)/(1+AA55/3) -> 14.34430924 | AJ55: =+AD55++(-(Tablas!$L$4*Tablas!$L$6*'Ingreso Datos Energía'!$U$17+Tablas!$CQ$18)*P55*AA55/3+(Tablas!$L$4*Tablas!$L$6*'Ingreso Datos Energía'!$U$17+Tablas!$CQ$18)*AI54)/(1+AA55/3) -> 4230.742921 | AK55: =+IF(L55<='Ingreso Datos Generales'!$D$9,IF(AL55+AM55=0,1,0),0) -> 0 | AL55: =+IF(L55<='Ingreso Datos Generales'!$D$9,IF(AI55<Q55,1,0),0) -> 1 | AM55: =+IF(L55<='Ingreso Datos Generales'!$D$9,IF(AI55>R55,1,0),0) -> 0 | AN55: 5.655690757 | AO55: 0 | AP55: =+'Ingreso Datos Energía'!$U$36*(Datos!P55-Datos!BD54)+'Ingreso Datos Energía'!$U$38*('Ingreso Datos Energía'!$U$35-Datos!BD54) -> -371.5736836 | AQ55: =+AA55*Tablas!$L$4*Tablas!$L$6*'Ingreso Datos Energía'!$U$17*(Datos!P55-Datos!BD54) -> -72.99949045 | AR55: -444.5731741 | AS55: =+IF(((AR55/3)/(Tablas!$L$4*Tablas!$L$6*'Ingreso Datos Energía'!$U$17+Tablas!$CQ$18)+BD54)<P55,P55,((AR55/3)/(Tablas!$L$4*Tablas!$L$6*'Ingreso Datos Energía'!$U$17+Tablas!$CQ$18)+BD54)) -> 14.31097911 | AT55: 14.31097911 | AU55: =+'Ingreso Datos Energía'!$U$36*(($P55+(P56-P55)/3)-$AT55)+'Ingreso Datos Energía'!$U$38*('Ingreso Datos Energía'!$U$35-$AT55) -> -321.6942635 | AV55: =+AA55*Tablas!$L$4*Tablas!$L$6*'Ingreso Datos Energía'!$U$17*(($P55+(P56-P55)/3)-$AT55) -> -83.54172121 | AW55: -405.2359847 | AX55: =+IF(((AW55/3)/(Tablas!$L$4*Tablas!$L$6*'Ingreso Datos Energía'!$U$17+Tablas!$CQ$18)+AT55)<P55,P55,((AW55/3)/(Tablas!$L$4*Tablas!$L$6*'Ingreso Datos Energía'!$U$17+Tablas!$CQ$18)+AT55)) -> 14.0175191 | AY55: 14.0175191 | AZ55: =+'Ingreso Datos Energía'!$U$36*(($P55+(P56-P55)*2/3)-$AY55)+'Ingreso Datos Energía'!$U$38*('Ingreso Datos Energía'!$U$35-$AY55) -> -294.6328004 | BA55: =+AA55*Tablas!$L$4*Tablas!$L$6*'Ingreso Datos Energía'!$U$17*(($P55+(P56-P55)*2/3)-$AY55) -> -95.77061014 | BB55: -390.4034106 | BC55: =+((BB55/3)/(Tablas!$L$4*Tablas!$L$6*'Ingreso Datos Energía'!$U$17+Tablas!$CQ$18)+AY55) -> 13.73480041 | BD55: 13.73480041 | BE55: 0 | BF55: 0 | BG55: -413.4041898 | BH55: 0 | BI55: 0 | BJ55: 0 | BK55: 0 | BL55: 0.9443092433 | BM55: 52
A56: 19.4 | B56: 10.8 | C56: 16.6 | D56: 18.1 | E56: 13.6 | F56: 9 | G56: 11.9 | H56: 13.9 | I56: 9.8 | J56: 7.7 | K56: 8.5 | L56: 3 | M56: Ene | N56: 3 | O56: 5 | P56: 11.9 | Q56: =+VLOOKUP(M56,'Ingreso Datos Generales'!$T$5:$Z$16,6,0) -> 20 | R56: =+VLOOKUP(M56,'Ingreso Datos Generales'!$T$5:$Z$16,7,0) -> 24 | S56: 0 | T56: 1 | U56: 0 | V56: =+IF(AND(L56<='Ingreso Datos Generales'!$D$9,O56>=$V$1,O56<=$V$2),1,0) -> 0 | W56: 0 | X56: 8.1 | Y56: 0 | Z56: =+IF(L56<=Dias_a_la_semana,('Ingreso Datos Energía'!$D$49)*V56,0) -> 0 | AA56: =+(VLOOKUP(M56,'Ingreso Datos Energía'!$I$46:$K$57,2,0)+V56*IF(L56<=Dias_a_la_semana,VLOOKUP(M56,'Ingreso Datos Energía'!$I$46:$K$57,3,0),0)+W56*IF(L56<=Dias_a_la_semana,VLOOKUP(M56,'Ingreso Datos Energía'!$I$46:$K$57,3,0),0)) -> 0.5 | AB56: =+'Ingreso Datos Energía'!$U$36*(Datos!P56-Datos!AI55)+'Ingreso Datos Energía'!$U$38*('Ingreso Datos Energía'!$U$35-Datos!AI55) -> -764.3917039 | AC56: =+SUMIFS(Sol!$AO$31:$AO$186,Sol!$AP$31:$AP$186,Datos!M56,Sol!$AN$31:$AN$186,Datos!O56)*$AC$2 -> 0 | AD56: -764.3917039 | AE56: =(((AD56/3)/(Tablas!$L$4*Tablas!$L$6*'Ingreso Datos Energía'!$U$17+Tablas!$CQ$18)+AI55)*1+(P55+(P56-P55)/3)*AA56/3)/(1+AA56/3) -> 13.6635079 | AF56: =+'Ingreso Datos Energía'!$U$36*(($P55+(P56-P55)/3)-$AE56)+'Ingreso Datos Energía'!$U$38*('Ingreso Datos Energía'!$U$35-$AE56)+$AC56+$Z56 -> 196.9301759 | AG56: =+(((AF56/3)/(Tablas!$L$4*Tablas!$L$6*'Ingreso Datos Energía'!$U$17+Tablas!$CQ$18)+AE56)*1+(P55+(P56-P55)*2/3)*AA56/3)/(1+AA56/3) -> 13.60524481 | AH56: =+'Ingreso Datos Energía'!$U$36*(($P55+(P56-P55)*2/3)-$AG56)+'Ingreso Datos Energía'!$U$38*('Ingreso Datos Energía'!$U$35-$AG56)+$AC56+$Z56 -> 35.59890548 | AI56: =+(((AH56/3)/(Tablas!$L$4*Tablas!$L$6*'Ingreso Datos Energía'!$U$17+Tablas!$CQ$18)+AG56)*1+P56*AA56/3)/(1+AA56/3) -> 13.38373528 | AJ56: =+AD56++(-(Tablas!$L$4*Tablas!$L$6*'Ingreso Datos Energía'!$U$17+Tablas!$CQ$18)*P56*AA56/3+(Tablas!$L$4*Tablas!$L$6*'Ingreso Datos Energía'!$U$17+Tablas!$CQ$18)*AI55)/(1+AA56/3) -> 4112.507732 | AK56: =+IF(L56<='Ingreso Datos Generales'!$D$9,IF(AL56+AM56=0,1,0),0) -> 0 | AL56: =+IF(L56<='Ingreso Datos Generales'!$D$9,IF(AI56<Q56,1,0),0) -> 1 | AM56: =+IF(L56<='Ingreso Datos Generales'!$D$9,IF(AI56>R56,1,0),0) -> 0 | AN56: 6.616264719 | AO56: 0 | AP56: =+'Ingreso Datos Energía'!$U$36*(Datos!P56-Datos!BD55)+'Ingreso Datos Energía'!$U$38*('Ingreso Datos Energía'!$U$35-Datos!BD55) -> -276.1751305 | AQ56: =+AA56*Tablas!$L$4*Tablas!$L$6*'Ingreso Datos Energía'!$U$17*(Datos!P56-Datos!BD55) -> -108.6354744 | AR56: -384.8106049 | AS56: =+IF(((AR56/3)/(Tablas!$L$4*Tablas!$L$6*'Ingreso Datos Energía'!$U$17+Tablas!$CQ$18)+BD55)<P56,P56,((AR56/3)/(Tablas!$L$4*Tablas!$L$6*'Ingreso Datos Energía'!$U$17+Tablas!$CQ$18)+BD55)) -> 13.45613187 | AT56: 13.45613187 | AU56: =+'Ingreso Datos Energía'!$U$36*(($P56+(P57-P56)/3)-$AT56)+'Ingreso Datos Energía'!$U$38*('Ingreso Datos Energía'!$U$35-$AT56) -> -274.8282939 | AV56: =+AA56*Tablas!$L$4*Tablas!$L$6*'Ingreso Datos Energía'!$U$17*(($P56+(P57-P56)/3)-$AT56) -> -123.7137522 | AW56: -398.5420461 | AX56: =+IF(((AW56/3)/(Tablas!$L$4*Tablas!$L$6*'Ingreso Datos Energía'!$U$17+Tablas!$CQ$18)+AT56)<P56,P56,((AW56/3)/(Tablas!$L$4*Tablas!$L$6*'Ingreso Datos Energía'!$U$17+Tablas!$CQ$18)+AT56)) -> 13.16751942 | AY56: 13.16751942 | AZ56: =+'Ingreso Datos Energía'!$U$36*(($P56+(P57-P56)*2/3)-$AY56)+'Ingreso Datos Energía'!$U$38*('Ingreso Datos Energía'!$U$35-$AY56) -> -265.5163881 | BA56: =+AA56*Tablas!$L$4*Tablas!$L$6*'Ingreso Datos Energía'!$U$17*(($P56+(P57-P56)*2/3)-$AY56) -> -138.2032678 | BB56: -403.7196559 | BC56: =+((BB56/3)/(Tablas!$L$4*Tablas!$L$6*'Ingreso Datos Energía'!$U$17+Tablas!$CQ$18)+AY56) -> 12.8751575 | BD56: 12.8751575 | BE56: 0 | BF56: 0 | BG56: -395.690769 | BH56: 0 | BI56: 0 | BJ56: 0 | BK56: 0 | BL56: 1.483735281 | BM56: 53
A57: 19 | B57: 10 | C57: 16.2 | D57: 17.7 | E57: 13 | F57: 8 | G57: 10.3 | H57: 13.4 | I57: 8.9 | J57: 8 | K57: 8.5 | L57: 3 | M57: Ene | N57: 3 | O57: 6 | P57: 10.3 | Q57: =+VLOOKUP(M57,'Ingreso Datos Generales'!$T$5:$Z$16,6,0) -> 20 | R57: =+VLOOKUP(M57,'Ingreso Datos Generales'!$T$5:$Z$16,7,0) -> 24 | S57: 0 | T57: 1 | U57: 0 | V57: =+IF(AND(L57<='Ingreso Datos Generales'!$D$9,O57>=$V$1,O57<=$V$2),1,0) -> 0 | W57: 0 | X57: 9.7 | Y57: 0 | Z57: =+IF(L57<=Dias_a_la_semana,('Ingreso Datos Energía'!$D$49)*V57,0) -> 0 | AA57: =+(VLOOKUP(M57,'Ingreso Datos Energía'!$I$46:$K$57,2,0)+V57*IF(L57<=Dias_a_la_semana,VLOOKUP(M57,'Ingreso Datos Energía'!$I$46:$K$57,3,0),0)+W57*IF(L57<=Dias_a_la_semana,VLOOKUP(M57,'Ingreso Datos Energía'!$I$46:$K$57,3,0),0)) -> 0.5 | AB57: =+'Ingreso Datos Energía'!$U$36*(Datos!P57-Datos!AI56)+'Ingreso Datos Energía'!$U$38*('Ingreso Datos Energía'!$U$35-Datos!AI56) -> -660.57196 | AC57: =+SUMIFS(Sol!$AO$31:$AO$186,Sol!$AP$31:$AP$186,Datos!M57,Sol!$AN$31:$AN$186,Datos!O57)*$AC$2 -> 1640.275 | AD57: 979.70304 | AE57: =(((AD57/3)/(Tablas!$L$4*Tablas!$L$6*'Ingreso Datos Energía'!$U$17+Tablas!$CQ$18)+AI56)*1+(P56+(P57-P56)/3)*AA57/3)/(1+AA57/3) -> 13.70370163 | AF57: =+'Ingreso Datos Energía'!$U$36*(($P56+(P57-P56)/3)-$AE57)+'Ingreso Datos Energía'!$U$38*('Ingreso Datos Energía'!$U$35-$AE57)+$AC57+$Z57 -> 1167.143324 | AG57: =+(((AF57/3)/(Tablas!$L$4*Tablas!$L$6*'Ingreso Datos Energía'!$U$17+Tablas!$CQ$18)+AE57)*1+(P56+(P57-P56)*2/3)*AA57/3)/(1+AA57/3) -> 14.01811553 | AH57: =+'Ingreso Datos Energía'!$U$36*(($P56+(P57-P56)*2/3)-$AG57)+'Ingreso Datos Energía'!$U$38*('Ingreso Datos Energía'!$U$35-$AG57)+$AC57+$Z57 -> 693.4311246 | AI57: =+(((AH57/3)/(Tablas!$L$4*Tablas!$L$6*'Ingreso Datos Energía'!$U$17+Tablas!$CQ$18)+AG57)*1+P57*AA57/3)/(1+AA57/3) -> 13.91738114 | AJ57: =+AD57++(-(Tablas!$L$4*Tablas!$L$6*'Ingreso Datos Energía'!$U$17+Tablas!$CQ$18)*P57*AA57/3+(Tablas!$L$4*Tablas!$L$6*'Ingreso Datos Energía'!$U$17+Tablas!$CQ$18)*AI56)/(1+AA57/3) -> 5582.828291 | AK57: =+IF(L57<='Ingreso Datos Generales'!$D$9,IF(AL57+AM57=0,1,0),0) -> 0 | AL57: =+IF(L57<='Ingreso Datos Generales'!$D$9,IF(AI57<Q57,1,0),0) -> 1 | AM57: =+IF(L57<='Ingreso Datos Generales'!$D$9,IF(AI57>R57,1,0),0) -> 0 | AN57: 6.08261886 | AO57: 0 | AP57: =+'Ingreso Datos Energía'!$U$36*(Datos!P57-Datos!BD56)+'Ingreso Datos Energía'!$U$38*('Ingreso Datos Energía'!$U$35-Datos!BD56) -> -253.2011544 | AQ57: =+AA57*Tablas!$L$4*Tablas!$L$6*'Ingreso Datos Energía'!$U$17*(Datos!P57-Datos!BD56) -> -152.4707834 | AR57: 1234.603062 | AS57: =+IF(((AR57/3)/(Tablas!$L$4*Tablas!$L$6*'Ingreso Datos Energía'!$U$17+Tablas!$CQ$18)+BD56)<P57,P57,((AR57/3)/(Tablas!$L$4*Tablas!$L$6*'Ingreso Datos Energía'!$U$17+Tablas!$CQ$18)+BD56)) -> 13.76922079 | AT57: 13.76922079 | AU57: =+'Ingreso Datos Energía'!$U$36*(($P57+(P58-P57)/3)-$AT57)+'Ingreso Datos Energía'!$U$38*('Ingreso Datos Energía'!$U$35-$AT57) -> -456.2791863 | AV57: =+AA57*Tablas!$L$4*Tablas!$L$6*'Ingreso Datos Energía'!$U$17*(($P57+(P58-P57)/3)-$AT57) -> -132.3831698 | AW57: 1051.612644 | AX57: =+IF(((AW57/3)/(Tablas!$L$4*Tablas!$L$6*'Ingreso Datos Energía'!$U$17+Tablas!$CQ$18)+AT57)<P57,P57,((AW57/3)/(Tablas!$L$4*Tablas!$L$6*'Ingreso Datos Energía'!$U$17+Tablas!$CQ$18)+AT57)) -> 14.5307678 | AY57: 14.5307678 | AZ57: =+'Ingreso Datos Energía'!$U$36*(($P57+(P58-P57)*2/3)-$AY57)+'Ingreso Datos Energía'!$U$38*('Ingreso Datos Energía'!$U$35-$AY57) -> -553.2116707 | BA57: =+AA57*Tablas!$L$4*Tablas!$L$6*'Ingreso Datos Energía'!$U$17*(($P57+(P58-P57)*2/3)-$AY57) -> -104.4494877 | BB57: 982.6138416 | BC57: =+((BB57/3)/(Tablas!$L$4*Tablas!$L$6*'Ingreso Datos Energía'!$U$17+Tablas!$CQ$18)+AY57) -> 15.24234789 | BD57: 15.24234789 | BE57: 0 | BF57: 0 | BG57: 1089.609849 | BH57: 0 | BI57: 0 | BJ57: 0 | BK57: 0 | BL57: 3.61738114 | BM57: 54
A58: 19.4 | B58: 11.6 | C58: 16.6 | D58: 18.6 | E58: 14.1 | F58: 11.4 | G58: 14 | H58: 14.7 | I58: 12 | J58: 9.6 | K58: 9.4 | L58: 3 | M58: Ene | N58: 3 | O58: 7 | P58: 14 | Q58: =+VLOOKUP(M58,'Ingreso Datos Generales'!$T$5:$Z$16,6,0) -> 20 | R58: =+VLOOKUP(M58,'Ingreso Datos Generales'!$T$5:$Z$16,7,0) -> 24 | S58: 0 | T58: 1 | U58: 0 | V58: =+IF(AND(L58<='Ingreso Datos Generales'!$D$9,O58>=$V$1,O58<=$V$2),1,0) -> 0 | W58: 0 | X58: 6 | Y58: 0 | Z58: =+IF(L58<=Dias_a_la_semana,('Ingreso Datos Energía'!$D$49)*V58,0) -> 0 | AA58: =+(VLOOKUP(M58,'Ingreso Datos Energía'!$I$46:$K$57,2,0)+V58*IF(L58<=Dias_a_la_semana,VLOOKUP(M58,'Ingreso Datos Energía'!$I$46:$K$57,3,0),0)+W58*IF(L58<=Dias_a_la_semana,VLOOKUP(M58,'Ingreso Datos Energía'!$I$46:$K$57,3,0),0)) -> 0.5 | AB58: =+'Ingreso Datos Energía'!$U$36*(Datos!P58-Datos!AI57)+'Ingreso Datos Energía'!$U$38*('Ingreso Datos Energía'!$U$35-Datos!AI57) -> 451.1777067 | AC58: =+SUMIFS(Sol!$AO$31:$AO$186,Sol!$AP$31:$AP$186,Datos!M58,Sol!$AN$31:$AN$186,Datos!O58)*$AC$2 -> 2702.84 | AD58: 3154.017707 | AE58: =(((AD58/3)/(Tablas!$L$4*Tablas!$L$6*'Ingreso Datos Energía'!$U$17+Tablas!$CQ$18)+AI57)*1+(P57+(P58-P57)/3)*AA58/3)/(1+AA58/3) -> 15.53455748 | AF58: =+'Ingreso Datos Energía'!$U$36*(($P57+(P58-P57)/3)-$AE58)+'Ingreso Datos Energía'!$U$38*('Ingreso Datos Energía'!$U$35-$AE58)+$AC58+$Z58 -> 832.5261241 | AG58: =+(((AF58/3)/(Tablas!$L$4*Tablas!$L$6*'Ingreso Datos Energía'!$U$17+Tablas!$CQ$18)+AE58)*1+(P57+(P58-P57)*2/3)*AA58/3)/(1+AA58/3) -> 15.6559082 | AH58: =+'Ingreso Datos Energía'!$U$36*(($P57+(P58-P57)*2/3)-$AG58)+'Ingreso Datos Energía'!$U$38*('Ingreso Datos Energía'!$U$35-$AG58)+$AC58+$Z58 -> 1248.390862 | AI58: =+(((AH58/3)/(Tablas!$L$4*Tablas!$L$6*'Ingreso Datos Energía'!$U$17+Tablas!$CQ$18)+AG58)*1+P58*AA58/3)/(1+AA58/3) -> 16.19424819 | AJ58: =+AD58++(-(Tablas!$L$4*Tablas!$L$6*'Ingreso Datos Energía'!$U$17+Tablas!$CQ$18)*P58*AA58/3+(Tablas!$L$4*Tablas!$L$6*'Ingreso Datos Energía'!$U$17+Tablas!$CQ$18)*AI57)/(1+AA58/3) -> 7724.387928 | AK58: =+IF(L58<='Ingreso Datos Generales'!$D$9,IF(AL58+AM58=0,1,0),0) -> 0 | AL58: =+IF(L58<='Ingreso Datos Generales'!$D$9,IF(AI58<Q58,1,0),0) -> 1 | AM58: =+IF(L58<='Ingreso Datos Generales'!$D$9,IF(AI58>R58,1,0),0) -> 0 | AN58: 3.805751813 | AO58: 0 | AP58: =+'Ingreso Datos Energía'!$U$36*(Datos!P58-Datos!BD57)+'Ingreso Datos Energía'!$U$38*('Ingreso Datos Energía'!$U$35-Datos!BD57) -> -610.1206626 | AQ58: =+AA58*Tablas!$L$4*Tablas!$L$6*'Ingreso Datos Energía'!$U$17*(Datos!P58-Datos!BD57) -> -73.55734819 | AR58: 2019.161989 | AS58: =+IF(((AR58/3)/(Tablas!$L$4*Tablas!$L$6*'Ingreso Datos Energía'!$U$17+Tablas!$CQ$18)+BD57)<P58,P58,((AR58/3)/(Tablas!$L$4*Tablas!$L$6*'Ingreso Datos Energía'!$U$17+Tablas!$CQ$18)+BD57)) -> 16.70456573 | AT58: 16.70456573 | AU58: =+'Ingreso Datos Energía'!$U$36*(($P58+(P59-P58)/3)-$AT58)+'Ingreso Datos Energía'!$U$38*('Ingreso Datos Energía'!$U$35-$AT58) -> -1254.423817 | AV58: =+AA58*Tablas!$L$4*Tablas!$L$6*'Ingreso Datos Energía'!$U$17*(($P58+(P59-P58)/3)-$AT58) -> -85.13560708 | AW58: 1363.280576 | AX58: =+IF(((AW58/3)/(Tablas!$L$4*Tablas!$L$6*'Ingreso Datos Energía'!$U$17+Tablas!$CQ$18)+AT58)<P58,P58,((AW58/3)/(Tablas!$L$4*Tablas!$L$6*'Ingreso Datos Energía'!$U$17+Tablas!$CQ$18)+AT58)) -> 17.6918135 | AY58: 17.6918135 | AZ58: =+'Ingreso Datos Energía'!$U$36*(($P58+(P59-P58)*2/3)-$AY58)+'Ingreso Datos Energía'!$U$38*('Ingreso Datos Energía'!$U$35-$AY58) -> -1518.275949 | BA58: =+AA58*Tablas!$L$4*Tablas!$L$6*'Ingreso Datos Energía'!$U$17*(($P58+(P59-P58)*2/3)-$AY58) -> -68.59168003 | BB58: 1115.972371 | BC58: =+((BB58/3)/(Tablas!$L$4*Tablas!$L$6*'Ingreso Datos Energía'!$U$17+Tablas!$CQ$18)+AY58) -> 18.49996793 | BD58: 18.49996793 | BE58: 0 | BF58: 0 | BG58: 1499.471645 | BH58: 0 | BI58: 0 | BJ58: 0 | BK58: 0 | BL58: 2.194248187 | BM58: 55
A59: 20.4 | B59: 13.1 | C59: 17.3 | D59: 19.8 | E59: 15.7 | F59: 15.1 | G59: 17.8 | H59: 14.6 | I59: 13.5 | J59: 10.6 | K59: 10.7 | L59: 3 | M59: Ene | N59: 3 | O59: 8 | P59: 17.8 | Q59: =+VLOOKUP(M59,'Ingreso Datos Generales'!$T$5:$Z$16,6,0) -> 20 | R59: =+VLOOKUP(M59,'Ingreso Datos Generales'!$T$5:$Z$16,7,0) -> 24 | S59: 0 | T59: 1 | U59: 0 | V59: =+IF(AND(L59<='Ingreso Datos Generales'!$D$9,O59>=$V$1,O59<=$V$2),1,0) -> 1 | W59: 0 | X59: 2.2 | Y59: 0 | Z59: =+IF(L59<=Dias_a_la_semana,('Ingreso Datos Energía'!$D$49)*V59,0) -> 3550 | AA59: =+(VLOOKUP(M59,'Ingreso Datos Energía'!$I$46:$K$57,2,0)+V59*IF(L59<=Dias_a_la_semana,VLOOKUP(M59,'Ingreso Datos Energía'!$I$46:$K$57,3,0),0)+W59*IF(L59<=Dias_a_la_semana,VLOOKUP(M59,'Ingreso Datos Energía'!$I$46:$K$57,3,0),0)) -> 1 | AB59: =+'Ingreso Datos Energía'!$U$36*(Datos!P59-Datos!AI58)+'Ingreso Datos Energía'!$U$38*('Ingreso Datos Energía'!$U$35-Datos!AI58) -> 208.2072023 | AC59: =+SUMIFS(Sol!$AO$31:$AO$186,Sol!$AP$31:$AP$186,Datos!M59,Sol!$AN$31:$AN$186,Datos!O59)*$AC$2 -> 3373.16 | AD59: 7131.367202 | AE59: =(((AD59/3)/(Tablas!$L$4*Tablas!$L$6*'Ingreso Datos Energía'!$U$17+Tablas!$CQ$18)+AI58)*1+(P58+(P59-P58)/3)*AA59/3)/(1+AA59/3) -> 19.83559789 | AF59: =+'Ingreso Datos Energía'!$U$36*(($P58+(P59-P58)/3)-$AE59)+'Ingreso Datos Energía'!$U$38*('Ingreso Datos Energía'!$U$35-$AE59)+$AC59+$Z59 -> 3160.779424 | AG59: =+(((AF59/3)/(Tablas!$L$4*Tablas!$L$6*'Ingreso Datos Energía'!$U$17+Tablas!$CQ$18)+AE59)*1+(P58+(P59-P58)*2/3)*AA59/3)/(1+AA59/3) -> 20.7267395 | AH59: =+'Ingreso Datos Energía'!$U$36*(($P58+(P59-P58)*2/3)-$AG59)+'Ingreso Datos Energía'!$U$38*('Ingreso Datos Energía'!$U$35-$AG59)+$AC59+$Z59 -> 2973.908325 | AI59: =+(((AH59/3)/(Tablas!$L$4*Tablas!$L$6*'Ingreso Datos Energía'!$U$17+Tablas!$CQ$18)+AG59)*1+P59*AA59/3)/(1+AA59/3) -> 21.61026746 | AJ59: =+AD59++(-(Tablas!$L$4*Tablas!$L$6*'Ingreso Datos Energía'!$U$17+Tablas!$CQ$18)*P59*AA59/3+(Tablas!$L$4*Tablas!$L$6*'Ingreso Datos Energía'!$U$17+Tablas!$CQ$18)*AI58)/(1+AA59/3) -> 10673.66588 | AK59: =+IF(L59<='Ingreso Datos Generales'!$D$9,IF(AL59+AM59=0,1,0),0) -> 1 | AL59: =+IF(L59<='Ingreso Datos Generales'!$D$9,IF(AI59<Q59,1,0),0) -> 0 | AM59: =+IF(L59<='Ingreso Datos Generales'!$D$9,IF(AI59>R59,1,0),0) -> 0 | AN59: 0 | AO59: 0 | AP59: =+'Ingreso Datos Energía'!$U$36*(Datos!P59-Datos!BD58)+'Ingreso Datos Energía'!$U$38*('Ingreso Datos Energía'!$U$35-Datos!BD58) -> -1638.674314 | AQ59: =+AA59*Tablas!$L$4*Tablas!$L$6*'Ingreso Datos Energía'!$U$17*(Datos!P59-Datos!BD58) -> -82.88786938 | AR59: 5201.597816 | AS59: =+IF(((AR59/3)/(Tablas!$L$4*Tablas!$L$6*'Ingreso Datos Energía'!$U$17+Tablas!$CQ$18)+BD58)<P59,P59,((AR59/3)/(Tablas!$L$4*Tablas!$L$6*'Ingreso Datos Energía'!$U$17+Tablas!$CQ$18)+BD58)) -> 22.26681237 | AT59: 22.26681237 | AU59: =+'Ingreso Datos Energía'!$U$36*(($P59+(P60-P59)/3)-$AT59)+'Ingreso Datos Energía'!$U$38*('Ingreso Datos Energía'!$U$35-$AT59) -> -4226.050043 | AV59: =+AA59*Tablas!$L$4*Tablas!$L$6*'Ingreso Datos Energía'!$U$17*(($P59+(P60-P59)/3)-$AT59) -> -406.5811427 | AW59: 2290.528815 | AX59: =+IF(((AW59/3)/(Tablas!$L$4*Tablas!$L$6*'Ingreso Datos Energía'!$U$17+Tablas!$CQ$18)+AT59)<P59,P59,((AW59/3)/(Tablas!$L$4*Tablas!$L$6*'Ingreso Datos Energía'!$U$17+Tablas!$CQ$18)+AT59)) -> 23.9255461 | AY59: 23.9255461 | AZ59: =+'Ingreso Datos Energía'!$U$36*(($P59+(P60-P59)*2/3)-$AY59)+'Ingreso Datos Energía'!$U$38*('Ingreso Datos Energía'!$U$35-$AY59) -> -5124.82909 | BA59: =+AA59*Tablas!$L$4*Tablas!$L$6*'Ingreso Datos Energía'!$U$17*(($P59+(P60-P59)*2/3)-$AY59) -> -480.6389725 | BB59: 1317.691937 | BC59: =+((BB59/3)/(Tablas!$L$4*Tablas!$L$6*'Ingreso Datos Energía'!$U$17+Tablas!$CQ$18)+AY59) -> 24.87977992 | BD59: 24 | BE59: -2936.606189 | BF59: 0 | BG59: 2936.606189 | BH59: 0 | BI59: 1 | BJ59: 0 | BK59: 0 | BL59: 3.810267456 | BM59: 56
A60: 21.6 | B60: 15.2 | C60: 18.1 | D60: 21.1 | E60: 17 | F60: 16.9 | G60: 20.9 | H60: 15.7 | I60: 15.1 | J60: 11.4 | K60: 11.8 | L60: 3 | M60: Ene | N60: 3 | O60: 9 | P60: 20.9 | Q60: =+VLOOKUP(M60,'Ingreso Datos Generales'!$T$5:$Z$16,6,0) -> 20 | R60: =+VLOOKUP(M60,'Ingreso Datos Generales'!$T$5:$Z$16,7,0) -> 24 | S60: 1 | T60: 0 | U60: 0 | V60: =+IF(AND(L60<='Ingreso Datos Generales'!$D$9,O60>=$V$1,O60<=$V$2),1,0) -> 1 | W60: 0 | X60: 0 | Y60: 0 | Z60: =+IF(L60<=Dias_a_la_semana,('Ingreso Datos Energía'!$D$49)*V60,0) -> 3550 | AA60: =+(VLOOKUP(M60,'Ingreso Datos Energía'!$I$46:$K$57,2,0)+V60*IF(L60<=Dias_a_la_semana,VLOOKUP(M60,'Ingreso Datos Energía'!$I$46:$K$57,3,0),0)+W60*IF(L60<=Dias_a_la_semana,VLOOKUP(M60,'Ingreso Datos Energía'!$I$46:$K$57,3,0),0)) -> 1 | AB60: =+'Ingreso Datos Energía'!$U$36*(Datos!P60-Datos!AI59)+'Ingreso Datos Energía'!$U$38*('Ingreso Datos Energía'!$U$35-Datos!AI59) -> -2840.424232 | AC60: =+SUMIFS(Sol!$AO$31:$AO$186,Sol!$AP$31:$AP$186,Datos!M60,Sol!$AN$31:$AN$186,Datos!O60)*$AC$2 -> 3858.505 | AD60: 4568.080768 | AE60: =(((AD60/3)/(Tablas!$L$4*Tablas!$L$6*'Ingreso Datos Energía'!$U$17+Tablas!$CQ$18)+AI59)*1+(P59+(P60-P59)/3)*AA60/3)/(1+AA60/3) -> 23.39708642 | AF60: =+'Ingreso Datos Energía'!$U$36*(($P59+(P60-P59)/3)-$AE60)+'Ingreso Datos Energía'!$U$38*('Ingreso Datos Energía'!$U$35-$AE60)+$AC60+$Z60 -> 2277.105446 | AG60: =+(((AF60/3)/(Tablas!$L$4*Tablas!$L$6*'Ingreso Datos Energía'!$U$17+Tablas!$CQ$18)+AE60)*1+(P59+(P60-P59)*2/3)*AA60/3)/(1+AA60/3) -> 23.75124117 | AH60: =+'Ingreso Datos Energía'!$U$36*(($P59+(P60-P59)*2/3)-$AG60)+'Ingreso Datos Energía'!$U$38*('Ingreso Datos Energía'!$U$35-$AG60)+$AC60+$Z60 -> 2423.294158 | AI60: =+(((AH60/3)/(Tablas!$L$4*Tablas!$L$6*'Ingreso Datos Energía'!$U$17+Tablas!$CQ$18)+AG60)*1+P60*AA60/3)/(1+AA60/3) -> 24.35458974 | AJ60: =+AD60++(-(Tablas!$L$4*Tablas!$L$6*'Ingreso Datos Energía'!$U$17+Tablas!$CQ$18)*P60*AA60/3+(Tablas!$L$4*Tablas!$L$6*'Ingreso Datos Energía'!$U$17+Tablas!$CQ$18)*AI59)/(1+AA60/3) -> 9623.381241 | AK60: =+IF(L60<='Ingreso Datos Generales'!$D$9,IF(AL60+AM60=0,1,0),0) -> 0 | AL60: =+IF(L60<='Ingreso Datos Generales'!$D$9,IF(AI60<Q60,1,0),0) -> 0 | AM60: =+IF(L60<='Ingreso Datos Generales'!$D$9,IF(AI60>R60,1,0),0) -> 1 | AN60: 0 | AO60: 0.3545897431 | AP60: =+'Ingreso Datos Energía'!$U$36*(Datos!P60-Datos!BD59)+'Ingreso Datos Energía'!$U$38*('Ingreso Datos Energía'!$U$35-Datos!BD59) -> -4754.6 | AQ60: =+AA60*Tablas!$L$4*Tablas!$L$6*'Ingreso Datos Energía'!$U$17*(Datos!P60-Datos!BD59) -> -367.0916667 | AR60: 2286.813333 | AS60: =+IF(((AR60/3)/(Tablas!$L$4*Tablas!$L$6*'Ingreso Datos Energía'!$U$17+Tablas!$CQ$18)+BD59)<P60,P60,((AR60/3)/(Tablas!$L$4*Tablas!$L$6*'Ingreso Datos Energía'!$U$17+Tablas!$CQ$18)+BD59)) -> 25.65604308 | AT60: 24 | AU60: =+'Ingreso Datos Energía'!$U$36*(($P60+(P61-P60)/3)-$AT60)+'Ingreso Datos Energía'!$U$38*('Ingreso Datos Energía'!$U$35-$AT60) -> -4324.733333 | AV60: =+AA60*Tablas!$L$4*Tablas!$L$6*'Ingreso Datos Energía'!$U$17*(($P60+(P61-P60)/3)-$AT60) -> -244.7277778 | AW60: 2839.043889 | AX60: =+IF(((AW60/3)/(Tablas!$L$4*Tablas!$L$6*'Ingreso Datos Energía'!$U$17+Tablas!$CQ$18)+AT60)<P60,P60,((AW60/3)/(Tablas!$L$4*Tablas!$L$6*'Ingreso Datos Energía'!$U$17+Tablas!$CQ$18)+AT60)) -> 26.05595224 | AY60: 24 | AZ60: =+'Ingreso Datos Energía'!$U$36*(($P60+(P61-P60)*2/3)-$AY60)+'Ingreso Datos Energía'!$U$38*('Ingreso Datos Energía'!$U$35-$AY60) -> -3894.866667 | BA60: =+AA60*Tablas!$L$4*Tablas!$L$6*'Ingreso Datos Energía'!$U$17*(($P60+(P61-P60)*2/3)-$AY60) -> -122.3638889 | BB60: 3391.274444 | BC60: =+((BB60/3)/(Tablas!$L$4*Tablas!$L$6*'Ingreso Datos Energía'!$U$17+Tablas!$CQ$18)+AY60) -> 26.4558614 | BD60: 24 | BE60: -2839.043889 | BF60: 0 | BG60: 2839.043889 | BH60: 0 | BI60: 0 | BJ60: 1 | BK60: 1 | BL60: 3.454589743 | BM60: 57
A61: 22.7 | B61: 17.3 | C61: 19.3 | D61: 22.1 | E61: 18.3 | F61: 19.3 | G61: 24 | H61: 17.8 | I61: 15.5 | J61: 11.6 | K61: 13.3 | L61: 3 | M61: Ene | N61: 3 | O61: 10 | P61: 24 | Q61: =+VLOOKUP(M61,'Ingreso Datos Generales'!$T$5:$Z$16,6,0) -> 20 | R61: =+VLOOKUP(M61,'Ingreso Datos Generales'!$T$5:$Z$16,7,0) -> 24 | S61: 1 | T61: 0 | U61: 0 | V61: =+IF(AND(L61<='Ingreso Datos Generales'!$D$9,O61>=$V$1,O61<=$V$2),1,0) -> 1 | W61: 0 | X61: 0 | Y61: 0 | Z61: =+IF(L61<=Dias_a_la_semana,('Ingreso Datos Energía'!$D$49)*V61,0) -> 3550 | AA61: =+(VLOOKUP(M61,'Ingreso Datos Energía'!$I$46:$K$57,2,0)+V61*IF(L61<=Dias_a_la_semana,VLOOKUP(M61,'Ingreso Datos Energía'!$I$46:$K$57,3,0),0)+W61*IF(L61<=Dias_a_la_semana,VLOOKUP(M61,'Ingreso Datos Energía'!$I$46:$K$57,3,0),0)) -> 1 | AB61: =+'Ingreso Datos Energía'!$U$36*(Datos!P61-Datos!AI60)+'Ingreso Datos Energía'!$U$38*('Ingreso Datos Energía'!$U$35-Datos!AI60) -> -3749.026384 | AC61: =+SUMIFS(Sol!$AO$31:$AO$186,Sol!$AP$31:$AP$186,Datos!M61,Sol!$AN$31:$AN$186,Datos!O61)*$AC$2 -> 4147.85 | AD61: 3948.823616 | AE61: =(((AD61/3)/(Tablas!$L$4*Tablas!$L$6*'Ingreso Datos Energía'!$U$17+Tablas!$CQ$18)+AI60)*1+(P60+(P61-P60)/3)*AA61/3)/(1+AA61/3) -> 25.89399225 | AF61: =+'Ingreso Datos Energía'!$U$36*(($P60+(P61-P60)/3)-$AE61)+'Ingreso Datos Energía'!$U$38*('Ingreso Datos Energía'!$U$35-$AE61)+$AC61+$Z61 -> 1856.028878 | AG61: =+(((AF61/3)/(Tablas!$L$4*Tablas!$L$6*'Ingreso Datos Energía'!$U$17+Tablas!$CQ$18)+AE61)*1+(P60+(P61-P60)*2/3)*AA61/3)/(1+AA61/3) -> 26.17022207 | AH61: =+'Ingreso Datos Energía'!$U$36*(($P60+(P61-P60)*2/3)-$AG61)+'Ingreso Datos Energía'!$U$38*('Ingreso Datos Energía'!$U$35-$AG61)+$AC61+$Z61 -> 2064.635454 | AI61: =+(((AH61/3)/(Tablas!$L$4*Tablas!$L$6*'Ingreso Datos Energía'!$U$17+Tablas!$CQ$18)+AG61)*1+P61*AA61/3)/(1+AA61/3) -> 26.74902784 | AJ61: =+AD61++(-(Tablas!$L$4*Tablas!$L$6*'Ingreso Datos Energía'!$U$17+Tablas!$CQ$18)*P61*AA61/3+(Tablas!$L$4*Tablas!$L$6*'Ingreso Datos Energía'!$U$17+Tablas!$CQ$18)*AI60)/(1+AA61/3) -> 9594.795973 | AK61: =+IF(L61<='Ingreso Datos Generales'!$D$9,IF(AL61+AM61=0,1,0),0) -> 0 | AL61: =+IF(L61<='Ingreso Datos Generales'!$D$9,IF(AI61<Q61,1,0),0) -> 0 | AM61: =+IF(L61<='Ingreso Datos Generales'!$D$9,IF(AI61>R61,1,0),0) -> 1 | AN61: 0 | AO61: 2.749027843 | AP61: =+'Ingreso Datos Energía'!$U$36*(Datos!P61-Datos!BD60)+'Ingreso Datos Energía'!$U$38*('Ingreso Datos Energía'!$U$35-Datos!BD60) -> -3465 | AQ61: =+AA61*Tablas!$L$4*Tablas!$L$6*'Ingreso Datos Energía'!$U$17*(Datos!P61-Datos!BD60) -> 0 | AR61: 4232.85 | AS61: =+IF(((AR61/3)/(Tablas!$L$4*Tablas!$L$6*'Ingreso Datos Energía'!$U$17+Tablas!$CQ$18)+BD60)<P61,P61,((AR61/3)/(Tablas!$L$4*Tablas!$L$6*'Ingreso Datos Energía'!$U$17+Tablas!$CQ$18)+BD60)) -> 27.06530571 | AT61: 24 | AU61: =+'Ingreso Datos Energía'!$U$36*(($P61+(P62-P61)/3)-$AT61)+'Ingreso Datos Energía'!$U$38*('Ingreso Datos Energía'!$U$35-$AT61) -> -3021.266667 | AV61: =+AA61*Tablas!$L$4*Tablas!$L$6*'Ingreso Datos Energía'!$U$17*(($P61+(P62-P61)/3)-$AT61) -> 126.3111111 | AW61: 4802.894444 | AX61: =+IF(((AW61/3)/(Tablas!$L$4*Tablas!$L$6*'Ingreso Datos Energía'!$U$17+Tablas!$CQ$18)+AT61)<P61,P61,((AW61/3)/(Tablas!$L$4*Tablas!$L$6*'Ingreso Datos Energía'!$U$17+Tablas!$CQ$18)+AT61)) -> 27.47811516 | AY61: 24 | AZ61: =+'Ingreso Datos Energía'!$U$36*(($P61+(P62-P61)*2/3)-$AY61)+'Ingreso Datos Energía'!$U$38*('Ingreso Datos Energía'!$U$35-$AY61) -> -2577.533333 | BA61: =+AA61*Tablas!$L$4*Tablas!$L$6*'Ingreso Datos Energía'!$U$17*(($P61+(P62-P61)*2/3)-$AY61) -> 252.6222222 | BB61: 5372.938889 | BC61: =+((BB61/3)/(Tablas!$L$4*Tablas!$L$6*'Ingreso Datos Energía'!$U$17+Tablas!$CQ$18)+AY61) -> 27.89092461 | BD61: 24 | BE61: -4802.894444 | BF61: 0 | BG61: 4802.894444 | BH61: 0 | BI61: 0 | BJ61: 1 | BK61: 1 | BL61: 2.749027843 | BM61: 58
A62: 23.8 | B62: 19.2 | C62: 20.3 | D62: 23 | E62: 19.8 | F62: 22 | G62: 27.2 | H62: 19.5 | I62: 16.9 | J62: 12.4 | K62: 14.9 | L62: 3 | M62: Ene | N62: 3 | O62: 11 | P62: 27.2 | Q62: =+VLOOKUP(M62,'Ingreso Datos Generales'!$T$5:$Z$16,6,0) -> 20 | R62: =+VLOOKUP(M62,'Ingreso Datos Generales'!$T$5:$Z$16,7,0) -> 24 | S62: 0 | T62: 0 | U62: 1 | V62: =+IF(AND(L62<='Ingreso Datos Generales'!$D$9,O62>=$V$1,O62<=$V$2),1,0) -> 1 | W62: 0 | X62: 0 | Y62: 3.2 | Z62: =+IF(L62<=Dias_a_la_semana,('Ingreso Datos Energía'!$D$49)*V62,0) -> 3550 | AA62: =+(VLOOKUP(M62,'Ingreso Datos Energía'!$I$46:$K$57,2,0)+V62*IF(L62<=Dias_a_la_semana,VLOOKUP(M62,'Ingreso Datos Energía'!$I$46:$K$57,3,0),0)+W62*IF(L62<=Dias_a_la_semana,VLOOKUP(M62,'Ingreso Datos Energía'!$I$46:$K$57,3,0),0)) -> 1 | AB62: =+'Ingreso Datos Energía'!$U$36*(Datos!P62-Datos!AI61)+'Ingreso Datos Energía'!$U$38*('Ingreso Datos Energía'!$U$35-Datos!AI61) -> -4335.771302 | AC62: =+SUMIFS(Sol!$AO$31:$AO$186,Sol!$AP$31:$AP$186,Datos!M62,Sol!$AN$31:$AN$186,Datos!O62)*$AC$2 -> 4127.515 | AD62: 3341.743698 | AE62: =(((AD62/3)/(Tablas!$L$4*Tablas!$L$6*'Ingreso Datos Energía'!$U$17+Tablas!$CQ$18)+AI61)*1+(P61+(P62-P61)/3)*AA62/3)/(1+AA62/3) -> 28.14343206 | AF62: =+'Ingreso Datos Energía'!$U$36*(($P61+(P62-P61)/3)-$AE62)+'Ingreso Datos Energía'!$U$38*('Ingreso Datos Energía'!$U$35-$AE62)+$AC62+$Z62 -> 1337.359252 | AG62: =+(((AF62/3)/(Tablas!$L$4*Tablas!$L$6*'Ingreso Datos Energía'!$U$17+Tablas!$CQ$18)+AE62)*1+(P61+(P62-P61)*2/3)*AA62/3)/(1+AA62/3) -> 28.36726461 | AH62: =+'Ingreso Datos Energía'!$U$36*(($P61+(P62-P61)*2/3)-$AG62)+'Ingreso Datos Energía'!$U$38*('Ingreso Datos Energía'!$U$35-$AG62)+$AC62+$Z62 -> 1601.802712 | AI62: =+(((AH62/3)/(Tablas!$L$4*Tablas!$L$6*'Ingreso Datos Energía'!$U$17+Tablas!$CQ$18)+AG62)*1+P62*AA62/3)/(1+AA62/3) -> 28.94543233 | AJ62: =+AD62++(-(Tablas!$L$4*Tablas!$L$6*'Ingreso Datos Energía'!$U$17+Tablas!$CQ$18)*P62*AA62/3+(Tablas!$L$4*Tablas!$L$6*'Ingreso Datos Energía'!$U$17+Tablas!$CQ$18)*AI61)/(1+AA62/3) -> 9446.092629 | AK62: =+IF(L62<='Ingreso Datos Generales'!$D$9,IF(AL62+AM62=0,1,0),0) -> 0 | AL62: =+IF(L62<='Ingreso Datos Generales'!$D$9,IF(AI62<Q62,1,0),0) -> 0 | AM62: =+IF(L62<='Ingreso Datos Generales'!$D$9,IF(AI62>R62,1,0),0) -> 1 | AN62: 0 | AO62: 4.945432335 | AP62: =+'Ingreso Datos Energía'!$U$36*(Datos!P62-Datos!BD61)+'Ingreso Datos Energía'!$U$38*('Ingreso Datos Energía'!$U$35-Datos!BD61) -> -2133.8 | AQ62: =+AA62*Tablas!$L$4*Tablas!$L$6*'Ingreso Datos Energía'!$U$17*(Datos!P62-Datos!BD61) -> 378.9333333 | AR62: 5922.648333 | AS62: =+IF(((AR62/3)/(Tablas!$L$4*Tablas!$L$6*'Ingreso Datos Energía'!$U$17+Tablas!$CQ$18)+BD61)<P62,P62,((AR62/3)/(Tablas!$L$4*Tablas!$L$6*'Ingreso Datos Energía'!$U$17+Tablas!$CQ$18)+BD61)) -> 28.28900806 | AT62: 24 | AU62: =+'Ingreso Datos Energía'!$U$36*(($P62+(P63-P62)/3)-$AT62)+'Ingreso Datos Energía'!$U$38*('Ingreso Datos Energía'!$U$35-$AT62) -> -1787.133333 | AV62: =+AA62*Tablas!$L$4*Tablas!$L$6*'Ingreso Datos Energía'!$U$17*(($P62+(P63-P62)/3)-$AT62) -> 477.6138889 | AW62: 6367.995556 | AX62: =+IF(((AW62/3)/(Tablas!$L$4*Tablas!$L$6*'Ingreso Datos Energía'!$U$17+Tablas!$CQ$18)+AT62)<P62,P62,((AW62/3)/(Tablas!$L$4*Tablas!$L$6*'Ingreso Datos Energía'!$U$17+Tablas!$CQ$18)+AT62)) -> 28.61151544 | AY62: 24 | AZ62: =+'Ingreso Datos Energía'!$U$36*(($P62+(P63-P62)*2/3)-$AY62)+'Ingreso Datos Energía'!$U$38*('Ingreso Datos Energía'!$U$35-$AY62) -> -1440.466667 | BA62: =+AA62*Tablas!$L$4*Tablas!$L$6*'Ingreso Datos Energía'!$U$17*(($P62+(P63-P62)*2/3)-$AY62) -> 576.2944444 | BB62: 6813.342778 | BC62: =+((BB62/3)/(Tablas!$L$4*Tablas!$L$6*'Ingreso Datos Energía'!$U$17+Tablas!$CQ$18)+AY62) -> 28.93402282 | BD62: 24 | BE62: -6367.995556 | BF62: 0 | BG62: 6367.995556 | BH62: 1 | BI62: 0 | BJ62: 0 | BK62: 0 | BL62: 1.745432335 | BM62: 59
A63: 24.7 | B63: 20.8 | C63: 21.1 | D63: 23.9 | E63: 21 | F63: 22.9 | G63: 29.7 | H63: 21.4 | I63: 18.6 | J63: 12.8 | K63: 16.2 | L63: 3 | M63: Ene | N63: 3 | O63: 12 | P63: 29.7 | Q63: =+VLOOKUP(M63,'Ingreso Datos Generales'!$T$5:$Z$16,6,0) -> 20 | R63: =+VLOOKUP(M63,'Ingreso Datos Generales'!$T$5:$Z$16,7,0) -> 24 | S63: 0 | T63: 0 | U63: 1 | V63: =+IF(AND(L63<='Ingreso Datos Generales'!$D$9,O63>=$V$1,O63<=$V$2),1,0) -> 1 | W63: 0 | X63: 0 | Y63: 5.7 | Z63: =+IF(L63<=Dias_a_la_semana,('Ingreso Datos Energía'!$D$49)*V63,0) -> 3550 | AA63: =+(VLOOKUP(M63,'Ingreso Datos Energía'!$I$46:$K$57,2,0)+V63*IF(L63<=Dias_a_la_semana,VLOOKUP(M63,'Ingreso Datos Energía'!$I$46:$K$57,3,0),0)+W63*IF(L63<=Dias_a_la_semana,VLOOKUP(M63,'Ingreso Datos Energía'!$I$46:$K$57,3,0),0)) -> 1 | AB63: =+'Ingreso Datos Energía'!$U$36*(Datos!P63-Datos!AI62)+'Ingreso Datos Energía'!$U$38*('Ingreso Datos Energía'!$U$35-Datos!AI62) -> -5055.0913 | AC63: =+SUMIFS(Sol!$AO$31:$AO$186,Sol!$AP$31:$AP$186,Datos!M63,Sol!$AN$31:$AN$186,Datos!O63)*$AC$2 -> 3879.82 | AD63: 2374.7287 | AE63: =(((AD63/3)/(Tablas!$L$4*Tablas!$L$6*'Ingreso Datos Energía'!$U$17+Tablas!$CQ$18)+AI62)*1+(P62+(P63-P62)/3)*AA63/3)/(1+AA63/3) -> 30.00718919 | AF63: =+'Ingreso Datos Energía'!$U$36*(($P62+(P63-P62)/3)-$AE63)+'Ingreso Datos Energía'!$U$38*('Ingreso Datos Energía'!$U$35-$AE63)+$AC63+$Z63 -> 830.9281234 | AG63: =+(((AF63/3)/(Tablas!$L$4*Tablas!$L$6*'Ingreso Datos Energía'!$U$17+Tablas!$CQ$18)+AE63)*1+(P62+(P63-P62)*2/3)*AA63/3)/(1+AA63/3) -> 30.17335888 | AH63: =+'Ingreso Datos Energía'!$U$36*(($P62+(P63-P62)*2/3)-$AG63)+'Ingreso Datos Energía'!$U$38*('Ingreso Datos Energía'!$U$35-$AG63)+$AC63+$Z63 -> 1044.492873 | AI63: =+(((AH63/3)/(Tablas!$L$4*Tablas!$L$6*'Ingreso Datos Energía'!$U$17+Tablas!$CQ$18)+AG63)*1+P63*AA63/3)/(1+AA63/3) -> 30.62231246 | AJ63: =+AD63++(-(Tablas!$L$4*Tablas!$L$6*'Ingreso Datos Energía'!$U$17+Tablas!$CQ$18)*P63*AA63/3+(Tablas!$L$4*Tablas!$L$6*'Ingreso Datos Energía'!$U$17+Tablas!$CQ$18)*AI62)/(1+AA63/3) -> 8949.640464 | AK63: =+IF(L63<='Ingreso Datos Generales'!$D$9,IF(AL63+AM63=0,1,0),0) -> 0 | AL63: =+IF(L63<='Ingreso Datos Generales'!$D$9,IF(AI63<Q63,1,0),0) -> 0 | AM63: =+IF(L63<='Ingreso Datos Generales'!$D$9,IF(AI63>R63,1,0),0) -> 1 | AN63: 0 | AO63: 6.622312465 | AP63: =+'Ingreso Datos Energía'!$U$36*(Datos!P63-Datos!BD62)+'Ingreso Datos Energía'!$U$38*('Ingreso Datos Energía'!$U$35-Datos!BD62) -> -1093.8 | AQ63: =+AA63*Tablas!$L$4*Tablas!$L$6*'Ingreso Datos Energía'!$U$17*(Datos!P63-Datos!BD62) -> 674.975 | AR63: 7010.995 | AS63: =+IF(((AR63/3)/(Tablas!$L$4*Tablas!$L$6*'Ingreso Datos Energía'!$U$17+Tablas!$CQ$18)+BD62)<P63,P63,((AR63/3)/(Tablas!$L$4*Tablas!$L$6*'Ingreso Datos Energía'!$U$17+Tablas!$CQ$18)+BD62)) -> 29.7 | AT63: 24 | AU63: =+'Ingreso Datos Energía'!$U$36*(($P63+(P64-P63)/3)-$AT63)+'Ingreso Datos Energía'!$U$38*('Ingreso Datos Energía'!$U$35-$AT63) -> -844.2 | AV63: =+AA63*Tablas!$L$4*Tablas!$L$6*'Ingreso Datos Energía'!$U$17*(($P63+(P64-P63)/3)-$AT63) -> 746.025 | AW63: 7331.645 | AX63: =+IF(((AW63/3)/(Tablas!$L$4*Tablas!$L$6*'Ingreso Datos Energía'!$U$17+Tablas!$CQ$18)+AT63)<P63,P63,((AW63/3)/(Tablas!$L$4*Tablas!$L$6*'Ingreso Datos Energía'!$U$17+Tablas!$CQ$18)+AT63)) -> 29.7 | AY63: 24 | AZ63: =+'Ingreso Datos Energía'!$U$36*(($P63+(P64-P63)*2/3)-$AY63)+'Ingreso Datos Energía'!$U$38*('Ingreso Datos Energía'!$U$35-$AY63) -> -594.6 | BA63: =+AA63*Tablas!$L$4*Tablas!$L$6*'Ingreso Datos Energía'!$U$17*(($P63+(P64-P63)*2/3)-$AY63) -> 817.075 | BB63: 7652.295 | BC63: =+((BB63/3)/(Tablas!$L$4*Tablas!$L$6*'Ingreso Datos Energía'!$U$17+Tablas!$CQ$18)+AY63) -> 29.54156739 | BD63: 24 | BE63: -7331.645 | BF63: 0 | BG63: 7331.645 | BH63: 1 | BI63: 0 | BJ63: 0 | BK63: 0 | BL63: 0.9223124646 | BM63: 60
A64: 25.4 | B64: 22.1 | C64: 22 | D64: 24.5 | E64: 21.8 | F64: 23.7 | G64: 31.5 | H64: 22.1 | I64: 19.5 | J64: 13.3 | K64: 17.3 | L64: 3 | M64: Ene | N64: 3 | O64: 13 | P64: 31.5 | Q64: =+VLOOKUP(M64,'Ingreso Datos Generales'!$T$5:$Z$16,6,0) -> 20 | R64: =+VLOOKUP(M64,'Ingreso Datos Generales'!$T$5:$Z$16,7,0) -> 24 | S64: 0 | T64: 0 | U64: 1 | V64: =+IF(AND(L64<='Ingreso Datos Generales'!$D$9,O64>=$V$1,O64<=$V$2),1,0) -> 1 | W64: 0 | X64: 0 | Y64: 7.5 | Z64: =+IF(L64<=Dias_a_la_semana,('Ingreso Datos Energía'!$D$49)*V64,0) -> 3550 | AA64: =+(VLOOKUP(M64,'Ingreso Datos Energía'!$I$46:$K$57,2,0)+V64*IF(L64<=Dias_a_la_semana,VLOOKUP(M64,'Ingreso Datos Energía'!$I$46:$K$57,3,0),0)+W64*IF(L64<=Dias_a_la_semana,VLOOKUP(M64,'Ingreso Datos Energía'!$I$46:$K$57,3,0),0)) -> 1 | AB64: =+'Ingreso Datos Energía'!$U$36*(Datos!P64-Datos!AI63)+'Ingreso Datos Energía'!$U$38*('Ingreso Datos Energía'!$U$35-Datos!AI63) -> -5649.472284 | AC64: =+SUMIFS(Sol!$AO$31:$AO$186,Sol!$AP$31:$AP$186,Datos!M64,Sol!$AN$31:$AN$186,Datos!O64)*$AC$2 -> 4127.515 | AD64: 2028.042716 | AE64: =(((AD64/3)/(Tablas!$L$4*Tablas!$L$6*'Ingreso Datos Energía'!$U$17+Tablas!$CQ$18)+AI63)*1+(P63+(P64-P63)/3)*AA64/3)/(1+AA64/3) -> 31.6432211 | AF64: =+'Ingreso Datos Energía'!$U$36*(($P63+(P64-P63)/3)-$AE64)+'Ingreso Datos Energía'!$U$38*('Ingreso Datos Energía'!$U$35-$AE64)+$AC64+$Z64 -> 711.0949009 | AG64: =+(((AF64/3)/(Tablas!$L$4*Tablas!$L$6*'Ingreso Datos Energía'!$U$17+Tablas!$CQ$18)+AE64)*1+(P63+(P64-P63)*2/3)*AA64/3)/(1+AA64/3) -> 31.84363136 | AH64: =+'Ingreso Datos Energía'!$U$36*(($P63+(P64-P63)*2/3)-$AG64)+'Ingreso Datos Energía'!$U$38*('Ingreso Datos Energía'!$U$35-$AG64)+$AC64+$Z64 -> 800.1662789 | AI64: =+(((AH64/3)/(Tablas!$L$4*Tablas!$L$6*'Ingreso Datos Energía'!$U$17+Tablas!$CQ$18)+AG64)*1+P64*AA64/3)/(1+AA64/3) -> 32.19231622 | AJ64: =+AD64++(-(Tablas!$L$4*Tablas!$L$6*'Ingreso Datos Energía'!$U$17+Tablas!$CQ$18)*P64*AA64/3+(Tablas!$L$4*Tablas!$L$6*'Ingreso Datos Energía'!$U$17+Tablas!$CQ$18)*AI63)/(1+AA64/3) -> 8974.717731 | AK64: =+IF(L64<='Ingreso Datos Generales'!$D$9,IF(AL64+AM64=0,1,0),0) -> 0 | AL64: =+IF(L64<='Ingreso Datos Generales'!$D$9,IF(AI64<Q64,1,0),0) -> 0 | AM64: =+IF(L64<='Ingreso Datos Generales'!$D$9,IF(AI64>R64,1,0),0) -> 1 | AN64: 0 | AO64: 8.192316218 | AP64: =+'Ingreso Datos Energía'!$U$36*(Datos!P64-Datos!BD63)+'Ingreso Datos Energía'!$U$38*('Ingreso Datos Energía'!$U$35-Datos!BD63) -> -345 | AQ64: =+AA64*Tablas!$L$4*Tablas!$L$6*'Ingreso Datos Energía'!$U$17*(Datos!P64-Datos!BD63) -> 888.125 | AR64: 8220.64 | AS64: =+IF(((AR64/3)/(Tablas!$L$4*Tablas!$L$6*'Ingreso Datos Energía'!$U$17+Tablas!$CQ$18)+BD63)<P64,P64,((AR64/3)/(Tablas!$L$4*Tablas!$L$6*'Ingreso Datos Energía'!$U$17+Tablas!$CQ$18)+BD63)) -> 31.5 | AT64: 24 | AU64: =+'Ingreso Datos Energía'!$U$36*(($P64+(P65-P64)/3)-$AT64)+'Ingreso Datos Energía'!$U$38*('Ingreso Datos Energía'!$U$35-$AT64) -> -150.8666667 | AV64: =+AA64*Tablas!$L$4*Tablas!$L$6*'Ingreso Datos Energía'!$U$17*(($P64+(P65-P64)/3)-$AT64) -> 943.3861111 | AW64: 8470.034444 | AX64: =+IF(((AW64/3)/(Tablas!$L$4*Tablas!$L$6*'Ingreso Datos Energía'!$U$17+Tablas!$CQ$18)+AT64)<P64,P64,((AW64/3)/(Tablas!$L$4*Tablas!$L$6*'Ingreso Datos Energía'!$U$17+Tablas!$CQ$18)+AT64)) -> 31.5 | AY64: 24 | AZ64: =+'Ingreso Datos Energía'!$U$36*(($P64+(P65-P64)*2/3)-$AY64)+'Ingreso Datos Energía'!$U$38*('Ingreso Datos Energía'!$U$35-$AY64) -> 43.26666667 | BA64: =+AA64*Tablas!$L$4*Tablas!$L$6*'Ingreso Datos Energía'!$U$17*(($P64+(P65-P64)*2/3)-$AY64) -> 998.6472222 | BB64: 8719.428889 | BC64: =+((BB64/3)/(Tablas!$L$4*Tablas!$L$6*'Ingreso Datos Energía'!$U$17+Tablas!$CQ$18)+AY64) -> 30.31435443 | BD64: 24 | BE64: -8470.034444 | BF64: 0 | BG64: 8470.034444 | BH64: 1 | BI64: 0 | BJ64: 0 | BK64: 0 | BL64: 0.6923162185 | BM64: 61
A65: 26 | B65: 23 | C65: 22.6 | D65: 25 | E65: 22.4 | F65: 24.8 | G65: 32.9 | H65: 23.4 | I65: 20.1 | J65: 13.9 | K65: 18.7 | L65: 3 | M65: Ene | N65: 3 | O65: 14 | P65: 32.9 | Q65: =+VLOOKUP(M65,'Ingreso Datos Generales'!$T$5:$Z$16,6,0) -> 20 | R65: =+VLOOKUP(M65,'Ingreso Datos Generales'!$T$5:$Z$16,7,0) -> 24 | S65: 0 | T65: 0 | U65: 1 | V65: =+IF(AND(L65<='Ingreso Datos Generales'!$D$9,O65>=$V$1,O65<=$V$2),1,0) -> 1 | W65: 0 | X65: 0 | Y65: 8.9 | Z65: =+IF(L65<=Dias_a_la_semana,('Ingreso Datos Energía'!$D$49)*V65,0) -> 3550 | AA65: =+(VLOOKUP(M65,'Ingreso Datos Energía'!$I$46:$K$57,2,0)+V65*IF(L65<=Dias_a_la_semana,VLOOKUP(M65,'Ingreso Datos Energía'!$I$46:$K$57,3,0),0)+W65*IF(L65<=Dias_a_la_semana,VLOOKUP(M65,'Ingreso Datos Energía'!$I$46:$K$57,3,0),0)) -> 1 | AB65: =+'Ingreso Datos Energía'!$U$36*(Datos!P65-Datos!AI64)+'Ingreso Datos Energía'!$U$38*('Ingreso Datos Energía'!$U$35-Datos!AI64) -> -6324.645291 | AC65: =+SUMIFS(Sol!$AO$31:$AO$186,Sol!$AP$31:$AP$186,Datos!M65,Sol!$AN$31:$AN$186,Datos!O65)*$AC$2 -> 4147.85 | AD65: 1373.204709 | AE65: =(((AD65/3)/(Tablas!$L$4*Tablas!$L$6*'Ingreso Datos Energía'!$U$17+Tablas!$CQ$18)+AI64)*1+(P64+(P65-P64)/3)*AA65/3)/(1+AA65/3) -> 32.88172973 | AF65: =+'Ingreso Datos Energía'!$U$36*(($P64+(P65-P64)/3)-$AE65)+'Ingreso Datos Energía'!$U$38*('Ingreso Datos Energía'!$U$35-$AE65)+$AC65+$Z65 -> 432.7178165 | AG65: =+(((AF65/3)/(Tablas!$L$4*Tablas!$L$6*'Ingreso Datos Energía'!$U$17+Tablas!$CQ$18)+AE65)*1+(P64+(P65-P64)*2/3)*AA65/3)/(1+AA65/3) -> 33.00465179 | AH65: =+'Ingreso Datos Energía'!$U$36*(($P64+(P65-P64)*2/3)-$AG65)+'Ingreso Datos Energía'!$U$38*('Ingreso Datos Energía'!$U$35-$AG65)+$AC65+$Z65 -> 528.3905841 | AI65: =+(((AH65/3)/(Tablas!$L$4*Tablas!$L$6*'Ingreso Datos Energía'!$U$17+Tablas!$CQ$18)+AG65)*1+P65*AA65/3)/(1+AA65/3) -> 33.26547255 | AJ65: =+AD65++(-(Tablas!$L$4*Tablas!$L$6*'Ingreso Datos Energía'!$U$17+Tablas!$CQ$18)*P65*AA65/3+(Tablas!$L$4*Tablas!$L$6*'Ingreso Datos Energía'!$U$17+Tablas!$CQ$18)*AI64)/(1+AA65/3) -> 8700.776511 | AK65: =+IF(L65<='Ingreso Datos Generales'!$D$9,IF(AL65+AM65=0,1,0),0) -> 0 | AL65: =+IF(L65<='Ingreso Datos Generales'!$D$9,IF(AI65<Q65,1,0),0) -> 0 | AM65: =+IF(L65<='Ingreso Datos Generales'!$D$9,IF(AI65>R65,1,0),0) -> 1 | AN65: 0 | AO65: 9.265472553 | AP65: =+'Ingreso Datos Energía'!$U$36*(Datos!P65-Datos!BD64)+'Ingreso Datos Energía'!$U$38*('Ingreso Datos Energía'!$U$35-Datos!BD64) -> 237.4 | AQ65: =+AA65*Tablas!$L$4*Tablas!$L$6*'Ingreso Datos Energía'!$U$17*(Datos!P65-Datos!BD64) -> 1053.908333 | AR65: 8989.158333 | AS65: =+IF(((AR65/3)/(Tablas!$L$4*Tablas!$L$6*'Ingreso Datos Energía'!$U$17+Tablas!$CQ$18)+BD64)<P65,P65,((AR65/3)/(Tablas!$L$4*Tablas!$L$6*'Ingreso Datos Energía'!$U$17+Tablas!$CQ$18)+BD64)) -> 32.9 | AT65: 24 | AU65: =+'Ingreso Datos Energía'!$U$36*(($P65+(P66-P65)/3)-$AT65)+'Ingreso Datos Energía'!$U$38*('Ingreso Datos Energía'!$U$35-$AT65) -> 348.3333333 | AV65: =+AA65*Tablas!$L$4*Tablas!$L$6*'Ingreso Datos Energía'!$U$17*(($P65+(P66-P65)/3)-$AT65) -> 1085.486111 | AW65: 9131.669444 | AX65: =+IF(((AW65/3)/(Tablas!$L$4*Tablas!$L$6*'Ingreso Datos Energía'!$U$17+Tablas!$CQ$18)+AT65)<P65,P65,((AW65/3)/(Tablas!$L$4*Tablas!$L$6*'Ingreso Datos Energía'!$U$17+Tablas!$CQ$18)+AT65)) -> 32.9 | AY65: 24 | AZ65: =+'Ingreso Datos Energía'!$U$36*(($P65+(P66-P65)*2/3)-$AY65)+'Ingreso Datos Energía'!$U$38*('Ingreso Datos Energía'!$U$35-$AY65) -> 459.2666667 | BA65: =+AA65*Tablas!$L$4*Tablas!$L$6*'Ingreso Datos Energía'!$U$17*(($P65+(P66-P65)*2/3)-$AY65) -> 1117.063889 | BB65: 9274.180556 | BC65: =+((BB65/3)/(Tablas!$L$4*Tablas!$L$6*'Ingreso Datos Energía'!$U$17+Tablas!$CQ$18)+AY65) -> 30.7160893 | BD65: 24 | BE65: -9131.669444 | BF65: 0 | BG65: 9131.669444 | BH65: 1 | BI65: 0 | BJ65: 0 | BK65: 0 | BL65: 0.3654725534 | BM65: 62
A66: 26.3 | B66: 23.5 | C66: 22.9 | D66: 25.2 | E66: 22.8 | F66: 25.2 | G66: 33.7 | H66: 23.9 | I66: 22.1 | J66: 14.6 | K66: 19.7 | L66: 3 | M66: Ene | N66: 3 | O66: 15 | P66: 33.7 | Q66: =+VLOOKUP(M66,'Ingreso Datos Generales'!$T$5:$Z$16,6,0) -> 20 | R66: =+VLOOKUP(M66,'Ingreso Datos Generales'!$T$5:$Z$16,7,0) -> 24 | S66: 0 | T66: 0 | U66: 1 | V66: =+IF(AND(L66<='Ingreso Datos Generales'!$D$9,O66>=$V$1,O66<=$V$2),1,0) -> 1 | W66: 0 | X66: 0 | Y66: 9.7 | Z66: =+IF(L66<=Dias_a_la_semana,('Ingreso Datos Energía'!$D$49)*V66,0) -> 3550 | AA66: =+(VLOOKUP(M66,'Ingreso Datos Energía'!$I$46:$K$57,2,0)+V66*IF(L66<=Dias_a_la_semana,VLOOKUP(M66,'Ingreso Datos Energía'!$I$46:$K$57,3,0),0)+W66*IF(L66<=Dias_a_la_semana,VLOOKUP(M66,'Ingreso Datos Energía'!$I$46:$K$57,3,0),0)) -> 1 | AB66: =+'Ingreso Datos Energía'!$U$36*(Datos!P66-Datos!AI65)+'Ingreso Datos Energía'!$U$38*('Ingreso Datos Energía'!$U$35-Datos!AI65) -> -6851.443515 | AC66: =+SUMIFS(Sol!$AO$31:$AO$186,Sol!$AP$31:$AP$186,Datos!M66,Sol!$AN$31:$AN$186,Datos!O66)*$AC$2 -> 3858.505 | AD66: 557.0614847 | AE66: =(((AD66/3)/(Tablas!$L$4*Tablas!$L$6*'Ingreso Datos Energía'!$U$17+Tablas!$CQ$18)+AI65)*1+(P65+(P66-P65)/3)*AA66/3)/(1+AA66/3) -> 33.54332676 | AF66: =+'Ingreso Datos Energía'!$U$36*(($P65+(P66-P65)/3)-$AE66)+'Ingreso Datos Energía'!$U$38*('Ingreso Datos Energía'!$U$35-$AE66)+$AC66+$Z66 -> 112.6335969 | AG66: =+(((AF66/3)/(Tablas!$L$4*Tablas!$L$6*'Ingreso Datos Energía'!$U$17+Tablas!$CQ$18)+AE66)*1+(P65+(P66-P65)*2/3)*AA66/3)/(1+AA66/3) -> 33.57700286 | AH66: =+'Ingreso Datos Energía'!$U$36*(($P65+(P66-P65)*2/3)-$AG66)+'Ingreso Datos Energía'!$U$38*('Ingreso Datos Energía'!$U$35-$AG66)+$AC66+$Z66 -> 196.5923733 | AI66: =+(((AH66/3)/(Tablas!$L$4*Tablas!$L$6*'Ingreso Datos Energía'!$U$17+Tablas!$CQ$18)+AG66)*1+P66*AA66/3)/(1+AA66/3) -> 33.71452697 | AJ66: =+AD66++(-(Tablas!$L$4*Tablas!$L$6*'Ingreso Datos Energía'!$U$17+Tablas!$CQ$18)*P66*AA66/3+(Tablas!$L$4*Tablas!$L$6*'Ingreso Datos Energía'!$U$17+Tablas!$CQ$18)*AI65)/(1+AA66/3) -> 8163.051667 | AK66: =+IF(L66<='Ingreso Datos Generales'!$D$9,IF(AL66+AM66=0,1,0),0) -> 0 | AL66: =+IF(L66<='Ingreso Datos Generales'!$D$9,IF(AI66<Q66,1,0),0) -> 0 | AM66: =+IF(L66<='Ingreso Datos Generales'!$D$9,IF(AI66>R66,1,0),0) -> 1 | AN66: 0 | AO66: 9.714526966 | AP66: =+'Ingreso Datos Energía'!$U$36*(Datos!P66-Datos!BD65)+'Ingreso Datos Energía'!$U$38*('Ingreso Datos Energía'!$U$35-Datos!BD65) -> 570.2 | AQ66: =+AA66*Tablas!$L$4*Tablas!$L$6*'Ingreso Datos Energía'!$U$17*(Datos!P66-Datos!BD65) -> 1148.641667 | AR66: 9127.346667 | AS66: =+IF(((AR66/3)/(Tablas!$L$4*Tablas!$L$6*'Ingreso Datos Energía'!$U$17+Tablas!$CQ$18)+BD65)<P66,P66,((AR66/3)/(Tablas!$L$4*Tablas!$L$6*'Ingreso Datos Energía'!$U$17+Tablas!$CQ$18)+BD65)) -> 33.7 | AT66: 24 | AU66: =+'Ingreso Datos Energía'!$U$36*(($P66+(P67-P66)/3)-$AT66)+'Ingreso Datos Energía'!$U$38*('Ingreso Datos Energía'!$U$35-$AT66) -> 597.9333333 | AV66: =+AA66*Tablas!$L$4*Tablas!$L$6*'Ingreso Datos Energía'!$U$17*(($P66+(P67-P66)/3)-$AT66) -> 1156.536111 | AW66: 9162.974444 | AX66: =+IF(((AW66/3)/(Tablas!$L$4*Tablas!$L$6*'Ingreso Datos Energía'!$U$17+Tablas!$CQ$18)+AT66)<P66,P66,((AW66/3)/(Tablas!$L$4*Tablas!$L$6*'Ingreso Datos Energía'!$U$17+Tablas!$CQ$18)+AT66)) -> 33.7 | AY66: 24 | AZ66: =+'Ingreso Datos Energía'!$U$36*(($P66+(P67-P66)*2/3)-$AY66)+'Ingreso Datos Energía'!$U$38*('Ingreso Datos Energía'!$U$35-$AY66) -> 625.6666667 | BA66: =+AA66*Tablas!$L$4*Tablas!$L$6*'Ingreso Datos Energía'!$U$17*(($P66+(P67-P66)*2/3)-$AY66) -> 1164.430556 | BB66: 9198.602222 | BC66: =+((BB66/3)/(Tablas!$L$4*Tablas!$L$6*'Ingreso Datos Energía'!$U$17+Tablas!$CQ$18)+AY66) -> 30.66135769 | BD66: 24 | BE66: -9162.974444 | BF66: 0 | BG66: 9162.974444 | BH66: 1 | BI66: 0 | BJ66: 0 | BK66: 0 | BL66: 0.01452696648 | BM66: 63
A67: 26.4 | B67: 23.6 | C67: 23.1 | D67: 25.2 | E67: 22.9 | F67: 25.6 | G67: 33.9 | H67: 23.9 | I67: 22.9 | J67: 14.3 | K67: 20.2 | L67: 3 | M67: Ene | N67: 3 | O67: 16 | P67: 33.9 | Q67: =+VLOOKUP(M67,'Ingreso Datos Generales'!$T$5:$Z$16,6,0) -> 20 | R67: =+VLOOKUP(M67,'Ingreso Datos Generales'!$T$5:$Z$16,7,0) -> 24 | S67: 0 | T67: 0 | U67: 1 | V67: =+IF(AND(L67<='Ingreso Datos Generales'!$D$9,O67>=$V$1,O67<=$V$2),1,0) -> 1 | W67: 0 | X67: 0 | Y67: 9.9 | Z67: =+IF(L67<=Dias_a_la_semana,('Ingreso Datos Energía'!$D$49)*V67,0) -> 3550 | AA67: =+(VLOOKUP(M67,'Ingreso Datos Energía'!$I$46:$K$57,2,0)+V67*IF(L67<=Dias_a_la_semana,VLOOKUP(M67,'Ingreso Datos Energía'!$I$46:$K$57,3,0),0)+W67*IF(L67<=Dias_a_la_semana,VLOOKUP(M67,'Ingreso Datos Energía'!$I$46:$K$57,3,0),0)) -> 1 | AB67: =+'Ingreso Datos Energía'!$U$36*(Datos!P67-Datos!AI66)+'Ingreso Datos Energía'!$U$38*('Ingreso Datos Energía'!$U$35-Datos!AI66) -> -7127.9361 | AC67: =+SUMIFS(Sol!$AO$31:$AO$186,Sol!$AP$31:$AP$186,Datos!M67,Sol!$AN$31:$AN$186,Datos!O67)*$AC$2 -> 3373.16 | AD67: -204.7761002 | AE67: =(((AD67/3)/(Tablas!$L$4*Tablas!$L$6*'Ingreso Datos Energía'!$U$17+Tablas!$CQ$18)+AI66)*1+(P66+(P67-P66)/3)*AA67/3)/(1+AA67/3) -> 33.61634226 | AF67: =+'Ingreso Datos Energía'!$U$36*(($P66+(P67-P66)/3)-$AE67)+'Ingreso Datos Energía'!$U$38*('Ingreso Datos Energía'!$U$35-$AE67)+$AC67+$Z67 -> -181.596818 | AG67: =+(((AF67/3)/(Tablas!$L$4*Tablas!$L$6*'Ingreso Datos Energía'!$U$17+Tablas!$CQ$18)+AE67)*1+(P66+(P67-P66)*2/3)*AA67/3)/(1+AA67/3) -> 33.57195972 | AH67: =+'Ingreso Datos Energía'!$U$36*(($P66+(P67-P66)*2/3)-$AG67)+'Ingreso Datos Energía'!$U$38*('Ingreso Datos Energía'!$U$35-$AG67)+$AC67+$Z67 -> -118.3130658 | AI67: =+(((AH67/3)/(Tablas!$L$4*Tablas!$L$6*'Ingreso Datos Energía'!$U$17+Tablas!$CQ$18)+AG67)*1+P67*AA67/3)/(1+AA67/3) -> 33.58971065 | AJ67: =+AD67++(-(Tablas!$L$4*Tablas!$L$6*'Ingreso Datos Energía'!$U$17+Tablas!$CQ$18)*P67*AA67/3+(Tablas!$L$4*Tablas!$L$6*'Ingreso Datos Energía'!$U$17+Tablas!$CQ$18)*AI66)/(1+AA67/3) -> 7533.222936 | AK67: =+IF(L67<='Ingreso Datos Generales'!$D$9,IF(AL67+AM67=0,1,0),0) -> 0 | AL67: =+IF(L67<='Ingreso Datos Generales'!$D$9,IF(AI67<Q67,1,0),0) -> 0 | AM67: =+IF(L67<='Ingreso Datos Generales'!$D$9,IF(AI67>R67,1,0),0) -> 1 | AN67: 0 | AO67: 9.58971065 | AP67: =+'Ingreso Datos Energía'!$U$36*(Datos!P67-Datos!BD66)+'Ingreso Datos Energía'!$U$38*('Ingreso Datos Energía'!$U$35-Datos!BD66) -> 653.4 | AQ67: =+AA67*Tablas!$L$4*Tablas!$L$6*'Ingreso Datos Energía'!$U$17*(Datos!P67-Datos!BD66) -> 1172.325 | AR67: 8748.885 | AS67: =+IF(((AR67/3)/(Tablas!$L$4*Tablas!$L$6*'Ingreso Datos Energía'!$U$17+Tablas!$CQ$18)+BD66)<P67,P67,((AR67/3)/(Tablas!$L$4*Tablas!$L$6*'Ingreso Datos Energía'!$U$17+Tablas!$CQ$18)+BD66)) -> 33.9 | AT67: 24 | AU67: =+'Ingreso Datos Energía'!$U$36*(($P67+(P68-P67)/3)-$AT67)+'Ingreso Datos Energía'!$U$38*('Ingreso Datos Energía'!$U$35-$AT67) -> 570.2 | AV67: =+AA67*Tablas!$L$4*Tablas!$L$6*'Ingreso Datos Energía'!$U$17*(($P67+(P68-P67)/3)-$AT67) -> 1148.641667 | AW67: 8642.001667 | AX67: =+IF(((AW67/3)/(Tablas!$L$4*Tablas!$L$6*'Ingreso Datos Energía'!$U$17+Tablas!$CQ$18)+AT67)<P67,P67,((AW67/3)/(Tablas!$L$4*Tablas!$L$6*'Ingreso Datos Energía'!$U$17+Tablas!$CQ$18)+AT67)) -> 33.9 | AY67: 24 | AZ67: =+'Ingreso Datos Energía'!$U$36*(($P67+(P68-P67)*2/3)-$AY67)+'Ingreso Datos Energía'!$U$38*('Ingreso Datos Energía'!$U$35-$AY67) -> 487 | BA67: =+AA67*Tablas!$L$4*Tablas!$L$6*'Ingreso Datos Energía'!$U$17*(($P67+(P68-P67)*2/3)-$AY67) -> 1124.958333 | BB67: 8535.118333 | BC67: =+((BB67/3)/(Tablas!$L$4*Tablas!$L$6*'Ingreso Datos Energía'!$U$17+Tablas!$CQ$18)+AY67) -> 30.18088214 | BD67: 24 | BE67: -8642.001667 | BF67: 0 | BG67: 8642.001667 | BH67: 1 | BI67: 0 | BJ67: 0 | BK67: 0 | BL67: -0.3102893498 | BM67: 64
A68: 26.3 | B68: 23.2 | C68: 23 | D68: 25 | E68: 22.7 | F68: 25.8 | G68: 33.3 | H68: 23.5 | I68: 23.1 | J68: 14 | K68: 20.3 | L68: 3 | M68: Ene | N68: 3 | O68: 17 | P68: 33.3 | Q68: =+VLOOKUP(M68,'Ingreso Datos Generales'!$T$5:$Z$16,6,0) -> 20 | R68: =+VLOOKUP(M68,'Ingreso Datos Generales'!$T$5:$Z$16,7,0) -> 24 | S68: =+IF(AND(L68<=Dias_a_la_semana,T68+U68=0),1,0) -> 0 | T68: =++IF(AND(L68<=Dias_a_la_semana,P68<Q68),1,0) -> 0 | U68: =+IF(AND(L68<=Dias_a_la_semana,P68>R68),1,0) -> 1 | V68: =+IF(AND(L68<='Ingreso Datos Generales'!$D$9,O68>=$V$1,O68<=$V$2),1,0) -> 1 | W68: 0 | X68: 0 | Y68: 9.3 | Z68: =+IF(L68<=Dias_a_la_semana,('Ingreso Datos Energía'!$D$49)*V68,0) -> 3550 | AA68: =+(VLOOKUP(M68,'Ingreso Datos Energía'!$I$46:$K$57,2,0)+V68*IF(L68<=Dias_a_la_semana,VLOOKUP(M68,'Ingreso Datos Energía'!$I$46:$K$57,3,0),0)+W68*IF(L68<=Dias_a_la_semana,VLOOKUP(M68,'Ingreso Datos Energía'!$I$46:$K$57,3,0),0)) -> 1 | AB68: =+'Ingreso Datos Energía'!$U$36*(Datos!P68-Datos!AI67)+'Ingreso Datos Energía'!$U$38*('Ingreso Datos Energía'!$U$35-Datos!AI67) -> -7277.558231 | AC68: =+SUMIFS(Sol!$AO$31:$AO$186,Sol!$AP$31:$AP$186,Datos!M68,Sol!$AN$31:$AN$186,Datos!O68)*$AC$2 -> 2702.84 | AD68: -1024.718231 | AE68: =(((AD68/3)/(Tablas!$L$4*Tablas!$L$6*'Ingreso Datos Energía'!$U$17+Tablas!$CQ$18)+AI67)*1+(P67+(P68-P67)/3)*AA68/3)/(1+AA68/3) -> 33.06072984 | AF68: =+'Ingreso Datos Energía'!$U$36*(($P67+(P68-P67)/3)-$AE68)+'Ingreso Datos Energía'!$U$38*('Ingreso Datos Energía'!$U$35-$AE68)+$AC68+$Z68 -> -434.6046036 | AG68: =+(((AF68/3)/(Tablas!$L$4*Tablas!$L$6*'Ingreso Datos Energía'!$U$17+Tablas!$CQ$18)+AE68)*1+(P67+(P68-P67)*2/3)*AA68/3)/(1+AA68/3) -> 32.93450146 | AH68: =+'Ingreso Datos Energía'!$U$36*(($P67+(P68-P67)*2/3)-$AG68)+'Ingreso Datos Energía'!$U$38*('Ingreso Datos Energía'!$U$35-$AG68)+$AC68+$Z68 -> -416.6956695 | AI68: =+(((AH68/3)/(Tablas!$L$4*Tablas!$L$6*'Ingreso Datos Energía'!$U$17+Tablas!$CQ$18)+AG68)*1+P68*AA68/3)/(1+AA68/3) -> 32.79955702 | AJ68: =+AD68++(-(Tablas!$L$4*Tablas!$L$6*'Ingreso Datos Energía'!$U$17+Tablas!$CQ$18)*P68*AA68/3+(Tablas!$L$4*Tablas!$L$6*'Ingreso Datos Energía'!$U$17+Tablas!$CQ$18)*AI67)/(1+AA68/3) -> 6739.235904 | AK68: =+IF(L68<='Ingreso Datos Generales'!$D$9,IF(AL68+AM68=0,1,0),0) -> 0 | AL68: =+IF(L68<='Ingreso Datos Generales'!$D$9,IF(AI68<Q68,1,0),0) -> 0 | AM68: =+IF(L68<='Ingreso Datos Generales'!$D$9,IF(AI68>R68,1,0),0) -> 1 | AN68: 0 | AO68: 8.799557017 | AP68: =+'Ingreso Datos Energía'!$U$36*(Datos!P68-Datos!BD67)+'Ingreso Datos Energía'!$U$38*('Ingreso Datos Energía'!$U$35-Datos!BD67) -> 403.8 | AQ68: =+AA68*Tablas!$L$4*Tablas!$L$6*'Ingreso Datos Energía'!$U$17*(Datos!P68-Datos!BD67) -> 1101.275 | AR68: 7757.915 | AS68: =+IF(((AR68/3)/(Tablas!$L$4*Tablas!$L$6*'Ingreso Datos Energía'!$U$17+Tablas!$CQ$18)+BD67)<P68,P68,((AR68/3)/(Tablas!$L$4*Tablas!$L$6*'Ingreso Datos Energía'!$U$17+Tablas!$CQ$18)+BD67)) -> 33.3 | AT68: 24 | AU68: =+'Ingreso Datos Energía'!$U$36*(($P68+(P69-P68)/3)-$AT68)+'Ingreso Datos Energía'!$U$38*('Ingreso Datos Energía'!$U$35-$AT68) -> 223.5333333 | AV68: =+AA68*Tablas!$L$4*Tablas!$L$6*'Ingreso Datos Energía'!$U$17*(($P68+(P69-P68)/3)-$AT68) -> 1049.961111 | AW68: 7526.334444 | AX68: =+IF(((AW68/3)/(Tablas!$L$4*Tablas!$L$6*'Ingreso Datos Energía'!$U$17+Tablas!$CQ$18)+AT68)<P68,P68,((AW68/3)/(Tablas!$L$4*Tablas!$L$6*'Ingreso Datos Energía'!$U$17+Tablas!$CQ$18)+AT68)) -> 33.3 | AY68: 24 | AZ68: =+'Ingreso Datos Energía'!$U$36*(($P68+(P69-P68)*2/3)-$AY68)+'Ingreso Datos Energía'!$U$38*('Ingreso Datos Energía'!$U$35-$AY68) -> 43.26666667 | BA68: =+AA68*Tablas!$L$4*Tablas!$L$6*'Ingreso Datos Energía'!$U$17*(($P68+(P69-P68)*2/3)-$AY68) -> 998.6472222 | BB68: 7294.753889 | BC68: =+((BB68/3)/(Tablas!$L$4*Tablas!$L$6*'Ingreso Datos Energía'!$U$17+Tablas!$CQ$18)+AY68) -> 29.28264662 | BD68: 24 | BE68: -7526.334444 | BF68: 0 | BG68: 7526.334444 | BH68: 1 | BI68: 0 | BJ68: 0 | BK68: 0 | BL68: -0.5004429833 | BM68: 65
A69: 25.7 | B69: 22.2 | C69: 22.7 | D69: 24.5 | E69: 22.1 | F69: 24.6 | G69: 32 | H69: 23.1 | I69: 22.5 | J69: 13.7 | K69: 19.9 | L69: 3 | M69: Ene | N69: 3 | O69: 18 | P69: =+INDEX(A69:K69,1,$L$2) -> 32 | Q69: =+VLOOKUP(M69,'Ingreso Datos Generales'!$T$5:$Z$16,6,0) -> 20 | R69: =+VLOOKUP(M69,'Ingreso Datos Generales'!$T$5:$Z$16,7,0) -> 24 | S69: 0 | T69: 0 | U69: 1 | V69: =+IF(AND(L69<='Ingreso Datos Generales'!$D$9,O69>=$V$1,O69<=$V$2),1,0) -> 1 | W69: =+IF($W$1>12,IF(OR(O69>=$W$1,O69<=$W$2),1,0),IF(AND(O69>=$W$1,O69<=$W$2),1,0)) -> 0 | X69: =+IF(T69=1,Q69-P69,0) -> 0 | Y69: =+IF(U69=1,P69-R69,0) -> 8 | Z69: =+IF(L69<=Dias_a_la_semana,('Ingreso Datos Energía'!$D$49)*V69,0) -> 3550 | AA69: =+(VLOOKUP(M69,'Ingreso Datos Energía'!$I$46:$K$57,2,0)+V69*IF(L69<=Dias_a_la_semana,VLOOKUP(M69,'Ingreso Datos Energía'!$I$46:$K$57,3,0),0)+W69*IF(L69<=Dias_a_la_semana,VLOOKUP(M69,'Ingreso Datos Energía'!$I$46:$K$57,3,0),0)) -> 1 | AB69: =+'Ingreso Datos Energía'!$U$36*(Datos!P69-Datos!AI68)+'Ingreso Datos Energía'!$U$38*('Ingreso Datos Energía'!$U$35-Datos!AI68) -> -7185.44517 | AC69: =+SUMIFS(Sol!$AO$31:$AO$186,Sol!$AP$31:$AP$186,Datos!M69,Sol!$AN$31:$AN$186,Datos!O69)*$AC$2 -> 1640.275 | AD69: -1995.17017 | AE69: =(((AD69/3)/(Tablas!$L$4*Tablas!$L$6*'Ingreso Datos Energía'!$U$17+Tablas!$CQ$18)+AI68)*1+(P68+(P69-P68)/3)*AA69/3)/(1+AA69/3) -> 31.73270168 | AF69: =+'Ingreso Datos Energía'!$U$36*(($P68+(P69-P68)/3)-$AE69)+'Ingreso Datos Energía'!$U$38*('Ingreso Datos Energía'!$U$35-$AE69)+$AC69+$Z69 -> -780.0857119 | AG69: =+(((AF69/3)/(Tablas!$L$4*Tablas!$L$6*'Ingreso Datos Energía'!$U$17+Tablas!$CQ$18)+AE69)*1+(P68+(P69-P68)*2/3)*AA69/3)/(1+AA69/3) -> 31.48417321 | AH69: =+'Ingreso Datos Energía'!$U$36*(($P68+(P69-P68)*2/3)-$AG69)+'Ingreso Datos Energía'!$U$38*('Ingreso Datos Energía'!$U$35-$AG69)+$AC69+$Z69 -> -761.2810777 | AI69: =+(((AH69/3)/(Tablas!$L$4*Tablas!$L$6*'Ingreso Datos Energía'!$U$17+Tablas!$CQ$18)+AG69)*1+P69*AA69/3)/(1+AA69/3) -> 31.19965685 | AJ69: =+AD69++(-(Tablas!$L$4*Tablas!$L$6*'Ingreso Datos Energía'!$U$17+Tablas!$CQ$18)*P69*AA69/3+(Tablas!$L$4*Tablas!$L$6*'Ingreso Datos Energía'!$U$17+Tablas!$CQ$18)*AI68)/(1+AA69/3) -> 5645.601569 | AK69: =+IF(L69<='Ingreso Datos Generales'!$D$9,IF(AL69+AM69=0,1,0),0) -> 0 | AL69: =+IF(L69<='Ingreso Datos Generales'!$D$9,IF(AI69<Q69,1,0),0) -> 0 | AM69: =+IF(L69<='Ingreso Datos Generales'!$D$9,IF(AI69>R69,1,0),0) -> 1 | AN69: 0 | AO69: 7.199656854 | AP69: =+'Ingreso Datos Energía'!$U$36*(Datos!P69-Datos!BD68)+'Ingreso Datos Energía'!$U$38*('Ingreso Datos Energía'!$U$35-Datos!BD68) -> -137 | AQ69: =+AA69*Tablas!$L$4*Tablas!$L$6*'Ingreso Datos Energía'!$U$17*(Datos!P69-Datos!BD68) -> 947.3333333 | AR69: 6000.608333 | AS69: =+IF(((AR69/3)/(Tablas!$L$4*Tablas!$L$6*'Ingreso Datos Energía'!$U$17+Tablas!$CQ$18)+BD68)<P69,P69,((AR69/3)/(Tablas!$L$4*Tablas!$L$6*'Ingreso Datos Energía'!$U$17+Tablas!$CQ$18)+BD68)) -> 32 | AT69: 24 | AU69: =+'Ingreso Datos Energía'!$U$36*(($P69+(P70-P69)/3)-$AT69)+'Ingreso Datos Energía'!$U$38*('Ingreso Datos Energía'!$U$35-$AT69) -> -414.3333333 | AV69: =+AA69*Tablas!$L$4*Tablas!$L$6*'Ingreso Datos Energía'!$U$17*(($P69+(P70-P69)/3)-$AT69) -> 868.3888889 | AW69: 5644.330556 | AX69: =+IF(((AW69/3)/(Tablas!$L$4*Tablas!$L$6*'Ingreso Datos Energía'!$U$17+Tablas!$CQ$18)+AT69)<P69,P69,((AW69/3)/(Tablas!$L$4*Tablas!$L$6*'Ingreso Datos Energía'!$U$17+Tablas!$CQ$18)+AT69)) -> 32 | AY69: 24 | AZ69: =+'Ingreso Datos Energía'!$U$36*(($P69+(P70-P69)*2/3)-$AY69)+'Ingreso Datos Energía'!$U$38*('Ingreso Datos Energía'!$U$35-$AY69) -> -691.6666667 | BA69: =+AA69*Tablas!$L$4*Tablas!$L$6*'Ingreso Datos Energía'!$U$17*(($P69+(P70-P69)*2/3)-$AY69) -> 789.4444444 | BB69: 5288.052778 | BC69: =+((BB69/3)/(Tablas!$L$4*Tablas!$L$6*'Ingreso Datos Energía'!$U$17+Tablas!$CQ$18)+AY69) -> 27.82945258 | BD69: 24 | BE69: =+IF(BG69>0,BG69,0)*V69*-1 -> -5644.330556 | BF69: =+IF(BG69<=0,BG69,0)*V69*-1 -> 0 | BG69: =+SUM(BB69,AW69,AR69)/3 -> 5644.330556 | BH69: 1 | BI69: 0 | BJ69: 0 | BK69: 0 | BL69: -0.8003431455 | BM69: 66
A70: 24.9 | B70: 20.7 | C70: 22 | D70: 23.7 | E70: 21.3 | F70: 23 | G70: 30 | H70: 22.3 | I70: 21.7 | J70: 13.2 | K70: 19.3 | L70: =+IF(AND(L69=7,O70=1),1,IF(O70=1,1+L69,L69)) -> 3 | M70: Ene | N70: 3 | O70: 19 | P70: 30 | Q70: =+VLOOKUP(M70,'Ingreso Datos Generales'!$T$5:$Z$16,6,0) -> 20 | R70: =+VLOOKUP(M70,'Ingreso Datos Generales'!$T$5:$Z$16,7,0) -> 24 | S70: 0 | T70: 0 | U70: 1 | V70: =+IF(AND(L70<='Ingreso Datos Generales'!$D$9,O70>=$V$1,O70<=$V$2),1,0) -> 0 | W70: 0 | X70: 0 | Y70: 6 | Z70: =+IF(L70<=Dias_a_la_semana,('Ingreso Datos Energía'!$D$49)*V70,0) -> 0 | AA70: =+(VLOOKUP(M70,'Ingreso Datos Energía'!$I$46:$K$57,2,0)+V70*IF(L70<=Dias_a_la_semana,VLOOKUP(M70,'Ingreso Datos Energía'!$I$46:$K$57,3,0),0)+W70*IF(L70<=Dias_a_la_semana,VLOOKUP(M70,'Ingreso Datos Energía'!$I$46:$K$57,3,0),0)) -> 0.5 | AB70: =+'Ingreso Datos Energía'!$U$36*(Datos!P70-Datos!AI69)+'Ingreso Datos Energía'!$U$38*('Ingreso Datos Energía'!$U$35-Datos!AI69) -> -6735.92514 | AC70: =+SUMIFS(Sol!$AO$31:$AO$186,Sol!$AP$31:$AP$186,Datos!M70,Sol!$AN$31:$AN$186,Datos!O70)*$AC$2 -> 0 | AD70: -6735.92514 | AE70: =(((AD70/3)/(Tablas!$L$4*Tablas!$L$6*'Ingreso Datos Energía'!$U$17+Tablas!$CQ$18)+AI69)*1+(P69+(P70-P69)/3)*AA70/3)/(1+AA70/3) -> 27.03764557 | AF70: =+'Ingreso Datos Energía'!$U$36*(($P69+(P70-P69)/3)-$AE70)+'Ingreso Datos Energía'!$U$38*('Ingreso Datos Energía'!$U$35-$AE70)+$AC70+$Z70 -> -2847.487436 | AG70: =+(((AF70/3)/(Tablas!$L$4*Tablas!$L$6*'Ingreso Datos Energía'!$U$17+Tablas!$CQ$18)+AE70)*1+(P69+(P70-P69)*2/3)*AA70/3)/(1+AA70/3) -> 25.78859132 | AH70: =+'Ingreso Datos Energía'!$U$36*(($P69+(P70-P69)*2/3)-$AG70)+'Ingreso Datos Energía'!$U$38*('Ingreso Datos Energía'!$U$35-$AG70)+$AC70+$Z70 -> -2124.328314 | AI70: =+(((AH70/3)/(Tablas!$L$4*Tablas!$L$6*'Ingreso Datos Energía'!$U$17+Tablas!$CQ$18)+AG70)*1+P70*AA70/3)/(1+AA70/3) -> 25.07161296 | AJ70: =+AD70++(-(Tablas!$L$4*Tablas!$L$6*'Ingreso Datos Energía'!$U$17+Tablas!$CQ$18)*P70*AA70/3+(Tablas!$L$4*Tablas!$L$6*'Ingreso Datos Energía'!$U$17+Tablas!$CQ$18)*AI69)/(1+AA70/3) -> 3600.887475 | AK70: =+IF(L70<='Ingreso Datos Generales'!$D$9,IF(AL70+AM70=0,1,0),0) -> 0 | AL70: =+IF(L70<='Ingreso Datos Generales'!$D$9,IF(AI70<Q70,1,0),0) -> 0 | AM70: =+IF(L70<='Ingreso Datos Generales'!$D$9,IF(AI70>R70,1,0),0) -> 1 | AN70: =+IF(AL70=1,Q70-AI70,0) -> 0 | AO70: =+IF(AM70=1,AI70-R70,0) -> 1.071612958 | AP70: =+'Ingreso Datos Energía'!$U$36*(Datos!P70-Datos!BD69)+'Ingreso Datos Energía'!$U$38*('Ingreso Datos Energía'!$U$35-Datos!BD69) -> -969 | AQ70: =+AA70*Tablas!$L$4*Tablas!$L$6*'Ingreso Datos Energía'!$U$17*(Datos!P70-Datos!BD69) -> 355.25 | AR70: =+SUM($Z70,$AC70,AP70,AQ70)*$AD$2 -> -613.75 | AS70: =+IF(((AR70/3)/(Tablas!$L$4*Tablas!$L$6*'Ingreso Datos Energía'!$U$17+Tablas!$CQ$18)+BD69)<P70,P70,((AR70/3)/(Tablas!$L$4*Tablas!$L$6*'Ingreso Datos Energía'!$U$17+Tablas!$CQ$18)+BD69)) -> 30 | AT70: =+IF(V70=1,IF(AS70<$Q70,$Q70,IF(AS70>$R70,$R70,AS70)),AS70) -> 30 | AU70: =+'Ingreso Datos Energía'!$U$36*(($P70+(P71-P70)/3)-$AT70)+'Ingreso Datos Energía'!$U$38*('Ingreso Datos Energía'!$U$35-$AT70) -> -6121.666667 | AV70: =+AA70*Tablas!$L$4*Tablas!$L$6*'Ingreso Datos Energía'!$U$17*(($P70+(P71-P70)/3)-$AT70) -> -49.34027778 | AW70: =+SUM($Z70,$AC70,AU70,AV70)*$AD$2 -> -6171.006944 | AX70: =+IF(((AW70/3)/(Tablas!$L$4*Tablas!$L$6*'Ingreso Datos Energía'!$U$17+Tablas!$CQ$18)+AT70)<P70,P70,((AW70/3)/(Tablas!$L$4*Tablas!$L$6*'Ingreso Datos Energía'!$U$17+Tablas!$CQ$18)+AT70)) -> 30 | AY70: =+IF(V70=1,IF(AX70<$Q70,$Q70,IF(AX70>$R70,$R70,AX70)),AX70) -> 30 | AZ70: =+'Ingreso Datos Energía'!$U$36*(($P70+(P71-P70)*2/3)-$AY70)+'Ingreso Datos Energía'!$U$38*('Ingreso Datos Energía'!$U$35-$AY70) -> -6468.333333 | BA70: =+AA70*Tablas!$L$4*Tablas!$L$6*'Ingreso Datos Energía'!$U$17*(($P70+(P71-P70)*2/3)-$AY70) -> -98.68055556 | BB70: =+SUM($Z70,$AC70,AZ70,BA70)*$AD$2 -> -6567.013889 | BC70: =+((BB70/3)/(Tablas!$L$4*Tablas!$L$6*'Ingreso Datos Energía'!$U$17+Tablas!$CQ$18)+AY70) -> 25.24436133 | BD70: =+IF(V70=1,IF(BC70<$Q70,$Q70,IF(BC70>$R70,$R70,BC70)),BC70) -> 25.24436133 | BE70: 0 | BF70: 0 | BG70: -4450.590278 | BH70: =+IF(P70>R70,1,0)*V70 -> 0 | BI70: =+IF(P70<Q70,1,0)*V70 -> 0 | BJ70: =+IF(AND(P70>=Q70,P70<=R70),1,0)*V70 -> 0 | BK70: =+IF(P70<AI69,1,0)*SUM(BI70:BJ70) -> 0 | BL70: =+AI70-P70 -> -4.928387042 | BM70: 67
